Workbook

Sheet Gráficos
A1: 2021-01-01 | C1: Gráfico 1: Derivados posiciones netas, | H1: Gráfico 2: Derivado, suscripciones del | M1: Gráfico 3: Derivado, suscripciones
A2: 2023-03-01 | C2: del Mercado Cambiario Formal, según contraparte* (G1) | H2: Mercado Cambiario Formal, según contraparte (G2). | M2: Intra Mercado Cambiario Formal (G3).
C3: (millones de dólares) | H3: (millones de dólares) | M3: (millones de dólares)
C17: Fuentes: Banco Central de Chile | H17: Fuente: Banco Central de Chile | M17: Fuentes: Banco Central de Chile
C18: * Posición Neta se lee en eje derecho
C22: Gráfico 4: Spot, transacciones del | H22: Gráfico 5: Spot, suscripciones
C23: Mercado Cambiario Formal, según contraparte (G4). | H23: Intra Mercado Cambiario Formal (G5).
C24: (millones de dólares) | H24: (millones de dólares)
C39: Fuentes: Banco Central de Chile | H39: Fuentes: Banco Central de Chile
A43: Anexo gráficos(*)
C44: Posiciones netas (spot más derivado) del Mercado | H44: Derivados. Posiciones netas del Mercado | M44: Derivados. Posiciones netas del Mercado | R44: Derivados. Posiciones netas del Mercado
C45: Cambiario Formal. | H45: Cambiario Formal con Sector Externo. | M45: Cambiario Formal con Sectores Locales. | R45: Cambiario Formal con Fondos de Pensiones.
C46: (millones de dólares) | H46: (millones de dólares) | M46: (millones de dólares) | R46: (millones de dólares)
C60: Fuente: Banco Central de Chile. | H60: Fuente: Banco Central de Chile. | M60: Fuente: Banco Central de Chile. | R60: Fuente: Banco Central de Chile.
C62: Derivados. Posiciones netas del Mercado | H62: Derivados. Posiciones netas del Mercado | M62: Derivados. Posiciones netas del Mercado | R62: Derivados. Posiciones netas del Mercado
C63: Cambiario Formal con Empresas del Sector Real. | H63: Cambiario Formal con Compañías de Seguros. | M63: Cambiario Formal con Corredoras y AGF. | R63: Cambiario Formal con Otros Sectores.
C64: (millones de dólares) | H64: (millones de dólares) | M64: (millones de dólares) | R64: (millones de dólares)
C78: Fuente: Banco Central de Chile. | H78: Fuente: Banco Central de Chile. | M78: Fuente: Banco Central de Chile. | R78: Fuente: Banco Central de Chile.
C80: (*)La Posición neta total se presenta en el eje derecho del gráfico.
A87: Anexo gráficos
C88: Derivados. Posición Intra Mercado | H88: Derivados. Posición neta del Mercado | L88: Derivados. Posición neta del Mercado | R88: Derivados. Posición neta del Mercado
C89: Cambiario Formal. | H89: Cambiario Formal con Sector Externo. | L89: Cambiario Formal con Sectores Locales. | R89: Cambiario Formal con Fondos de Pensiones.
C90: (millones de dólares) | H90: (millones de dólares) | L90: (millones de dólares) | R90: (millones de dólares)
C104: Fuente: Banco Central de Chile. | H104: Fuente: Banco Central de Chile. | M104: Fuente: Banco Central de Chile. | R104: Fuente: Banco Central de Chile.
C106: Derivados. Posición neta del Mercado | H106: Derivados. Posición neta del Mercado | M106: Derivados. Posición neta del Mercado | R106: Derivados. Posición neta del Mercado
C107: Cambiario Formal con Empresas del Sector Real. | H107: Cambiario Formal con Compañías de Seguros. | M107: Cambiario Formal con Corredoras y AGF. | R107: Cambiario Formal con Otros Sectores.
C108: (millones de dólares) | H108: (millones de dólares) | M108: (millones de dólares) | R108: (millones de dólares)
C122: Fuente: Banco Central de Chile. | H122: Fuente: Banco Central de Chile. | M122: Fuente: Banco Central de Chile. | R122: Fuente: Banco Central de Chile.
A130: Anexo gráficos(*)
C131: Derivados. Suscripciones del Mercado | H131: Derivados. Suscripciones del Mercado | M131: Derivados. Suscripciones del Mercado
C132: Cambiario Formal con Sector Externo. | H132: Cambiario Formal con Sectores Locales. | M132: Cambiario Formal con Fondos de Pensiones.
C133: (millones de dólares) | H133: (millones de dólares) | M133: (millones de dólares)
C147: Fuente: Banco Central de Chile. | H147: Fuente: Banco Central de Chile. | M147: Fuente: Banco Central de Chile.
C149: Derivados. Suscripciones del Mercado | H149: Derivados. Suscripciones del Mercado | M149: Derivados. Suscripciones del Mercado | R149: Derivados. Suscripciones del Mercado
C150: Cambiario Formal con Empresas del Sector Real. | H150: Cambiario Formal con Compañías de Seguros. | M150: Cambiario Formal con Corredoras y AGF | R150: Cambiario Formal con Otros Sectores.
C151: (millones de dólares) | H151: (millones de dólares) | M151: (millones de dólares) | R151: (millones de dólares)
C165: Fuente: Banco Central de Chile. | H165: Fuente: Banco Central de Chile. | M165: Fuente: Banco Central de Chile. | R165: Fuente: Banco Central de Chile.
C174: Notas:
C186: Glosario:
C229: Gráficos Informe:

Sheet Base original
B1: DERIVADOS | AP1: SPOT | BD1: TOTAL | BG1: Datos Intra-Mercado Cambiario Formal
B2: SUSCRIPCIONES | P2: POSICIONES | AP2: TRANSACCIONES | BD2: POSICIONES | BF2: NETA TOTAL
B3: LOCAL | N3: EXTERNO | P3: LOCAL | AL3: EXTERNO | AO3: NETA TOTAL | AP3: LOCAL | BB3: EXTERNO | BD3: SPOT | BE3: DERIVADO
B4: Fondos de Pensiones | D4: Empresas Sector Real | F4: Compañias de Seguros | H4: Corredoras | J4: AGF | L4: Otros Sectores | N4: Sector Externo | P4: Fondos de Pensiones | S4: Empresas Sector Real | V4: Compañias de seguros | Y4: Corredoras | AB4: AGF | AE4: Otros Sectores | AH4: TOTAL LOCAL | AL4: Sector Externo | AP4: Fondos de Pensiones | AR4: Empresas Sector Real | AT4: Compañias de seguros | AV4: Corredoras | AX4: AGF | AZ4: Otros Sectores | BB4: Sector Externo | BG4: Derivados | BH4: Spot
B5: compras | C5: ventas | D5: compras | E5: ventas | F5: compras | G5: ventas | H5: compras | I5: ventas | J5: compras | K5: ventas | L5: compras | M5: ventas | N5: compras | O5: ventas | P5: compras | Q5: ventas | R5: neta | S5: compras | T5: ventas | U5: neta | V5: compras | W5: ventas | X5: neta | Y5: compras | Z5: ventas | AA5: neta | AB5: compras | AC5: ventas | AD5: neta | AE5: compras | AF5: ventas | AG5: neta | AH5: compras | AI5: ventas | AJ5: Interbancario | AK5: neta | AL5: compras | AM5: ventas | AN5: neta | AP5: compras | AQ5: ventas | AR5: compras | AS5: ventas | AT5: compras | AU5: ventas | AV5: compras | AW5: ventas | AX5: compras | AY5: ventas | AZ5: compras | BA5: ventas | BB5: compras | BC5: ventas | BG5: Suscripciones | BH5: Suscripción
B6: millones de USD
B7: Fuente: Banco Central de Chile
B8: F029.DER.FLU.AFPMLV.M | C8: F029.DER.FLU.AFPMLC.M | D8: F029.DER.FLU.ENFMLV.M | E8: F029.DER.FLU.ENFMLC.M | F8: F029.DER.FLU.CDSMLV.M | G8: F029.DER.FLU.CDSMLC.M | H8: F029.DER.FLU.CBVMLV.M | I8: F029.DER.FLU.CBVMLC.M | J8: F029.DER.FLU.FMMLV.M | K8: F029.DER.FLU.FMMLC.M | L8: F029.DER.FLU.OMLV.M | M8: F029.DER.FLU.OMLC.M | N8: F029.DER.PFL.CCTME.M | O8: F029.DER.PFL.CVTME.M | P8: F029.FWD.STO.AFPMLV.M | Q8: F029.FWD.STO.AFPMLC.M | R8: F029.FWD.STO.MLAFP.M | S8: F029.FWD.STO.ENFMLV.M | T8: F029.FWD.STO.ENFMLC.M | U8: F029.FWD.STO.MLENF.M | V8: F029.FWD.STO.CDSMLV.M | W8: F029.FWD.STO.CDSMLC.M | X8: F029.FWD.STO.MLCDS.M | Y8: F029.FWD.STO.CBVMLV.M | Z8: F029.FWD.STO.CBVMLC.M | AA8: F029.FWD.STO.MLCBV.M | AB8: F029.FWD.STO.FMMLV.M | AC8: F029.FWD.STO.FMMLC.M | AD8: F029.FWD.STO.MLFM.M | AE8: F029.FWD.STO.OMLV.M | AF8: F029.FWD.STO.OMLC.M | AG8: F029.FWD.STO.MLO.M | AH8: F029.DER.STO.CCTML.M | AI8: F029.DER.STO.CVTML.M | AJ8: F029.DER.STO.CI.M | AK8: F029.FWD.STO.ML.M | AL8: F029.DER.STO.CCTME.M | AM8: F029.DER.STO.CVTME.M | AN8: F029.FWD.STO.ME.M | AO8: F029.FWD.STO.Z.M | AP8: F099.SPT.FLU.Z.MCF.R.42.COM.Z.MMUSD.MLME.Z.Z.0.M | AQ8: F099.SPT.FLU.Z.MCF.R.42.VTA.Z.MMUSD.MLME.Z.Z.0.M | AR8: F099.SPT.FLU.Z.MCF.R.55A.COM.Z.MMUSD.MLME.Z.Z.0.M | AS8: F099.SPT.FLU.Z.MCF.R.55A.VTA.Z.MMUSD.MLME.Z.Z.0.M | AT8: F099.SPT.FLU.Z.MCF.R.44.COM.Z.MMUSD.MLME.Z.Z.0.M | AU8: F099.SPT.FLU.Z.MCF.R.44.VTA.Z.MMUSD.MLME.Z.Z.0.M | AV8: F099.SPT.FLU.Z.MCF.R.39A.COM.Z.MMUSD.MLME.Z.Z.0.M | AW8: F099.SPT.FLU.Z.MCF.R.39A.VTA.Z.MMUSD.MLME.Z.Z.0.M | AX8: F099.SPT.FLU.Z.MCF.R.38.COM.Z.MMUSD.MLME.Z.Z.0.M | AY8: F099.SPT.FLU.Z.MCF.R.38.VTA.Z.MMUSD.MLME.Z.Z.0.M | AZ8: F099.SPT.FLU.Z.MCF.R.50.COM.Z.MMUSD.MLME.Z.Z.0.M | BA8: F099.SPT.FLU.Z.MCF.R.50.VTA.Z.MMUSD.MLME.Z.Z.0.M | BB8: F099.SPT.FLU.Z.MCF.N.NR.COM.Z.MMUSD.MLME.Z.Z.0.M | BC8: F099.SPT.FLU.Z.MCF.N.NR.VTA.Z.MMUSD.MLME.Z.Z.0.M | BD8: F029.SPT.STO.82.M | BE8: F029.FWD.STO.Z.M | BF8: F029.FS.STO.80.M | BG8: F029.DER.PFL.CITML.M | BH8: F099.SPT.FLU.Z.MCF.R.MCF.TOT.Z.MMUSD.MLME.Z.Z.0.M
A9: 2007-01-01 | B9: =[1]!FAMEData(B8, "2007", YEAR(Gráficos!$A$2), 0,"Monthly", "Down", "No Heading", "Normal") ->  | C9: =[1]!FAMEData(C8, "2007", YEAR(Gráficos!$A$2), 0,"Monthly", "Down", "No Heading", "Normal") ->  | D9: =[1]!FAMEData(D8, "2007", YEAR(Gráficos!$A$2), 0,"Monthly", "Down", "No Heading", "Normal") ->  | E9: =[1]!FAMEData(E8, "2007", YEAR(Gráficos!$A$2), 0,"Monthly", "Down", "No Heading", "Normal") ->  | F9: =[1]!FAMEData(F8, "2007", YEAR(Gráficos!$A$2), 0,"Monthly", "Down", "No Heading", "Normal") ->  | G9: =[1]!FAMEData(G8, "2007", YEAR(Gráficos!$A$2), 0,"Monthly", "Down", "No Heading", "Normal") ->  | H9: =[1]!FAMEData(H8, "2007", YEAR(Gráficos!$A$2), 0,"Monthly", "Down", "No Heading", "Normal") ->  | I9: =[1]!FAMEData(I8, "2007", YEAR(Gráficos!$A$2), 0,"Monthly", "Down", "No Heading", "Normal") ->  | J9: =[1]!FAMEData(J8, "2007", YEAR(Gráficos!$A$2), 0,"Monthly", "Down", "No Heading", "Normal") ->  | K9: =[1]!FAMEData(K8, "2007", YEAR(Gráficos!$A$2), 0,"Monthly", "Down", "No Heading", "Normal") ->  | L9: =[1]!FAMEData(L8, "2007", YEAR(Gráficos!$A$2), 0,"Monthly", "Down", "No Heading", "Normal") ->  | M9: =[1]!FAMEData(M8, "2007", YEAR(Gráficos!$A$2), 0,"Monthly", "Down", "No Heading", "Normal") ->  | N9: =[1]!FAMEData(N8, "2007", YEAR(Gráficos!$A$2), 0,"Monthly", "Down", "No Heading", "Normal") ->  | O9: =[1]!FAMEData(O8, "2007", YEAR(Gráficos!$A$2), 0,"Monthly", "Down", "No Heading", "Normal") ->  | P9: =[1]!FAMEData(P8, "2007", YEAR(Gráficos!$A$2), 0,"Monthly", "Down", "No Heading", "Normal") ->  | Q9: =[1]!FAMEData(Q8, "2007", YEAR(Gráficos!$A$2), 0,"Monthly", "Down", "No Heading", "Normal") ->  | R9: =[1]!FAMEData(R8, "2007", YEAR(Gráficos!$A$2), 0,"Monthly", "Down", "No Heading", "Normal") ->  | S9: =[1]!FAMEData(S8, "2007", YEAR(Gráficos!$A$2), 0,"Monthly", "Down", "No Heading", "Normal") ->  | T9: =[1]!FAMEData(T8, "2007", YEAR(Gráficos!$A$2), 0,"Monthly", "Down", "No Heading", "Normal") ->  | U9: =[1]!FAMEData(U8, "2007", YEAR(Gráficos!$A$2), 0,"Monthly", "Down", "No Heading", "Normal") ->  | V9: =[1]!FAMEData(V8, "2007", YEAR(Gráficos!$A$2), 0,"Monthly", "Down", "No Heading", "Normal") ->  | W9: =[1]!FAMEData(W8, "2007", YEAR(Gráficos!$A$2), 0,"Monthly", "Down", "No Heading", "Normal") ->  | X9: =[1]!FAMEData(X8, "2007", YEAR(Gráficos!$A$2), 0,"Monthly", "Down", "No Heading", "Normal") ->  | Y9: =[1]!FAMEData(Y8, "2007", YEAR(Gráficos!$A$2), 0,"Monthly", "Down", "No Heading", "Normal") ->  | Z9: =[1]!FAMEData(Z8, "2007", YEAR(Gráficos!$A$2), 0,"Monthly", "Down", "No Heading", "Normal") ->  | AA9: =[1]!FAMEData(AA8, "2007", YEAR(Gráficos!$A$2), 0,"Monthly", "Down", "No Heading", "Normal") ->  | AB9: =[1]!FAMEData(AB8, "2007", YEAR(Gráficos!$A$2), 0,"Monthly", "Down", "No Heading", "Normal") ->  | AC9: =[1]!FAMEData(AC8, "2007", YEAR(Gráficos!$A$2), 0,"Monthly", "Down", "No Heading", "Normal") ->  | AD9: =[1]!FAMEData(AD8, "2007", YEAR(Gráficos!$A$2), 0,"Monthly", "Down", "No Heading", "Normal") ->  | AE9: =[1]!FAMEData(AE8, "2007", YEAR(Gráficos!$A$2), 0,"Monthly", "Down", "No Heading", "Normal") ->  | AF9: =[1]!FAMEData(AF8, "2007", YEAR(Gráficos!$A$2), 0,"Monthly", "Down", "No Heading", "Normal") ->  | AG9: =[1]!FAMEData(AG8, "2007", YEAR(Gráficos!$A$2), 0,"Monthly", "Down", "No Heading", "Normal") ->  | AH9: =[1]!FAMEData(AH8, "2007", YEAR(Gráficos!$A$2), 0,"Monthly", "Down", "No Heading", "Normal") ->  | AI9: =[1]!FAMEData(AI8, "2007", YEAR(Gráficos!$A$2), 0,"Monthly", "Down", "No Heading", "Normal") ->  | AJ9: =[1]!FAMEData(AJ8, "2007", YEAR(Gráficos!$A$2), 0,"Monthly", "Down", "No Heading", "Normal") ->  | AK9: =[1]!FAMEData(AK8, "2007", YEAR(Gráficos!$A$2), 0,"Monthly", "Down", "No Heading", "Normal") ->  | AL9: =[1]!FAMEData(AL8, "2007", YEAR(Gráficos!$A$2), 0,"Monthly", "Down", "No Heading", "Normal") ->  | AM9: =[1]!FAMEData(AM8, "2007", YEAR(Gráficos!$A$2), 0,"Monthly", "Down", "No Heading", "Normal") ->  | AN9: =[1]!FAMEData(AN8, "2007", YEAR(Gráficos!$A$2), 0,"Monthly", "Down", "No Heading", "Normal") ->  | AO9: =[1]!FAMEData(AO8, "2007", YEAR(Gráficos!$A$2), 0,"Monthly", "Down", "No Heading", "Normal") ->  | AP9: =[1]!FAMEData(AP8, "2007", YEAR(Gráficos!$A$2), 0,"Monthly", "Down", "No Heading", "Normal") ->  | AQ9: =[1]!FAMEData(AQ8, "2007", YEAR(Gráficos!$A$2), 0,"Monthly", "Down", "No Heading", "Normal") ->  | AR9: =[1]!FAMEData(AR8, "2007", YEAR(Gráficos!$A$2), 0,"Monthly", "Down", "No Heading", "Normal") ->  | AS9: =[1]!FAMEData(AS8, "2007", YEAR(Gráficos!$A$2), 0,"Monthly", "Down", "No Heading", "Normal") ->  | AT9: =[1]!FAMEData(AT8, "2007", YEAR(Gráficos!$A$2), 0,"Monthly", "Down", "No Heading", "Normal") ->  | AU9: =[1]!FAMEData(AU8, "2007", YEAR(Gráficos!$A$2), 0,"Monthly", "Down", "No Heading", "Normal") ->  | AV9: =[1]!FAMEData(AV8, "2007", YEAR(Gráficos!$A$2), 0,"Monthly", "Down", "No Heading", "Normal") ->  | AW9: =[1]!FAMEData(AW8, "2007", YEAR(Gráficos!$A$2), 0,"Monthly", "Down", "No Heading", "Normal") ->  | AX9: =[1]!FAMEData(AX8, "2007", YEAR(Gráficos!$A$2), 0,"Monthly", "Down", "No Heading", "Normal") ->  | AY9: =[1]!FAMEData(AY8, "2007", YEAR(Gráficos!$A$2), 0,"Monthly", "Down", "No Heading", "Normal") ->  | AZ9: =[1]!FAMEData(AZ8, "2007", YEAR(Gráficos!$A$2), 0,"Monthly", "Down", "No Heading", "Normal") ->  | BA9: =[1]!FAMEData(BA8, "2007", YEAR(Gráficos!$A$2), 0,"Monthly", "Down", "No Heading", "Normal") ->  | BB9: =[1]!FAMEData(BB8, "2007", YEAR(Gráficos!$A$2), 0,"Monthly", "Down", "No Heading", "Normal") ->  | BC9: =[1]!FAMEData(BC8, "2007", YEAR(Gráficos!$A$2), 0,"Monthly", "Down", "No Heading", "Normal") ->  | BD9: =[1]!FAMEData(BD8, "2007", YEAR(Gráficos!$A$2), 0,"Monthly", "Down", "No Heading", "Normal") ->  | BE9: =[1]!FAMEData(BE8, "2007", YEAR(Gráficos!$A$2), 0,"Monthly", "Down", "No Heading", "Normal") ->  | BF9: =[1]!FAMEData(BF8, "2007", YEAR(Gráficos!$A$2), 0,"Monthly", "Down", "No Heading", "Normal") ->  | BG9: =[1]!FAMEData(BG8, "2007", YEAR(Gráficos!$A$2), 0,"Monthly", "Down", "No Heading", "Normal") ->  | BH9: =[1]!FAMEData(BH8, "2007", YEAR(Gráficos!$A$2), 0,"Monthly", "Down", "No Heading", "Normal") -> 
A10: 2007-02-01 | B10: 2786.132238 | C10: 618.0955553 | D10: 698.5161 | E10: 2017.364943 | F10: 217.16249 | G10: 67.634134 | H10: 759.860938 | I10: 1531.204115 | J10: 191.2158054 | K10: 62.2047368 | L10: 1062.472559 | M10: 162.8316558 | N10: 8398.857952 | O10: 11663.17086 | P10: 12941.42113 | Q10: 955.6322492 | R10: 11985.78888 | S10: 1833.1538 | T10: 3909.745509 | U10: -2076.591708 | V10: 715.061164 | W10: 53.246659 | X10: 661.814505 | Y10: 720.1836771 | Z10: 1364.440123 | AA10: -644.256446 | AB10: 263.939912 | AC10: 57.894628 | AD10: 206.045284 | AE10: 3326.776457 | AF10: 5606.632632 | AG10: -2279.856176 | AH10: 19800.53614 | AI10: 11947.5918 | AJ10: 19164.15131 | AK10: 7852.944338 | AL10: 9855.776537 | AM10: 18195.52621 | AN10: -8339.749673 | AO10: -486.805335 | AP10: 640.0560583 | AQ10: 662.9973597 | AR10: 2378.286055 | AS10: 2410.975829 | AT10: 25.07502547 | AU10: 83.75556613 | AV10: 3805.952528 | AW10: 3784.047472 | AX10: 23.68683263 | AY10: 253.4889674 | AZ10: 1330.460927 | BA10: 1161.499064 | BB10: 473.5320173 | BC10: 482.4457418 | BD10: -481.38 | BE10: -486.805335 | BF10: -968.185335 | BG10: 9391.19347 | BH10: 27227.27
A11: 2007-03-01 | B11: 3688.251478 | C11: 641.8189217 | D11: 806.7037975 | E11: 2096.029402 | F11: 302.7372081 | G11: 108.5902223 | H11: 783.820345 | I11: 977.910093 | J11: 247.8552965 | K11: 66.60419593 | L11: 1408.626275 | M11: 648.5556139 | N11: 8896.933487 | O11: 16275.10854 | P11: 13329.76216 | Q11: 987.1266039 | R11: 12342.63556 | S11: 1728.632826 | T11: 3981.457059 | U11: -2252.824233 | V11: 742.609072 | W11: 61.178497 | X11: 681.430575 | Y11: 720.695236 | Z11: 1219.102083 | AA11: -498.406847 | AB11: 259.8679417 | AC11: 69.45217173 | AD11: 190.41577 | AE11: 2892.861984 | AF11: 4519.087625 | AG11: -1626.225641 | AH11: 19674.42922 | AI11: 10837.40404 | AJ11: 17778.5812 | AK11: 8837.025188 | AL11: 9171.88302 | AM11: 18042.29911 | AN11: -8870.416094 | AO11: -33.390906 | AP11: 834.9981043 | AQ11: 929.5448377 | AR11: 2850.212658 | AS11: 3179.715331 | AT11: 66.98920523 | AU11: 113.6046466 | AV11: 4979.722775 | AW11: 4640.277225 | AX11: 81.64659583 | AY11: 133.5842286 | AZ11: 1412.178425 | BA11: 966.4497583 | BB11: 364.2252791 | BC11: 693.933973 | BD11: -793.29 | BE11: -33.390906 | BF11: -826.680906 | BG11: 11000.72552 | BH11: 34281.95
A12: 2007-04-01 | B12: 3532.010808 | C12: 585.0707561 | D12: 646.1754096 | E12: 2868.448761 | F12: 326.446349 | G12: 103.671771 | H12: 446.87612 | I12: 1130.239 | J12: 221.2060758 | K12: 74.400197 | L12: 788.4163946 | M12: 1305.954811 | N12: 8778.713807 | O12: 8871.178373 | P12: 13407.12179 | Q12: 968.3022565 | R12: 12438.81954 | S12: 1441.379601 | T12: 4892.302938 | U12: -3450.923337 | V12: 727.029491 | W12: 22 | X12: 705.029491 | Y12: 447.2271692 | Z12: 1495.674548 | AA12: -1048.447379 | AB12: 204.2365283 | AC12: 72.31929225 | AD12: 131.917236 | AE12: 2218.95857 | AF12: 4308.160025 | AG12: -2089.201455 | AH12: 18445.95315 | AI12: 11758.75906 | AJ12: 18371.59066 | AK12: 6687.194092 | AL12: 8711.346615 | AM12: 16293.55348 | AN12: -7582.206861 | AO12: -895.012769 | AP12: 932.8463419 | AQ12: 928.1931751 | AR12: 2992.632665 | AS12: 2565.740191 | AT12: 49.73127992 | AU12: 85.66665878 | AV12: 3851.95083 | AW12: 3833.04917 | AX12: 76.42850996 | AY12: 180.0165309 | AZ12: 1104.839788 | BA12: 1050.181509 | BB12: 601.1013167 | BC12: 558.2527654 | BD12: -387 | BE12: -895.012769 | BF12: -1282.012769 | BG12: 10465.78709 | BH12: 28042.83
A13: 2007-05-01 | B13: 4614.877157 | C13: 1847.815988 | D13: 967.2664183 | E13: 2947.002406 | F13: 571.4820406 | G13: 209.897997 | H13: 932.375557 | I13: 1268.344268 | J13: 289.8392577 | K13: 44.08783016 | L13: 2886.155988 | M13: 1121.181089 | N13: 9453.15068 | O13: 11098.0867 | P13: 14013.0341 | Q13: 1299.661215 | R13: 12713.37289 | S13: 1525.603032 | T13: 5284.054369 | U13: -3758.451337 | V13: 832.806466 | W13: 82.183038 | X13: 750.623428 | Y13: 683.7212473 | Z13: 1443.544817 | AA13: -759.82357 | AB13: 254.7985402 | AC13: 57.77631416 | AD13: 197.022226 | AE13: 2930.784705 | AF13: 4009.663146 | AG13: -1078.878442 | AH13: 20240.74809 | AI13: 12176.8829 | AJ13: 20670.40344 | AK13: 8063.865194 | AL13: 10204.01055 | AM13: 18254.14573 | AN13: -8050.135185 | AO13: 13.730009 | AP13: 1168.335556 | AQ13: 1229.262214 | AR13: 3580.327239 | AS13: 4016.038852 | AT13: 62.4530255 | AU13: 94.6217111 | AV13: 5602.368138 | AW13: 5556.631862 | AX13: 76.58919676 | AY13: 242.7953557 | AZ13: 1967.145789 | BA13: 2531.585174 | BB13: 850.6762655 | BC13: 655.434831 | BD13: -1397 | BE13: 13.730009 | BF13: -1383.269991 | BG13: 14102.86134 | BH13: 38584.28
A14: 2007-06-01 | B14: 4112.858781 | C14: 773.365 | D14: 1182.835358 | E14: 2038.509914 | F14: 407.250917 | G14: 72.404468 | H14: 740.5674616 | I14: 1203.871549 | J14: 346.9757732 | K14: 64.02287203 | L14: 3865.832589 | M14: 1083.108078 | N14: 10288.88494 | O14: 13183.82535 | P14: 13912.98254 | Q14: 880.7897089 | R14: 13032.19284 | S14: 1892.011154 | T14: 4854.561158 | U14: -2962.550005 | V14: 868.114102 | W14: 58.196013 | X14: 809.918089 | Y14: 743.1023709 | Z14: 1393.480769 | AA14: -650.378398 | AB14: 327.212874 | AC14: 56.75722903 | AD14: 270.455645 | AE14: 2990.735699 | AF14: 3777.919702 | AG14: -787.1840023 | AH14: 20734.15874 | AI14: 11021.70458 | AJ14: 21353.25965 | AK14: 9712.454162 | AL14: 10223.63885 | AM14: 18062.48704 | AN14: -7838.848186 | AO14: 1873.605976 | AP14: 1608.480142 | AQ14: 1736.349957 | AR14: 2747.55892 | AS14: 3368.455262 | AT14: 39.25508188 | AU14: 124.8509593 | AV14: 4924.206144 | AW14: 4710.793856 | AX14: 77.60819055 | AY14: 417.6096407 | AZ14: 3548.554243 | BA14: 3611.298819 | BB14: 654.1041333 | BC14: 540.1215067 | BD14: -2293.49 | BE14: 1873.605976 | BF14: -419.884024 | BG14: 12633.93368 | BH14: 38639.74
A15: 2007-07-01 | B15: 5178.806808 | C15: 1192.83 | D15: 805.0524113 | E15: 3708.522439 | F15: 357.857774 | G15: 152.606317 | H15: 880.439839 | I15: 1603.079691 | J15: 302.0512755 | K15: 114.5645642 | L15: 2747.151519 | M15: 1444.696994 | N15: 11136.03032 | O15: 12933.30024 | P15: 14909.85614 | Q15: 911.2865529 | R15: 13998.56959 | S15: 1930.295596 | T15: 5770.383025 | U15: -3840.087429 | V15: 918.436632 | W15: 99.598387 | X15: 818.838245 | Y15: 977.0888882 | Z15: 1587.50461 | AA15: -610.415722 | AB15: 324.9218918 | AC15: 78.37553283 | AD15: 246.546359 | AE15: 3008.417052 | AF15: 4235.979872 | AG15: -1227.56282 | AH15: 22069.0162 | AI15: 12683.12798 | AJ15: 22071.98258 | AK15: 9385.888215 | AL15: 11774.71452 | AM15: 18586.53351 | AN15: -6811.818992 | AO15: 2574.069223 | AP15: 1773.689608 | AQ15: 1765.097259 | AR15: 2978.702505 | AS15: 3654.986939 | AT15: 88.65310161 | AU15: 112.9989618 | AV15: 5549.334871 | AW15: 5537.665129 | AX15: 68.95506486 | AY15: 450.0238817 | AZ15: 3004.929894 | BA15: 2636.718428 | BB15: 655.773956 | BC15: 674.0894022 | BD15: -2994.28 | BE15: 2574.069223 | BF15: -420.210777 | BG15: 13587.33041 | BH15: 38617.4
A16: 2007-08-01 | B16: 6764.722241 | C16: 2176.543292 | D16: 1705.978522 | E16: 2695.172765 | F16: 439.751416 | G16: 168.275125 | H16: 822.939317 | I16: 1814.30179 | J16: 372.9335304 | K16: 131.8320152 | L16: 2781.182225 | M16: 2061.300775 | N16: 13610.91704 | O16: 15262.34587 | P16: 17355.09278 | Q16: 1080.993193 | R16: 16274.09959 | S16: 2365.162693 | T16: 5663.878377 | U16: -3298.715684 | V16: 1007.472947 | W16: 137.659144 | X16: 869.813803 | Y16: 915.4524823 | Z16: 1490.742468 | AA16: -575.289986 | AB16: 368.8673395 | AC16: 118.5533935 | AD16: 250.313946 | AE16: 3004.170498 | AF16: 4255.083944 | AG16: -1250.913446 | AH16: 25016.21874 | AI16: 12746.91052 | AJ16: 22544.52217 | AK16: 12269.30822 | AL16: 12739.61812 | AM16: 20087.67463 | AN16: -7348.056517 | AO16: 4921.251698 | AP16: 1405.928747 | AQ16: 3681.265015 | AR16: 3793.747921 | AS16: 3597.998446 | AT16: 89.00714277 | AU16: 191.5013862 | AV16: 6461.379426 | AW16: 6151.620574 | AX16: 267.7484685 | AY16: 531.0242401 | AZ16: 1517.202326 | BA16: 1668.639208 | BB16: 962.8375954 | BC16: 918.8011294 | BD16: -5240.3 | BE16: 4921.251698 | BF16: -319.048302 | BG16: 14380.3994 | BH16: 42928.32
A17: 2007-09-01 | B17: 4024.92804 | C17: 1436.573 | D17: 979.0757476 | E17: 3879.336801 | F17: 370.887966 | G17: 87.443805 | H17: 348.623041 | I17: 1468.374625 | J17: 257.2912051 | K17: 78.04201399 | L17: 1217.220445 | M17: 2387.926268 | N17: 14136.9725 | O17: 12081.68146 | P17: 18491.97506 | Q17: 1240.900476 | R17: 17251.07459 | S17: 1774.791245 | T17: 6792.201715 | U17: -5017.41047 | V17: 984.458392 | W17: 138.47 | X17: 845.988392 | Y17: 687.0588492 | Z17: 1861.900174 | AA17: -1174.841325 | AB17: 340.4114492 | AC17: 128.7058432 | AD17: 211.705606 | AE17: 2824.283844 | AF17: 4839.538652 | AG17: -2015.254807 | AH17: 25102.97884 | AI17: 15001.71686 | AJ17: 23363.092 | AK17: 10101.26197 | AL17: 15156.35318 | AM17: 19561.86725 | AN17: -4405.514076 | AO17: 5695.747894 | AP17: 559.1699976 | AQ17: 686.2075834 | AR17: 2819.53172 | AS17: 3157.676393 | AT17: 88.82555128 | AU17: 56.21935002 | AV17: 4285.456471 | AW17: 4228.543529 | AX17: 90.01882899 | AY17: 63.57390871 | AZ17: 980.1381573 | BA17: 1217.717644 | BB17: 564.9456684 | BC17: 526.4515912 | BD17: -5823 | BE17: 5695.747894 | BF17: -127.252106 | BG17: 12118.25183 | BH17: 29584.64
A18: 2007-10-01 | B18: 6152.701577 | C18: 2562.908807 | D18: 1128.670305 | E18: 4847.134326 | F18: 386.331654 | G18: 231.844212 | H18: 789.683503 | I18: 1878.7136 | J18: 347.3935249 | K18: 139.2490761 | L18: 1629.938838 | M18: 2703.607224 | N18: 14052.26346 | O18: 13992.84079 | P18: 20660.87543 | Q18: 1798.517665 | R18: 18862.35776 | S18: 1956.244273 | T18: 7638.915278 | U18: -5682.671005 | V18: 1072.486021 | W18: 215.653214 | X18: 856.832807 | Y18: 727.5485723 | Z18: 1849.455158 | AA18: -1121.906586 | AB18: 377.7665128 | AC18: 168.4085228 | AD18: 209.35799 | AE18: 2668.414251 | AF18: 5233.392492 | AG18: -2564.978241 | AH18: 27463.33506 | AI18: 16904.34233 | AJ18: 24435.46572 | AK18: 10559.36846 | AL18: 17523.76062 | AM18: 22037.57663 | AN18: -4513.816011 | AO18: 6045.552447 | AP18: 1290.461788 | AQ18: 1430.483864 | AR18: 4304.698243 | AS18: 4691.127699 | AT18: 77.38971102 | AU18: 61.16859178 | AV18: 5478.598833 | AW18: 5409.401167 | AX18: 151.0126687 | AY18: 219.2719928 | AZ18: 1242.035044 | BA18: 1673.903199 | BB18: 1198.199536 | BC18: 848.0634865 | BD18: -6413 | BE18: 6045.552447 | BF18: -367.447553 | BG18: 15747.48568 | BH18: 42043.33
A19: 2007-11-01 | B19: 5519.584434 | C19: 2496.662922 | D19: 1919.542854 | E19: 3123.036129 | F19: 394.265897 | G19: 88.972564 | H19: 855.602 | I19: 1527.286626 | J19: 382.4195169 | K19: 71.39565106 | L19: 1937.048956 | M19: 1892.049277 | N19: 11755.30102 | O19: 15871.51205 | P19: 22194.50513 | Q19: 2080.514355 | R19: 20113.99077 | S19: 2641.470442 | T19: 6974.811394 | U19: -4333.340952 | V19: 955.299492 | W19: 119.452056 | X19: 835.847436 | Y19: 991.6896968 | Z19: 1656.350526 | AA19: -664.660829 | AB19: 431.7122505 | AC19: 86.61110652 | AD19: 345.101144 | AE19: 2781.245199 | AF19: 5205.445793 | AG19: -2424.200594 | AH19: 29995.92221 | AI19: 16123.18523 | AJ19: 25492.30491 | AK19: 13873.11271 | AL19: 17563.54149 | AM19: 26263.7146 | AN19: -8700.173115 | AO19: 5172.93959 | AP19: 584.1272256 | AQ19: 587.2994434 | AR19: 4163.825443 | AS19: 3969.82672 | AT19: 113.2096942 | AU19: 78.66310637 | AV19: 5492.626444 | AW19: 5130.373556 | AX19: 158.9479325 | AY19: 161.0885241 | AZ19: 1566.978082 | BA19: 1669.410639 | BB19: 943.9176855 | BC19: 824.4480115 | BD19: -5814 | BE19: 5172.93959 | BF19: -641.06041 | BG19: 15411.44951 | BH19: 39927.64
A20: 2007-12-01 | B20: 4292.355861 | C20: 2734.280541 | D20: 1569.101361 | E20: 3642.640402 | F20: 384.196092 | G20: 149.505038 | H20: 333.563871 | I20: 1082.214374 | J20: 232.9688869 | K20: 208.9658422 | L20: 976.285425 | M20: 1837.172682 | N20: 11240.10988 | O20: 10376.94327 | P20: 22711.69246 | Q20: 2425.418366 | R20: 20286.27409 | S20: 1843.860791 | T20: 6992.056619 | U20: -5148.195828 | V20: 929.226418 | W20: 127.43 | X20: 801.796418 | Y20: 761.242394 | Z20: 1757.856679 | AA20: -996.614285 | AB20: 382.7188365 | AC20: 160.4818275 | AD20: 222.237009 | AE20: 2190.340001 | AF20: 5365.509109 | AG20: -3175.169108 | AH20: 28819.0809 | AI20: 16828.7526 | AJ20: 23657.8154 | AK20: 11989.96977 | AL20: 17861.73957 | AM20: 24642.4787 | AN20: -6780.739128 | AO20: 5209.230645 | AP20: 454.5801367 | AQ20: 645.5756193 | AR20: 4582.423637 | AS20: 4746.387256 | AT20: 122.9893646 | AU20: 108.9621412 | AV20: 4424.868271 | AW20: 4270.131729 | AX20: 208.4277343 | AY20: 328.879703 | AZ20: 2065.055662 | BA20: 2001.282377 | BB20: 651.6346558 | BC20: 681.2311737 | BD20: -6177.363971 | BE20: 5209.230645 | BF20: -968.133326 | BG20: 11474.79935 | BH20: 30043.44
A21: 2008-01-01 | B21: 5559.072183 | C21: 3172.594856 | D21: 1775.603886 | E21: 5062.198532 | F21: 432.863934 | G21: 210.43097 | H21: 709.526983 | I21: 1386.752419 | J21: 235.709598 | K21: 287.7827993 | L21: 1291.004968 | M21: 1612.279819 | N21: 12714.32633 | O21: 13279.86875 | P21: 24138.2759 | Q21: 3084.110265 | R21: 21054.16564 | S21: 1605.54901 | T21: 7775.606496 | U21: -6170.057487 | V21: 889.037698 | W21: 138.734809 | X21: 750.302889 | Y21: 868.870206 | Z21: 1841.610837 | AA21: -972.740631 | AB21: 289.7254054 | AC21: 260.2015164 | AD21: 29.523889 | AE21: 2173.714101 | AF21: 5361.527766 | AG21: -3187.813665 | AH21: 29965.17232 | AI21: 18461.79169 | AJ21: 22708.83444 | AK21: 11503.0221 | AL21: 21711.87981 | AM21: 27941.6293 | AN21: -6229.749484 | AO21: 5273.27262 | AP21: 238.0235682 | AQ21: 714.8141588 | AR21: 4542.112472 | AS21: 4953.438166 | AT21: 113.6397386 | AU21: 92.86535045 | AV21: 5454.52631 | AW21: 4841.47369 | AX21: 325.3391352 | AY21: 209.4968265 | AZ21: 1862.491752 | BA21: 1815.058659 | BB21: 923.9476875 | BC21: 738.4731491 | BD21: -5988.39 | BE21: 5273.27262 | BF21: -715.11738 | BG21: 12895.25294 | BH21: 35286.25
A22: 2008-02-01 | B22: 5635.448954 | C22: 4848.048843 | D22: 1368.864385 | E22: 3428.668269 | F22: 396.074413 | G22: 144.2883106 | H22: 334.270039 | I22: 951.111873 | J22: 235.8817976 | K22: 246.9260992 | L22: 1241.746947 | M22: 1105.920504 | N22: 8807.401284 | O22: 7893.812227 | P22: 24744.21376 | Q22: 4402.897327 | R22: 20341.31643 | S22: 1633.394516 | T22: 8101.56211 | U22: -6468.167594 | V22: 911.945673 | W22: 140.515707 | X22: 771.429966 | Y22: 577.663677 | Z22: 1572.029301 | AA22: -994.365624 | AB22: 338.935375 | AC22: 320.530293 | AD22: 18.405082 | AE22: 2375.329959 | AF22: 5265.255252 | AG22: -2889.925293 | AH22: 30581.48296 | AI22: 19802.78999 | AJ22: 23092.12619 | AK22: 10778.33444 | AL22: 19449.14734 | AM22: 24316.44009 | AN22: -4867.29274 | AO22: 5911.0417 | AP22: 779.4962002 | AQ22: 1249.51303 | AR22: 3787.827057 | AS22: 4592.455673 | AT22: 87.44596394 | AU22: 155.0744471 | AV22: 3622.410889 | AW22: 3025.589111 | AX22: 139.7189451 | AY22: 91.22343997 | AZ22: 1067.943567 | BA22: 878.3741882 | BB22: 835.4839771 | BC22: 693.9901112 | BD22: -6474.641479 | BE22: 5911.0417 | BF22: -563.599779 | BG22: 12142.5594 | BH22: 33727.38
A23: 2008-03-01 | B23: 8610.802023 | C23: 3656.607 | D23: 1588.307242 | E23: 3612.298813 | F23: 538.976117 | G23: 160.906812 | H23: 800.655423 | I23: 1058.108858 | J23: 302.2998522 | K23: 164.4453111 | L23: 1823.120874 | M23: 1607.234949 | N23: 10330.33913 | O23: 13231.73306 | P23: 27320.66899 | Q23: 4897.291065 | R23: 22423.37792 | S23: 1972.743713 | T23: 8053.735238 | U23: -6080.991525 | V23: 951.41747 | W23: 114.000142 | X23: 837.417328 | Y23: 675.152083 | Z23: 1317.614235 | AA23: -642.462152 | AB23: 326.7208599 | AC23: 275.9372289 | AD23: 50.783631 | AE23: 2810.601924 | AF23: 4951.955081 | AG23: -2141.353157 | AH23: 34057.30504 | AI23: 19610.53299 | AJ23: 25690.24142 | AK23: 14446.67927 | AL23: 17936.68767 | AM23: 24780.10583 | AN23: -6843.418161 | AO23: 7603.261112 | AP23: 402.3440115 | AQ23: 1560.392075 | AR23: 5355.67731 | AS23: 4750.266533 | AT23: 87.80043346 | AU23: 125.3146534 | AV23: 5006.432276 | AW23: 4607.567724 | AX23: 155.0752653 | AY23: 71.29209004 | AZ23: 399.9923896 | BA23: 1285.414895 | BB23: 1522.122091 | BC23: 1185.262029 | BD23: -7128 | BE23: 7603.261112 | BF23: 475.261112 | BG23: 15172.57137 | BH23: 53412.71
A24: 2008-04-01 | B24: 7127.079536 | C24: 3409.959303 | D24: 1561.113995 | E24: 5465.544607 | F24: 508.868754 | G24: 160.016779 | H24: 517.8440726 | I24: 952.8733544 | J24: 314.7559 | K24: 152.0595907 | L24: 1698.134168 | M24: 1879.333271 | N24: 8636.907502 | O24: 13278.2529 | P24: 27484.21475 | Q24: 4743.639828 | R24: 22740.57492 | S24: 2214.943424 | T24: 8609.200172 | U24: -6394.256748 | V24: 1028.353877 | W24: 156.483882 | X24: 871.869995 | Y24: 562.9359075 | Z24: 1064.394229 | AA24: -501.458322 | AB24: 274.5664997 | AC24: 174.6517407 | AD24: 99.914759 | AE24: 2737.064602 | AF24: 4859.004518 | AG24: -2121.939916 | AH24: 34302.07906 | AI24: 19607.37437 | AJ24: 25896.12759 | AK24: 14694.61191 | AL24: 13760.44006 | AM24: 21541.55052 | AN24: -7781.142171 | AO24: 6913.469743 | AP24: 658.6733386 | AQ24: 1640.095084 | AR24: 6266.296819 | AS24: 5720.287429 | AT24: 173.5632829 | AU24: 73.92482455 | AV24: 4904.45303 | AW24: 4014.54697 | AX24: 186.6590342 | AY24: 122.760776 | AZ24: 1430.201119 | BA24: 2278.65513 | BB24: 1296.487347 | BC24: 1205.089786 | BD24: -7337.254888 | BE24: 6913.469743 | BF24: -423.7851451 | BG24: 14934.24988 | BH24: 40259.71
A25: 2008-05-01 | B25: 8102.060836 | C25: 3469.216871 | D25: 1432.255193 | E25: 4340.174844 | F25: 316.488346 | G25: 100.225264 | H25: 530.0113711 | I25: 842.5328969 | J25: 229.856719 | K25: 138.1764639 | L25: 1666.849572 | M25: 1294.982976 | N25: 7264.072465 | O25: 9835.761578 | P25: 28897.01747 | Q25: 4805.627848 | R25: 24091.38962 | S25: 2242.724816 | T25: 8857.27855 | U25: -6614.553734 | V25: 929.900994 | W25: 48.210663 | X25: 881.690331 | Y25: 510.1308861 | Z25: 843.7208031 | AA25: -333.589917 | AB25: 283.9124994 | AC25: 168.3039294 | AD25: 115.60857 | AE25: 2846.179165 | AF25: 4440.069906 | AG25: -1593.890742 | AH25: 35709.86583 | AI25: 19163.2117 | AJ25: 24145.03121 | AK25: 16546.56135 | AL25: 13043.64308 | AM25: 21035.2631 | AN25: -7991.620016 | AO25: 8554.941333 | AP25: 796.753565 | AQ25: 1651.434245 | AR25: 4987.380799 | AS25: 5404.72037 | AT25: 108.4869397 | AU25: 76.88379849 | AV25: 4293.816431 | AW25: 3582.183569 | AX25: 184.5361005 | AY25: 362.6694877 | AZ25: 966.6855933 | BA25: 2419.150732 | BB25: 1206.177324 | BC25: 906.1077978 | BD25: -9076.78 | BE25: 8554.941333 | BF25: -521.838667 | BG25: 12341.61205 | BH25: 35227.61
A26: 2008-06-01 | B26: 8051.761521 | C26: 4701.518521 | D26: 2293.405752 | E26: 4300.230205 | F26: 327.444594 | G26: 92.125264 | H26: 735.9605204 | I26: 918.5572486 | J26: 376.082683 | K26: 196.527163 | L26: 2313.715712 | M26: 1413.626222 | N26: 10192.93711 | O26: 13118.66317 | P26: 28684.86408 | Q26: 5763.822928 | R26: 22921.04116 | S26: 2984.069836 | T26: 8364.711208 | U26: -5380.641372 | V26: 992.906026 | W26: 68.078972 | X26: 924.827054 | Y26: 647.6082172 | Z26: 810.8088812 | AA26: -163.200664 | AB26: 414.768682 | AC26: 188.267789 | AD26: 226.500893 | AE26: 3126.387378 | AF26: 4152.533531 | AG26: -1026.146153 | AH26: 36850.60422 | AI26: 19348.22331 | AJ26: 26204.44302 | AK26: 17502.55388 | AL26: 15814.8398 | AM26: 24082.82139 | AN26: -8267.98159 | AO26: 9234.572286 | AP26: 1180.849355 | AQ26: 389.9225937 | AR26: 5500.44226 | AS26: 5700.080482 | AT26: 103.3822 | AU26: 92.61923287 | AV26: 4805.84208 | AW26: 4220.15792 | AX26: 209.6826117 | AY26: 254.4155555 | AZ26: 1039.181055 | BA26: 2854.047687 | BB26: 1047.777386 | BC26: 1145.40653 | BD26: -9809.34 | BE26: 9234.572286 | BF26: -574.767714 | BG26: 15698.59733 | BH26: 44558.6
A27: 2008-07-01 | B27: 8350.009285 | C27: 5327.599796 | D27: 1598.479433 | E27: 5364.947411 | F27: 339.9457 | G27: 83.081093 | H27: 331.438188 | I27: 965.57504 | J27: 262.3512182 | K27: 246.1256087 | L27: 1984.293602 | M27: 1533.560255 | N27: 11602.16028 | O27: 11761.63226 | P27: 28373.10609 | Q27: 6440.594395 | R27: 21932.5117 | S27: 3105.43453 | T27: 8312.656378 | U27: -5207.221848 | V27: 997.05571 | W27: 37.45 | X27: 959.60571 | Y27: 441.4074377 | Z27: 748.3698227 | AA27: -306.962385 | AB27: 357.0284994 | AC27: 299.9968544 | AD27: 57.031645 | AE27: 2913.618573 | AF27: 4264.2504 | AG27: -1350.631827 | AH27: 36187.65084 | AI27: 20103.31785 | AJ27: 26291.53646 | AK27: 16084.50596 | AL27: 16623.2281 | AM27: 23303.885 | AN27: -6680.6569 | AO27: 9403.849061 | AP27: 2712.135841 | AQ27: 1297.142465 | AR27: 5002.517271 | AS27: 5731.55231 | AT27: 101.3648482 | AU27: 117.1096735 | AV27: 5186.740137 | AW27: 6336.259863 | AX27: 260.7689904 | AY27: 170.7582877 | AZ27: 1700.882773 | BA27: 1324.688364 | BB27: 975.0598144 | BC27: 859.8890376 | BD27: -9723.03 | BE27: 9403.849061 | BF27: -319.180939 | BG27: 16412.6335 | BH27: 47308.65
A28: 2008-08-01 | B28: 5689.565052 | C28: 3904.208552 | D28: 1778.620852 | E28: 4461.249893 | F28: 322.5399505 | G28: 90.576335 | H28: 600.728134 | I28: 901.35589 | J28: 221.8241398 | K28: 163.9267646 | L28: 3227.226496 | M28: 1001.872187 | N28: 9656.936526 | O28: 11501.68706 | P28: 26517.73857 | Q28: 5458.83937 | R28: 21058.8992 | S28: 3544.844359 | T28: 8568.212477 | U28: -5023.368118 | V28: 952.343305 | W28: 26.95 | X28: 925.393305 | Y28: 650.021662 | Z28: 961.69847 | AA28: -311.676808 | AB28: 368.0920891 | AC28: 252.0718041 | AD28: 116.020285 | AE28: 3544.750645 | AF28: 3995.920209 | AG28: -451.1695642 | AH28: 35577.79063 | AI28: 19263.69233 | AJ28: 25403.69583 | AK28: 16314.27126 | AL28: 16085.3195 | AM28: 22707.18447 | AN28: -6621.864972 | AO28: 9692.40629 | AP28: 1153.92911 | AQ28: 1308.950654 | AR28: 5313.179082 | AS28: 5909.385129 | AT28: 129.9940673 | AU28: 78.68060523 | AV28: 4361.150075 | AW28: 4022.849924 | AX28: 307.0784552 | AY28: 513.8054815 | AZ28: 2280.065321 | BA28: 2701.875177 | BB28: 761.9254325 | BC28: 640.7830298 | BD28: -10585.45 | BE28: 9692.40629 | BF28: -893.04371 | BG28: 14147.80731 | BH28: 40702.59
A29: 2008-09-01 | B29: 5155.331967 | C29: 2119.118588 | D29: 1662.917314 | E29: 4173.025013 | F29: 298.1682165 | G29: 113.716263 | H29: 877.9833811 | I29: 1156.907001 | J29: 288.8148996 | K29: 330.5268319 | L29: 4640.780837 | M29: 1483.024851 | N29: 8113.564037 | O29: 11677.08561 | P29: 24848.1632 | Q29: 3793.384337 | R29: 21054.77886 | S29: 3284.104288 | T29: 8138.704243 | U29: -4854.599955 | V29: 908.429932 | W29: 45.55 | X29: 862.879932 | Y29: 904.4084706 | Z29: 1057.452951 | AA29: -153.04448 | AB29: 398.0425324 | AC29: 361.9159934 | AD29: 36.126539 | AE29: 3215.059607 | AF29: 4025.327736 | AG29: -810.2681288 | AH29: 33558.20803 | AI29: 17422.33526 | AJ29: 23649.76924 | AK29: 16136.31149 | AL29: 15176.31144 | AM29: 22193.00926 | AN29: -7016.697822 | AO29: 9119.613664 | AP29: 1245.702054 | AQ29: 952.712313 | AR29: 5965.286779 | AS29: 5943.813532 | AT29: 185.9571366 | AU29: 100.8837705 | AV29: 4840.101596 | AW29: 4639.898404 | AX29: 325.8211073 | AY29: 182.8093612 | AZ29: 5992.251338 | BA29: 5898.757566 | BB29: 1167.296031 | BC29: 693.5750526 | BD29: -9238.78 | BE29: 9119.613664 | BF29: -119.166336 | BG29: 14320.47297 | BH29: 39146.11
A30: 2008-10-01 | B30: 2150.071104 | C30: 2423.258985 | D30: 3110.94622 | E30: 3762.315051 | F30: 449.6912517 | G30: 81.61724721 | H30: 698.2653515 | I30: 717.2410135 | J30: 338.7877244 | K30: 225.6194374 | L30: 2378.489235 | M30: 1510.578 | N30: 6565.794877 | O30: 8816.783899 | P30: 20822.91442 | Q30: 3666.986373 | R30: 17155.92805 | S30: 4810.272558 | T30: 7778.721943 | U30: -2968.449384 | V30: 871.314303 | W30: 26.113 | X30: 845.201303 | Y30: 987.1762134 | Z30: 1097.59857 | AA30: -110.422357 | AB30: 346.6921591 | AC30: 271.1334131 | AD30: 75.558746 | AE30: 2909.510736 | AF30: 3462.499731 | AG30: -552.9889946 | AH30: 30747.88039 | AI30: 16303.05303 | AJ30: 20332.71535 | AK30: 14445.26607 | AL30: 12180.20391 | AM30: 19277.76027 | AN30: -7097.556357 | AO30: 7347.709712 | AP30: 1388.001309 | AQ30: 1221.145595 | AR30: 4907.29272 | AS30: 4917.047156 | AT30: 95.79684582 | AU30: 107.8543921 | AV30: 5447.083291 | AW30: 4902.916709 | AX30: 484.5025231 | AY30: 322.7289214 | AZ30: 4161.267708 | BA30: 3713.936217 | BB30: 1330.30738 | BC30: 1273.90101 | BD30: -7963.79 | BE30: 7347.709712 | BF30: -616.080288 | BG30: 12208.07021 | BH30: 31189.89
A31: 2008-11-01 | B31: 2785.754 | C31: 1144.6349 | D31: 1838.462877 | E31: 3369.962847 | F31: 284.734531 | G31: 84.22602778 | H31: 365.5399429 | I31: 524.8440171 | J31: 171.8518231 | K31: 127.3042639 | L31: 1075.847163 | M31: 1702.556096 | N31: 3767.299721 | O31: 4407.371497 | P31: 20030.1237 | Q31: 3220.158273 | R31: 16809.96543 | S31: 4557.793029 | T31: 7379.937857 | U31: -2822.144828 | V31: 860.092174 | W31: 44.663 | X31: 815.429174 | Y31: 871.0075622 | Z31: 1008.936629 | AA31: -137.929067 | AB31: 243.0010855 | AC31: 192.8231315 | AD31: 50.177954 | AE31: 2869.905739 | AF31: 4089.157969 | AG31: -1219.25223 | AH31: 29431.92329 | AI31: 15935.67686 | AJ31: 18657.82949 | AK31: 13496.68514 | AL31: 11190.76208 | AM31: 17653.21752 | AN31: -6462.455442 | AO31: 7034.229699 | AP31: 796.0153331 | AQ31: 1347.87319 | AR31: 4781.505379 | AS31: 4208.165609 | AT31: 63.94038079 | AU31: 95.99669621 | AV31: 4442.635356 | AW31: 4428.364644 | AX31: 405.0451183 | AY31: 385.2230917 | AZ31: 2022.797455 | BA31: 1157.474091 | BB31: 966.3001967 | BC31: 936.692678 | BD31: -7018.72 | BE31: 7034.229699 | BF31: 15.509699 | BG31: 9604.432144 | BH31: 22135.86
A32: 2008-12-01 | B32: 3792.649719 | C32: 1168.760719 | D32: 1087.222567 | E32: 3376.710535 | F32: 246.4395 | G32: 98.65 | H32: 360.9102443 | I32: 445.86128 | J32: 138.8762354 | K32: 76.76574803 | L32: 1423.397884 | M32: 920.0752711 | N32: 3267.625498 | O32: 4230.159863 | P32: 19398.3317 | Q32: 2472.289273 | R32: 16926.04243 | S32: 3964.322583 | T32: 6642.440291 | U32: -2678.117708 | V32: 909.204418 | W32: 84.013 | X32: 825.191418 | Y32: 711.9782616 | Z32: 793.9190136 | AA32: -81.940752 | AB32: 135.0827658 | AC32: 106.0417698 | AD32: 29.040996 | AE32: 2437.376201 | AF32: 3745.826973 | AG32: -1308.450771 | AH32: 27556.29593 | AI32: 13844.53032 | AJ32: 16082.45321 | AK32: 13711.47007 | AL32: 9711.959965 | AM32: 15979.83165 | AN32: -6267.871687 | AO32: 7443.598386 | AP32: 796.0569914 | AQ32: 1320.326072 | AR32: 4333.87643 | AS32: 4884.156546 | AT32: 55.63060158 | AU32: 73.44428192 | AV32: 3877.1098 | AW32: 3802.8902 | AX32: 861.6614239 | AY32: 799.3385761 | AZ32: 2428.855682 | BA32: 1360.626075 | BB32: 784.0391187 | BC32: 847.3382495 | BD32: -6939 | BE32: 7443.598386 | BF32: 504.598386 | BG32: 8574.866219 | BH32: 18494.95
A33: 2009-01-01 | B33: 4877.434442 | C33: 2278.525123 | D33: 1432.448368 | E33: 4041.375827 | F33: 275.506729 | G33: 65.032288 | H33: 224.0560439 | I33: 721.405078 | J33: 108.728182 | K33: 103.6208712 | L33: 1264.68848 | M33: 620.5457787 | N33: 5567.701653 | O33: 7379.844188 | P33: 18996.37938 | Q33: 2327.193418 | R33: 16669.18597 | S33: 3504.769501 | T33: 6936.978247 | U33: -3432.208745 | V33: 868.935891 | W33: 50.671288 | X33: 818.264603 | Y33: 568.473039 | Z33: 792.23401 | AA33: -223.760971 | AB33: 125.473683 | AC33: 139.26752 | AD33: -13.793837 | AE33: 2579.809646 | AF33: 3044.045417 | AG33: -464.2357716 | AH33: 26643.84114 | AI33: 13290.3899 | AJ33: 17765.73367 | AK33: 13353.15569 | AL33: 11517.01074 | AM33: 17475.04104 | AN33: -5958.030304 | AO33: 7395.125388 | AP33: 643.5617135 | AQ33: 957.3320485 | AR33: 4604.220283 | AS33: 4268.324437 | AT33: 170.7559047 | AU33: 83.62905548 | AV33: 3235.25158 | AW33: 3325.74842 | AX33: 688.45626 | AY33: 655.54374 | AZ33: 983.0193909 | BA33: 1030.46811 | BB33: 1204.822754 | BC33: 1138.214189 | BD33: -6960.17 | BE33: 7395.125388 | BF33: 434.955388 | BG33: 12463.08451 | BH33: 24999.01
A34: 2009-02-01 | B34: 5056.482432 | C34: 3298.915573 | D34: 688.7436759 | E34: 3172.002504 | F34: 253.6255037 | G34: 47.104848 | H34: 388.3603019 | I34: 593.7717345 | J34: 103.2345155 | K34: 114.2364502 | L34: 657.349283 | M34: 637.6375387 | N34: 6140.322643 | O34: 8886.837819 | P34: 18629.96528 | Q34: 2612.646037 | R34: 16017.31925 | S34: 3191.943897 | T34: 7247.119279 | U34: -4055.175381 | V34: 879.064327 | W34: 40.04196 | X34: 839.022367 | Y34: 570.9039863 | Z34: 805.8203203 | AA34: -234.916334 | AB34: 151.1929278 | AC34: 171.5123248 | AD34: -20.319397 | AE34: 2592.238182 | AF34: 2830.419789 | AG34: -238.1816076 | AH34: 26015.3086 | AI34: 13707.55971 | AJ34: 17589.24482 | AK34: 12307.45336 | AL34: 12228.73313 | AM34: 18947.24633 | AN34: -6718.513205 | AO34: 5588.940151 | AP34: 941.4250566 | AQ34: 481.4056824 | AR34: 3312.560866 | AS34: 3231.207395 | AT34: 80.8923997 | AU34: 73.9407869 | AV34: 2620.40501 | AW34: 2562.59499 | AX34: 723.5399845 | AY34: 680.4600155 | AZ34: 757.9230422 | BA34: 633.1126727 | BB34: 647.2262832 | BC34: 578.2384569 | BD34: -6071.05 | BE34: 5588.940151 | BF34: -482.109849 | BG34: 11621.13069 | BH34: 23793.97
A35: 2009-03-01 | B35: 3995.142188 | C35: 1842.523461 | D35: 1145.908411 | E35: 3007.386361 | F35: 313.8426502 | G35: 115.965351 | H35: 337.4071721 | I35: 653.087958 | J35: 89.74764274 | K35: 98.20049886 | L35: 972.0638603 | M35: 640.7328799 | N35: 5922.149307 | O35: 6957.97824 | P35: 17454.65798 | Q35: 1757.074813 | R35: 15697.58316 | S35: 3141.252359 | T35: 6984.757462 | U35: -3843.505103 | V35: 945.868065 | W35: 83.313 | X35: 862.555065 | Y35: 565.8491587 | Z35: 831.4289447 | AA35: -265.579786 | AB35: 141.2164065 | AC35: 179.2868245 | AD35: -38.070418 | AE35: 2491.354131 | AF35: 2615.122926 | AG35: -123.7687949 | AH35: 24740.1981 | AI35: 12450.98397 | AJ35: 17270.08597 | AK35: 12289.18433 | AL35: 12795.75319 | AM35: 18546.24921 | AN35: -5750.496019 | AO35: 6538.688311 | AP35: 495.1610249 | AQ35: 870.4099711 | AR35: 3759.396031 | AS35: 3935.731943 | AT35: 183.4369662 | AU35: 128.2563497 | AV35: 4552.938389 | AW35: 4338.061611 | AX35: 473.5849843 | AY35: 407.0679739 | AZ35: 815.8270669 | BA35: 243.3202633 | BB35: 932.1652703 | BC35: 1143.321888 | BD35: -5861.65 | BE35: 6538.688311 | BF35: 677.038311 | BG35: 11778.53 | BH35: 29688.5
A36: 2009-04-01 | B36: 4589.918653 | C36: 1627.427653 | D36: 1192.553686 | E36: 2636.914753 | F36: 210.78199 | G36: 45.825868 | H36: 187.7635045 | I36: 411.650558 | J36: 115.3117269 | K36: 80.85680109 | L36: 747.5929151 | M36: 741.2091849 | N36: 5199.600849 | O36: 6872.526575 | P36: 17464.27786 | Q36: 1212.417011 | R36: 16251.86085 | S36: 3161.706578 | T36: 6880.19771 | U36: -3718.491132 | V36: 904.06857 | W36: 35.438868 | X36: 868.629702 | Y36: 497.0899038 | Z36: 821.5734458 | AA36: -324.483542 | AB36: 165.5759179 | AC36: 214.9025359 | AD36: -49.326618 | AE36: 2228.98944 | AF36: 2605.684109 | AG36: -376.694669 | AH36: 24421.70827 | AI36: 11770.21368 | AJ36: 16803.14027 | AK36: 12651.46479 | AL36: 11419.48262 | AM36: 18347.14936 | AN36: -6927.666738 | AO36: 5723.798056 | AP36: 392.4431571 | AQ36: 1201.31315 | AR36: 3623.026753 | AS36: 3407.264493 | AT36: 107.7782967 | AU36: 102.0843596 | AV36: 4488.823443 | AW36: 4127.176557 | AX36: 500.7073 | AY36: 474.5204487 | AZ36: 1822.862696 | BA36: 618.1434953 | BB36: 689.8086986 | BC36: 938.3574964 | BD36: -5148.97 | BE36: 5723.798056 | BF36: 574.828056 | BG36: 10751.69851 | BH36: 26661.35
A37: 2009-05-01 | B37: 6710.36657 | C37: 2551.496539 | D37: 1034.770612 | E37: 2938.851447 | F37: 250.2526901 | G37: 46.104244 | H37: 197.665026 | I37: 560.6935974 | J37: 116.0582457 | K37: 107.4952772 | L37: 751.9733818 | M37: 453.7836424 | N37: 4586.304419 | O37: 5488.013414 | P37: 19807.88967 | Q37: 1701.425436 | R37: 18106.46423 | S37: 3055.251302 | T37: 6920.711145 | U37: -3865.459843 | V37: 933.664925 | W37: 44.424032 | X37: 889.240893 | Y37: 409.9552081 | Z37: 709.2969631 | AA37: -299.341755 | AB37: 153.1956182 | AC37: 187.2150522 | AD37: -34.019434 | AE37: 2411.927037 | AF37: 2606.326422 | AG37: -194.3993852 | AH37: 26771.88376 | AI37: 12169.39905 | AJ37: 17689.80559 | AK37: 14602.45492 | AL37: 11339.27638 | AM37: 18249.05097 | AN37: -6909.774591 | AO37: 7692.680326 | AP37: 257.8902087 | AQ37: 1987.266906 | AR37: 3415.325358 | AS37: 3858.282119 | AT37: 82.22404267 | AU37: 99.07580643 | AV37: 3910.002894 | AW37: 3956.997106 | AX37: 352.3898433 | AY37: 443.1860747 | AZ37: 1384.976171 | BA37: 779.1442493 | BB37: 594.8708717 | BC37: 770.3977383 | BD37: -7032.54 | BE37: 7692.680326 | BF37: 660.140326 | BG37: 11096.32438 | BH37: 23847.6
A38: 2009-06-01 | B38: 7857.284 | C38: 3157.113 | D38: 1142.358435 | E38: 4013.05955 | F38: 423.769538 | G38: 142.719723 | H38: 256.648262 | I38: 386.3388372 | J38: 147.7535345 | K38: 148.9704489 | L38: 1890.372994 | M38: 1533.847802 | N38: 6403.343511 | O38: 7811.402023 | P38: 21214.46167 | Q38: 1506.184936 | R38: 19708.27673 | S38: 3133.329676 | T38: 7687.460101 | U38: -4554.130425 | V38: 1028.530615 | W38: 128.593809 | X38: 899.936806 | Y38: 437.1584603 | Z38: 706.7881543 | AA38: -269.629694 | AB38: 158.864978 | AC38: 213.219729 | AD38: -54.354751 | AE38: 2606.29014 | AF38: 3161.85055 | AG38: -555.5604101 | AH38: 28578.63554 | AI38: 13404.09728 | AJ38: 18842.42527 | AK38: 15174.77422 | AL38: 12046.3677 | AM38: 18826.04665 | AN38: -6779.678951 | AO38: 8395.095267 | AP38: 157.4719278 | AQ38: 1639.637394 | AR38: 4111.46085 | AS38: 4833.361796 | AT38: 156.7759274 | AU38: 133.772593 | AV38: 3818.257912 | AW38: 3920.742088 | AX38: 137.5192849 | AY38: 344.3943199 | AZ38: 4449.585351 | BA38: 2236.844283 | BB38: 1002.422437 | BC38: 1264.907526 | BD38: -7571.41 | BE38: 8395.095267 | BF38: 823.685267 | BG38: 14457.90791 | BH38: 28494.93
A39: 2009-07-01 | B39: 8248.149 | C39: 2070.896 | D39: 924.0335974 | E39: 3757.894853 | F39: 579.40248 | G39: 53.101425 | H39: 339.2463571 | I39: 574.9714418 | J39: 170.5091445 | K39: 120.4990353 | L39: 886.1747201 | M39: 187.574698 | N39: 6646.492275 | O39: 9790.716478 | P39: 23024.28301 | Q39: 1214.141936 | R39: 21810.14107 | S39: 2847.183922 | T39: 8155.675841 | U39: -5308.491918 | V39: 1012.362897 | W39: 41.214425 | X39: 971.148472 | Y39: 330.4055084 | Z39: 313.9877814 | AA39: 16.417727 | AB39: 219.9091175 | AC39: 224.5954795 | AD39: -4.686362 | AE39: 2840.650175 | AF39: 3162.929288 | AG39: -322.2791127 | AH39: 30274.79463 | AI39: 13112.54475 | AJ39: 20172.26913 | AK39: 17162.48583 | AL39: 12361.64655 | AM39: 20847.14955 | AN39: -8485.503 | AO39: 8676.98283 | AP39: 464.9134928 | AQ39: 2043.971988 | AR39: 4897.38343 | AS39: 4523.8686 | AT39: 156.3143478 | AU39: 154.6190428 | AV39: 4578.132823 | AW39: 4417.867177 | AX39: 134.0952443 | AY39: 230.0914277 | AZ39: 1313.499596 | BA39: 539.45806 | BB39: 871.5513863 | BC39: 899.7037045 | BD39: -7964.89 | BE39: 8676.98283 | BF39: 712.09283 | BG39: 14225.52986 | BH39: 30281.59
A40: 2009-08-01 | B40: 8024.063 | C40: 1962.518 | D40: 1028.635548 | E40: 3939.79297 | F40: 641.2500839 | G40: 73.67362797 | H40: 325.282128 | I40: 437.993658 | J40: 208.7616599 | K40: 203.258158 | L40: 2255.863068 | M40: 282.1533987 | N40: 7500.346442 | O40: 11382.96544 | P40: 23308.66494 | Q40: 759.963936 | R40: 22548.70101 | S40: 2906.118797 | T40: 8357.117838 | U40: -5450.999041 | V40: 1001.621634 | W40: 43.238425 | X40: 958.383209 | Y40: 308.1355886 | Z40: 300.7029196 | AA40: 7.432669 | AB40: 263.7435469 | AC40: 282.2463429 | AD40: -18.502796 | AE40: 3404.554684 | AF40: 2835.705699 | AG40: 568.8489853 | AH40: 31192.83919 | AI40: 12578.97516 | AJ40: 19881.36069 | AK40: 18614.09999 | AL40: 13402.09351 | AM40: 22911.15386 | AN40: -9509.060353 | AO40: 9105.039637 | AP40: 252.845167 | AQ40: 1418.442203 | AR40: 4653.053176 | AS40: 4818.673655 | AT40: 125.9595295 | AU40: 114.3983166 | AV40: 4542.8323 | AW40: 4105.1677 | AX40: 211.821432 | AY40: 445.5351761 | AZ40: 2667.074989 | BA40: 1769.952099 | BB40: 616.3921714 | BC40: 471.0408507 | BD40: -8035.64 | BE40: 9105.039637 | BF40: 1069.399637 | BG40: 14124.83265 | BH40: 32439.24
A41: 2009-09-01 | B41: 9676.009694 | C41: 4038.892994 | D41: 971.4403781 | E41: 4227.225944 | F41: 602.66073 | G41: 129.805599 | H41: 536.1387326 | I41: 753.1152034 | J41: 282.0713648 | K41: 179.4457288 | L41: 2292.983525 | M41: 812.9554942 | N41: 9336.104789 | O41: 12600.26474 | P41: 25189.62764 | Q41: 1536.316933 | R41: 23653.3107 | S41: 2759.674535 | T41: 8080.811207 | U41: -5321.136672 | V41: 1032.932314 | W41: 66.513 | X41: 966.419314 | Y41: 567.9258254 | Z41: 547.6365994 | AA41: 20.289226 | AB41: 289.9015629 | AC41: 259.9752389 | AD41: 29.926324 | AE41: 3348.014023 | AF41: 2679.086561 | AG41: 668.9274611 | AH41: 33188.0759 | AI41: 13170.33954 | AJ41: 18027.27248 | AK41: 20017.23805 | AL41: 14414.671 | AM41: 23461.49698 | AN41: -9046.825979 | AO41: 10970.41207 | AP41: 254.3639555 | AQ41: 2351.045899 | AR41: 4717.479678 | AS41: 5598.839402 | AT41: 99.82742814 | AU41: 137.6382276 | AV41: 4056.641493 | AW41: 4091.358507 | AX41: 242.7297663 | AY41: 582.2848097 | AZ41: 5060.209891 | BA41: 4506.744951 | BB41: 1192.151204 | BC41: 860.4982043 | BD41: -10540.35563 | BE41: 10970.41207 | BF41: 430.0564402 | BG41: 14909.04201 | BH41: 32439.57
A42: 2009-10-01 | B42: 8267.43324 | C42: 2374.5672 | D42: 1307.680629 | E42: 4732.974786 | F42: 589.53758 | G42: 62.051435 | H42: 445.8611761 | I42: 761.5965189 | J42: 436.4552363 | K42: 203.7775801 | L42: 2267.721167 | M42: 756.7915442 | N42: 9231.911403 | O42: 11719.21527 | P42: 26551.69474 | Q42: 807.442936 | R42: 25744.2518 | S42: 3020.394213 | T42: 9456.856701 | U42: -6436.462488 | V42: 997.675025 | W42: 30.470935 | X42: 967.20409 | Y42: 527.4661383 | Z42: 631.2341423 | AA42: -103.768004 | AB42: 362.3941028 | AC42: 313.7251298 | AD42: 48.668973 | AE42: 3570.108521 | AF42: 2938.587316 | AG42: 631.5212048 | AH42: 35029.73274 | AI42: 14178.31716 | AJ42: 20529.5298 | AK42: 20850.91728 | AL42: 15819.39051 | AM42: 24430.03802 | AN42: -8610.647512 | AO42: 12240.26977 | AP42: 185.3656625 | AQ42: 2264.37157 | AR42: 5129.821854 | AS42: 4603.445078 | AT42: 106.0268636 | AU42: 157.2212384 | AV42: 4564.147588 | AW42: 4724.852412 | AX42: 222.5353961 | AY42: 752.8212625 | AZ42: 2995.651295 | BA42: 1967.859663 | BB42: 878.567004 | BC42: 830.9287756 | BD42: -11785.72169 | BE42: 12240.26977 | BF42: 454.5480782 | BG42: 16849.45343 | BH42: 34791.86
A43: 2009-11-01 | B43: 9760.136 | C43: 2352.711 | D43: 1043.988127 | E43: 6155.395143 | F43: 596.303808 | G43: 168.696192 | H43: 201.4196997 | I43: 682.5803003 | J43: 410.9220404 | K43: 287.0779596 | L43: 1546.728007 | M43: 1092.830023 | N43: 9280.871914 | O43: 11807.60529 | P43: 30140.92856 | Q43: 1541.410936 | R43: 28599.51762 | S43: 2830.08336 | T43: 11337.47383 | U43: -8507.390472 | V43: 1044.928507 | W43: 63.000541 | X43: 981.9279658 | Y43: 287.392548 | Z43: 480.1336906 | AA43: -192.7411426 | AB43: 543.2846609 | AC43: 346.8260698 | AD43: 196.4585911 | AE43: 3398.991864 | AF43: 3014.81454 | AG43: 384.1773236 | AH43: 38245.6095 | AI43: 16783.65961 | AJ43: 21628.95552 | AK43: 21461.4516 | AL43: 17585.55687 | AM43: 24964.48242 | AN43: -7378.925553 | AO43: 14082.52604 | AP43: 249.4953281 | AQ43: 3155.504672 | AR43: 5666.143256 | AS43: 5673.285582 | AT43: 214.258123 | AU43: 162.741877 | AV43: 4411.307616 | AW43: 4648.692384 | AX43: 348.2218508 | AY43: 461.7781492 | AZ43: 2036.061847 | BA43: 1152.552695 | BB43: 1299.787616 | BC43: 915.2960546 | BD43: -13735.20796 | BE43: 14082.52604 | BF43: 347.3180844 | BG43: 15593.52271 | BH43: 30572.34067
A44: 2009-12-01 | B44: 7125.559774 | C44: 2815.69093 | D44: 1199.79846 | E44: 4693.099771 | F44: 587.187655 | G44: 144.812345 | H44: 197.018457 | I44: 437.981543 | J44: 241.084442 | K44: 244.915558 | L44: 2892.726881 | M44: 2592.839607 | N44: 6047.333488 | O44: 10766.2133 | P44: 30051.81177 | Q44: 2526.470306 | R44: 27525.34146 | S44: 2472.009455 | T44: 9022.277866 | U44: -6550.268411 | V44: 1344.775861 | W44: 76.775861 | X44: 1268 | Y44: 235.1457022 | Z44: 422.1457022 | AA44: -187 | AB44: 405.7470575 | AC44: 336.7470575 | AD44: 69 | AE44: 3189.225464 | AF44: 3810.254467 | AG44: -621.029003 | AH44: 37698.71531 | AI44: 16194.67126 | AJ44: 19398.4694 | AK44: 21503.8115 | AL44: 14334.05038 | AM44: 21688.07014 | AN44: -7354.019752 | AO44: 14149.79174 | AP44: 921.9582427 | AQ44: 1522.041757 | AR44: 7091.085107 | AS44: 8534.29312 | AT44: 146.6460646 | AU44: 115.3539354 | AV44: 4281.951057 | AW44: 4042.048943 | AX44: 340.874865 | AY44: 349.125135 | AZ44: 5026.084233 | BA44: 3470.893694 | BB44: 2380.89704 | BC44: 1834.035069 | BD44: -13402.35271 | BE44: 14149.79174 | BF44: 747.791743 | BG44: 13960.31234 | BH44: 27188.44857
A45: 2010-01-01 | B45: 7740.380923 | C45: 3949.934923 | D45: 1970.724487 | E45: 4939.107926 | F45: 893.73441 | G45: 113.26559 | H45: 286.3724209 | I45: 718.6275791 | J45: 374.1478862 | K45: 294.8521138 | L45: 1890.41995 | M45: 1066.006407 | N45: 8553.017082 | O45: 9954.306393 | P45: 30317.77285 | Q45: 3762.15893 | R45: 26555.61392 | S45: 5671.424356 | T45: 10887.41309 | U45: -5215.988739 | V45: 1739.865497 | W45: 77.028386 | X45: 1662.837111 | Y45: 368.1316749 | Z45: 615.9392725 | AA45: -247.8075976 | AB45: 531.9804236 | AC45: 451.7248895 | AD45: 80.25553407 | AE45: 1034.884619 | AF45: 2524.107027 | AG45: -1489.222408 | AH45: 39664.05942 | AI45: 18318.3716 | AJ45: 23091.84464 | AK45: 21345.55113 | AL45: 17355.05169 | AM45: 24659.88856 | AN45: -7304.836869 | AO45: 14040.71426 | AP45: 290.4400005 | AQ45: 1910.250904 | AR45: 5792.28613 | AS45: 4947.975629 | AT45: 250.5256402 | AU45: 274.2357038 | AV45: 4291.399178 | AW45: 3884.834812 | AX45: 394.277643 | AY45: 401.2941977 | AZ45: 1289.288648 | BA45: 1133.485201 | BB45: 1076.932728 | BC45: 655.4869481 | BD45: -13206.46763 | BE45: 14040.71426 | BF45: 834.714257 | BG45: 15528.42255 | BH45: 29191.90636
A46: 2010-02-01 | B46: 4562.457 | C46: 4212.546 | D46: 1698.946543 | E46: 3505.665422 | F46: 656.6805608 | G46: 138.737105 | H46: 276.4872879 | I46: 447.218513 | J46: 162.419785 | K46: 197.3569952 | L46: 1945.651566 | M46: 1285.166871 | N46: 8223.054141 | O46: 8314.307066 | P46: 26362.367 | Q46: 3369.76893 | R46: 22992.59807 | S46: 6293.921429 | T46: 10829.7009 | U46: -4535.779475 | V46: 1752.727413 | W46: 77.678386 | X46: 1675.049027 | Y46: 449.6797811 | Z46: 566.5572601 | AA46: -116.877479 | AB46: 490.9556924 | AC46: 423.3101693 | AD46: 67.64552306 | AE46: 1060.701914 | AF46: 2392.3386 | AG46: -1331.636686 | AH46: 36410.35323 | AI46: 17659.35425 | AJ46: 21707.10676 | AK46: 18750.86228 | AL46: 17650.8488 | AM46: 24001.36311 | AN46: -6350.514311 | AO46: 12400.34797 | AP46: 598.083458 | AQ46: 555.861023 | AR46: 4381.457978 | AS46: 4179.669404 | AT46: 429.002951 | AU46: 400.2697194 | AV46: 3233.076523 | AW46: 3118.293926 | AX46: 292.0569704 | AY46: 242.9626021 | AZ46: 1386.357888 | BA46: 670.7283292 | BB46: 1141.200115 | BC46: 1070.32949 | BD46: -11975.66687 | BE46: 12400.34797 | BF46: 424.6810986 | BG46: 14170.72706 | BH46: 27944.18702
A47: 2010-03-01 | B47: 7000.780672 | C47: 2452.342 | D47: 1728.192624 | E47: 4646.342244 | F47: 858.0621162 | G47: 226.9378838 | H47: 341.6784777 | I47: 594.3215223 | J47: 337.2744202 | K47: 97.72557982 | L47: 2583.058383 | M47: 1684.64021 | N47: 8374.221924 | O47: 9135.134244 | P47: 25813.83251 | Q47: 2632.92693 | R47: 23180.90558 | S47: 6713.608881 | T47: 10384.62508 | U47: -3671.016201 | V47: 1569.544969 | W47: 109.933157 | X47: 1459.611812 | Y47: 518.9173959 | Z47: 569.1423454 | AA47: -50.22494945 | AB47: 492.8162478 | AC47: 320.9515782 | AD47: 171.8646696 | AE47: 1424.276347 | AF47: 1800.021148 | AG47: -375.7448016 | AH47: 36532.99635 | AI47: 15817.60024 | AJ47: 22937.38819 | AK47: 20715.52516 | AL47: 18336.55005 | AM47: 25411.6119 | AN47: -7075.061847 | AO47: 13640.46331 | AP47: 676.076214 | AQ47: 1323.322914 | AR47: 5760.667853 | AS47: 6554.219958 | AT47: 663.7965482 | AU47: 386.7336588 | AV47: 4867.514442 | AW47: 5159.704608 | AX47: 202.8615497 | AY47: 349.7601676 | AZ47: 1350.221918 | BA47: 1456.08329 | BB47: 1347.427859 | BC47: 1127.36429 | BD47: -13464.09273 | BE47: 13640.46331 | BF47: 176.3705804 | BG47: 17028.61592 | BH47: 33532.33249
A48: 2010-04-01 | B48: 5048.943 | C48: 1733.791004 | D48: 1392.08505 | E48: 3977.963035 | F48: 812.4458353 | G48: 188.5541647 | H48: 253.2837467 | I48: 569.7162533 | J48: 377.960868 | K48: 82.03913195 | L48: 2079.124235 | M48: 2031.221199 | N48: 10602.31583 | O48: 11750.30071 | P48: 24666.98911 | Q48: 1933.065934 | R48: 22733.92317 | S48: 6272.806459 | T48: 10495.85857 | U48: -4223.052113 | V48: 1599.955503 | W48: 134.996021 | X48: 1464.959482 | Y48: 435.4132062 | Z48: 551.3698746 | AA48: -115.9566684 | AB48: 519.5767351 | AC48: 306.5369397 | AD48: 213.0397954 | AE48: 1608.588697 | AF48: 2506.079409 | AG48: -897.4907116 | AH48: 35103.32971 | AI48: 15927.90675 | AJ48: 22323.49091 | AK48: 19175.552 | AL48: 21090.1872 | AM48: 28119.17165 | AN48: -7028.984453 | AO48: 12146.56755 | AP48: 518.8358287 | AQ48: 1038.164171 | AR48: 5152.062357 | AS48: 4548.323636 | AT48: 676.4722499 | AU48: 436.5277501 | AV48: 4773.835194 | AW48: 4592.164806 | AX48: 182.4076193 | AY48: 376.5923807 | AZ48: 2230.009173 | BA48: 1035.527364 | BB48: 754.1095114 | BC48: 1118.744561 | BD48: -12311.63 | BE48: 12146.56755 | BF48: -165.062449 | BG48: 14740.521 | BH48: 30431.2833
A49: 2010-05-01 | B49: 5517.196781 | C49: 5095.766472 | D49: 2466.484904 | E49: 3673.920119 | F49: 897.1894018 | G49: 197.8105982 | H49: 334.538769 | I49: 676.4612309 | J49: 282.4804925 | K49: 156.5195075 | L49: 2092.814616 | M49: 2040.410687 | N49: 10146.99942 | O49: 10866.3026 | P49: 25432.01694 | Q49: 5016.216353 | R49: 20415.80059 | S49: 7255.000298 | T49: 10172.36459 | U49: -2917.364288 | V49: 1684.584913 | W49: 183.7657582 | X49: 1500.819155 | Y49: 523.9539583 | Z49: 569.9317212 | AA49: -45.97776292 | AB49: 529.9704101 | AC49: 334.2341654 | AD49: 195.7362447 | AE49: 1121.66154 | AF49: 2721.707976 | AG49: -1600.046436 | AH49: 36547.18806 | AI49: 18998.22056 | AJ49: 23295.67419 | AK49: 17549.09654 | AL49: 23384.58933 | AM49: 29813.04678 | AN49: -6428.457449 | AO49: 11120.63909 | AP49: 2466.48238 | AQ49: 1083.51762 | AR49: 4595.807241 | AS49: 5236.497873 | AT49: 669.419153 | AU49: 583.580847 | AV49: 5520.932188 | AW49: 5161.067812 | AX49: 304.1488275 | AY49: 232.8511725 | AZ49: 1336.88749 | BA49: 1025.740436 | BB49: 1324.922244 | BC49: 1715.572286 | BD49: -11145.01277 | BE49: 11120.63909 | BF49: -24.37368126 | BG49: 15765.24827 | BH49: 32817.79599
A50: 2010-06-01 | B50: 6494.653348 | C50: 2523.413897 | D50: 1685.601842 | E50: 4032.638499 | F50: 954.3970417 | G50: 264.6029583 | H50: 306.62903 | I50: 511.2968313 | J50: 389.1948794 | K50: 106.3683193 | L50: 2784.648552 | M50: 1485.959797 | N50: 10496.82223 | O50: 12071.60919 | P50: 26942.44157 | Q50: 5510.220711 | R50: 21432.22086 | S50: 7177.709309 | T50: 9709.612222 | U50: -2531.902912 | V50: 1755.955265 | W50: 215.442386 | X50: 1540.512879 | Y50: 563.0303315 | Z50: 522.8257956 | AA50: 40.20453587 | AB50: 539.7404176 | AC50: 255.2767181 | AD50: 284.4636995 | AE50: 1526.676197 | AF50: 2322.460468 | AG50: -795.7842711 | AH50: 38505.55309 | AI50: 18535.8383 | AJ50: 23918.48367 | AK50: 19970.10958 | AL50: 24435.88816 | AM50: 30863.2951 | AN50: -6427.406941 | AO50: 13542.70264 | AP50: 798.9558 | AQ50: 2161.686769 | AR50: 4621.567135 | AS50: 5378.117425 | AT50: 523.2077448 | AU50: 508.7568552 | AV50: 5049.598313 | AW50: 5219.564687 | AX50: 175.4889884 | AY50: 231.6604166 | AZ50: 1210.381496 | BA50: 1254.041518 | BB50: 932.4077657 | BC50: 905.3516377 | BD50: -13475.91 | BE50: 13542.70264 | BF50: 66.792639 | BG50: 15091.8777 | BH50: 30580.22058
A51: 2010-07-01 | B51: 7853.099225 | C51: 3748.639343 | D51: 1137.766616 | E51: 5067.289334 | F51: 952.9795989 | G51: 261.3704011 | H51: 202.7486186 | I51: 756.2513814 | J51: 257.9110949 | K51: 284.0889051 | L51: 2712.68292 | M51: 1849.322318 | N51: 10293.07941 | O51: 9966.849644 | P51: 27088.56216 | Q51: 4969.834694 | R51: 22118.72746 | S51: 6477.44023 | T51: 10862.51762 | U51: -4385.07739 | V51: 1817.300348 | W51: 238.7001861 | X51: 1578.600162 | Y51: 432.9181791 | Z51: 517.4846571 | AA51: -84.56647796 | AB51: 492.1016492 | AC51: 339.267077 | AD51: 152.8345722 | AE51: 1478.982904 | AF51: 2774.792156 | AG51: -1295.809252 | AH51: 37787.30547 | AI51: 19702.59639 | AJ51: 22743.69857 | AK51: 18085.10387 | AL51: 25546.95025 | AM51: 29968.50875 | AN51: -4421.558494 | AO51: 13663.54538 | AP51: 546.6323473 | AQ51: 2184.626792 | AR51: 5099.71748 | AS51: 5295.269959 | AT51: 971.5694377 | AU51: 764.6974583 | AV51: 4732.585318 | AW51: 5078.897049 | AX51: 379.9563401 | AY51: 323.1831732 | AZ51: 1504.060598 | BA51: 951.7594166 | BB51: 1171.149796 | BC51: 952.4668945 | BD51: -14598.23939 | BE51: 13663.54538 | BF51: -934.694016 | BG51: 16993.7352 | BH51: 32593.90909
A52: 2010-08-01 | B52: 8152.332003 | C52: 6176.2025 | D52: 1560.88147 | E52: 5949.881168 | F52: 881.7674733 | G52: 608.3383847 | H52: 156.6375702 | I52: 694.4653775 | J52: 253.761 | K52: 284.2855003 | L52: 2396.014526 | M52: 2036.317558 | N52: 13603.94384 | O52: 11915.51106 | P52: 28288.82878 | Q52: 5482.840639 | R52: 22805.98814 | S52: 6440.067931 | T52: 11833.87421 | U52: -5393.806276 | V52: 1649.852101 | W52: 197.3717079 | X52: 1452.480393 | Y52: 387.5248249 | Z52: 645.3465501 | AA52: -257.8217251 | AB52: 531.5640642 | AC52: 322.292844 | AD52: 209.2712202 | AE52: 862.368229 | AF52: 2508.846432 | AG52: -1646.478203 | AH52: 38160.20593 | AI52: 20990.57238 | AJ52: 26539.22955 | AK52: 17170.02835 | AL52: 29612.43467 | AM52: 32335.43332 | AN52: -2722.998647 | AO52: 14447.0297 | AP52: 913.1210858 | AQ52: 1351.730931 | AR52: 6096.863728 | AS52: 6227.954407 | AT52: 1044.746003 | AU52: 775.2478605 | AV52: 5046.040209 | AW52: 5653.076951 | AX52: 413.949453 | AY52: 449.6481483 | AZ52: 2050.818153 | BA52: 1000.149869 | BB52: 1519.070735 | BC52: 1515.472867 | BD52: -14727.62 | BE52: 14447.0297 | BF52: -280.590302 | BG52: 19936.53067 | BH52: 37454.07569
A53: 2010-09-01 | B53: 6456.878175 | C53: 5369.766809 | D53: 987.4331403 | E53: 5574.953295 | F53: 606.7075147 | G53: 195.3065217 | H53: 157.2597021 | I53: 533.2488873 | J53: 188.1745734 | K53: 126.9990317 | L53: 2789.646262 | M53: 2832.208192 | N53: 11790.07634 | O53: 9289.201233 | P53: 26996.29278 | Q53: 4428.167088 | R53: 22568.1257 | S53: 6121.356335 | T53: 11974.25369 | U53: -5852.897358 | V53: 1756.951521 | W53: 202.467032 | X53: 1554.484489 | Y53: 291.6319219 | Z53: 664.2957428 | AA53: -372.6638209 | AB53: 458.2513823 | AC53: 262.2270057 | AD53: 196.0243766 | AE53: 801.3921299 | AF53: 2655.073978 | AG53: -1853.681849 | AH53: 36425.87607 | AI53: 20186.48454 | AJ53: 26752.50228 | AK53: 16239.05206 | AL53: 29989.93322 | AM53: 30083.93768 | AN53: -94.004458 | AO53: 16145.04761 | AP53: 295.3410769 | AQ53: 1551.974629 | AR53: 5570.53805 | AS53: 6370.3357 | AT53: 828.7154122 | AU53: 581.5201428 | AV53: 4142.655944 | AW53: 4837.622883 | AX53: 267.8310037 | AY53: 250.0422531 | AZ53: 2101.235054 | BA53: 883.5181925 | BB53: 1681.393927 | BC53: 1844.34282 | BD53: -15923 | BE53: 16145.04761 | BF53: 221.757605 | BG53: 17871.42082 | BH53: 30864.04956
A54: 2010-10-01 | B54: 8787.362837 | C54: 5444.465886 | D54: 1033.71169 | E54: 5493.998864 | F54: 304.8980905 | G54: 283.7255626 | H54: 343.1319226 | I54: 344.0531826 | J54: 314.9420066 | K54: 345.6529644 | L54: 2535.951968 | M54: 1997.53489 | N54: 12388.15446 | O54: 15998.52535 | P54: 27694.9805 | Q54: 3343.056419 | R54: 24351.92408 | S54: 5897.445933 | T54: 13174.584 | U54: -7277.138068 | V54: 1685.997003 | W54: 131.3192298 | X54: 1554.677773 | Y54: 373.7711405 | Z54: 680.9597494 | AA54: -307.1886089 | AB54: 563.9227068 | AC54: 422.8994053 | AD54: 141.0233015 | AE54: 635.8611869 | AF54: 2643.747925 | AG54: -2007.886738 | AH54: 36851.97847 | AI54: 20396.56673 | AJ54: 27763.3081 | AK54: 16455.07227 | AL54: 31872.43917 | AM54: 32854.78962 | AN54: -982.35045 | AO54: 15472.72182 | AP54: 471.0336063 | AQ54: 1709.01785 | AR54: 5842.17255 | AS54: 5493.890161 | AT54: 861.0991676 | AU54: 614.3222594 | AV54: 4124.229715 | AW54: 4802.225948 | AX54: 624.5868575 | AY54: 620.4132545 | AZ54: 1884.107338 | BA54: 1172.695635 | BB54: 1727.80817 | BC54: 1459.651353 | BD54: -16299.16949 | BE54: 15472.72182 | BF54: -826.4476669 | BG54: 17949.5655 | BH54: 32423.07221
A55: 2010-11-01 | B55: 6020.107147 | C55: 4074.275214 | D55: 1633.839065 | E55: 4918.336638 | F55: 596.3035037 | G55: 207.2725725 | H55: 229.0098379 | I55: 344.4668852 | J55: 326.9464844 | K55: 270.4503486 | L55: 2155.612296 | M55: 2347.208262 | N55: 13115.64671 | O55: 13917.7746 | P55: 27388.81197 | Q55: 3016.490261 | R55: 24372.32171 | S55: 5953.667462 | T55: 12846.61655 | U55: -6892.94909 | V55: 1780.182012 | W55: 122.0638242 | X55: 1658.118188 | Y55: 328.7651288 | Z55: 662.0805977 | AA55: -333.3154689 | AB55: 550.8304262 | AC55: 386.3711983 | AD55: 164.4592279 | AE55: 643.2243703 | AF55: 2524.847206 | AG55: -1881.622836 | AH55: 36645.48137 | AI55: 19558.46964 | AJ55: 26231.09706 | AK55: 17086.67227 | AL55: 31188.03799 | AM55: 32643.01668 | AN55: -1454.978691 | AO55: 15631.69358 | AP55: 1226.969162 | AQ55: 656.1372747 | AR55: 5985.545114 | AS55: 5834.0659 | AT55: 772.7429438 | AU55: 661.2149642 | AV55: 4917.244493 | AW55: 5312.503667 | AX55: 872.8352282 | AY55: 1036.811111 | AZ55: 2100.5672 | BA55: 1052.697526 | BB55: 1476.006288 | BC55: 1490.857919 | BD55: -15038.73069 | BE55: 15631.69358 | BF55: 592.9628929 | BG55: 17070.54408 | BH55: 31284.01141
A56: 2010-12-01 | B56: 6885.500538 | C56: 6082.401776 | D56: 1842.987269 | E56: 5802.888556 | F56: 601.6192073 | G56: 291.5627969 | H56: 131.0910666 | I56: 336.9307449 | J56: 295.1380398 | K56: 220.2305429 | L56: 3474.704993 | M56: 3743.477755 | N56: 13091.71192 | O56: 10199.13671 | P56: 27440.77808 | Q56: 3981.527661 | R56: 23459.25042 | S56: 6142.280216 | T56: 12902.70202 | U56: -6760.421803 | V56: 1863.439024 | W56: 138.5219391 | X56: 1724.917085 | Y56: 266.3011844 | Z56: 669.4982955 | AA56: -403.1971111 | AB56: 576.4798561 | AC56: 258.797553 | AD56: 317.6823031 | AE56: 563.2113592 | AF56: 2437.774542 | AG56: -1874.563183 | AH56: 36852.48972 | AI56: 20388.82201 | AJ56: 27417.10652 | AK56: 16463.63759 | AL56: 30417.33998 | AM56: 29997.56285 | AN56: 419.777131 | AO56: 16883.41472 | AP56: 861.8974286 | AQ56: 621.8703584 | AR56: 5779.851449 | AS56: 7912.950267 | AT56: 885.4242086 | AU56: 664.9103803 | AV56: 7085.859989 | AW56: 6369.890061 | AX56: 1149.967931 | AY56: 1255.077622 | AZ56: 484.4611853 | BA56: 1194.229541 | BB56: 2147.865423 | BC56: 2151.110851 | BD56: -16836.23654 | BE56: 16883.41472 | BF56: 47.17817812 | BG56: 18410.44211 | BH56: 30316.04255
A57: 2011-01-01 | B57: 8490.279641 | C57: 6278.056818 | D57: 2744.083423 | E57: 6052.326262 | F57: 764.161896 | G57: 214.0845316 | H57: 274.3129025 | I57: 253.8215198 | J57: 223.574 | K57: 214.7711571 | L57: 3052.716944 | M57: 2322.140874 | N57: 14064.85969 | O57: 18910.97864 | P57: 28318.011 | Q57: 4101.103 | R57: 24216.908 | S57: 7353.061993 | T57: 13867.73124 | U57: -6514.669244 | V57: 1989.112451 | W57: 167.438224 | X57: 1821.674227 | Y57: 337.5671972 | Z57: 471.8686222 | AA57: -134.301425 | AB57: 575.6474459 | AC57: 306.9162025 | AD57: 268.7312434 | AE57: 1528.044793 | AF57: 2724.345295 | AG57: -1196.300502 | AH57: 40101.44488 | AI57: 21639.40258 | AJ57: 29031.17594 | AK57: 18462.01218 | AL57: 34371.88355 | AM57: 36860.18637 | AN57: -2488.302812 | AO57: 15973.70937 | AP57: 1085.268376 | AQ57: 1476.008034 | AR57: 7356.822517 | AS57: 5326.854279 | AT57: 549.4795234 | AU57: 362.0629835 | AV57: 4895.738611 | AW57: 4654.747286 | AX57: 875.7277966 | AY57: 911.9835924 | AZ57: 1742.87232 | BA57: 2901.256594 | BB57: 1994.679941 | BC57: 1906.797129 | BD57: -15899.57257 | BE57: 15973.70937 | BF57: 74.13679826 | BG57: 19433.18585 | BH57: 34303.13752
A58: 2011-02-01 | B58: 6984.961915 | C58: 5538.081026 | D58: 1504.114723 | E58: 4548.744492 | F58: 553.892835 | G58: 233.202081 | H58: 127.402156 | I58: 251.0444461 | J58: 194.3849905 | K58: 85.64244046 | L58: 1876.891714 | M58: 1636.689488 | N58: 12257.58882 | O58: 13753.0913 | P58: 28445.21288 | Q58: 4268.297 | R58: 24176.91588 | S58: 7264.383035 | T58: 14297.01826 | U58: -7032.635224 | V58: 2036.210387 | W58: 146.3656982 | X58: 1889.844689 | Y58: 270.5444398 | Z58: 391.1207143 | AA58: -120.5762745 | AB58: 586.8549815 | AC58: 197.627465 | AD58: 389.2275165 | AE58: 1479.889956 | AF58: 2415.662873 | AG58: -935.7729165 | AH58: 40083.09568 | AI58: 21716.09201 | AJ58: 28132.40442 | AK58: 18366.8777 | AL58: 32357.79213 | AM58: 34521.54476 | AN58: -2163.752636 | AO58: 16203.12506 | AP58: 1336.197189 | AQ58: 1030.549482 | AR58: 5414.496359 | AS58: 4328.757676 | AT58: 309.4927166 | AU58: 252.0181559 | AV58: 3620.491235 | AW58: 3694.443153 | AX58: 1154.438318 | AY58: 1307.593753 | AZ58: 890.5910446 | BA58: 2950.118373 | BB58: 2493.135864 | BC58: 2197.199089 | BD58: -16450.52652 | BE58: 16203.12506 | BF58: -247.4014551 | BG58: 15382.64804 | BH58: 26722.7989
A59: 2011-03-01 | B59: 9383.193984 | C59: 7583.0385 | D59: 1852.238865 | E59: 4213.363733 | F59: 601.7754462 | G59: 265.9801122 | H59: 265.5964495 | I59: 357.5444472 | J59: 363.659346 | K59: 145.8008282 | L59: 1936.95819 | M59: 2032.638375 | N59: 16213.91887 | O59: 18600.05942 | P59: 28440.4526 | Q59: 5176.2655 | R59: 23264.1871 | S59: 7106.159678 | T59: 13173.34578 | U59: -6067.186098 | V59: 2002.006746 | W59: 132.5982701 | X59: 1869.408476 | Y59: 325.7763802 | Z59: 398.4434625 | AA59: -72.66708227 | AB59: 637.998298 | AC59: 197.46626 | AD59: 440.532038 | AE59: 1341.191817 | AF59: 2412.868441 | AG59: -1071.676624 | AH59: 39853.58552 | AI59: 21490.98771 | AJ59: 33332.47645 | AK59: 18362.70877 | AL59: 34675.20619 | AM59: 37547.62817 | AN59: -2872.421979 | AO59: 15490.28679 | AP59: 3009.884678 | AQ59: 2156.027813 | AR59: 6225.670491 | AS59: 6298.144309 | AT59: 480.2199401 | AU59: 292.6759851 | AV59: 5791.423034 | AW59: 5867.457836 | AX59: 1435.798558 | AY59: 1266.404636 | AZ59: 1620.839737 | BA59: 2947.708372 | BB59: 2127.296827 | BC59: 1316.399419 | BD59: -15931.42629 | BE59: 15490.28679 | BF59: -441.1395007 | BG59: 24209.98869 | BH59: 39450.58166
A60: 2011-04-01 | B60: 8479.124156 | C60: 5724.854775 | D60: 1925.218286 | E60: 5249.774591 | F60: 590.7201271 | G60: 183.2902398 | H60: 220.8977368 | I60: 445.1000107 | J60: 270.655 | K60: 303.9514792 | L60: 2047.243547 | M60: 2272.037165 | N60: 15684.21553 | O60: 17025.52551 | P60: 28816.8384 | Q60: 4654.129687 | R60: 24162.70872 | S60: 7107.231958 | T60: 13768.82155 | U60: -6661.589596 | V60: 2056.752271 | W60: 202.734599 | X60: 1854.017672 | Y60: 326.3369186 | Z60: 473.5180426 | AA60: -147.181124 | AB60: 686.7267252 | AC60: 281.8608417 | AD60: 404.8658835 | AE60: 1062.768058 | AF60: 2615.190256 | AG60: -1552.422198 | AH60: 40056.65433 | AI60: 21996.25498 | AJ60: 34014.03329 | AK60: 18060.0103 | AL60: 33439.94486 | AM60: 34707.08825 | AN60: -1267.143395 | AO60: 16792.86691 | AP60: 1408.802458 | AQ60: 1111.620136 | AR60: 6497.071724 | AS60: 5495.540632 | AT60: 565.9798103 | AU60: 267.8793756 | AV60: 4596.39733 | AW60: 4934.25634 | AX60: 1821.391787 | AY60: 1752.292632 | AZ60: 1998.8457 | BA60: 3479.323189 | BB60: 1304.673224 | BC60: 1174.659291 | BD60: -15861.45019 | BE60: 16792.86691 | BF60: 931.4167122 | BG60: 22306.02286 | BH60: 36557.68884
A61: 2011-05-01 | B61: 8780.712785 | C61: 6830.3125 | D61: 1947.643026 | E61: 4977.267456 | F61: 512.134464 | G61: 260.636099 | H61: 359.5999854 | I61: 517.9512623 | J61: 268.1144615 | K61: 427.6526748 | L61: 2967.274911 | M61: 2426.96978 | N61: 18399.74429 | O61: 19733.70825 | P61: 29224.48491 | Q61: 4860.538687 | R61: 24363.94622 | S61: 6879.838377 | T61: 13728.15222 | U61: -6848.313841 | V61: 1991.1335 | W61: 174.815017 | X61: 1816.318483 | Y61: 390.8276789 | Z61: 477.3167931 | AA61: -86.48911416 | AB61: 641.9834507 | AC61: 317.7939916 | AD61: 324.1894591 | AE61: 1454.580063 | AF61: 2525.565694 | AG61: -1070.98563 | AH61: 40582.84798 | AI61: 22084.1824 | AJ61: 36067.34504 | AK61: 18498.27653 | AL61: 36194.70562 | AM61: 37826.3805 | AN61: -1631.674881 | AO61: 16866.60165 | AP61: 1806.033663 | AQ61: 1935.115222 | AR61: 8209.571041 | AS61: 8065.83844 | AT61: 393.946912 | AU61: 290.3851241 | AV61: 6610.610328 | AW61: 7350.716762 | AX61: 2628.851334 | AY61: 2499.260553 | AZ61: 1677.001869 | BA61: 2351.671937 | BB61: 2698.680055 | BC61: 1712.224038 | BD61: -16200.95534 | BE61: 16866.60165 | BF61: 665.6463046 | BG61: 24767.94192 | BH61: 43719.29586
A62: 2011-06-01 | B62: 6544.480601 | C62: 7170.032607 | D62: 2049.096589 | E62: 4976.098888 | F62: 380.0488638 | G62: 236.9298383 | H62: 271.1241257 | I62: 468.0033281 | J62: 291.5908526 | K62: 323.1831416 | L62: 1880.489632 | M62: 1754.977297 | N62: 15417.03184 | O62: 18763.4734 | P62: 28769.10701 | Q62: 6578.938294 | R62: 22190.16872 | S62: 7087.319853 | T62: 13152.95903 | U62: -6065.639181 | V62: 2119.427703 | W62: 237.0263873 | X62: 1882.401316 | Y62: 298.1881788 | Z62: 360.8306807 | AA62: -62.64250187 | AB62: 630.2043122 | AC62: 306.8426127 | AD62: 323.3616995 | AE62: 1386.082873 | AF62: 2387.583712 | AG62: -1001.500839 | AH62: 40290.32993 | AI62: 23024.18072 | AJ62: 36734.04923 | AK62: 17266.02591 | AL62: 33553.01923 | AM62: 35760.59773 | AN62: -2207.578509 | AO62: 15058.4474 | AP62: 2088.667472 | AQ62: 742.127006 | AR62: 7592.327315 | AS62: 8967.56653 | AT62: 354.9301691 | AU62: 240.6303823 | AV62: 6616.642023 | AW62: 7793.892777 | AX62: 2640.451554 | AY62: 2417.550281 | AZ62: 1663.012688 | BA62: 286.5218657 | BB62: 2403.027392 | BC62: 1561.907883 | BD62: -14772 | BE62: 15058.4474 | BF62: 286.447404 | BG62: 22021.26955 | BH62: 39464.27769
A63: 2011-07-01 | B63: 6282.264138 | C63: 7143.120588 | D63: 1303.371929 | E63: 5685.515021 | F63: 475.1746742 | G63: 218.3038438 | H63: 284.7682489 | I63: 355.5494259 | J63: 296.2871033 | K63: 141.9637081 | L63: 2042.942835 | M63: 2020.676139 | N63: 16639.40134 | O63: 16269.3384 | P63: 27748.34449 | Q63: 7959.573343 | R63: 19788.77114 | S63: 6567.414578 | T63: 13654.12632 | U63: -7086.711743 | V63: 2127.513244 | W63: 271.381335 | X63: 1856.131909 | Y63: 278.1325412 | Z63: 291.6110515 | AA63: -13.47851032 | AB63: 635.9413039 | AC63: 318.3164026 | AD63: 317.6249013 | AE63: 1322.372703 | AF63: 2143.811497 | AG63: -821.4387941 | AH63: 38679.71886 | AI63: 24638.81995 | AJ63: 35747.69002 | AK63: 14040.77561 | AL63: 34642.16795 | AM63: 33940.37086 | AN63: 701.797089 | AO63: 14742.5727 | AP63: 2595.547117 | AQ63: 560.0181805 | AR63: 6979.783186 | AS63: 7273.410834 | AT63: 419.868173 | AU63: 233.0336249 | AV63: 6604.613941 | AW63: 6478.11775 | AX63: 596.0402218 | AY63: 441.4428752 | AZ63: 492.4863917 | BA63: 2847.922746 | BB63: 1634.443564 | BC63: 1498.641324 | BD63: -14793 | BE63: 14742.5727 | BF63: -50.4273 | BG63: 20804.16246 | BH63: 38728.72453
A64: 2011-08-01 | B64: 8779.1288 | C64: 11447.28384 | D64: 2545.803202 | E64: 4137.887822 | F64: 704.8984471 | G64: 303.5048769 | H64: 393.2227688 | I64: 318.92893 | J64: 374.344249 | K64: 273.417453 | L64: 2430.598378 | M64: 1650.339621 | N64: 15789.93151 | O64: 18003.13988 | P64: 26899.06447 | Q64: 11373.52904 | R64: 15525.53542 | S64: 7470.53914 | T64: 12628.38314 | U64: -5157.843996 | V64: 2121.169195 | W64: 323.7119211 | X64: 1797.457274 | Y64: 279.4630696 | Z64: 233.901228 | AA64: 45.56184155 | AB64: 768.317353 | AC64: 431.0721555 | AD64: 337.2451976 | AE64: 1572.287063 | AF64: 1956.24869 | AG64: -383.9616271 | AH64: 39110.84029 | AI64: 26946.84617 | AJ64: 37510.959 | AK64: 12164.29241 | AL64: 33977.94936 | AM64: 34305.9356 | AN64: -327.98624 | AO64: 11836.30617 | AP64: 5222.889333 | AQ64: 1136.902369 | AR64: 7332.739583 | AS64: 7538.368271 | AT64: 348.0268148 | AU64: 301.3496505 | AV64: 7435.155122 | AW64: 7944.242598 | AX64: 657.217448 | AY64: 316.2061216 | AZ64: 1471.775524 | BA64: 2286.815576 | BB64: 1514.068746 | BC64: 1803.61053 | BD64: -12155 | BE64: 11836.30617 | BF64: -318.693834 | BG64: 25281.3185 | BH64: 44890.31938
A65: 2011-09-01 | B65: 9932.434244 | C65: 8595.316656 | D65: 4281.800056 | E65: 4650.376173 | F65: 784.4642867 | G65: 341.6249823 | H65: 456.7182173 | I65: 313.8167061 | J65: 238.6972122 | K65: 235.6787107 | L65: 2614.336902 | M65: 2051.274013 | N65: 13551.75814 | O65: 18988.88666 | P65: 24262.92081 | Q65: 10354.32019 | R65: 13908.60062 | S65: 9565.671058 | T65: 11985.19537 | U65: -2419.524308 | V65: 2060.851505 | W65: 258.8515052 | X65: 1802 | Y65: 456.925051 | Z65: 276.851673 | AA65: 180.073378 | AB65: 572.211413 | AC65: 394.6396841 | AD65: 177.5717289 | AE65: 2510.395933 | AF65: 1701.839022 | AG65: 808.5569109 | AH65: 39428.97577 | AI65: 24971.69744 | AJ65: 38089.42609 | AK65: 14456.84077 | AL65: 29848.58863 | AM65: 35112.67667 | AN65: -5264.088032 | AO65: 9192.752735 | AP65: 3409.319967 | AQ65: 1162.916782 | AR65: 9916.392346 | AS65: 9736.909968 | AT65: 280.5194282 | AU65: 316.0265292 | AV65: 6572.006888 | AW65: 7038.433972 | AX65: 470.1338685 | AY65: 269.3720618 | AZ65: 1873.220277 | BA65: 265.2766413 | BB65: 2740.919398 | BC65: 3248.003358 | BD65: -8891 | BE65: 9192.752735 | BF65: 301.752735 | BG65: 24435.86791 | BH65: 42097.5517
A66: 2011-10-01 | B66: 9838.546562 | C66: 7978.991531 | D66: 2342.635604 | E66: 5290.844004 | F66: 703.3411543 | G66: 305.8380847 | H66: 217.7356359 | I66: 251.8361505 | J66: 249.320906 | K66: 166.3252299 | L66: 2860.733191 | M66: 2776.726767 | N66: 16605.92501 | O66: 17221.86943 | P66: 23181.90991 | Q66: 9087.400156 | R66: 14094.50975 | S66: 9905.018104 | T66: 12217.95387 | U66: -2312.935763 | V66: 2166.47481 | W66: 315.7099315 | X66: 1850.764878 | Y66: 394.1989258 | Z66: 291.8705786 | AA66: 102.3283472 | AB66: 548.8506611 | AC66: 397.232914 | AD66: 151.6177471 | AE66: 2243.752059 | AF66: 1391.393253 | AG66: 852.3588066 | AH66: 38440.20447 | AI66: 23701.5607 | AJ66: 35918.09741 | AK66: 14738.28622 | AL66: 31739.50536 | AM66: 35408.70596 | AN66: -3669.200603 | AO66: 11069.08561 | AP66: 2499.620477 | AQ66: 2855.579999 | AR66: 8315.846511 | AS66: 9517.968564 | AT66: 303.8385878 | AU66: 236.0712254 | AV66: 6530.169957 | AW66: 6239.479013 | AX66: 273.8535085 | AY66: 171.5088113 | AZ66: 2707.811814 | BA66: 3049.445706 | BB66: 1795.41124 | BC66: 1596.546695 | BD66: -10062 | BE66: 11069.08561 | BF66: 1007.085613 | BG66: 21325.38993 | BH66: 40039.78445
A67: 2011-11-01 | B67: 10333.0134 | C67: 7885.841175 | D67: 2425.862011 | E67: 4707.051541 | F67: 860.5630892 | G67: 323.4042158 | H67: 331.4078952 | I67: 228.9164391 | J67: 170.9641501 | K67: 362.5935563 | L67: 2576.971967 | M67: 2060.688071 | N67: 13184.14124 | O67: 15575.54417 | P67: 23308.82184 | Q67: 9088.934375 | R67: 14219.88747 | S67: 10225.20025 | T67: 12385.20045 | U67: -2160.0002 | V67: 2297.917267 | W67: 269.9172666 | X67: 2028 | Y67: 468.2497988 | Z67: 313.2497988 | AA67: 155 | AB67: 546.0908656 | AC67: 373.0908656 | AD67: 173 | AE67: 2497.052886 | AF67: 1718.800031 | AG67: 778.252855 | AH67: 39343.33291 | AI67: 24149.19279 | AJ67: 36795.91813 | AK67: 15194.31138 | AL67: 29525.19035 | AM67: 34422.66621 | AN67: -4897.475863 | AO67: 10296.83552 | AP67: 1440.204073 | AQ67: 1850.449176 | AR67: 6622.608723 | AS67: 6319.748597 | AT67: 265.3836793 | AU67: 350.4747631 | AV67: 6489.879311 | AW67: 6469.177559 | AX67: 597.7912263 | AY67: 539.1557397 | AZ67: 1940.821789 | BA67: 2358.328503 | BB67: 1676.172438 | BC67: 1191.68523 | BD67: -10110 | BE67: 10296.83552 | BF67: 186.8355195 | BG67: 22347.88425 | BH67: 41987.01315
A68: 2011-12-01 | B68: 7460.38149 | C68: 5561.8612 | D68: 2189.431827 | E68: 5100.855945 | F68: 669.8582453 | G68: 289.1890845 | H68: 220.1847409 | I68: 228.2289341 | J68: 221.28909 | K68: 241.834155 | L68: 2701.119012 | M68: 1907.110004 | N68: 12180.19635 | O68: 13905.19301 | P68: 21117.12006 | Q68: 7271.2772 | R68: 13845.84286 | S68: 9763.799839 | T68: 10981.32305 | U68: -1217.523208 | V68: 2088.385229 | W68: 245.3852285 | X68: 1843 | Y68: 384.1476896 | Z68: 288.506301 | AA68: 95.64138857 | AB68: 487.14501 | AC68: 310.6572057 | AD68: 176.4878043 | AE68: 3173.464313 | AF68: 2068.191678 | AG68: 1105.272635 | AH68: 37014.06214 | AI68: 21165.34066 | AJ68: 32295.5083 | AK68: 15848.72147 | AL68: 27389.56575 | AM68: 33755.76712 | AN68: -6366.201374 | AO68: 9482.520101 | AP68: 2069.898243 | AQ68: 2316.139895 | AR68: 7430.975598 | AS68: 8159.497497 | AT68: 300.8869619 | AU68: 188.305078 | AV68: 6550.026604 | AW68: 6428.651976 | AX68: 498.8410632 | AY68: 425.2988034 | AZ68: 2670.611013 | BA68: 2788.177243 | BB68: 2569.705371 | BC68: 1452.83278 | BD68: -9850.06 | BE68: 9482.520101 | BF68: -367.5398994 | BG68: 18023.87411 | BH68: 34437.96064
A69: 2012-01-01 | B69: 10051.92163 | C69: 7807.07 | D69: 2278.537935 | E69: 5611.938114 | F69: 780.467072 | G69: 260.535305 | H69: 183.1919212 | I69: 328.8246633 | J69: 182.2876462 | K69: 98.4857528 | L69: 2518.945582 | M69: 2381.984463 | N69: 13248.45716 | O69: 15144.95457 | P69: 21076.8563 | Q69: 6696.957 | R69: 14379.8993 | S69: 9930.712988 | T69: 12182.84502 | U69: -2252.132035 | V69: 2159.982701 | W69: 249.0120918 | X69: 1910.970609 | Y69: 305.9193213 | Z69: 357.444995 | AA69: -51.52567365 | AB69: 514.3952569 | AC69: 255.3952569 | AD69: 259 | AE69: 3221.322993 | AF69: 2445.097244 | AG69: 776.2257492 | AH69: 37209.18956 | AI69: 22186.75161 | AJ69: 32983.27728 | AK69: 15022.43795 | AL69: 29621.44353 | AM69: 34705.18553 | AN69: -5083.741997 | AO69: 9938.695953 | AP69: 1066.173874 | AQ69: 2078.305258 | AR69: 7007.121757 | AS69: 7185.801041 | AT69: 184.967909 | AU69: 241.059111 | AV69: 6388.384271 | AW69: 5833.472349 | AX69: 202.4734066 | AY69: 238.2381999 | AZ69: 1591.134788 | BA69: 2342.819776 | BB69: 1857.494872 | BC69: 1635.552518 | BD69: -11089.76692 | BE69: 9938.695953 | BF69: -1151.070971 | BG69: 21681.60934 | BH69: 42147.66097
A70: 2012-02-01 | B70: 8491.674204 | C70: 6499.508469 | D70: 1152.475731 | E70: 4174.292855 | F70: 768.684556 | G70: 267.852276 | H70: 136.4623733 | I70: 167.990767 | J70: 168.7796213 | K70: 88.76827438 | L70: 3515.876597 | M70: 2162.029258 | N70: 13935.33609 | O70: 15225.15981 | P70: 21696.87497 | Q70: 6972.729283 | R70: 14724.14568 | S70: 9281.656608 | T70: 12283.00538 | U70: -3001.348774 | V70: 2189.397971 | W70: 255.3979708 | X70: 1934 | Y70: 220.3415473 | Z70: 304.4062684 | AA70: -84.06472106 | AB70: 494.8945263 | AC70: 217.5169265 | AD70: 277.3775998 | AE70: 3582.383117 | AF70: 2416.123109 | AG70: 1166.260008 | AH70: 37465.54874 | AI70: 22449.17894 | AJ70: 32392.79544 | AK70: 15016.46071 | AL70: 31057.29171 | AM70: 35383.65743 | AN70: -4326.365713 | AO70: 10690.095 | AP70: 1334.435437 | AQ70: 1390.536711 | AR70: 6312.185161 | AS70: 6281.3486 | AT70: 121.742571 | AU70: 116.2272586 | AV70: 5310.743179 | AW70: 4990.675061 | AX70: 194.3517261 | AY70: 221.1505678 | AZ70: 1980.308934 | BA70: 3065.896455 | BB70: 1901.023856 | BC70: 1584.492683 | BD70: -11618.57025 | BE70: 10690.095 | BF70: -928.4752503 | BG70: 19760.3934 | BH70: 36699.7151
A71: 2012-03-01 | B71: 9240.562995 | C71: 6171.31239 | D71: 2105.756248 | E71: 4699.477194 | F71: 815.927353 | G71: 268.898901 | H71: 262.6555002 | I71: 201.9689701 | J71: 264.9622309 | K71: 56.30011937 | L71: 5126.840419 | M71: 2974.384529 | N71: 14153.42253 | O71: 17746.67809 | P71: 22257.56888 | Q71: 6256.5945 | R71: 16000.97438 | S71: 9394.30276 | T71: 12207.74904 | U71: -2813.446281 | V71: 2223.826511 | W71: 233.9050538 | X71: 1989.921457 | Y71: 263.8863995 | Z71: 304.3713229 | AA71: -40.48492341 | AB71: 524.9328899 | AC71: 161.0991815 | AD71: 363.8337084 | AE71: 4351.60568 | AF71: 2521.605261 | AG71: 1830.000419 | AH71: 39016.12312 | AI71: 21685.32436 | AJ71: 33951.07581 | AK71: 17330.79875 | AL71: 30235.38575 | AM71: 36941.938 | AN71: -6706.552255 | AO71: 10624.2465 | AP71: 816.0820363 | AQ71: 2730.260647 | AR71: 8582.144433 | AS71: 8383.43628 | AT71: 202.7507105 | AU71: 199.6895366 | AV71: 5497.438125 | AW71: 5186.856285 | AX71: 171.6798368 | AY71: 261.9261136 | AZ71: 2489.937304 | BA71: 1422.798941 | BB71: 3480.424196 | BC71: 2909.19937 | BD71: -11353.71959 | BE71: 10624.2465 | BF71: -729.4730889 | BG71: 23962.67185 | BH71: 43294.38534
A72: 2012-04-01 | B72: 7229.61951 | C72: 6522.744821 | D72: 1566.858147 | E72: 4624.801343 | F72: 651.7919076 | G72: 212.7244384 | H72: 174.81176 | I72: 201.6958291 | J72: 156.770095 | K72: 64.04 | L72: 2324.438696 | M72: 2524.993569 | N72: 11186.18048 | O72: 14605.41522 | P72: 21252.83665 | Q72: 6241.8945 | R72: 15010.94215 | S72: 9146.927168 | T72: 12292.59884 | U72: -3145.671671 | V72: 2182.326768 | W72: 158.2616144 | X72: 2024.065154 | Y72: 217.4678763 | Z72: 297.5347404 | AA72: -80.06686408 | AB72: 517.1064316 | AC72: 160.1064316 | AD72: 357 | AE72: 3603.650516 | AF72: 2704.643785 | AG72: 899.0067312 | AH72: 36920.31541 | AI72: 21855.03991 | AJ72: 33800.50852 | AK72: 15065.2755 | AL72: 28971.40234 | AM72: 35845.9449 | AN72: -6874.542563 | AO72: 8190.732932 | AP72: 1806.926368 | AQ72: 1219.166397 | AR72: 7826.324844 | AS72: 7406.174474 | AT72: 179.388186 | AU72: 238.4509588 | AV72: 5587.947382 | AW72: 5421.634738 | AX72: 133.9220974 | AY72: 164.5884671 | AZ72: 2077.527472 | BA72: 1743.916475 | BB72: 1945.414444 | BC72: 1351.37225 | BD72: -9456.308797 | BE72: 8190.732932 | BF72: -1265.575868 | BG72: 19049.89314 | BH72: 35111.82702
A73: 2012-05-01 | B73: 9829.223106 | C73: 7672.573106 | D73: 3905.201482 | E73: 5190.283352 | F73: 701.6700888 | G73: 307.7130842 | H73: 427.7502802 | I73: 268.6132098 | J73: 169.3661384 | K73: 188.5410948 | L73: 5922.68407 | M73: 3129.329528 | N73: 13261.23585 | O73: 19525.21219 | P73: 22188.34312 | Q73: 7561.869503 | R73: 14626.47361 | S73: 10991.83789 | T73: 12453.99955 | U73: -1462.16166 | V73: 2407.531886 | W73: 191.1977324 | X73: 2216.334154 | Y73: 443.1201378 | Z73: 370.5672585 | AA73: 72.55287926 | AB73: 505.4392924 | AC73: 249.4392924 | AD73: 256 | AE73: 5629.593498 | AF73: 2155.201848 | AG73: 3474.39165 | AH73: 42165.86582 | AI73: 22982.27518 | AJ73: 38716.871 | AK73: 19183.59064 | AL73: 31588.37241 | AM73: 42471.61537 | AN73: -10883.24296 | AO73: 8300.347675 | AP73: 1736.310088 | AQ73: 1339.650908 | AR73: 8430.884569 | AS73: 7418.17722 | AT73: 259.0112657 | AU73: 264.1717012 | AV73: 7125.834447 | AW73: 7334.150413 | AX73: 199.0596761 | AY73: 97.78224972 | AZ73: 2773.067055 | BA73: 3020.245169 | BB73: 2462.990842 | BC73: 2544.431946 | BD73: -8478.453387 | BE73: 8300.347675 | BF73: -178.1057253 | BG73: 26436.46565 | BH73: 44742.34159
A74: 2012-06-01 | B74: 8715.55058 | C74: 7871.121092 | D74: 2150.609188 | E74: 4893.958116 | F74: 742.5260867 | G74: 375.8915213 | H74: 212.0648631 | I74: 252.4440452 | J74: 215.3283954 | K74: 106.1570698 | L74: 4984.277109 | M74: 2954.726459 | N74: 16511.84798 | O74: 20992.1429 | P74: 21342.95716 | Q74: 7567.8207 | R74: 13775.13646 | S74: 10794.9009 | T74: 12038.5674 | U74: -1243.666503 | V74: 2427.348176 | W74: 170.1566357 | X74: 2257.19154 | Y74: 375.3889611 | Z74: 374.7557691 | AA74: 0.63319196 | AB74: 530.3245647 | AC74: 224.7106568 | AD74: 305.6139079 | AE74: 5689.29553 | AF74: 2749.306286 | AG74: 2939.989244 | AH74: 41160.21529 | AI74: 23125.31745 | AJ74: 37554.40374 | AK74: 18034.89784 | AL74: 31552.26759 | AM74: 42477.69478 | AN74: -10925.42718 | AO74: 7109.47066 | AP74: 1831.902587 | AQ74: 1591.027554 | AR74: 7430.245635 | AS74: 8661.197504 | AT74: 300.2792325 | AU74: 307.1682604 | AV74: 8439.267629 | AW74: 8824.258621 | AX74: 263.8589788 | AY74: 213.2133711 | AZ74: 3446.561135 | BA74: 2250.928711 | BB74: 3558.26103 | BC74: 3345.920216 | BD74: -8114.574 | BE74: 7109.47066 | BF74: -1005.10334 | BG74: 23485.10331 | BH74: 46640.95245
A75: 2012-07-01 | B75: 9892.731937 | C75: 7799.53456 | D75: 2055.318946 | E75: 5224.330662 | F75: 862.9606641 | G75: 405.951296 | H75: 205.9993704 | I75: 276.5047242 | J75: 133.2456383 | K75: 117.5221241 | L75: 3630.808168 | M75: 2841.055571 | N75: 14956.52152 | O75: 17406.22753 | P75: 21520.75488 | Q75: 7405.381084 | R75: 14115.3738 | S75: 10295.74874 | T75: 12498.15314 | U75: -2202.404402 | V75: 2494.287292 | W75: 210.1127204 | X75: 2284.174572 | Y75: 338.0011695 | Z75: 407.2644197 | AA75: -69.26325015 | AB75: 504.8445647 | AC75: 226.9203553 | AD75: 277.9242094 | AE75: 5564.747299 | AF75: 2334.485874 | AG75: 3230.261426 | AH75: 40718.38395 | AI75: 23082.31759 | AJ75: 38181.92015 | AK75: 17636.06635 | AL75: 32310.88847 | AM75: 42112.88615 | AN75: -9801.99768 | AO75: 7834.068674 | AP75: 2134.523439 | AQ75: 1940.022151 | AR75: 8096.476272 | AS75: 8577.684359 | AT75: 218.884173 | AU75: 345.0511236 | AV75: 6211.275808 | AW75: 6893.287662 | AX75: 140.6252272 | AY75: 146.7159663 | AZ75: 1841.826532 | BA75: 1899.953995 | BB75: 2790.267395 | BC75: 2038.24873 | BD75: -8776.7 | BE75: 7834.068674 | BF75: -942.6313259 | BG75: 21719.99654 | BH75: 40163.9615
A76: 2012-08-01 | B76: 8747.546287 | C76: 6298.646287 | D76: 1695.382021 | E76: 5738.633058 | F76: 783.9419545 | G76: 358.3693039 | H76: 205.5070758 | I76: 279.819448 | J76: 211.110262 | K76: 150.1415336 | L76: 6778.545708 | M76: 4650.573037 | N76: 15721.23713 | O76: 19452.48392 | P76: 20519.80392 | Q76: 5935.334072 | R76: 14584.46985 | S76: 9485.66818 | T76: 13097.34205 | U76: -3611.673873 | V76: 2478.634698 | W76: 206.2750373 | X76: 2272.359661 | Y76: 275.9154718 | Z76: 396.8044923 | AA76: -120.8890205 | AB76: 496.1169951 | AC76: 152.1490001 | AD76: 343.967995 | AE76: 7465.215721 | AF76: 4842.37547 | AG76: 2622.840251 | AH76: 40721.35499 | AI76: 24630.28012 | AJ76: 36516.32088 | AK76: 16091.07486 | AL76: 30343.28779 | AM76: 40457.15532 | AN76: -10113.86753 | AO76: 5977.207334 | AP76: 1378.353209 | AQ76: 1607.11608 | AR76: 10545.32645 | AS76: 8775.979125 | AT76: 193.0006254 | AU76: 155.0817504 | AV76: 5993.879738 | AW76: 6633.344599 | AX76: 174.9415908 | AY76: 171.4868192 | AZ76: 3021.80451 | BA76: 3251.082113 | BB76: 2071.874208 | BC76: 1674.728529 | BD76: -7696.22 | BE76: 5977.207334 | BF76: -1719.012666 | BG76: 24342.8383 | BH76: 41648.58888
A77: 2012-09-01 | B77: 9174.0721 | C77: 8129.341397 | D77: 1890.265363 | E77: 5576.731297 | F77: 570.3912673 | G77: 241.014 | H77: 151.6698615 | I77: 182.1619882 | J77: 276.2704376 | K77: 194.6315415 | L77: 4074.11988 | M77: 1854.664819 | N77: 14221.37314 | O77: 16301.20249 | P77: 20143.32077 | Q77: 6641.300362 | R77: 13502.02041 | S77: 9531.272175 | T77: 13790.22429 | U77: -4258.952115 | V77: 2495.470631 | W77: 206.6340524 | X77: 2288.836578 | Y77: 219.4124776 | Z77: 307.6483953 | AA77: -88.23591776 | AB77: 526.9618177 | AC77: 195.2910721 | AD77: 331.6707455 | AE77: 6788.550475 | AF77: 3417.67388 | AG77: 3370.876595 | AH77: 39704.98835 | AI77: 24558.77205 | AJ77: 36331.21478 | AK77: 15146.2163 | AL77: 31814.91966 | AM77: 39897.92178 | AN77: -8083.002122 | AO77: 7063.214175 | AP77: 1389.724249 | AQ77: 1657.724194 | AR77: 8404.667799 | AS77: 7695.499195 | AT77: 153.6511418 | AU77: 197.4107248 | AV77: 4673.758401 | AW77: 5366.540191 | AX77: 219.9101541 | AY77: 239.8191469 | AZ77: 967.376267 | BA77: 941.8426609 | BB77: 2233.36339 | BC77: 1837.943675 | BD77: -7572.678906 | BE77: 7063.214175 | BF77: -509.4647307 | BG77: 21047.67773 | BH77: 33996.80962
A78: 2012-10-01 | B78: 12841.6572 | C78: 10043.8072 | D78: 3406.625036 | E78: 7504.194673 | F78: 673.7913568 | G78: 307.4722873 | H78: 234.2722565 | I78: 251.2460721 | J78: 154.2973808 | K78: 76.14488362 | L78: 4623.158865 | M78: 1929.531655 | N78: 18809.48439 | O78: 22967.56887 | P78: 21943.13557 | Q78: 7015.6575 | R78: 14927.47807 | S78: 9317.591371 | T78: 13669.75188 | U78: -4352.160507 | V78: 2447.529452 | W78: 154.5397905 | X78: 2292.989662 | Y78: 253.0609773 | Z78: 306.6882876 | AA78: -53.62731025 | AB78: 504.4344811 | AC78: 128.7963037 | AD78: 375.6381773 | AE78: 5861.657453 | AF78: 2392.751365 | AG78: 3468.906088 | AH78: 40327.40931 | AI78: 23668.18512 | AJ78: 35696.62212 | AK78: 16659.22418 | AL78: 34106.3858 | AM78: 42656.83127 | AN78: -8550.445462 | AO78: 8108.778719 | AP78: 877.8600876 | AQ78: 2191.110111 | AR78: 9513.063395 | AS78: 9496.902114 | AT78: 203.2813464 | AU78: 240.6372398 | AV78: 7645.567825 | AW78: 7960.219973 | AX78: 438.4601052 | AY78: 371.8683125 | AZ78: 1388.186 | BA78: 1371.974934 | BB78: 1575.386321 | BC78: 1994.02023 | BD78: -9465.765874 | BE78: 8108.778719 | BF78: -1356.987155 | BG78: 26253.59547 | BH78: 43864.92246
A79: 2012-11-01 | B79: 10043.87215 | C79: 8330.498147 | D79: 3518.153908 | E79: 8297.846618 | F79: 865.8358792 | G79: 395.4272545 | H79: 295.8955136 | I79: 246.29595 | J79: 255.7905568 | K79: 163.8958482 | L79: 5845.342525 | M79: 3407.827592 | N79: 17500.04972 | O79: 20275.27973 | P79: 21457.58052 | Q79: 6127.311 | R79: 15330.26952 | S79: 9187.765828 | T79: 14699.17504 | U79: -5511.409208 | V79: 2725.912244 | W79: 305.4802809 | X79: 2420.431963 | Y79: 333.310536 | Z79: 330.0913243 | AA79: 3.21921161 | AB79: 498.5887505 | AC79: 152.3502559 | AD79: 346.2384946 | AE79: 7394.522963 | AF79: 3620.507273 | AG79: 3774.015691 | AH79: 41597.68085 | AI79: 25234.91517 | AJ79: 37943.95411 | AK79: 16362.76568 | AL79: 35492.71257 | AM79: 42537.81151 | AN79: -7045.098937 | AO79: 9317.66674 | AP79: 388.290767 | AQ79: 2003.163049 | AR79: 9314.402296 | AS79: 9383.326192 | AT79: 158.2975836 | AU79: 325.4658107 | AV79: 6795.953764 | AW79: 6934.623421 | AX79: 334.5414759 | AY79: 188.8487719 | AZ79: 3339.679923 | BA79: 2711.959572 | BB79: 1677.358413 | BC79: 1736.116661 | BD79: -10742.0048 | BE79: 9317.66674 | BF79: -1424.338063 | BG79: 25352.90836 | BH79: 40537.501
A80: 2012-12-01 | B80: 5824.856017 | C80: 7663.689674 | D80: 3618.883616 | E80: 8172.355438 | F80: 694.200459 | G80: 339.577364 | H80: 229.530704 | I80: 264.960043 | J80: 187.9285895 | K80: 82.96553 | L80: 4176.2719 | M80: 2759.647222 | N80: 13162.17014 | O80: 13568.78197 | P80: 19914.69541 | Q80: 7876.77 | R80: 12037.92541 | S80: 8770.581627 | T80: 14343.78384 | U80: -5573.202217 | V80: 2606.167706 | W80: 90.61272741 | X80: 2515.554978 | Y80: 260.5912224 | Z80: 276.3426913 | AA80: -15.75146889 | AB80: 546.739587 | AC80: 161.0346986 | AD80: 385.7048884 | AE80: 7217.402862 | AF80: 3011.595191 | AG80: 4205.80767 | AH80: 39316.17841 | AI80: 25760.13915 | AJ80: 33736.81787 | AK80: 13556.03926 | AL80: 32555.94734 | AM80: 36821.23587 | AN80: -4265.288526 | AO80: 9290.750733 | AP80: 1000.999178 | AQ80: 1375.61342 | AR80: 11904.32321 | AS80: 12597.48755 | AT80: 126.3422587 | AU80: 219.6459936 | AV80: 5335.870693 | AW80: 5531.274462 | AX80: 172.2962231 | AY80: 213.7568973 | AZ80: 3450.967558 | BA80: 2038.227558 | BB80: 2469.87827 | BC80: 2257.744699 | BD80: -10519 | BE80: 9290.750733 | BF80: -1228.249267 | BG80: 21533.6481 | BH80: 36602.76212
A81: 2013-01-01 | B81: 9356.463551 | C81: 10005.67684 | D81: 3030.693233 | E81: 9203.890804 | F81: 680.989732 | G81: 396.8387546 | H81: 234.5431213 | I81: 320.6419335 | J81: 158.4998281 | K81: 60.86763538 | L81: 4816.686078 | M81: 2806.122708 | N81: 17837.53252 | O81: 17252.12718 | P81: 18512.02437 | Q81: 7246.04 | R81: 11265.98437 | S81: 8396.94598 | T81: 15120.79341 | U81: -6723.847428 | V81: 2714.248003 | W81: 239.231922 | X81: 2475.016081 | Y81: 224.4885061 | Z81: 257.4887617 | AA81: -33.00025566 | AB81: 519.3516093 | AC81: 140.4749836 | AD81: 378.8766257 | AE81: 6679.144005 | AF81: 2408.745574 | AG81: 4270.398431 | AH81: 37046.20247 | AI81: 25412.77465 | AJ81: 35505.84763 | AK81: 11633.42782 | AL81: 36662.9673 | AM81: 37897.07825 | AN81: -1234.110947 | AO81: 10399.31688 | AP81: 832.1 | AQ81: 3367.935792 | AR81: 11200.99759 | AS81: 10651.90884 | AT81: 278.9938568 | AU81: 244.1205893 | AV81: 6163.471139 | AW81: 6681.889383 | AX81: 178.3436726 | AY81: 222.6888313 | AZ81: 1931.585746 | BA81: 1050.010503 | BB81: 3093.887971 | BC81: 1973.05224 | BD81: -11024 | BE81: 10399.31688 | BF81: -624.6831232 | BG81: 27615.46246 | BH81: 42375.84811
A82: 2013-02-01 | B82: 6535.390346 | C82: 6205.437047 | D82: 5125.066227 | E82: 6500.566176 | F82: 909.8139779 | G82: 485.6894953 | H82: 106.7672762 | I82: 138.8 | J82: 235.3891963 | K82: 32.24681694 | L82: 5105.439322 | M82: 2963.155223 | N82: 17045.32666 | O82: 17752.44441 | P82: 17701.74125 | Q82: 6838.557006 | R82: 10863.18425 | S82: 9401.654131 | T82: 14559.12907 | U82: -5157.474937 | V82: 2803.429806 | W82: 198.7328867 | X82: 2604.696919 | Y82: 186.1352763 | Z82: 215.6654065 | AA82: -29.53013022 | AB82: 495.1578508 | AC82: 106.8936562 | AD82: 388.2641947 | AE82: 6595.417889 | AF82: 2425.530523 | AG82: 4169.887366 | AH82: 37183.53621 | AI82: 24344.50855 | AJ82: 36414.73018 | AK82: 12839.02766 | AL82: 36627.47102 | AM82: 39404.70699 | AN82: -2777.235977 | AO82: 10061.79168 | AP82: 1647.662 | AQ82: 1769.03444 | AR82: 10530.64652 | AS82: 10143.85649 | AT82: 254.5256303 | AU82: 396.9939322 | AV82: 3756.565199 | AW82: 3956.332837 | AX82: 130.3758974 | AY82: 182.5488778 | AZ82: 1596.321628 | BA82: 1081.201359 | BB82: 2014.880895 | BC82: 1467.262179 | BD82: -10086.47568 | BE82: 10061.79168 | BF82: -24.68399916 | BG82: 25886.9137 | BH82: 38724.51189
A83: 2013-03-01 | B83: 6388.755821 | C83: 5976.943294 | D83: 5374.761381 | E83: 8516.442171 | F83: 621.9932747 | G83: 308.5590098 | H83: 229.471607 | I83: 238.5716693 | J83: 129.8127217 | K83: 75.13738203 | L83: 3558.108257 | M83: 1981.766921 | N83: 16990.2514 | O83: 18282.06777 | P83: 15237.76572 | Q83: 4770.709 | R83: 10467.05672 | S83: 9431.16591 | T83: 13877.20346 | U83: -4446.03755 | V83: 2898.744571 | W83: 224.8223641 | X83: 2673.922207 | Y83: 209.0838821 | Z83: 217.4985373 | AA83: -8.41465518 | AB83: 515.2158277 | AC83: 121.5308118 | AD83: 393.6850159 | AE83: 5559.833884 | AF83: 2038.168332 | AG83: 3521.665552 | AH83: 33851.80979 | AI83: 21249.93251 | AJ83: 36116.44927 | AK83: 12601.87729 | AL83: 35155.63303 | AM83: 38796.26618 | AN83: -3640.633157 | AO83: 8961.244131 | AP83: 913.6114452 | AQ83: 922.8883835 | AR83: 13284.05244 | AS83: 13908.96637 | AT83: 99.36356683 | AU83: 173.3595197 | AV83: 5422.218984 | AW83: 5615.055044 | AX83: 259.4053429 | AY83: 272.1193956 | AZ83: 1694.074865 | BA83: 1369.987864 | BB83: 2675.242144 | BC83: 2386.59728 | BD83: -10398.54703 | BE83: 8961.244131 | BF83: -1437.302903 | BG83: 29079.59539 | BH83: 44219.72185
A84: 2013-04-01 | B84: 9662.509412 | C84: 10662.88272 | D84: 6841.175916 | E84: 9623.251519 | F84: 785.8944579 | G84: 603.000514 | H84: 377.063896 | I84: 551.5084261 | J84: 407.4422154 | K84: 198.0893427 | L84: 5132.700183 | M84: 2742.249089 | N84: 22340.31206 | O84: 24004.45144 | P84: 15454.08428 | Q84: 7193.433 | R84: 8260.651279 | S84: 9704.704771 | T84: 14419.47248 | U84: -4714.767709 | V84: 2926.653413 | W84: 230.709208 | X84: 2695.944205 | Y84: 271.6242987 | Z84: 330.7139596 | AA84: -59.08966085 | AB84: 710.0470374 | AC84: 197.2017636 | AD84: 512.8452738 | AE84: 6222.245468 | AF84: 1977.853485 | AG84: 4244.391983 | AH84: 35289.35927 | AI84: 24349.3839 | AJ84: 38580.94595 | AK84: 10939.97537 | AL84: 38002.07463 | AM84: 43322.37939 | AN84: -5320.304764 | AO84: 5619.670607 | AP84: 3712.754385 | AQ84: 853.0398229 | AR84: 13387.13915 | AS84: 13593.53526 | AT84: 196.4009677 | AU84: 234.1131812 | AV84: 6547.283453 | AW84: 6378.624914 | AX84: 225.0640835 | AY84: 341.9286466 | AZ84: 922.8773305 | BA84: 1801.755035 | BB84: 3708.619566 | BC84: 2007.999243 | BD84: -6948.024602 | BE84: 5619.670607 | BF84: -1328.353995 | BG84: 33531.52871 | BH84: 53382.88713
A85: 2013-05-01 | B85: 10741.28855 | C85: 7482.059523 | D85: 8319.432997 | E85: 9425.195992 | F85: 844.6493928 | G85: 434.2633494 | H85: 515.5263867 | I85: 270.8761 | J85: 437.3366559 | K85: 62.24644702 | L85: 5583.923435 | M85: 2805.074389 | N85: 17935.88417 | O85: 29327.74959 | P85: 17820.49724 | Q85: 7385.354214 | R85: 10435.14302 | S85: 11246.39697 | T85: 14044.8158 | U85: -2798.418834 | V85: 3056.221718 | W85: 184.4649285 | X85: 2871.756789 | Y85: 352.5687355 | Z85: 199.0541011 | AA85: 153.5146343 | AB85: 908.4601091 | AC85: 146.5455243 | AD85: 761.9145848 | AE85: 7389.438056 | AF85: 2530.407473 | AG85: 4859.030583 | AH85: 40773.58282 | AI85: 24490.64204 | AJ85: 43247.00256 | AK85: 16282.94078 | AL85: 34487.30193 | AM85: 47519.10483 | AN85: -13031.8029 | AO85: 3251.137879 | AP85: 1792.389097 | AQ85: 1838.099315 | AR85: 14300.2148 | AS85: 12528.36885 | AT85: 260.3044785 | AU85: 334.0997843 | AV85: 8526.831099 | AW85: 8131.138747 | AX85: 230.4206879 | AY85: 453.0411586 | AZ85: 1371.877487 | BA85: 1247.313795 | BB85: 2690.346332 | BC85: 1837.847645 | BD85: -4178.726017 | BE85: 3251.137879 | BF85: -927.5881382 | BG85: 33601.89198 | BH85: 58161.6564
A86: 2013-06-01 | B86: 10509.02467 | C86: 7721.017668 | D86: 3671.217879 | E86: 5521.787226 | F86: 1055.243466 | G86: 666.3295173 | H86: 328.937253 | I86: 445.859178 | J86: 406.6248935 | K86: 100.947 | L86: 5982.952907 | M86: 2805.001925 | N86: 20661.88136 | O86: 24575.30074 | P86: 16340.89444 | Q86: 6704.781 | R86: 9636.113438 | S86: 11684.59243 | T86: 13215.59854 | U86: -1531.00611 | V86: 3201.607703 | W86: 221.2390511 | X86: 2980.368652 | Y86: 288.8971479 | Z86: 278.5142215 | AA86: 10.38292639 | AB86: 942.4294745 | AC86: 184.9149866 | AD86: 757.5144879 | AE86: 6641.846783 | AF86: 2002.822482 | AG86: 4639.024301 | AH86: 39100.26797 | AI86: 22607.87028 | AJ86: 43685.39653 | AK86: 16492.3977 | AL86: 34359.44086 | AM86: 48482.26453 | AN86: -14122.82367 | AO86: 2369.574028 | AP86: 1671.018509 | AQ86: 1206.373413 | AR86: 8683.753743 | AS86: 9497.998331 | AT86: 177.5601861 | AU86: 527.8178062 | AV86: 7852.728393 | AW86: 8107.778282 | AX86: 839.9218502 | AY86: 907.2820361 | AZ86: 3947.544821 | BA86: 1409.091383 | BB86: 2154.9683 | BC86: 2559.628901 | BD86: -3033.609425 | BE86: 2369.574028 | BF86: -664.035397 | BG86: 30247.72641 | BH86: 51691.00433
A87: 2013-07-01 | B87: 10728.4151 | C87: 9216.544993 | D87: 3590.730548 | E87: 4831.344723 | F87: 791.2441241 | G87: 354.3253694 | H87: 414.4200903 | I87: 279.348253 | J87: 630.0705691 | K87: 154.7142337 | L87: 3515.376089 | M87: 2226.977741 | N87: 20655.949 | O87: 22835.50909 | P87: 16993.00841 | Q87: 7208.200566 | R87: 9784.807844 | S87: 12192.64349 | T87: 13205.48839 | U87: -1012.844902 | V87: 3137.028813 | W87: 123.9190139 | X87: 3013.109799 | Y87: 262.1724901 | Z87: 150.3282215 | AA87: 111.8442686 | AB87: 841.1412321 | AC87: 158.8322568 | AD87: 682.3089753 | AE87: 5794.059726 | AF87: 1681.415304 | AG87: 4112.644422 | AH87: 39220.05416 | AI87: 22528.18375 | AJ87: 43437.8068 | AK87: 16691.87041 | AL87: 32988.15616 | AM87: 45719.83966 | AN87: -12731.6835 | AO87: 3960.186909 | AP87: 1835.425068 | AQ87: 3300.534986 | AR87: 8885.923666 | AS87: 10029.60241 | AT87: 136.4134362 | AU87: 178.8503564 | AV87: 8017.079655 | AW87: 8438.389344 | AX87: 1335.575028 | AY87: 1306.172636 | AZ87: 1854.662462 | BA87: 563.2823676 | BB87: 1968.281371 | BC87: 1870.442629 | BD87: -4780.091921 | BE87: 3960.186909 | BF87: -819.9050117 | BG87: 33065.53288 | BH87: 59201.50746
A88: 2013-08-01 | B88: 7704.378972 | C88: 7828.994972 | D88: 4373.686307 | E88: 6311.95749 | F88: 907.7506986 | G88: 249.1955198 | H88: 229.1617084 | I88: 246.403108 | J88: 435.1241054 | K88: 209.9432999 | L88: 3422.334017 | M88: 2871.840332 | N88: 18514.40839 | O88: 19025.04562 | P88: 16030.58861 | Q88: 7670.705 | R88: 8359.883606 | S88: 12808.78799 | T88: 13653.58476 | U88: -844.7967703 | V88: 3224.282115 | W88: 115.9529111 | X88: 3108.329204 | Y88: 258.5786483 | Z88: 206.5522215 | AA88: 52.02642678 | AB88: 868.3196672 | AC88: 279.9713107 | AD88: 588.3483565 | AE88: 6090.635633 | AF88: 2510.237834 | AG88: 3580.3978 | AH88: 39281.19266 | AI88: 24437.00404 | AJ88: 45793.8244 | AK88: 14844.18862 | AL88: 32239.92613 | AM88: 43725.53315 | AN88: -11485.60702 | AO88: 3358.581601 | AP88: 3228.410856 | AQ88: 1447.619795 | AR88: 9561.54669 | AS88: 10520.30557 | AT88: 248.0959093 | AU88: 324.439325 | AV88: 6553.56479 | AW88: 6861.921899 | AX88: 939.2116566 | AY88: 902.2526036 | AZ88: 1674.436401 | BA88: 1738.129718 | BB88: 1579.612415 | BC88: 1645.992182 | BD88: -4445.09 | BE88: 3358.581601 | BF88: -1086.508399 | BG88: 37644.5011 | BH88: 60311.58978
A89: 2013-09-01 | B89: 8698.47037 | C89: 7455.64037 | D89: 2144.148188 | E89: 5677.475136 | F89: 826.4511598 | G89: 309.3070531 | H89: 202.4322326 | I89: 221.65597 | J89: 192.4368064 | K89: 154.1683793 | L89: 2597.032566 | M89: 1716.177818 | N89: 21092.71021 | O89: 18528.09412 | P89: 17668.75604 | Q89: 10303.7995 | R89: 7364.956541 | S89: 10980.5876 | T89: 14348.16485 | U89: -3367.577243 | V89: 3366.529363 | W89: 181.8825597 | X89: 3184.646803 | Y89: 246.0483541 | Z89: 213.1852925 | AA89: 32.86306162 | AB89: 597.615286 | AC89: 220.7689891 | AD89: 376.8462969 | AE89: 5527.844219 | AF89: 2358.022387 | AG89: 3169.821832 | AH89: 38387.38087 | AI89: 27625.82358 | AJ89: 40630.08022 | AK89: 10761.55729 | AL89: 36616.88082 | AM89: 44134.94862 | AN89: -7518.067803 | AO89: 3243.489489 | AP89: 3346.992593 | AQ89: 4331.792436 | AR89: 8494.848466 | AS89: 8362.110796 | AT89: 167.048734 | AU89: 265.7904066 | AV89: 5033.272404 | AW89: 5590.246965 | AX89: 819.79043 | AY89: 560.9767859 | AZ89: 1451.605134 | BA89: 1311.874664 | BB89: 2214.600756 | BC89: 1830.355223 | BD89: -5152.87818 | BE89: 3243.489489 | BF89: -1909.388691 | BG89: 26221.58276 | BH89: 46630.73688
A90: 2013-10-01 | B90: 7196.374184 | C90: 5289.767184 | D90: 2651.309239 | E90: 6275.495442 | F90: 826.9656336 | G90: 271.7405424 | H90: 235.767953 | I90: 372.2151053 | J90: 435.3338044 | K90: 139.9311943 | L90: 4363.31978 | M90: 4099.749273 | N90: 16660.35502 | O90: 18527.85991 | P90: 15948 | Q90: 7626 | R90: 8322 | S90: 10460.03615 | T90: 14599.42605 | U90: -4139.389906 | V90: 3368.464019 | W90: 202.7032516 | X90: 3165.760767 | Y90: 245.7250745 | Z90: 216.4462557 | AA90: 29.27881874 | AB90: 680.657452 | AC90: 201.6832188 | AD90: 478.9742332 | AE90: 6077.689366 | AF90: 2914.597999 | AG90: 3163.091368 | AH90: 36780.57206 | AI90: 25760.85678 | AJ90: 36749.81682 | AK90: 11019.71528 | AL90: 31987.8196 | AM90: 39431.6614 | AN90: -7443.841805 | AO90: 3575.873476 | AP90: 1950.305454 | AQ90: 2306.190429 | AR90: 9336.45435 | AS90: 9472.076719 | AT90: 137.1850507 | AU90: 189.2556894 | AV90: 6609.295154 | AW90: 6830.056422 | AX90: 827.276189 | AY90: 933.401011 | AZ90: 1229.290413 | BA90: 1069.554562 | BB90: 1991.922565 | BC90: 1702.727349 | BD90: -5615.583983 | BE90: 3575.873476 | BF90: -2039.710507 | BG90: 28083.23761 | BH90: 57159.69917
A91: 2013-11-01 | B91: 10557.93 | C91: 5094.62 | D91: 3934.043155 | E91: 6122.530134 | F91: 944.1750879 | G91: 258.2115791 | H91: 316.882458 | I91: 223.3252649 | J91: 308.6642493 | K91: 92.45411452 | L91: 4129.19092 | M91: 2747.052773 | N91: 17370.74971 | O91: 21567.35962 | P91: 19842.67758 | Q91: 8375 | R91: 11467.67758 | S91: 11561.71589 | T91: 14840.98878 | U91: -3279.272895 | V91: 3599.55993 | W91: 177.0017936 | X91: 3422.558136 | Y91: 270.1895795 | Z91: 160.4295044 | AA91: 109.7600751 | AB91: 810.1697224 | AC91: 264.7989575 | AD91: 545.3707649 | AE91: 6317.263038 | AF91: 2405.059652 | AG91: 3912.203386 | AH91: 42401.57573 | AI91: 26223.27869 | AJ91: 43053.06856 | AK91: 16178.29704 | AL91: 35115.48686 | AM91: 46839.77531 | AN91: -11724.28845 | AO91: 4454.00859 | AP91: 1298.102077 | AQ91: 3960.367209 | AR91: 11137.21148 | AS91: 9618.915958 | AT91: 173.281499 | AU91: 308.8282042 | AV91: 8096.200102 | AW91: 7796.768448 | AX91: 233.947819 | AY91: 262.3299889 | AZ91: 1345.430019 | BA91: 1418.115583 | BB91: 1545.906416 | BC91: 1613.000976 | BD91: -6789.258449 | BE91: 4454.00859 | BF91: -2335.24986 | BG91: 30093.7316 | BH91: 58479.08507
A92: 2013-12-01 | B92: 6951.741164 | C92: 3988.161164 | D92: 3005.856874 | E92: 5822.014024 | F92: 943.9305442 | G92: 272.6413719 | H92: 242.7241 | I92: 338.4549144 | J92: 195.8274653 | K92: 58.659847 | L92: 3289.476124 | M92: 2320.710288 | N92: 14937.75265 | O92: 16170.25369 | P92: 20092.16836 | Q92: 7818 | R92: 12274.16836 | S92: 10957.82401 | T92: 13260.54711 | U92: -2302.723095 | V92: 3707.082825 | W92: 243.0940035 | X92: 3463.988821 | Y92: 244.3472215 | Z92: 261.5409608 | AA92: -17.19373931 | AB92: 711.7310239 | AC92: 262.4970292 | AD92: 449.2339947 | AE92: 6272.781969 | AF92: 2485.719458 | AG92: 3787.062511 | AH92: 41985.93541 | AI92: 24331.39856 | AJ92: 39093.50824 | AK92: 17654.53686 | AL92: 31660.35495 | AM92: 43120.72532 | AN92: -11460.37037 | AO92: 6194.166491 | AP92: 1744.787837 | AQ92: 1692.55773 | AR92: 12500.67609 | AS92: 13207.18687 | AT92: 96.02084039 | AU92: 289.6527867 | AV92: 6346.111643 | AW92: 6817.771145 | AX92: 270.0327377 | AY92: 253.2483001 | AZ92: 1820.67474 | BA92: 1438.096368 | BB92: 2193.736705 | BC92: 2416.616966 | BD92: -7899.34975 | BE92: 6194.166491 | BF92: -1705.183259 | BG92: 24768.41906 | BH92: 46763.28983
A93: 2014-01-01 | B93: 10091.5663 | C93: 7362.92998 | D93: 3891.068937 | E93: 7373.616791 | F93: 1210.864157 | G93: 497.5906073 | H93: 381.468 | I93: 281.0267879 | J93: 452.6807142 | K93: 124.5958744 | L93: 3781.763147 | M93: 2815.810266 | N93: 18374.18822 | O93: 23822.20218 | P93: 21214.96368 | Q93: 9262.185 | R93: 11952.77868 | S93: 11610.28106 | T93: 13418.85418 | U93: -1808.573127 | V93: 3868.80164 | W93: 247.7498403 | X93: 3621.0518 | Y93: 356.276 | Z93: 248.7349888 | AA93: 107.5410112 | AB93: 590.9849906 | AC93: 145.7645002 | AD93: 445.2204904 | AE93: 6739.612202 | AF93: 2572.059025 | AG93: 4167.553177 | AH93: 44380.91957 | AI93: 25895.34754 | AJ93: 42288.08995 | AK93: 18485.57203 | AL93: 34049.844 | AM93: 49141.51106 | AN93: -15091.66706 | AO93: 3393.904965 | AP93: 3017.17987 | AQ93: 1237.548809 | AR93: 11124.10954 | AS93: 10452.53804 | AT93: 253.0991439 | AU93: 423.1961222 | AV93: 6283.083062 | AW93: 6323.927779 | AX93: 223.4681972 | AY93: 348.9908006 | AZ93: 1654.954536 | BA93: 1200.608324 | BB93: 1703.33724 | BC93: 1752.791062 | BD93: -5396.749174 | BE93: 3393.904965 | BF93: -2002.844209 | BG93: 30239.92449 | BH93: 56937.02593
A94: 2014-02-01 | B94: 8938.428504 | C94: 6427.868504 | D94: 2767.390393 | E94: 6838.158277 | F94: 1189.946333 | G94: 272.528074 | H94: 233.816 | I94: 265.641 | J94: 245.6764309 | K94: 76.52975229 | L94: 3211.739273 | M94: 2437.437469 | N94: 16970.84323 | O94: 17609.6511 | P94: 23469.93756 | Q94: 10517.1265 | R94: 12952.81105 | S94: 11758.61269 | T94: 13552.38609 | U94: -1794 | V94: 4000.98867 | W94: 245.3372038 | X94: 3754.651471 | Y94: 364.988 | Z94: 331.0513086 | AA94: 33.93669141 | AB94: 641.2784096 | AC94: 154.7176412 | AD94: 486.5607684 | AE94: 6794.619926 | AF94: 2781.29825 | AG94: 4013.321676 | AH94: 47030.42526 | AI94: 27581.917 | AJ94: 42613.43126 | AK94: 19448.50826 | AL94: 32481.08287 | AM94: 48184.77723 | AN94: -15703.69436 | AO94: 3744.813893 | AP94: 1135.277238 | AQ94: 962.6776547 | AR94: 11785.65618 | AS94: 11519.13321 | AT94: 212.2031836 | AU94: 278.82068 | AV94: 5217.362975 | AW94: 5289.2799 | AX94: 107.3288372 | AY94: 212.28252 | AZ94: 825.67303 | BA94: 1018.5196 | BB94: 1544.856541 | BC94: 1994.585902 | BD94: -5824.331346 | BE94: 3744.813893 | BF94: -2079.517453 | BG94: 25613.72266 | BH94: 48951.71298
A95: 2014-03-01 | B95: 7348.67727 | C95: 5823.97227 | D95: 2763.862122 | E95: 8523.181424 | F95: 997.7442239 | G95: 391.0482728 | H95: 274.2155 | I95: 370.9516511 | J95: 205.6684668 | K95: 112.919117 | L95: 4579.446342 | M95: 2856.203921 | N95: 19486.75409 | O95: 17418.52221 | P95: 23453.47284 | Q95: 11015.123 | R95: 12438.34984 | S95: 11654.56737 | T95: 13818.87715 | U95: -2164.309782 | V95: 3985.451828 | W95: 182.3720731 | X95: 3803.079755 | Y95: 379.3 | Z95: 441.2769648 | AA95: -61.97696481 | AB95: 617.1918583 | AC95: 188.5902462 | AD95: 428.6016122 | AE95: 6579.663411 | AF95: 2609.807883 | AG95: 3969.855528 | AH95: 46669.64731 | AI95: 28256.04732 | AJ95: 44744.4958 | AK95: 18413.59999 | AL95: 34940.60131 | AM95: 47951.92654 | AN95: -13011.32523 | AO95: 5402.274759 | AP95: 932.6000353 | AQ95: 1146.385858 | AR95: 12228.41605 | AS95: 12721.71633 | AT95: 313.5028179 | AU95: 266.7716781 | AV95: 6696.047796 | AW95: 6965.632381 | AX95: 162.1950494 | AY95: 255.9003095 | AZ95: 1648.263783 | BA95: 1403.558068 | BB95: 1920.339382 | BC95: 2117.601984 | BD95: -6490.341714 | BE95: 5402.274759 | BF95: -1088.066955 | BG95: 30109.63917 | BH95: 61583.80262
A96: 2014-04-01 | B96: 9841.897595 | C96: 8087.852595 | D96: 3886.454671 | E96: 8031.965902 | F96: 1233.655887 | G96: 393.1307078 | H96: 278.604 | I96: 254.2441689 | J96: 425.0771123 | K96: 81.730965 | L96: 2558.028472 | M96: 2263.615692 | N96: 21337.95528 | O96: 22723.49692 | P96: 23317.11948 | Q96: 11540.6666 | R96: 11776.45288 | S96: 12729.30949 | T96: 13686.1703 | U96: -956.8608103 | V96: 4035.513305 | W96: 192.056982 | X96: 3843.456323 | Y96: 342.107 | Z96: 329.5809364 | AA96: 12.52606356 | AB96: 770.001348 | AC96: 213.7348773 | AD96: 556.2664707 | AE96: 5971.849342 | AF96: 1823.481338 | AG96: 4148.368004 | AH96: 47165.89996 | AI96: 27785.69103 | AJ96: 44690.03321 | AK96: 19380.20893 | AL96: 37151.18395 | AM96: 51444.59167 | AN96: -14293.40772 | AO96: 5086.801213 | AP96: 950.0870799 | AQ96: 1559.410186 | AR96: 13982.04623 | AS96: 13298.88284 | AT96: 212.2031356 | AU96: 163.2181001 | AV96: 6249.719719 | AW96: 6250.165219 | AX96: 357.270531 | AY96: 483.294076 | AZ96: 2094.169123 | BA96: 1424.033271 | BB96: 2152.659694 | BC96: 1715.044754 | BD96: -5501.337996 | BE96: 5086.801213 | BF96: -414.5367831 | BG96: 32426.37469 | BH96: 57590.49027
A97: 2014-05-01 | B97: 7961.857294 | C97: 7365.304903 | D97: 2892.652729 | E97: 7003.247435 | F97: 1355.583636 | G97: 573.768964 | H97: 288.458317 | I97: 379.5729121 | J97: 321.5336503 | K97: 106.97 | L97: 3364.228666 | M97: 1492.899834 | N97: 21596.80365 | O97: 18662.3757 | P97: 22097.78833 | Q97: 11334.745 | R97: 10763.04333 | S97: 12425.32051 | T97: 13843.70023 | U97: -1418.379724 | V97: 4069.845926 | W97: 236.5478741 | X97: 3833.298052 | Y97: 287.490317 | Z97: 380.9918474 | AA97: -93.50153035 | AB97: 695.6912888 | AC97: 212.353899 | AD97: 483.3373898 | AE97: 5704.227548 | AF97: 2040.342687 | AG97: 3663.884861 | AH97: 45280.36392 | AI97: 28048.68154 | AJ97: 45679.06101 | AK97: 17231.68238 | AL97: 38580.4428 | AM97: 48168.82326 | AN97: -9588.380452 | AO97: 7643.301924 | AP97: 411.6312461 | AQ97: 1233.814751 | AR97: 10766.88559 | AS97: 11858.12079 | AT97: 374.363965 | AU97: 403.2114666 | AV97: 5264.475499 | AW97: 5690.196282 | AX97: 512.2711706 | AY97: 527.1607685 | AZ97: 1351.197264 | BA97: 1289.50809 | BB97: 2536.209591 | BC97: 2380.998409 | BD97: -7409.789131 | BE97: 7643.301924 | BF97: 233.5127925 | BG97: 29950.19688 | BH97: 49193.706
A98: 2014-06-01 | B98: 8366.390112 | C98: 6556.030242 | D98: 2104.207047 | E98: 5837.817573 | F98: 1329.159281 | G98: 432.506913 | H98: 225.4350327 | I98: 261.6718709 | J98: 175.7544338 | K98: 150.643177 | L98: 2426.996076 | M98: 1341.682497 | N98: 18793.50296 | O98: 18562.65514 | P98: 22050.20366 | Q98: 10565.195 | R98: 11485.00866 | S98: 11609.02513 | T98: 13835.65488 | U98: -2226.629744 | V98: 4195.0808 | W98: 213.6149906 | X98: 3981.46581 | Y98: 260.8943497 | Z98: 316.1036751 | AA98: -55.20932542 | AB98: 639.1120676 | AC98: 317.825879 | AD98: 321.2861886 | AE98: 5493.836563 | AF98: 1664.815286 | AG98: 3829.021277 | AH98: 44248.15257 | AI98: 26913.20971 | AJ98: 42300.77633 | AK98: 17334.94287 | AL98: 36612.18729 | AM98: 45554.44686 | AN98: -8942.259571 | AO98: 8392.683295 | AP98: 719.6956267 | AQ98: 1908.095713 | AR98: 9402.068609 | AS98: 9405.271841 | AT98: 171.9031383 | AU98: 196.8908268 | AV98: 5673.050225 | AW98: 5942.333581 | AX98: 353.5585303 | AY98: 296.5486387 | AZ98: 1370.075709 | BA98: 1318.918485 | BB98: 1871.392934 | BC98: 1607.105556 | BD98: -8601.610913 | BE98: 8392.683295 | BF98: -208.9276189 | BG98: 25753.93767 | BH98: 44189.449
A99: 2014-07-01 | B99: 8554.688816 | C99: 5923.469356 | D99: 2732.856838 | E99: 8056.56512 | F99: 1712.003795 | G99: 432.1016565 | H99: 364.0399544 | I99: 266.4696661 | J99: 300.9356486 | K99: 102.232059 | L99: 3002.121948 | M99: 1320.666422 | N99: 14494.36172 | O99: 16370.45761 | P99: 23189.7692 | Q99: 10758.57436 | R99: 12431.19485 | S99: 11697.18291 | T99: 14751.34104 | U99: -3054.158121 | V99: 4601.979247 | W99: 249.2423757 | X99: 4352.736872 | Y99: 327.7851181 | Z99: 282.6431629 | AA99: 45.14195517 | AB99: 676.356863 | AC99: 300.477938 | AD99: 375.878925 | AE99: 5515.076699 | AF99: 1388.437434 | AG99: 4126.639265 | AH99: 46008.15004 | AI99: 27730.7163 | AJ99: 42548.20257 | AK99: 18277.43374 | AL99: 34227.91055 | AM99: 44828.44654 | AN99: -10600.53599 | AO99: 7676.897756 | AP99: 840.0009815 | AQ99: 1794.987149 | AR99: 11851.94465 | AS99: 10714.95642 | AT99: 160.817376 | AU99: 480.8997711 | AV99: 6178.899248 | AW99: 6313.997092 | AX99: 190.2896629 | AY99: 259.3615042 | AZ99: 1387.169525 | BA99: 1475.57002 | BB99: 1877.153196 | BC99: 1301.878576 | BD99: -8696.146909 | BE99: 7676.897756 | BF99: -1019.249153 | BG99: 26904.8656 | BH99: 49658.23374
A100: 2014-08-01 | B100: 10802.87844 | C100: 7161.676887 | D100: 2961.876884 | E100: 7400.139071 | F100: 1611.122119 | G100: 692.5102612 | H100: 334.009139 | I100: 360.3430518 | J100: 392.4982991 | K100: 120.048093 | L100: 2435.930226 | M100: 1516.003213 | N100: 16239.68874 | O100: 17887.26331 | P100: 23011.23901 | Q100: 10397.793 | R100: 12613.44601 | S100: 11882.45016 | T100: 14746.76652 | U100: -2864.316361 | V100: 4590.656137 | W100: 430.8803195 | X100: 4159.775817 | Y100: 393.9250769 | Z100: 357.2849547 | AA100: 36.64012221 | AB100: 785.1257485 | AC100: 255.662244 | AD100: 529.4635045 | AE100: 5391.897596 | AF100: 1638.412526 | AG100: 3753.48507 | AH100: 46055.29373 | AI100: 27826.79956 | AJ100: 44646.72484 | AK100: 18228.49417 | AL100: 34384.02217 | AM100: 44606.74875 | AN100: -10222.72658 | AO100: 8005.767587 | AP100: 1766.069599 | AQ100: 2469.935179 | AR100: 9844.763207 | AS100: 10835.83367 | AT100: 266.9821404 | AU100: 326.8424572 | AV100: 6208.995834 | AW100: 6365.617154 | AX100: 193.8449601 | AY100: 439.1290292 | AZ100: 2377.982752 | BA100: 1235.086597 | BB100: 1647.849864 | BC100: 992.391973 | BD100: -8949.379039 | BE100: 8005.767587 | BF100: -943.6114516 | BG100: 31397.06371 | BH100: 54081.20431
A101: 2014-09-01 | B101: 7596.378391 | C101: 5009.206259 | D101: 2590.719234 | E101: 6905.172996 | F101: 2030.476592 | G101: 726.3754437 | H101: 254.542 | I101: 268.5883102 | J101: 366.2714326 | K101: 110.218799 | L101: 2228.097282 | M101: 1439.972289 | N101: 18747.78504 | O101: 18830.51691 | P101: 23367.57545 | Q101: 10181.563 | R101: 13186.01245 | S101: 11995.63946 | T101: 14637.80431 | U101: -2642.164849 | V101: 4779.930047 | W101: 350.7958018 | X101: 4429.134245 | Y101: 307.6360769 | Z101: 319.9095627 | AA101: -12.27348579 | AB101: 716.2644535 | AC101: 245.003043 | AD101: 471.2614105 | AE101: 4695.079485 | AF101: 1566.509516 | AG101: 3128.569969 | AH101: 45862.12497 | AI101: 27301.58523 | AJ101: 46659.1691 | AK101: 18560.53974 | AL101: 37014.56126 | AM101: 46749.63726 | AN101: -9735.076007 | AO101: 8825.463734 | AP101: 875.6935121 | AQ101: 1429.612146 | AR101: 12101.05402 | AS101: 12693.73739 | AT101: 371.7314609 | AU101: 481.9027378 | AV101: 5781.648167 | AW101: 5983.337806 | AX101: 309.2443944 | AY101: 371.2514317 | AZ101: 1788.088371 | BA101: 1089.213277 | BB101: 2124.488 | BC101: 2272.080733 | BD101: -9614.690149 | BE101: 8825.463734 | BF101: -789.2264158 | BG101: 31964.97354 | BH101: 54812.10475
A102: 2014-10-01 | B102: 10284.17264 | C102: 7666.604854 | D102: 2649.744059 | E102: 7622.495754 | F102: 1539.885358 | G102: 614.0969789 | H102: 235.8374131 | I102: 294.6286336 | J102: 232.81711 | K102: 165.8715604 | L102: 2109.871095 | M102: 1623.686334 | N102: 19193.98602 | O102: 18005.98856 | P102: 23757.96356 | Q102: 11130.048 | R102: 12627.91556 | S102: 12549.23726 | T102: 15954.87295 | U102: -3405.635686 | V102: 4874.571019 | W102: 419.5079234 | X102: 4455.063096 | Y102: 256.1303671 | Z102: 344.6404375 | AA102: -88.51007039 | AB102: 587.2482437 | AC102: 335.0967224 | AD102: 252.1515212 | AE102: 3253.992492 | AF102: 1524.473954 | AG102: 1729.518538 | AH102: 45279.14294 | AI102: 29708.63998 | AJ102: 48852.42493 | AK102: 15570.50296 | AL102: 35669.28128 | AM102: 42306.46151 | AN102: -6637.18023 | AO102: 8933.322728 | AP102: 838.6505805 | AQ102: 1678.535707 | AR102: 10236.29884 | AS102: 10371.62182 | AT102: 366.4242416 | AU102: 508.1445215 | AV102: 6862.298974 | AW102: 7252.233993 | AX102: 565.6418164 | AY102: 296.476073 | AZ102: 2638.539336 | BA102: 1005.321083 | BB102: 1705.486711 | BC102: 1775.877677 | BD102: -9701.394488 | BE102: 8933.322728 | BF102: -768.0717598 | BG102: 33732.3206 | BH102: 57599.81116
A103: 2014-11-01 | B103: 7512.397909 | C103: 5544.395636 | D103: 3509.743385 | E103: 5920.41307 | F103: 1244.976989 | G103: 233.0612262 | H103: 347.4851196 | I103: 240.3578142 | J103: 550.6551961 | K103: 47.532058 | L103: 2034.878976 | M103: 1102.286059 | N103: 14900.2042 | O103: 21568.03267 | P103: 22935.32899 | Q103: 10737.69551 | R103: 12197.63348 | S103: 12968.03584 | T103: 15474.5923 | U103: -2506.556457 | V103: 4910.309503 | W103: 148.2275122 | X103: 4762.081991 | Y103: 313.5737766 | Z103: 293.791583 | AA103: 19.7821936 | AB103: 774.5905465 | AC103: 256.509986 | AD103: 518.0805605 | AE103: 3190.840275 | AF103: 1217.14911 | AG103: 1973.691165 | AH103: 45092.67893 | AI103: 28127.966 | AJ103: 49902.15965 | AK103: 16964.71293 | AL103: 34848.50526 | AM103: 45064.93864 | AN103: -10216.43338 | AO103: 6748.279545 | AP103: 1200.639127 | AQ103: 2686.592934 | AR103: 10169.07747 | AS103: 7610.775711 | AT103: 321.268577 | AU103: 492.4956122 | AV103: 5844.641466 | AW103: 5457.006328 | AX103: 186.5799138 | AY103: 447.763211 | AZ103: 2042.726432 | BA103: 823.7266312 | BB103: 1306.28186 | BC103: 1257.612504 | BD103: -7451.585254 | BE103: 6748.279545 | BF103: -703.3057084 | BG103: 31286.46718 | BH103: 55370.11798
A104: 2014-12-01 | B104: 8395.098294 | C104: 7308.167538 | D104: 3450.32158 | E104: 5799.115847 | F104: 1437.932141 | G104: 498.0046229 | H104: 177.2342388 | I104: 235.457368 | J104: 770.3263103 | K104: 111.9719893 | L104: 1725.429908 | M104: 1390.165705 | N104: 17240.42366 | O104: 18495.38233 | P104: 23726.25205 | Q104: 12911.98942 | R104: 10814.26264 | S104: 11483.73307 | T104: 14339.93771 | U104: -2856.204637 | V104: 5235.416514 | W104: 323.9686783 | X104: 4911.447835 | Y104: 226.5242483 | Z104: 236.2075431 | AA104: -9.683294767 | AB104: 682.0820988 | AC104: 234.881331 | AD104: 447.2007678 | AE104: 3004.952621 | AF104: 1036.048606 | AG104: 1968.904015 | AH104: 44358.96061 | AI104: 29083.03329 | AJ104: 45768.92063 | AK104: 15275.92733 | AL104: 33333.71014 | AM104: 42812.47027 | AN104: -9478.760125 | AO104: 5797.1672 | AP104: 3374.430798 | AQ104: 1056.77994 | AR104: 10150.01365 | AS104: 10518.65988 | AT104: 350.3212396 | AU104: 474.4218848 | AV104: 5199.501307 | AW104: 5307.665666 | AX104: 819.6323634 | AY104: 757.7144079 | AZ104: 2296.703606 | BA104: 1540.604277 | BB104: 1899.987161 | BC104: 3722.436881 | BD104: -6464.192717 | BE104: 5797.1672 | BF104: -667.0255171 | BG104: 26700.87377 | BH104: 47694.9567
A105: 2015-01-01 | B105: 7522.981254 | C105: 5583.204121 | D105: 3516.793037 | E105: 4932.994615 | F105: 1314.434068 | G105: 474.4085792 | H105: 281.9829952 | I105: 225.1643171 | J105: 637.5589273 | K105: 77.587312 | L105: 1779.851154 | M105: 1379.666256 | N105: 11407.71744 | O105: 14934.60214 | P105: 23240.04906 | Q105: 13470.17245 | R105: 9769.87661 | S105: 12310.8208 | T105: 13424.71351 | U105: -1113.892714 | V105: 5220.767317 | W105: 239.6873379 | X105: 4981.079979 | Y105: 311.5104498 | Z105: 308.9090997 | AA105: 2.60135004 | AB105: 879.5185086 | AC105: 271.78467 | AD105: 607.7338386 | AE105: 3008.117439 | AF105: 1060.09099 | AG105: 1948.02645 | AH105: 44970.78357 | AI105: 28775.35806 | AJ105: 45090.73465 | AK105: 16195.42551 | AL105: 27035.98641 | AM105: 37731.13131 | AN105: -10695.1449 | AO105: 5500.280612 | AP105: 719.0601224 | AQ105: 909.4525598 | AR105: 7188.865836 | AS105: 6934.999228 | AT105: 369.0642738 | AU105: 446.4126733 | AV105: 4194.78089 | AW105: 4351.963265 | AX105: 428.8980371 | AY105: 675.3512628 | AZ105: 2047.983116 | BA105: 894.326702 | BB105: 2555.09084 | BC105: 2415.868159 | BD105: -5525.599609 | BE105: 5500.280612 | BF105: -25.31899681 | BG105: 27717.49422 | BH105: 53486.41418
A106: 2015-02-01 | B106: 6560.92769 | C106: 5912.09459 | D106: 3493.009442 | E106: 6231.553632 | F106: 1259.759206 | G106: 314.2560979 | H106: 249.94125 | I106: 305.4366272 | J106: 506.2397441 | K106: 137.120247 | L106: 1233.868262 | M106: 1228.524258 | N106: 17251.60223 | O106: 16498.12042 | P106: 22566.55456 | Q106: 13333.30026 | R106: 9233.2543 | S106: 12145.6831 | T106: 14352.01523 | U106: -2206.33213 | V106: 5349.481446 | W106: 244.7116019 | X106: 5104.769844 | Y106: 301.3096596 | Z106: 355.2705048 | AA106: -53.9608452 | AB106: 801.158165 | AC106: 289.907755 | AD106: 511.25041 | AE106: 2845.265146 | AF106: 1207.199848 | AG106: 1638.065298 | AH106: 44009.45209 | AI106: 29782.40521 | AJ106: 42137.72486 | AK106: 14227.04688 | AL106: 30943.90293 | AM106: 38565.01638 | AN106: -7621.113456 | AO106: 6605.933422 | AP106: 725.16047 | AQ106: 1756.910795 | AR106: 8990.05593 | AS106: 8329.154611 | AT106: 242.6222182 | AU106: 366.3356208 | AV106: 4252.633454 | AW106: 4453.75854 | AX106: 493.6356403 | AY106: 491.0297832 | AZ106: 892.6626733 | BA106: 787.9464794 | BB106: 1363.581811 | BC106: 1835.359807 | BD106: -7036.889705 | BE106: 6605.933422 | BF106: -430.9562831 | BG106: 23465.66456 | BH106: 46952.43466
A107: 2015-03-01 | B107: 10957.74578 | C107: 7082.763359 | D107: 3181.227955 | E107: 6394.479884 | F107: 1383.119813 | G107: 704.166916 | H107: 455.164 | I107: 574.8357011 | J107: 452.4377861 | K107: 138.841783 | L107: 1973.952414 | M107: 1544.813505 | N107: 17656.23099 | O107: 15898.80239 | P107: 22029.24171 | Q107: 12632.85352 | R107: 9396.388187 | S107: 11648.79824 | T107: 15113.4731 | U107: -3464.674859 | V107: 5522.656717 | W107: 383.4100015 | X107: 5139.246716 | Y107: 428.7602596 | Z107: 505.8898865 | AA107: -77.12962694 | AB107: 853.7402529 | AC107: 337.975572 | AD107: 515.7646809 | AE107: 2785.775515 | AF107: 1197.006224 | AG107: 1588.769291 | AH107: 43268.97269 | AI107: 30170.6083 | AJ107: 45259.48421 | AK107: 13098.36439 | AL107: 32385.68961 | AM107: 39638.73935 | AN107: -7253.049733 | AO107: 5845.314656 | AP107: 798.2022612 | AQ107: 1995.148286 | AR107: 10946.71378 | AS107: 9175.684114 | AT107: 440.1337226 | AU107: 550.7139257 | AV107: 6893.676816 | AW107: 7115.313499 | AX107: 542.1956895 | AY107: 641.08087 | AZ107: 2063.848348 | BA107: 1159.015716 | BB107: 1431.360084 | BC107: 1846.802192 | BD107: -6767.770286 | BE107: 5845.314656 | BF107: -922.4556295 | BG107: 31264.49789 | BH107: 61846.40559
A108: 2015-04-01 | B108: 10053.26025 | C108: 8143.331209 | D108: 3714.397382 | E108: 7472.572997 | F108: 1184.312964 | G108: 721.2479235 | H108: 326.257 | I108: 421.9058479 | J108: 418.4277355 | K108: 200.78616 | L108: 2133.599182 | M108: 2059.43086 | N108: 17440.54175 | O108: 16796.91567 | P108: 21051.51461 | Q108: 12134.04496 | R108: 8917.46965 | S108: 11999.15372 | T108: 16522.90363 | U108: -4523.749917 | V108: 5287.855433 | W108: 230.2876324 | X108: 5057.567801 | Y108: 359.5765096 | Z108: 439.818298 | AA108: -80.24178844 | AB108: 784.5217721 | AC108: 404.508194 | AD108: 380.0135781 | AE108: 2751.402421 | AF108: 1641.580048 | AG108: 1109.822373 | AH108: 42234.02446 | AI108: 31373.14276 | AJ108: 45201.01294 | AK108: 10860.8817 | AL108: 32682.91143 | AM108: 37768.71529 | AN108: -5085.803855 | AO108: 5775.077842 | AP108: 943.355521 | AQ108: 872.6299268 | AR108: 8928.67678 | AS108: 9418.934416 | AT108: 261.0005398 | AU108: 251.3281008 | AV108: 6120.445256 | AW108: 6735.827028 | AX108: 358.0838907 | AY108: 342.395815 | AZ108: 1090.667981 | BA108: 864.7071651 | BB108: 1554.340749 | BC108: 1370.461173 | BD108: -6510.91582 | BE108: 5775.077842 | BF108: -735.8379782 | BG108: 30082.845 | BH108: 58755.79331
A109: 2015-05-01 | B109: 9139.050995 | C109: 7088.521031 | D109: 3403.05298 | E109: 5803.297626 | F109: 1124.767905 | G109: 661.8638083 | H109: 390.9947664 | I109: 407.0071354 | J109: 482.2838288 | K109: 117.1512 | L109: 1793.934242 | M109: 1657.628933 | N109: 14352.41645 | O109: 15130.60321 | P109: 20490.45777 | Q109: 11855.344 | R109: 8635.113765 | S109: 12240.92948 | T109: 15998.76974 | U109: -3757.840257 | V109: 5413.423861 | W109: 346.7087923 | X109: 5066.715069 | Y109: 476.120276 | Z109: 504.823277 | AA109: -28.70300103 | AB109: 721.8800412 | AC109: 300.792349 | AD109: 421.0876922 | AE109: 2837.035301 | AF109: 1700.854933 | AG109: 1136.180368 | AH109: 42179.84673 | AI109: 30707.29309 | AJ109: 44205.48236 | AK109: 11472.55364 | AL109: 33249.62004 | AM109: 38121.33689 | AN109: -4871.716847 | AO109: 6600.836789 | AP109: 1417.02747 | AQ109: 758.2015144 | AR109: 8169.027615 | AS109: 8907.352698 | AT109: 252.0233334 | AU109: 318.6105694 | AV109: 5400.310624 | AW109: 5778.879845 | AX109: 203.3987449 | AY109: 309.5201225 | AZ109: 774.1818408 | BA109: 1261.518366 | BB109: 1406.362581 | BC109: 1734.18775 | BD109: -7949.848876 | BE109: 6600.836789 | BF109: -1349.012087 | BG109: 25122.72657 | BH109: 48169.81638
A110: 2015-06-01 | B110: 8255.479399 | C110: 6143.681008 | D110: 4020.282891 | E110: 5385.437425 | F110: 1581.204457 | G110: 613.896547 | H110: 422.111 | I110: 340.6276452 | J110: 413.472771 | K110: 70.50824909 | L110: 1897.187882 | M110: 1382.870619 | N110: 15919.08909 | O110: 19412.48998 | P110: 20817.73211 | Q110: 12273.93301 | R110: 8543.799106 | S110: 11755.10288 | T110: 15231.63951 | U110: -3476.536632 | V110: 5483.420009 | W110: 219.5069691 | X110: 5263.91304 | Y110: 487.8219528 | Z110: 418.3325268 | AA110: 69.48942596 | AB110: 783.2287686 | AC110: 312.8528431 | AD110: 470.3759255 | AE110: 1405.224937 | AF110: 1371.165214 | AG110: 34.05972219 | AH110: 40732.53066 | AI110: 29827.43007 | AJ110: 47636.05447 | AK110: 10905.10059 | AL110: 33753.15999 | AM110: 40062.67796 | AN110: -6309.517971 | AO110: 4595.582617 | AP110: 549.2312152 | AQ110: 752.8983833 | AR110: 8488.874476 | AS110: 7239.623435 | AT110: 337.8047938 | AU110: 520.4244902 | AV110: 5301.212744 | AW110: 5324.05915 | AX110: 278.3690782 | AY110: 343.4054476 | AZ110: 826.7777245 | BA110: 558.6797861 | BB110: 1476.267324 | BC110: 1768.888639 | BD110: -5449.526854 | BE110: 4595.582617 | BF110: -853.944237 | BG110: 29117.18335 | BH110: 49311.75239
A111: 2015-07-01 | B111: 7788.383443 | C111: 6116.13522 | D111: 4661.849705 | E111: 5862.423248 | F111: 1360.569988 | G111: 428.4739382 | H111: 552.7172383 | I111: 386.5196497 | J111: 467.3978847 | K111: 147.67 | L111: 1211.079946 | M111: 779.6997931 | N111: 12074.80567 | O111: 15620.88177 | P111: 20738.12271 | Q111: 12973.42496 | R111: 7764.69775 | S111: 12907.30994 | T111: 14851.89814 | U111: -1944.588207 | V111: 5768.804856 | W111: 271.663994 | X111: 5497.140862 | Y111: 551.7465172 | Z111: 359.8124927 | AA111: 191.9340245 | AB111: 732.4775651 | AC111: 228.6934381 | AD111: 503.784127 | AE111: 1356.20095 | AF111: 1087.352802 | AG111: 268.8481479 | AH111: 42054.66254 | AI111: 29772.84583 | AJ111: 46650.11615 | AK111: 12281.8167 | AL111: 30642.65833 | AM111: 39458.38314 | AN111: -8815.72481 | AO111: 3466.091894 | AP111: 2654.495127 | AQ111: 1710.151573 | AR111: 7902.656425 | AS111: 7712.520211 | AT111: 546.8135748 | AU111: 649.2386161 | AV111: 4806.010979 | AW111: 4798.934205 | AX111: 292.5361335 | AY111: 268.9095931 | AZ111: 1111.074281 | BA111: 839.8920509 | BB111: 1237.420897 | BC111: 1380.4211 | BD111: -4736.866081 | BE111: 3466.091894 | BF111: -1270.774187 | BG111: 30237.28306 | BH111: 55175.0808
A112: 2015-08-01 | B112: 9707.91362 | C112: 7415.735476 | D112: 2923.886487 | E112: 5534.864507 | F112: 1316.25748 | G112: 532.851566 | H112: 450.7630679 | I112: 464.7751378 | J112: 247.9812423 | K112: 136.2095539 | L112: 923.5323494 | M112: 793.5359791 | N112: 13533.84427 | O112: 14054.9742 | P112: 21929.92457 | Q112: 14817.36694 | R112: 7112.557624 | S112: 12597.82462 | T112: 15257.41206 | U112: -2659.587447 | V112: 5992.252508 | W112: 330.484559 | X112: 5661.767949 | Y112: 582.1700887 | Z112: 456.1258354 | AA112: 126.0442534 | AB112: 671.479175 | AC112: 284.34654 | AD112: 387.132635 | AE112: 1345.556953 | AF112: 1074.654025 | AG112: 270.9029279 | AH112: 43119.20791 | AI112: 32220.38997 | AJ112: 47210.34454 | AK112: 10898.81794 | AL112: 31636.70875 | AM112: 39732.59696 | AN112: -8095.888205 | AO112: 2802.929738 | AP112: 2328.768901 | AQ112: 1994.191517 | AR112: 7350.594046 | AS112: 8482.072115 | AT112: 372.7619666 | AU112: 373.7154803 | AV112: 4965.775936 | AW112: 5598.787355 | AX112: 329.9817145 | AY112: 313.8870267 | AZ112: 3154.831402 | BA112: 779.1774012 | BB112: 1153.981518 | BC112: 1604.495236 | BD112: -4565.873703 | BE112: 2802.929738 | BF112: -1762.943965 | BG112: 29791.82666 | BH112: 58546.42398
A113: 2015-09-01 | B113: 7273.754542 | C113: 7330.713133 | D113: 3166.720679 | E113: 5475.661284 | F113: 1287.209701 | G113: 360.347374 | H113: 414.9242805 | I113: 360.7362068 | J113: 215.9432966 | K113: 110.094304 | L113: 927.7547165 | M113: 773.9286817 | N113: 14043.59497 | O113: 14748.43609 | P113: 22182.57175 | Q113: 15430.52624 | R113: 6752.045512 | S113: 12804.67926 | T113: 15271.44397 | U113: -2466.764712 | V113: 5898.21255 | W113: 204.101797 | X113: 5694.110753 | Y113: 461.6313813 | Z113: 336.8879387 | AA113: 124.7434425 | AB113: 712.928022 | AC113: 315.222619 | AD113: 397.705403 | AE113: 1347.157516 | AF113: 1036.550709 | AG113: 310.606807 | AH113: 43407.18048 | AI113: 32594.73328 | AJ113: 49792.70962 | AK113: 10812.44721 | AL113: 30237.81766 | AM113: 38556.69669 | AN113: -8318.879031 | AO113: 2493.568174 | AP113: 2186.61838 | AQ113: 1259.536159 | AR113: 7094.526504 | AS113: 8001.453119 | AT113: 314.7211279 | AU113: 350.9264817 | AV113: 4594.709657 | AW113: 4258.17285 | AX113: 272.6212347 | AY113: 223.1565657 | AZ113: 2233.218486 | BA113: 1773.736859 | BB113: 1490.58369 | BC113: 1276.029153 | BD113: -3824.3967 | BE113: 2493.568174 | BF113: -1330.828526 | BG113: 31571.28486 | BH113: 56675.09396
A114: 2015-10-01 | B114: 6890.049293 | C114: 6157.696936 | D114: 2712.764951 | E114: 6791.736617 | F114: 1164.379139 | G114: 312.784969 | H114: 413.3560247 | I114: 446.6768509 | J114: 331.3145862 | K114: 175.4878866 | L114: 945.3855872 | M114: 1137.142672 | N114: 14881.89663 | O114: 15530.05604 | P114: 21659.50758 | Q114: 14899.20001 | R114: 6760.307569 | S114: 12524.15557 | T114: 16615.33008 | U114: -4091.174509 | V114: 5870.248062 | W114: 169.211646 | X114: 5701.036416 | Y114: 355.8744338 | Z114: 328.7406702 | AA114: 27.1337636 | AB114: 575.4240053 | AC114: 261.5447445 | AD114: 313.8792608 | AE114: 1228.496002 | AF114: 1116.037446 | AG114: 112.4585562 | AH114: 42213.70566 | AI114: 33390.0646 | AJ114: 51686.49736 | AK114: 8823.641057 | AL114: 31472.8114 | AM114: 38939.19766 | AN114: -7466.386266 | AO114: 1357.254792 | AP114: 1605.423354 | AQ114: 1064.844832 | AR114: 7505.40854 | AS114: 7377.077684 | AT114: 322.3721364 | AU114: 344.6683965 | AV114: 4957.065254 | AW114: 5331.74021 | AX114: 192.0890722 | AY114: 176.952076 | AZ114: 1351.902268 | BA114: 1033.633176 | BB114: 1192.288193 | BC114: 1183.606576 | BD114: -3132.892881 | BE114: 1357.254792 | BF114: -1775.63809 | BG114: 31788.30417 | BH114: 51470.52628
A115: 2015-11-01 | B115: 8074.272691 | C115: 6573.355498 | D115: 2682.322233 | E115: 4701.74017 | F115: 1029.11405 | G115: 233.1998888 | H115: 524.4481768 | I115: 690.0556836 | J115: 295.6487967 | K115: 91.65010074 | L115: 916.0855704 | M115: 801.6280832 | N115: 11957.09213 | O115: 15394.7122 | P115: 21819.27033 | Q115: 15250.85992 | R115: 6568.410413 | S115: 12556.401 | T115: 15193.98012 | U115: -2637.579113 | V115: 6086.071426 | W115: 215.3257698 | X115: 5870.745656 | Y115: 489.6709 | Z115: 520.1638516 | AA115: -30.49295155 | AB115: 678.7395036 | AC115: 251.5892631 | AD115: 427.1502405 | AE115: 1178.798713 | AF115: 947.9249342 | AG115: 230.8737791 | AH115: 42808.95188 | AI115: 32379.84385 | AJ115: 53210.72953 | AK115: 10429.10802 | AL115: 30834.53297 | AM115: 40180.419 | AN115: -9345.886022 | AO115: 1083.222003 | AP115: 1610.86739 | AQ115: 654.43094 | AR115: 6226.109176 | AS115: 7046.108413 | AT115: 404.5642774 | AU115: 494.1778695 | AV115: 4271.22466 | AW115: 4362.130721 | AX115: 188.3429591 | AY115: 299.7697933 | AZ115: 1314.366936 | BA115: 714.0146815 | BB115: 1021.750912 | BC115: 1045.544481 | BD115: -2716.840889 | BE115: 1083.222003 | BF115: -1633.618886 | BG115: 30144.83397 | BH115: 48206.5306
A116: 2015-12-01 | B116: 7758.581813 | C116: 5732.163561 | D116: 1869.794522 | E116: 4976.838294 | F116: 945.543378 | G116: 399.383318 | H116: 505.6635209 | I116: 408.5428728 | J116: 484.580852 | K116: 173.8341119 | L116: 878.6370121 | M116: 942.5775804 | N116: 12383.57913 | O116: 14906.32606 | P116: 20777.37815 | Q116: 14431.18107 | R116: 6346.19708 | S116: 11830.9027 | T116: 14467.2963 | U116: -2636.393592 | V116: 6282.86126 | W116: 330.9826648 | X116: 5951.878595 | Y116: 399.8514209 | Z116: 330.4994369 | AA116: 69.35198406 | AB116: 570.5301364 | AC116: 185.755899 | AD116: 384.7742374 | AE116: 1118.572194 | AF116: 1041.170802 | AG116: 77.4013922 | AH116: 40980.09586 | AI116: 30786.88617 | AJ116: 47162.81921 | AK116: 10193.2097 | AL116: 29321.02977 | AM116: 37236.84832 | AN116: -7915.818549 | AO116: 2277.391148 | AP116: 1439.936156 | AQ116: 2112.910382 | AR116: 6675.194044 | AS116: 7313.693562 | AT116: 219.4533519 | AU116: 391.7937187 | AV116: 3111.050366 | AW116: 3438.449187 | AX116: 381.4920961 | AY116: 318.9438552 | AZ116: 1839.248255 | BA116: 1546.823807 | BB116: 1646.377835 | BC116: 1782.76087 | BD116: -4306.154404 | BE116: 2277.391148 | BF116: -2028.763255 | BG116: 25829.5363 | BH116: 44811.20731
A117: 2016-01-01 | B117: 8541.747083 | C117: 5657.721151 | D117: 2061.543591 | E117: 4364.939359 | F117: 1713.638289 | G117: 781.4994221 | H117: 250.2194038 | I117: 213.7588986 | J117: 458.1984067 | K117: 124.4484272 | L117: 1214.260711 | M117: 832.4984724 | N117: 12504.53816 | O117: 17610.0997 | P117: 21309.02602 | Q117: 13855.18412 | R117: 7453.841902 | S117: 12104.85321 | T117: 14161.37234 | U117: -2056.51913 | V117: 6405.863904 | W117: 283.1690554 | X117: 6122.694849 | Y117: 419.8074519 | Z117: 354.6237295 | AA117: 65.18372236 | AB117: 622.5679602 | AC117: 219.7848984 | AD117: 402.7830618 | AE117: 1187.112918 | AF117: 1111.827677 | AG117: 75.28524082 | AH117: 42049.23147 | AI117: 29985.96182 | AJ117: 48900.07357 | AK117: 12063.26964 | AL117: 30427.88261 | AM117: 40138.33342 | AN117: -9710.450806 | AO117: 2352.818839 | AP117: 2063.480587 | AQ117: 2279.8574 | AR117: 5557.532875 | AS117: 5789.205613 | AT117: 303.5151042 | AU117: 534.7976073 | AV117: 2531.73277 | AW117: 2507.79413 | AX117: 380.4876485 | AY117: 271.54669 | AZ117: 2043.53208 | BA117: 389.3012527 | BB117: 1019.886038 | BC117: 1077.733156 | BD117: -3679.80703 | BE117: 2352.818839 | BF117: -1326.988191 | BG117: 25023.99474 | BH117: 47426.03007
A118: 2016-02-01 | B118: 7238.995965 | C118: 5735.800403 | D118: 1681.89071 | E118: 5165.575319 | F118: 1434.806507 | G118: 560.8338855 | H118: 273.6301385 | I118: 320.3139222 | J118: 304.753444 | K118: 185.6798204 | L118: 1074.221393 | M118: 1233.211691 | N118: 14162.4682 | O118: 14762.73392 | P118: 21254.62394 | Q118: 12848.61333 | R118: 8406.01061 | S118: 11754.07139 | T118: 15074.47088 | U118: -3320.399497 | V118: 6367.016608 | W118: 391.5185394 | X118: 5975.498069 | Y118: 454.8963392 | Z118: 467.1843537 | AA118: -12.28801456 | AB118: 581.0288643 | AC118: 252.78694 | AD118: 328.2419242 | AE118: 1094.034814 | AF118: 1321.468403 | AG118: -227.4335898 | AH118: 41505.67196 | AI118: 30356.04245 | AJ118: 48902.41949 | AK118: 11149.6295 | AL118: 30808.235 | AM118: 38498.34618 | AN118: -7690.111173 | AO118: 3459.518329 | AP118: 1418.792663 | AQ118: 2097.68348 | AR118: 4873.556151 | AS118: 5197.634985 | AT118: 369.5038801 | AU118: 372.9288121 | AV118: 4395.902668 | AW118: 4705.432188 | AX118: 422.0659529 | AY118: 273.9668933 | AZ118: 459.6364219 | BA118: 547.3292697 | BB118: 1119.843693 | BC118: 975.1335184 | BD118: -4842.111531 | BE118: 3459.518329 | BF118: -1382.593203 | BG118: 26490.87581 | BH118: 50013.48879
A119: 2016-03-01 | B119: 10449.67339 | C119: 7003.255062 | D119: 2021.294252 | E119: 6015.944939 | F119: 1236.597632 | G119: 463.740256 | H119: 348.638177 | I119: 465.1595256 | J119: 288.4679682 | K119: 194.4473196 | L119: 1341.189758 | M119: 1580.253828 | N119: 13656.32119 | O119: 14342.80424 | P119: 22986.23757 | Q119: 13367.42174 | R119: 9618.815828 | S119: 11375.59086 | T119: 15668.31728 | U119: -4292.726421 | V119: 6245.861677 | W119: 321.9759324 | X119: 5923.885745 | Y119: 428.3069486 | Z119: 542.2671521 | AA119: -113.9602035 | AB119: 531.748081 | AC119: 282.0050298 | AD119: 249.7430511 | AE119: 1236.409051 | AF119: 1673.109906 | AG119: -436.7008553 | AH119: 42804.15419 | AI119: 31855.09705 | AJ119: 48625.77896 | AK119: 10949.05714 | AL119: 28728.68386 | AM119: 35342.98532 | AN119: -6614.301461 | AO119: 4334.755682 | AP119: 1192.618903 | AQ119: 2404.940539 | AR119: 5790.137679 | AS119: 5435.309893 | AT119: 275.0221515 | AU119: 333.9262134 | AV119: 4460.172125 | AW119: 4939.159105 | AX119: 337.5752984 | AY119: 158.255488 | AZ119: 765.8296231 | BA119: 524.5771034 | BB119: 1852.983244 | BC119: 1344.595956 | BD119: -5356.503295 | BE119: 4334.755682 | BF119: -1021.747612 | BG119: 27871.02967 | BH119: 51136.66806
A120: 2016-04-01 | B120: 7378.832938 | C120: 5428.892955 | D120: 2592.861142 | E120: 4728.792346 | F120: 1284.607024 | G120: 393.5993688 | H120: 344.8136725 | I120: 479.9249167 | J120: 221.421225 | K120: 160.427005 | L120: 1002.749412 | M120: 1026.447052 | N120: 11089.6566 | O120: 12932.23066 | P120: 22368.14847 | Q120: 12963.37727 | R120: 9404.771199 | S120: 11702.13201 | T120: 15431.57085 | U120: -3729.438847 | V120: 6259.929644 | W120: 252.8606425 | X120: 6007.069002 | Y120: 411.3836145 | Z120: 627.8866854 | AA120: -216.5030709 | AB120: 496.0107085 | AC120: 252.5126058 | AD120: 243.4981027 | AE120: 1127.372162 | AF120: 1641.921837 | AG120: -514.5496752 | AH120: 42364.97661 | AI120: 31170.1299 | AJ120: 45776.08262 | AK120: 11194.84671 | AL120: 27879.42808 | AM120: 35303.61944 | AN120: -7424.191359 | AO120: 3770.655352 | AP120: 1035.108344 | AQ120: 1117.429768 | AR120: 6323.676821 | AS120: 6325.177537 | AT120: 332.3682071 | AU120: 387.2957308 | AV120: 3113.788626 | AW120: 3291.877294 | AX120: 216.4877511 | AY120: 126.9210019 | AZ120: 691.5029253 | BA120: 824.4636031 | BB120: 1632.321778 | BC120: 1027.311607 | BD120: -5040.242988 | BE120: 3770.655352 | BF120: -1269.587636 | BG120: 22409.62075 | BH120: 45920.25116
A121: 2016-05-01 | B121: 9568.153676 | C121: 7832.263319 | D121: 2872.343286 | E121: 4126.578192 | F121: 1286.489209 | G121: 379.5932518 | H121: 425.6004228 | I121: 312.9393964 | J121: 363.4087313 | K121: 78.46213051 | L121: 1095.017943 | M121: 1013.580265 | N121: 10742.39824 | O121: 16128.59815 | P121: 21844.43026 | Q121: 13398.73756 | R121: 8445.692697 | S121: 12193.50713 | T121: 14177.11256 | U121: -1983.605435 | V121: 6480.9193 | W121: 351.1715551 | X121: 6129.747745 | Y121: 465.4931613 | Z121: 530.671047 | AA121: -65.17788569 | AB121: 635.3280253 | AC121: 228.4774375 | AD121: 406.8505878 | AE121: 1149.315295 | AF121: 1435.913182 | AG121: -286.5978865 | AH121: 42768.99317 | AI121: 30122.08334 | AJ121: 47225.7926 | AK121: 12646.90982 | AL121: 26815.03458 | AM121: 36348.29444 | AN121: -9533.25986 | AO121: 3113.649963 | AP121: 1465.92709 | AQ121: 729.8134293 | AR121: 5935.262732 | AS121: 6031.7583 | AT121: 353.171974 | AU121: 353.5627991 | AV121: 2998.173098 | AW121: 2644.255757 | AX121: 204.2026605 | AY121: 112.6396017 | AZ121: 733.5157238 | BA121: 725.3117584 | BB121: 1119.04442 | BC121: 1532.539769 | BD121: -4571.838919 | BE121: 3113.649963 | BF121: -1458.188956 | BG121: 27644.91783 | BH121: 44880.70564
A122: 2016-06-01 | B122: 6247.148186 | C122: 6832.103317 | D122: 2250.780135 | E122: 5441.082197 | F122: 1510.53658 | G122: 616.0891764 | H122: 413.3101368 | I122: 679.1086761 | J122: 293.3886067 | K122: 91.0209927 | L122: 1027.380483 | M122: 1166.990248 | N122: 13935.4464 | O122: 13575.33194 | P122: 20951.51749 | Q122: 13227.58314 | R122: 7723.934343 | S122: 11826.95445 | T122: 14628.5997 | U122: -2801.64525 | V122: 6496.845846 | W122: 418.8060645 | X122: 6078.039782 | Y122: 386.5846824 | Z122: 671.0913471 | AA122: -284.5066648 | AB122: 668.8740265 | AC122: 220.0240084 | AD122: 448.8500181 | AE122: 1072.091842 | AF122: 1448.11202 | AG122: -376.0201781 | AH122: 41402.86833 | AI122: 30614.21628 | AJ122: 47193.67092 | AK122: 10788.65205 | AL122: 24837.1626 | AM122: 31687.6136 | AN122: -6850.451 | AO122: 3938.20105 | AP122: 1393.831183 | AQ122: 1038.883961 | AR122: 5938.739097 | AS122: 6687.154931 | AT122: 575.0908415 | AU122: 550.5893164 | AV122: 2058.632282 | AW122: 2748.98788 | AX122: 251.0387814 | AY122: 171.2032285 | AZ122: 866.9207864 | BA122: 854.3578982 | BB122: 1212.608611 | BC122: 1343.72258 | BD122: -5456.195795 | BE122: 3938.20105 | BF122: -1517.994745 | BG122: 25713.34175 | BH122: 44583.15452
A123: 2016-07-01 | B123: 8293.810074 | C123: 7912.640584 | D123: 2469.103632 | E123: 5207.055217 | F123: 1434.888315 | G123: 366.089628 | H123: 239.5045916 | I123: 311.4925161 | J123: 255.7003887 | K123: 128.286464 | L123: 1081.465153 | M123: 1003.537486 | N123: 12188.37341 | O123: 13670.77788 | P123: 21190.40003 | Q123: 14138.18017 | R123: 7052.219862 | S123: 11457.78089 | T123: 14930.84194 | U123: -3473.061048 | V123: 6451.18574 | W123: 203.7132527 | X123: 6247.472487 | Y123: 344.3901157 | Z123: 580.8413181 | AA123: -236.4512024 | AB123: 712.3255057 | AC123: 238.5046288 | AD123: 473.8208769 | AE123: 1227.33449 | AF123: 1336.373002 | AG123: -109.0385118 | AH123: 41383.41677 | AI123: 31428.45431 | AJ123: 47254.63531 | AK123: 9954.962463 | AL123: 24956.76762 | AM123: 32691.14976 | AN123: -7734.382132 | AO123: 2220.580331 | AP123: 2834.053308 | AQ123: 715.724332 | AR123: 5004.4752 | AS123: 6345.609563 | AT123: 380.1068648 | AU123: 475.1055689 | AV123: 2030.818227 | AW123: 2415.570837 | AX123: 228.517007 | AY123: 213.5058597 | AZ123: 566.5001303 | BA123: 860.1507529 | BB123: 2286.020606 | BC123: 1493.934677 | BD123: -4780.528991 | BE123: 2220.580331 | BF123: -2559.94866 | BG123: 23862.88434 | BH123: 40105.6147
A124: 2016-08-01 | B124: 9417.815681 | C124: 8520.089871 | D124: 2539.46751 | E124: 4285.325017 | F124: 1609.298197 | G124: 551.6039109 | H124: 483.4784507 | I124: 343.38925 | J124: 413.5707439 | K124: 120.9470951 | L124: 1234.035228 | M124: 923.8927806 | N124: 11019.20245 | O124: 14329.63427 | P124: 21303.45794 | Q124: 14326.17582 | R124: 6977.282117 | S124: 11665.20824 | T124: 14693.90622 | U124: -3028.697986 | V124: 6703.463908 | W124: 245.0336528 | X124: 6458.430255 | Y124: 427.0973287 | Z124: 489.4091266 | AA124: -62.31179792 | AB124: 899.3856664 | AC124: 268.5832097 | AD124: 630.8024567 | AE124: 1559.491783 | AF124: 1265.126239 | AG124: 294.365545 | AH124: 42558.10487 | AI124: 31288.23427 | AJ124: 50822.81864 | AK124: 11269.87059 | AL124: 24104.22988 | AM124: 33687.75933 | AN124: -9583.529454 | AO124: 1686.341136 | AP124: 1752.066145 | AQ124: 992.142862 | AR124: 5844.876114 | AS124: 5918.950861 | AT124: 443.1276273 | AU124: 472.7372834 | AV124: 2881.188762 | AW124: 2994.355754 | AX124: 203.3096131 | AY124: 228.1186662 | AZ124: 746.9062139 | BA124: 596.1272001 | BB124: 1430.100923 | BC124: 1277.728003 | BD124: -3857.968832 | BE124: 1686.341136 | BF124: -2171.627696 | BG124: 27328.97857 | BH124: 45023.14945
A125: 2016-09-01 | B125: 7222.979353 | C125: 7861.523724 | D125: 2107.763293 | E125: 5201.138133 | F125: 1562.112254 | G125: 473.0631843 | H125: 336.5121936 | I125: 394.7615661 | J125: 293.1380743 | K125: 174.71351 | L125: 949.7036101 | M125: 1048.857843 | N125: 13751.70785 | O125: 16153.30121 | P125: 20464.09373 | Q125: 13661.93809 | R125: 6802.155632 | S125: 11863.44913 | T125: 14814.72117 | U125: -2951.272043 | V125: 6816.732402 | W125: 238.0977462 | X125: 6578.634656 | Y125: 387.8685916 | Z125: 397.7185153 | AA125: -9.849923712 | AB125: 851.3885223 | AC125: 347.8548 | AD125: 503.5337223 | AE125: 1364.601336 | AF125: 1204.982998 | AG125: 159.6183384 | AH125: 41748.13371 | AI125: 30665.31332 | AJ125: 53614.21655 | AK125: 11082.82038 | AL125: 24885.88358 | AM125: 34184.08976 | AN125: -9298.206184 | AO125: 1784.614198 | AP125: 1351.05722 | AQ125: 598.9048584 | AR125: 5589.568395 | AS125: 6002.282404 | AT125: 284.7394781 | AU125: 471.9575698 | AV125: 2581.010362 | AW125: 2796.443098 | AX125: 179.5280909 | AY125: 160.2202523 | AZ125: 798.7124911 | BA125: 654.3730142 | BB125: 1263.750913 | BC125: 1769.314809 | BD125: -4681.671872 | BE125: 1784.614198 | BF125: -2897.057675 | BG125: 28440.21829 | BH125: 43603.17713
A126: 2016-10-01 | B126: 8188.389105 | C126: 6920.229245 | D126: 2107.178681 | E126: 5043.458196 | F126: 1252.317342 | G126: 416.7592792 | H126: 256.7718171 | I126: 341.8779789 | J126: 283.7776466 | K126: 176.7795 | L126: 661.2272332 | M126: 947.2157864 | N126: 12179.91511 | O126: 10796.24068 | P126: 20806.13841 | Q126: 12692.33152 | R126: 8113.806893 | S126: 11372.59248 | T126: 15315.67078 | U126: -3943.078296 | V126: 6964.621295 | W126: 329.7529659 | X126: 6634.868329 | Y126: 357.4339739 | Z126: 415.4719084 | AA126: -58.03793456 | AB126: 826.0241238 | AC126: 355.1448 | AD126: 470.8793238 | AE126: 1117.599908 | AF126: 1285.796695 | AG126: -168.1967875 | AH126: 41444.41019 | AI126: 30394.16866 | AJ126: 55816.09167 | AK126: 11050.24153 | AL126: 24698.43933 | AM126: 32493.22496 | AN126: -7794.785633 | AO126: 3255.455896 | AP126: 904.726491 | AQ126: 1311.388401 | AR126: 5537.791268 | AS126: 6069.924052 | AT126: 254.1183474 | AU126: 414.8196345 | AV126: 2165.331233 | AW126: 2508.740801 | AX126: 164.1545824 | AY126: 158.3272041 | AZ126: 851.6202875 | BA126: 599.5804592 | BB126: 989.2442442 | BC126: 939.5452117 | BD126: -5738.9824 | BE126: 3255.455896 | BF126: -2483.526504 | BG126: 25233.34743 | BH126: 40072.68586
A127: 2016-11-01 | B127: 7952.758112 | C127: 7462.312687 | D127: 2719.341858 | E127: 5760.0755 | F127: 1549.540478 | G127: 441.955618 | H127: 416.9194538 | I127: 345.9538017 | J127: 259.7603031 | K127: 179.6839884 | L127: 1133.083564 | M127: 1007.47865 | N127: 13232.38119 | O127: 13482.79586 | P127: 21086.27657 | Q127: 12726.53941 | R127: 8359.737152 | S127: 11948.60348 | T127: 16076.49525 | U127: -4127.891777 | V127: 7145.293646 | W127: 287.4946519 | X127: 6857.798994 | Y127: 413.1132081 | Z127: 400.2143889 | AA127: 12.89881928 | AB127: 830.5453768 | AC127: 337.6149884 | AD127: 492.9303884 | AE127: 1281.51435 | AF127: 1318.164933 | AG127: -36.65058237 | AH127: 42705.34662 | AI127: 31146.52363 | AJ127: 64411.67773 | AK127: 11558.82299 | AL127: 26670.50792 | AM127: 35064.42447 | AN127: -8393.916545 | AO127: 3164.906449 | AP127: 1697.917865 | AQ127: 2171.318347 | AR127: 6761.326995 | AS127: 6496.726535 | AT127: 358.5928088 | AU127: 526.5095226 | AV127: 3192.723352 | AW127: 3157.653541 | AX127: 301.3655135 | AY127: 146.5868148 | AZ127: 1220.449883 | BA127: 685.2581594 | BB127: 1215.418224 | BC127: 1509.718031 | BD127: -5455.783628 | BE127: 3164.906449 | BF127: -2290.877179 | BG127: 30452.9529 | BH127: 47914.2985
A128: 2016-12-01 | B128: 7619.319736 | C128: 6646.335174 | D128: 1932.650065 | E128: 6075.534673 | F128: 1375.834479 | G128: 477.4666311 | H128: 398.044187 | I128: 415.6211741 | J128: 233.3321309 | K128: 125.2858462 | L128: 1284.901752 | M128: 1437.928888 | N128: 12001.47324 | O128: 12036.3782 | P128: 20394.21834 | Q128: 12106.78178 | R128: 8287.436561 | S128: 11554.62794 | T128: 15522.26092 | U128: -3967.632979 | V128: 7062.228321 | W128: 222.0513205 | X128: 6840.177 | Y128: 368.7420604 | Z128: 361.2354806 | AA128: 7.50657975 | AB128: 816.1547074 | AC128: 320.3267146 | AD128: 495.8279928 | AE128: 1294.430049 | AF128: 1446.732158 | AG128: -152.3021091 | AH128: 41490.40142 | AI128: 29979.38837 | AJ128: 63110.31766 | AK128: 11511.01305 | AL128: 23914.54744 | AM128: 32480.50016 | AN128: -8565.95272 | AO128: 2945.060326 | AP128: 1658.864605 | AQ128: 1229.690773 | AR128: 7458.656277 | AS128: 8253.556137 | AT128: 322.5966875 | AU128: 334.0194881 | AV128: 3100.887616 | AW128: 3144.95371 | AX128: 197.0072693 | AY128: 111.2258692 | AZ128: 1765.82831 | BA128: 1058.231525 | BB128: 1540.926974 | BC128: 1490.896966 | BD128: -4559.78777 | BE128: 2945.060326 | BF128: -1614.727444 | BG128: 27594.79182 | BH128: 41127.31113
A129: 2017-01-01 | B129: 6971.664977 | C129: 7382.326872 | D129: 2297.345869 | E129: 5802.56359 | F129: 1658.769133 | G129: 323.547547 | H129: 210.1175402 | I129: 468.4233914 | J129: 342.9211446 | K129: 167.4095 | L129: 852.5239889 | M129: 1024.975496 | N129: 12930.59921 | O129: 11333.19124 | P129: 20119.72988 | Q129: 12136.34377 | R129: 7983.386113 | S129: 12052.67929 | T129: 15343.12441 | U129: -3290.445118 | V129: 7174.675335 | W129: 225.6605572 | X129: 6949.014778 | Y129: 309.5804243 | Z129: 558.8549402 | AA129: -249.274516 | AB129: 743.7494665 | AC129: 280.2304782 | AD129: 463.5189883 | AE129: 1136.300225 | AF129: 1547.337439 | AG129: -411.0372134 | AH129: 41536.71462 | AI129: 30091.55159 | AJ129: 59638.59512 | AK129: 11445.16303 | AL129: 26219.29679 | AM129: 33163.71462 | AN129: -6944.417827 | AO129: 4500.745205 | AP129: 1343.024531 | AQ129: 952.963673 | AR129: 5934.221219 | AS129: 7188.024634 | AT129: 256.1487512 | AU129: 315.789539 | AV129: 2868.328318 | AW129: 3330.296628 | AX129: 132.6061339 | AY129: 256.5369548 | AZ129: 990.0833514 | BA129: 967.5805766 | BB129: 1384.615654 | BC129: 1225.697629 | BD129: -5863.657856 | BE129: 4500.745205 | BF129: -1362.91265 | BG129: 25843.69248 | BH129: 38925.70565
A130: 2017-02-01 | B130: 6040.990477 | C130: 5259.33307 | D130: 1538.117735 | E130: 4133.458436 | F130: 1357.171739 | G130: 261.5411992 | H130: 364.5500418 | I130: 393.6594859 | J130: 262.4964728 | K130: 71.18537263 | L130: 895.8843091 | M130: 848.9462883 | N130: 11162.58501 | O130: 11009.14122 | P130: 19887.07657 | Q130: 11527.20143 | R130: 8359.875139 | S130: 12033.15366 | T130: 15289.69988 | U130: -3256.54622 | V130: 7073.660105 | W130: 226.3625538 | X130: 6847.297552 | Y130: 305.2420347 | Z130: 502.9626964 | AA130: -197.7206618 | AB130: 810.8365393 | AC130: 283.3890116 | AD130: 527.4475277 | AE130: 1075.951233 | AF130: 1327.857098 | AG130: -251.9058653 | AH130: 41185.92014 | AI130: 29157.47267 | AJ130: 58800.05114 | AK130: 12028.44747 | AL130: 26603.04659 | AM130: 33141.09177 | AN130: -6538.045179 | AO130: 5490.402292 | AP130: 522.8422492 | AQ130: 1595.595587 | AR130: 5202.296339 | AS130: 5147.683506 | AT130: 277.2005335 | AU130: 284.8198438 | AV130: 1392.8381 | AW130: 1655.895704 | AX130: 174.6166605 | AY130: 197.8277858 | AZ130: 719.4379594 | BA130: 742.3368355 | BB130: 1063.484444 | BC130: 1127.112221 | BD130: -6961.430024 | BE130: 5490.402292 | BF130: -1471.027733 | BG130: 21423.86223 | BH130: 34780.74175
A131: 2017-03-01 | B131: 6574.443205 | C131: 6475.914521 | D131: 2300.24758 | E131: 5323.330398 | F131: 1739.637924 | G131: 869.5063936 | H131: 620.190018 | I131: 314.9828308 | J131: 326.0326524 | K131: 70.65608292 | L131: 1394.60386 | M131: 1057.028372 | N131: 14826.52326 | O131: 17159.53158 | P131: 19742.24688 | Q131: 11233.99608 | R131: 8508.250794 | S131: 11862.25416 | T131: 15001.01267 | U131: -3138.758511 | V131: 7261.696717 | W131: 405.2689294 | X131: 6856.427788 | Y131: 472.4743995 | Z131: 391.1537255 | AA131: 81.32067405 | AB131: 935.8803602 | AC131: 283.121595 | AD131: 652.7587652 | AE131: 1371.967154 | AF131: 1232.536024 | AG131: 139.4311296 | AH131: 41646.51967 | AI131: 28547.08903 | AJ131: 60810.7294 | AK131: 13099.43064 | AL131: 27873.829 | AM131: 37004.78045 | AN131: -9130.951444 | AO131: 3968.479196 | AP131: 1328.960444 | AQ131: 1156.444432 | AR131: 6595.816993 | AS131: 6879.404806 | AT131: 597.273572 | AU131: 686.6107311 | AV131: 3984.94525 | AW131: 3923.446142 | AX131: 160.0259327 | AY131: 220.6042132 | AZ131: 1332.769175 | BA131: 1072.476148 | BB131: 2292.314213 | BC131: 1771.259425 | BD131: -6498.181061 | BE131: 3968.479196 | BF131: -2529.701865 | BG131: 30040.77554 | BH131: 51569.4629
A132: 2017-04-01 | B132: 5647.290065 | C132: 5508.010012 | D132: 2300.58573 | E132: 4766.364555 | F132: 1356.663257 | G132: 218.5675172 | H132: 389.0187003 | I132: 318.7510712 | J132: 282.4470855 | K132: 76.06625673 | L132: 1002.827651 | M132: 913.281242 | N132: 11184.03559 | O132: 13875.58269 | P132: 18545.86294 | Q132: 10109.34933 | R132: 8436.513605 | S132: 12223.31154 | T132: 14576.55869 | U132: -2353.247148 | V132: 7237.922399 | W132: 216.5850271 | X132: 7021.337372 | Y132: 511.0271934 | Z132: 389.3653637 | AA132: 121.6618297 | AB132: 778.610355 | AC132: 120.0403888 | AD132: 658.5699661 | AE132: 1336.238373 | AF132: 1141.745546 | AG132: 194.4928276 | AH132: 40632.9728 | AI132: 26553.64435 | AJ132: 62144.39604 | AK132: 14079.32845 | AL132: 26997.48782 | AM132: 37758.83204 | AN132: -10761.34422 | AO132: 3317.98423 | AP132: 806.2142207 | AQ132: 900.9063568 | AR132: 5859.710659 | AS132: 5391.576781 | AT132: 259.4957125 | AU132: 310.0861086 | AV132: 3123.818812 | AW132: 3029.8866 | AX132: 207.8557919 | AY132: 189.6871768 | AZ132: 919.8819261 | BA132: 650.3025683 | BB132: 1589.650993 | BC132: 1111.761929 | BD132: -5140.386408 | BE132: 3317.98423 | BF132: -1822.402177 | BG132: 27053.68966 | BH132: 39574.80993
A133: 2017-05-01 | B133: 7609.41634 | C133: 6775.253507 | D133: 3366.804793 | E133: 4576.008172 | F133: 1769.47604 | G133: 390.0950655 | H133: 597.5490216 | I133: 318.0558333 | J133: 329.3957473 | K133: 94.44293328 | L133: 1300.335439 | M133: 857.3414668 | N133: 16123.71256 | O133: 18010.03626 | P133: 19329.26551 | Q133: 10554.1116 | R133: 8775.153911 | S133: 13294.03148 | T133: 14342.37688 | U133: -1048.345397 | V133: 7408.173582 | W133: 279.0286643 | X133: 7129.144918 | Y133: 720.3490743 | Z133: 360.2128638 | AA133: 360.1362105 | AB133: 922.0917627 | AC133: 136.4817201 | AD133: 785.6100426 | AE133: 1572.152557 | AF133: 1036.636476 | AG133: 535.5160813 | AH133: 43246.06397 | AI133: 26708.84821 | AJ133: 68108.57843 | AK133: 16537.21577 | AL133: 29669.53795 | AM133: 41610.81784 | AN133: -11941.27989 | AO133: 4595.935877 | AP133: 646.1218694 | AQ133: 947.7337175 | AR133: 6279.168806 | AS133: 6705.719953 | AT133: 364.7778479 | AU133: 487.9898064 | AV133: 4297.412635 | AW133: 4128.538257 | AX133: 178.1024465 | AY133: 389.604757 | AZ133: 1233.86652 | BA133: 1556.941525 | BB133: 1560.588895 | BC133: 1761.981911 | BD133: -6751.324799 | BE133: 4595.935877 | BF133: -2155.388922 | BG133: 33024.65254 | BH133: 53139.49916
A134: 2017-06-01 | B134: 6749.792314 | C134: 6162.133327 | D134: 1921.878676 | E134: 4739.883026 | F134: 1529.89888 | G134: 343.3670006 | H134: 308.336187 | I134: 378.4751773 | J134: 377.9946896 | K134: 112.984167 | L134: 1148.381847 | M134: 1142.976199 | N134: 17064.81637 | O134: 16736.5041 | P134: 20124.35022 | Q134: 10422.82083 | R134: 9701.529392 | S134: 13221.76595 | T134: 13813.96547 | U134: -592.199518 | V134: 7323.617041 | W134: 227.1489229 | X134: 7096.468118 | Y134: 665.1288414 | Z134: 364.6842377 | AA134: 300.4446036 | AB134: 1076.131324 | AC134: 198.3624078 | AD134: 877.7689158 | AE134: 1457.221741 | AF134: 1038.506359 | AG134: 418.7153819 | AH134: 43868.21512 | AI134: 26065.48823 | AJ134: 66323.0777 | AK134: 17802.72689 | AL134: 29952.87374 | AM134: 41170.40388 | AN134: -11217.53014 | AO134: 6585.196754 | AP134: 1277.221533 | AQ134: 1148.204461 | AR134: 5796.04287 | AS134: 6870.364221 | AT134: 373.8723902 | AU134: 289.5675548 | AV134: 3050.613236 | AW134: 3375.447423 | AX134: 136.7412112 | AY134: 398.9315649 | AZ134: 1367.535669 | BA134: 1832.398925 | BB134: 2711.038191 | BC134: 2155.761032 | BD134: -8723.891801 | BE134: 6585.196754 | BF134: -2138.695047 | BG134: 31921.95622 | BH134: 48198.50356
A135: 2017-07-01 | B135: 5600.111122 | C135: 4992.326559 | D135: 1902.983517 | E135: 5319.254509 | F135: 1524.085792 | G135: 276.648562 | H135: 409.5133582 | I135: 676.2701321 | J135: 378.0908083 | K135: 114.6555767 | L135: 931.480136 | M135: 1095.284874 | N135: 15107.23836 | O135: 15999.70023 | P135: 21634.43781 | Q135: 11175.74131 | R135: 10458.6965 | S135: 13142.19722 | T135: 14903.91761 | U135: -1761.720389 | V135: 7426.172817 | W135: 215.0952543 | X135: 7211.077563 | Y135: 612.4081153 | Z135: 556.3693559 | AA135: 56.03875941 | AB135: 1121.828738 | AC135: 223.9099946 | AD135: 897.9187436 | AE135: 1592.911443 | AF135: 1419.087293 | AG135: 173.8241509 | AH135: 45529.95614 | AI135: 28494.12081 | AJ135: 73750.05102 | AK135: 17035.83533 | AL135: 30440.72335 | AM135: 38361.07355 | AN135: -7920.350203 | AO135: 9115.485127 | AP135: 852.2516941 | AQ135: 2214.10067 | AR135: 5068.438119 | AS135: 5081.387506 | AT135: 210.6628363 | AU135: 261.1042285 | AV135: 2817.446943 | AW135: 3137.364541 | AX135: 151.4648191 | AY135: 352.0022395 | AZ135: 889.812157 | BA135: 857.2830834 | BB135: 2277.18166 | BC135: 1893.226514 | BD135: -10875.66652 | BE135: 9115.485127 | BF135: -1760.181395 | BG135: 30812.53869 | BH135: 43212.12476
A136: 2017-08-01 | B136: 6476.979315 | C136: 6367.295164 | D136: 2027.480953 | E136: 5798.291187 | F136: 1774.032706 | G136: 430.4209985 | H136: 536.2689214 | I136: 649.4169212 | J136: 460.8774121 | K136: 186.839018 | L136: 1474.619966 | M136: 1285.251243 | N136: 18369.32455 | O136: 15986.3602 | P136: 22249.61433 | Q136: 10888.26139 | R136: 11361.35294 | S136: 13471.06914 | T136: 15770.65278 | U136: -2299.58364 | V136: 7414.339641 | W136: 236.3201053 | X136: 7178.019536 | Y136: 603.2224499 | Z136: 633.6543955 | AA136: -30.43194558 | AB136: 1291.938663 | AC136: 301.5147558 | AD136: 990.4239068 | AE136: 1986.210358 | AF136: 1550.404387 | AG136: 435.8059709 | AH136: 47016.39458 | AI136: 29380.80781 | AJ136: 79828.98993 | AK136: 17635.58677 | AL136: 33734.44603 | AM136: 41131.02695 | AN136: -7396.580916 | AO136: 10239.00585 | AP136: 1642.067464 | AQ136: 1381.522556 | AR136: 5983.104088 | AS136: 6464.858118 | AT136: 388.7072326 | AU136: 402.4481104 | AV136: 3172.730502 | AW136: 3440.950046 | AX136: 234.3297079 | AY136: 402.7483434 | AZ136: 983.3940647 | BA136: 1282.678153 | BB136: 2031.357186 | BC136: 1524.098954 | BD136: -12072.63323 | BE136: 10239.00585 | BF136: -1833.627381 | BG136: 35911.30145 | BH136: 47907.59465
A137: 2017-09-01 | B137: 6641.940367 | C137: 5737.42618 | D137: 1759.1101 | E137: 5231.491468 | F137: 1206.283075 | G137: 449.5652254 | H137: 472.6145868 | I137: 317.0596194 | J137: 502.6278875 | K137: 198.4075834 | L137: 1000.681848 | M137: 936.1929605 | N137: 14751.3004 | O137: 14279.35003 | P137: 22260.69307 | Q137: 10590.7513 | R137: 11669.94177 | S137: 13286.19043 | T137: 15843.36839 | U137: -2557.177966 | V137: 7584.589738 | W137: 356.4291192 | X137: 7228.160619 | Y137: 636.3237596 | Z137: 580.0917538 | AA137: 56.23200587 | AB137: 1398.934651 | AC137: 369.0871004 | AD137: 1029.847551 | AE137: 1561.716243 | AF137: 1417.372954 | AG137: 144.343289 | AH137: 46728.44789 | AI137: 29157.10062 | AJ137: 76965.84288 | AK137: 17571.34727 | AL137: 32081.34999 | AM137: 39434.6835 | AN137: -7353.333505 | AO137: 10218.01377 | AP137: 1225.463546 | AQ137: 2053.643318 | AR137: 5810.987857 | AS137: 6545.41487 | AT137: 298.6915085 | AU137: 366.4508926 | AV137: 2330.09869 | AW137: 2408.567233 | AX137: 365.5775074 | AY137: 379.1282134 | AZ137: 1568.414351 | BA137: 1130.24246 | BB137: 2121.070788 | BC137: 1511.398054 | BD137: -12694.70308 | BE137: 10218.01377 | BF137: -2476.689316 | BG137: 26327.63917 | BH137: 42212.1437
A138: 2017-10-01 | B138: 6821.771252 | C138: 5911.704861 | D138: 1860.29142 | E138: 6219.02238 | F138: 1425.26739 | G138: 289.8288422 | H138: 740.7307782 | I138: 474.5448378 | J138: 421.9001708 | K138: 147.3056724 | L138: 1186.251016 | M138: 998.9032714 | N138: 14862.02124 | O138: 14362.5134 | P138: 24114.24061 | Q138: 11258.87916 | R138: 12855.36144 | S138: 12665.26594 | T138: 16970.30292 | U138: -4305.036982 | V138: 7612.004451 | W138: 281.097023 | X138: 7330.907428 | Y138: 921.7294693 | Z138: 555.9536626 | AA138: 365.7758068 | AB138: 1372.333903 | AC138: 342.8685097 | AD138: 1029.465394 | AE138: 1669.584833 | AF138: 1387.384493 | AG138: 282.2003397 | AH138: 48355.1592 | AI138: 30796.48577 | AJ138: 80249.00833 | AK138: 17558.67343 | AL138: 31766.1063 | AM138: 39922.16728 | AN138: -8156.060983 | AO138: 9402.612447 | AP138: 1661.140976 | AQ138: 2628.914356 | AR138: 6973.229821 | AS138: 6528.304229 | AT138: 396.2475359 | AU138: 407.2804726 | AV138: 3324.316101 | AW138: 3332.016304 | AX138: 352.9698039 | AY138: 795.4000423 | AZ138: 988.5898074 | BA138: 898.4897476 | BB138: 2610.419245 | BC138: 1457.574991 | BD138: -12451.70808 | BE138: 9402.612447 | BF138: -3049.095632 | BG138: 29176.00165 | BH138: 50006.8615
A139: 2017-11-01 | B139: 7073.78254 | C139: 4902.765858 | D139: 2524.818472 | E139: 6254.557376 | F139: 1420.169334 | G139: 284.3626839 | H139: 438.8169261 | I139: 294.2338826 | J139: 342.0683473 | K139: 179.2446702 | L139: 1264.716307 | M139: 996.5799662 | N139: 15635.89138 | O139: 16036.31657 | P139: 24356.41539 | Q139: 10072.99436 | R139: 14283.42103 | S139: 12976.25909 | T139: 16360.40044 | U139: -3384.141346 | V139: 7734.112136 | W139: 192.6877392 | X139: 7541.424396 | Y139: 1005.062325 | Z139: 527.3355782 | AA139: 477.7267472 | AB139: 1466.892776 | AC139: 428.9890783 | AD139: 1037.903698 | AE139: 1930.017229 | AF139: 1548.41429 | AG139: 381.6029386 | AH139: 49468.75895 | AI139: 29130.82148 | AJ139: 82500.88073 | AK139: 20337.93746 | AL139: 33085.89335 | AM139: 42816.0705 | AN139: -9730.177155 | AO139: 10607.76031 | AP139: 1417.389726 | AQ139: 3086.985992 | AR139: 7658.272415 | AS139: 7488.512762 | AT139: 530.2484771 | AU139: 639.8066826 | AV139: 3093.741332 | AW139: 2885.702035 | AX139: 433.2047215 | AY139: 603.730657 | AZ139: 1654.017194 | BA139: 908.4953454 | BB139: 2232.311051 | BC139: 1354.086292 | BD139: -12463.54655 | BE139: 10607.76031 | BF139: -1855.786242 | BG139: 32038.21232 | BH139: 48585.10787
A140: 2017-12-01 | B140: 6754.351166 | C140: 3972.995767 | D140: 2979.660698 | E140: 7535.150198 | F140: 1403.783893 | G140: 443.4208278 | H140: 535.716975 | I140: 578.8160833 | J140: 656.7696363 | K140: 119.6640801 | L140: 1214.49102 | M140: 1318.57662 | N140: 18109.86604 | O140: 16647.23955 | P140: 24833.27413 | Q140: 9487.325567 | R140: 15345.94856 | S140: 13147.80652 | T140: 16140.68308 | U140: -2992.876557 | V140: 7897.938408 | W140: 300.0765996 | X140: 7597.861809 | Y140: 855.4503729 | Z140: 507.990389 | AA140: 347.4599839 | AB140: 1640.502462 | AC140: 367.5275087 | AD140: 1272.974953 | AE140: 1805.16753 | AF140: 1741.156619 | AG140: 64.01091138 | AH140: 50180.13942 | AI140: 28544.75976 | AJ140: 82204.01154 | AK140: 21635.37966 | AL140: 34092.96147 | AM140: 43745.56303 | AN140: -9652.601566 | AO140: 11982.77809 | AP140: 2151.152627 | AQ140: 3093.543504 | AR140: 8189.976539 | AS140: 9535.116385 | AT140: 485.1130073 | AU140: 450.4683914 | AV140: 2735.752321 | AW140: 3047.746324 | AX140: 308.112599 | AY140: 511.5052533 | AZ140: 2556.805169 | BA140: 1600.464776 | BB140: 2609.696997 | BC140: 2493.999136 | BD140: -13932.21565 | BE140: 11982.77809 | BF140: -1949.437558 | BG140: 32969.95704 | BH140: 48932.44305
A141: 2018-01-01 | B141: 7177.960095 | C141: 4916.763261 | D141: 1914.160605 | E141: 5388.743343 | F141: 1366.874133 | G141: 344.4285442 | H141: 475.6957 | I141: 504.113432 | J141: 906.970153 | K141: 198.3260956 | L141: 1283.349063 | M141: 1513.170399 | N141: 14920.01035 | O141: 17127.96982 | P141: 26826.30291 | Q141: 10675.14946 | R141: 16151.15344 | S141: 12880.61679 | T141: 15800.52588 | U141: -2919.909089 | V141: 7900.883961 | W141: 194.1141921 | X141: 7706.769769 | Y141: 959.7748837 | Z141: 640.7508054 | AA141: 319.0240783 | AB141: 1817.047603 | AC141: 383.8217591 | AD141: 1433.225844 | AE141: 1775.375805 | AF141: 2034.47994 | AG141: -259.1041342 | AH141: 52160.00195 | AI141: 29728.84204 | AJ141: 83256.91263 | AK141: 22431.15991 | AL141: 32665.12786 | AM141: 44574.57385 | AN141: -11909.44599 | AO141: 10521.71392 | AP141: 1530.499061 | AQ141: 3124.51247 | AR141: 7139.544831 | AS141: 7222.526381 | AT141: 328.2415225 | AU141: 398.0249463 | AV141: 1456.507865 | AW141: 1841.038573 | AX141: 412.5575862 | AY141: 621.4401816 | AZ141: 4616.11751 | BA141: 1303.726567 | BB141: 2690.030669 | BC141: 2429.439443 | BD141: -12822.17121 | BE141: 10521.71392 | BF141: -2300.457294 | BG141: 34840.32284 | BH141: 51401.93435
A142: 2018-02-01 | B142: 6672.994972 | C142: 5751.110656 | D142: 1493.651743 | E142: 4732.105215 | F142: 1428.170806 | G142: 545.2456998 | H142: 740.7693766 | I142: 809.631717 | J142: 582.2307889 | K142: 281.3853766 | L142: 1520.016689 | M142: 1751.291243 | N142: 14727.37347 | O142: 15828.14681 | P142: 26907.05917 | Q142: 10392.06737 | R142: 16514.9918 | S142: 12438.82616 | T142: 15659.62138 | U142: -3220.795216 | V142: 8168.490168 | W142: 253.3187616 | X142: 7915.171406 | Y142: 1322.457042 | Z142: 1141.960921 | AA142: 180.4961215 | AB142: 1824.969204 | AC142: 414.7040649 | AD142: 1410.265139 | AE142: 2412.999683 | AF142: 2682.838503 | AG142: -269.8388196 | AH142: 53074.80143 | AI142: 30544.51099 | AJ142: 79106.12092 | AK142: 22530.29043 | AL142: 31335.11162 | AM142: 42228.65639 | AN142: -10893.54476 | AO142: 11636.74567 | AP142: 2626.720685 | AQ142: 2117.783329 | AR142: 5582.947235 | AS142: 6240.532887 | AT142: 366.4979615 | AU142: 478.0326386 | AV142: 2282.710116 | AW142: 2767.415605 | AX142: 227.7544188 | AY142: 458.5979052 | AZ142: 1905.719326 | BA142: 1160.628797 | BB142: 2191.986969 | BC142: 2551.022146 | BD142: -13304.60628 | BE142: 11636.74567 | BF142: -1667.860608 | BG142: 26915.17829 | BH142: 46772.60103
A143: 2018-03-01 | B143: 10146.1819 | C143: 6305.911764 | D143: 2500.452388 | E143: 5690.016769 | F143: 1374.784932 | G143: 452.3961963 | H143: 728.97685 | I143: 437.8687228 | J143: 910.9640835 | K143: 262.760853 | L143: 1284.213892 | M143: 1140.187323 | N143: 15071.09566 | O143: 18248.41535 | P143: 27801.79711 | Q143: 9942.487209 | R143: 17859.3099 | S143: 12543.37672 | T143: 15777.57226 | U143: -3234.195539 | V143: 8388.33223 | W143: 296.6666229 | X143: 8091.665607 | Y143: 1359.21859 | Z143: 933.7800562 | AA143: 425.4385334 | AB143: 1813.716799 | AC143: 388.5512288 | AD143: 1425.16557 | AE143: 2290.107823 | AF143: 2192.30853 | AG143: 97.79929296 | AH143: 54196.54927 | AI143: 29531.3659 | AJ143: 84285.18158 | AK143: 24665.18336 | AL143: 31634.17208 | AM143: 44350.43671 | AN143: -12716.26462 | AO143: 11948.91874 | AP143: 2099.156803 | AQ143: 3556.235296 | AR143: 8393.246966 | AS143: 7048.097877 | AT143: 259.9874404 | AU143: 582.5387525 | AV143: 2980.895132 | AW143: 2973.541833 | AX143: 396.5892749 | AY143: 439.2196391 | AZ143: 2063.439353 | BA143: 1496.965424 | BB143: 2953.649501 | BC143: 2192.423154 | BD143: -13327.12908 | BE143: 11948.91874 | BF143: -1378.210339 | BG143: 34510.2259 | BH143: 62337.99289
A144: 2018-04-01 | B144: 6307.482636 | C144: 5557.587155 | D144: 2753.193227 | E144: 5707.359362 | F144: 1356.853153 | G144: 414.2182766 | H144: 576.330008 | I144: 399.8321717 | J144: 542.2540735 | K144: 293.9653258 | L144: 1763.33283 | M144: 1651.396461 | N144: 16584.34527 | O144: 18896.13954 | P144: 29401.27124 | Q144: 10763.94517 | R144: 18637.32608 | S144: 12842.99607 | T144: 15848.43911 | U144: -3005.443039 | V144: 8623.842766 | W144: 305.6290683 | X144: 8318.213697 | Y144: 1221.327166 | Z144: 716.7297227 | AA144: 504.5974434 | AB144: 1820.501381 | AC144: 542.9638341 | AD144: 1277.537547 | AE144: 2381.570735 | AF144: 2167.685261 | AG144: 213.8854742 | AH144: 56291.50936 | AI144: 30345.39216 | AJ144: 85389.44198 | AK144: 25946.1172 | AL144: 31669.84765 | AM144: 46372.74797 | AN144: -14702.90031 | AO144: 11243.21688 | AP144: 1478.17724 | AQ144: 2306.66159 | AR144: 7897.291805 | AS144: 7025.88139 | AT144: 438.5716279 | AU144: 553.8865519 | AV144: 2845.095339 | AW144: 3182.50148 | AX144: 513.6530495 | AY144: 322.0838599 | AZ144: 2123.531974 | BA144: 1381.589168 | BB144: 2129.392836 | BC144: 2226.324243 | BD144: -13008.28129 | BE144: 11243.21688 | BF144: -1765.064401 | BG144: 35035.9366 | BH144: 51462.64062
A145: 2018-05-01 | B145: 8291.097802 | C145: 7107.85123 | D145: 4354.149174 | E145: 5867.182651 | F145: 1300.228793 | G145: 401.4729523 | H145: 798.6861751 | I145: 549.3333066 | J145: 623.1310723 | K145: 353.0242068 | L145: 1800.792549 | M145: 1250.288196 | N145: 18158.21817 | O145: 22907.45372 | P145: 30319.80176 | Q145: 10629.06017 | R145: 19690.74159 | S145: 14558.92805 | T145: 15870.33219 | U145: -1311.404135 | V145: 8717.321586 | W145: 235.9126707 | X145: 8481.408915 | Y145: 1397.289237 | Z145: 722.0406949 | AA145: 675.2485422 | AB145: 1929.551672 | AC145: 632.6170819 | AD145: 1296.93459 | AE145: 2839.986725 | AF145: 2054.783607 | AG145: 785.2031177 | AH145: 59762.87903 | AI145: 30144.74641 | AJ145: 88562.24885 | AK145: 29618.13262 | AL145: 34213.37548 | AM145: 53850.19743 | AN145: -19636.82195 | AO145: 9981.310675 | AP145: 3281.137231 | AQ145: 3514.620904 | AR145: 8372.413395 | AS145: 7410.507657 | AT145: 427.8713159 | AU145: 509.3415551 | AV145: 3208.442183 | AW145: 2923.590715 | AX145: 466.1426264 | AY145: 341.6630536 | AZ145: 2857.138011 | BA145: 1430.239399 | BB145: 2979.574181 | BC145: 3510.617003 | BD145: -11080.79226 | BE145: 9981.310675 | BF145: -1099.481581 | BG145: 38653.34607 | BH145: 67716.07233
A146: 2018-06-01 | B146: 6097.994875 | C146: 5447.501931 | D146: 2689.813744 | E146: 5532.828299 | F146: 1241.921969 | G146: 453.815058 | H146: 625.602196 | I146: 423.7060583 | J146: 522.8306869 | K146: 444.1513452 | L146: 1430.501533 | M146: 1529.936658 | N146: 19897.47279 | O146: 23271.63788 | P146: 28374.40318 | Q146: 9309.711969 | R146: 19064.69122 | S146: 14962.50727 | T146: 15333.88752 | U146: -371.3802511 | V146: 8707.814255 | W146: 250.5289887 | X146: 8457.285266 | Y146: 1502.263443 | Z146: 733.3153295 | AA146: 768.9481139 | AB146: 1771.774048 | AC146: 617.7120536 | AD146: 1154.061995 | AE146: 3088.471802 | AF146: 2140.597371 | AG146: 947.8744309 | AH146: 58407.234 | AI146: 28385.75323 | AJ146: 82867.28966 | AK146: 30021.48077 | AL146: 31467.93365 | AM146: 52523.31838 | AN146: -21055.38473 | AO146: 8966.096043 | AP146: 3621.643382 | AQ146: 2437.407775 | AR146: 6959.153829 | AS146: 8782.437585 | AT146: 517.6982091 | AU146: 610.1890695 | AV146: 2834.977196 | AW146: 2779.915181 | AX146: 582.6834629 | AY146: 321.2584498 | AZ146: 3417.227443 | BA146: 1634.335071 | BB146: 2506.480395 | BC146: 3497.52552 | BD146: -10985.90944 | BE146: 8966.096043 | BF146: -2019.813394 | BG146: 32022.31433 | BH146: 57229.95337
A147: 2018-07-01 | B147: 7636.47937 | C147: 5265.633668 | D147: 2455.61993 | E147: 6672.047258 | F147: 1681.132965 | G147: 298.757264 | H147: 449.162228 | I147: 414.2634449 | J147: 676.2861957 | K147: 339.1166881 | L147: 1616.661055 | M147: 1437.636426 | N147: 22004.92619 | O147: 20499.46537 | P147: 31101.78453 | Q147: 10415.29001 | R147: 20686.49452 | S147: 14949.65771 | T147: 16333.7026 | U147: -1384.044891 | V147: 8965.948644 | W147: 264.5251272 | X147: 8701.423517 | Y147: 1420.213655 | Z147: 753.2739649 | AA147: 666.9396902 | AB147: 1729.243629 | AC147: 546.7704736 | AD147: 1182.473155 | AE147: 3067.649238 | AF147: 1811.786271 | AG147: 1255.862967 | AH147: 61234.49741 | AI147: 30125.34845 | AJ147: 80365.17347 | AK147: 31109.14896 | AL147: 34203.73098 | AM147: 54669.84945 | AN147: -20466.11847 | AO147: 10643.0305 | AP147: 1591.225234 | AQ147: 2032.160273 | AR147: 7045.890452 | AS147: 7770.340245 | AT147: 635.6243709 | AU147: 736.8333616 | AV147: 2103.874557 | AW147: 2219.580068 | AX147: 434.375254 | AY147: 285.1107073 | AZ147: 1379.350847 | BA147: 1531.021563 | BB147: 2213.685052 | BC147: 2350.363556 | BD147: -12414.72992 | BE147: 10643.0305 | BF147: -1771.699424 | BG147: 27231.60273 | BH147: 50279.75274
A148: 2018-08-01 | B148: 5633.179757 | C148: 6026.701854 | D148: 2915.140117 | E148: 6633.821751 | F148: 2072.895777 | G148: 470.584513 | H148: 673.300432 | I148: 428.0492211 | J148: 860.7285724 | K148: 477.1318722 | L148: 1909.854652 | M148: 1217.733737 | N148: 19089.40452 | O148: 22613.80565 | P148: 30670.61074 | Q148: 11110.17667 | R148: 19560.43407 | S148: 15271.04512 | T148: 16175.5972 | U148: -904.5520722 | V148: 8801.087136 | W148: 275.7359984 | X148: 8525.351138 | Y148: 1560.742891 | Z148: 770.9504674 | AA148: 789.7924236 | AB148: 1642.923836 | AC148: 459.6483409 | AD148: 1183.275495 | AE148: 3216.689663 | AF148: 1771.227863 | AG148: 1445.4618 | AH148: 61163.09939 | AI148: 30563.33653 | AJ148: 78866.42226 | AK148: 30599.76286 | AL148: 31964.43922 | AM148: 52947.83111 | AN148: -20983.39189 | AO148: 9616.370967 | AP148: 2765.270151 | AQ148: 2236.333322 | AR148: 7901.871393 | AS148: 7857.934239 | AT148: 553.6023538 | AU148: 479.11816 | AV148: 3602.4727 | AW148: 3502.058632 | AX148: 502.6153271 | AY148: 413.7854391 | AZ148: 1674.520606 | BA148: 1339.684028 | BB148: 1900.826147 | BC148: 1852.245575 | BD148: -11885.11964 | BE148: 9616.370967 | BF148: -2268.748675 | BG148: 32420.67151 | BH148: 52734.05841
A149: 2018-09-01 | B149: 6405.670377 | C149: 3975.755769 | D149: 2421.066773 | E149: 6347.635202 | F149: 1015.338759 | G149: 370.9467026 | H149: 301.0251549 | I149: 342.2697617 | J149: 838.6783814 | K149: 319.2406243 | L149: 1055.716367 | M149: 1063.051249 | N149: 15292.01356 | O149: 18740.81667 | P149: 29846.95278 | Q149: 9326.102868 | R149: 20520.84992 | S149: 15281.93084 | T149: 16051.81728 | U149: -769.886439 | V149: 8605.067624 | W149: 305.9303538 | X149: 8299.13727 | Y149: 1435.846891 | Z149: 787.1814095 | AA149: 648.6654815 | AB149: 1637.535981 | AC149: 511.0161434 | AD149: 1126.519837 | AE149: 2809.020544 | AF149: 1635.543258 | AG149: 1173.477285 | AH149: 59616.35466 | AI149: 28617.59131 | AJ149: 74866.36176 | AK149: 30998.76335 | AL149: 30736.84615 | AM149: 51119.66019 | AN149: -20382.81404 | AO149: 10615.94931 | AP149: 2527.977264 | AQ149: 1992.967725 | AR149: 6520.044136 | AS149: 7681.104004 | AT149: 304.3044495 | AU149: 279.9707549 | AV149: 2333.081609 | AW149: 2450.505551 | AX149: 405.3079466 | AY149: 216.5306302 | AZ149: 1481.758724 | BA149: 1085.143644 | BB149: 2998.567054 | BC149: 3056.883242 | BD149: -11939.28333 | BE149: 10615.94931 | BF149: -1323.33402 | BG149: 21083.3567 | BH149: 39268.61002
A150: 2018-10-01 | B150: 6244.159838 | C150: 6327.543224 | D150: 3959.953605 | E150: 6836.25856 | F150: 1671.628756 | G150: 379.838701 | H150: 536.364286 | I150: 258.4991852 | J150: 979.8234237 | K150: 446.4816103 | L150: 1780.448267 | M150: 1376.108601 | N150: 18081.98926 | O150: 23354.49211 | P150: 29930.98142 | Q150: 10179.49469 | R150: 19751.48673 | S150: 16625.76357 | T150: 15939.55373 | U150: 686.2098426 | V150: 8659.009637 | W150: 119.6046626 | X150: 8539.404975 | Y150: 1379.618677 | Z150: 648.7930285 | AA150: 730.8256485 | AB150: 1434.080726 | AC150: 448.3147698 | AD150: 985.7659561 | AE150: 3201.754853 | AF150: 1678.994274 | AG150: 1522.760579 | AH150: 61231.20888 | AI150: 29014.75515 | AJ150: 77502.33448 | AK150: 32216.45373 | AL150: 31096.026 | AM150: 53944.50891 | AN150: -22848.48291 | AO150: 9367.97082 | AP150: 3059.630595 | AQ150: 1950.795137 | AR150: 9004.551787 | AS150: 9419.110049 | AT150: 536.6998453 | AU150: 642.5801902 | AV150: 3384.090297 | AW150: 3495.448316 | AX150: 474.7414937 | AY150: 380.4701635 | AZ150: 1466.048804 | BA150: 1168.51501 | BB150: 2840.738474 | BC150: 2408.250039 | BD150: -11137.36859 | BE150: 9367.97082 | BF150: -1769.397766 | BG150: 29370.5641 | BH150: 55062.29402
A151: 2018-11-01 | B151: 5474.106701 | C151: 6105.458701 | D151: 1770.326459 | E151: 5495.713318 | F151: 1100.70223 | G151: 548.6169198 | H151: 377.331936 | I151: 448.6298998 | J151: 854.4604827 | K151: 317.0020894 | L151: 1252.863439 | M151: 1209.319852 | N151: 16622.35881 | O151: 18884.88963 | P151: 29522.20943 | Q151: 11257.2368 | R151: 18264.97263 | S151: 16172.82494 | T151: 16067.20725 | U151: 105.6176925 | V151: 8692.489232 | W151: 524.6428193 | X151: 8167.846413 | Y151: 1255.517513 | Z151: 684.8132141 | AA151: 570.7042989 | AB151: 1455.055491 | AC151: 442.2847308 | AD151: 1012.77076 | AE151: 2643.271203 | AF151: 1521.667853 | AG151: 1121.60335 | AH151: 59741.36781 | AI151: 30497.85267 | AJ151: 78177.16718 | AK151: 29243.51514 | AL151: 34799.05141 | AM151: 56245.3242 | AN151: -21446.27279 | AO151: 7797.242356 | AP151: 2896.809708 | AQ151: 1188.129535 | AR151: 6071.749857 | AS151: 7548.587103 | AT151: 337.4044868 | AU151: 425.6999144 | AV151: 2690.817932 | AW151: 3048.401474 | AX151: 420.253693 | AY151: 304.3591198 | AZ151: 1083.939076 | BA151: 1113.032545 | BB151: 2892.559937 | BC151: 1969.699951 | BD151: -10445.81275 | BE151: 7797.242356 | BF151: -2648.570394 | BG151: 23949.11184 | BH151: 43775.15878
A152: 2018-12-01 | B152: 7202.86 | C152: 5629.25 | D152: 3010.402828 | E152: 6309.9196 | F152: 1343.611201 | G152: 171.0650677 | H152: 646.3828019 | I152: 289.012995 | J152: 770.2159709 | K152: 333.9705272 | L152: 1694.971776 | M152: 1165.785377 | N152: 16141.3479 | O152: 18891.33794 | P152: 30110.30711 | Q152: 11323.429 | R152: 18786.87811 | S152: 16303.18072 | T152: 15818.75852 | U152: 484.4221995 | V152: 8724.613186 | W152: 346.2951188 | X152: 8378.318068 | Y152: 1377.558165 | Z152: 543.1679976 | AA152: 834.3901677 | AB152: 1499.495078 | AC152: 546.7176077 | AD152: 952.7774701 | AE152: 2819.035835 | AF152: 1386.864739 | AG152: 1432.171096 | AH152: 60834.19009 | AI152: 29965.23298 | AJ152: 76863.94432 | AK152: 30868.95711 | AL152: 33785.69747 | AM152: 56142.28354 | AN152: -22356.58607 | AO152: 8512.371038 | AP152: 1933.911797 | AQ152: 2311.290025 | AR152: 8600.22123 | AS152: 9205.454298 | AT152: 609.8380118 | AU152: 791.7822213 | AV152: 2752.695014 | AW152: 2683.361803 | AX152: 410.442315 | AY152: 226.5946914 | AZ152: 2596.211155 | BA152: 1872.247198 | BB152: 2711.192052 | BC152: 2257.654283 | BD152: -10358.42637 | BE152: 8512.371038 | BF152: -1846.055329 | BG152: 23907.96324 | BH152: 40256.63237
A153: 2019-01-01 | B153: 7352.686373 | C153: 6175.709038 | D153: 1987.775471 | E153: 6630.986646 | F153: 1282.223209 | G153: 395.9174841 | H153: 461.208 | I153: 1100.157219 | J153: 1026.696595 | K153: 365.8584 | L153: 1402.906496 | M153: 1363.341658 | N153: 22718.3339 | O153: 22570.61599 | P153: 32248.08813 | Q153: 13001.84816 | R153: 19246.23996 | S153: 15091.84907 | T153: 15919.59267 | U153: -827.7435976 | V153: 8676.793586 | W153: 431.1305977 | X153: 8245.662989 | Y153: 1377.83271 | Z153: 991.4638457 | AA153: 386.3688643 | AB153: 1505.814138 | AC153: 400.3081734 | AD153: 1105.505964 | AE153: 2535.286482 | AF153: 1483.170085 | AG153: 1052.116396 | AH153: 61435.66412 | AI153: 32227.51354 | AJ153: 75600.61875 | AK153: 29208.15058 | AL153: 39967.67284 | AM153: 59281.44194 | AN153: -19313.76909 | AO153: 9894.381485 | AP153: 2748.790409 | AQ153: 2825.911284 | AR153: 8108.343324 | AS153: 8833.331898 | AT153: 345.4850971 | AU153: 370.4961329 | AV153: 2631.175383 | AW153: 3376.673501 | AX153: 470.0532455 | AY153: 371.9705798 | AZ153: 1569.024209 | BA153: 1722.434854 | BB153: 3170.552836 | BC153: 2246.873838 | BD153: -11418.41106 | BE153: 9894.381485 | BF153: -1524.029574 | BG153: 26961.58142 | BH153: 43589.81422
A154: 2019-02-01 | B154: 6777.966636 | C154: 5630.116636 | D154: 1779.568875 | E154: 4989.220229 | F154: 1299.254557 | G154: 351.9414418 | H154: 413.977 | I154: 390.960976 | J154: 575.0442042 | K154: 203.8578197 | L154: 1154.418901 | M154: 1134.735203 | N154: 14408.265 | O154: 15306.96075 | P154: 33067.90277 | Q154: 13348.73782 | R154: 19719.16495 | S154: 14510.35958 | T154: 16052.01427 | U154: -1541.65469 | V154: 8414.387748 | W154: 236.2067897 | X154: 8178.180958 | Y154: 1435.71971 | Z154: 1028.30476 | AA154: 407.4149502 | AB154: 1462.300688 | AC154: 378.2396842 | AD154: 1084.061004 | AE154: 2752.158401 | AF154: 1636.7695 | AG154: 1115.388901 | AH154: 61642.8289 | AI154: 32680.27282 | AJ154: 78643.44633 | AK154: 28962.55608 | AL154: 37691.71401 | AM154: 54666.0289 | AN154: -16974.31489 | AO154: 11988.24119 | AP154: 778.5252012 | AQ154: 1574.044961 | AR154: 6049.148191 | AS154: 6226.434123 | AT154: 359.4526162 | AU154: 327.7441832 | AV154: 3168.889905 | AW154: 3449.138886 | AX154: 302.7581608 | AY154: 281.5246904 | AZ154: 703.9164503 | BA154: 1874.304821 | BB154: 2345.924374 | BC154: 2142.278964 | BD154: -13691.41247 | BE154: 11988.24119 | BF154: -1703.171284 | BG154: 24885.42872 | BH154: 39707.65916
A155: 2019-03-01 | B155: 6185.244329 | C155: 4863.8748 | D155: 2951.485503 | E155: 5000.102897 | F155: 944.9073423 | G155: 329.599934 | H155: 586.4043129 | I155: 181.6003955 | J155: 846.1362557 | K155: 231.3772036 | L155: 1850.134243 | M155: 664.0899492 | N155: 18714.78476 | O155: 23715.24447 | P155: 32120.9896 | Q155: 11345.2668 | R155: 20775.7228 | S155: 15162.55508 | T155: 15705.84414 | U155: -543.2890605 | V155: 8740.715594 | W155: 333.7457319 | X155: 8406.969862 | Y155: 1548.104023 | Z155: 786.2862271 | AA155: 761.8177958 | AB155: 1590.44603 | AC155: 349.203713 | AD155: 1241.242317 | AE155: 3331.163905 | AF155: 1322.340725 | AG155: 2008.823179 | AH155: 62493.97423 | AI155: 29842.68734 | AJ155: 77026.55087 | AK155: 32651.28689 | AL155: 39961.81967 | AM155: 59983.28748 | AN155: -20021.46781 | AO155: 12629.81908 | AP155: 797.7801444 | AQ155: 1706.087862 | AR155: 6452.274551 | AS155: 6080.473743 | AT155: 312.318474 | AU155: 560.9515357 | AV155: 2645.346187 | AW155: 2443.976608 | AX155: 401.2329445 | AY155: 515.1523925 | AZ155: 1630.232891 | BA155: 1037.712719 | BB155: 2403.794188 | BC155: 2721.669046 | BD155: -14381.1241 | BE155: 12629.81908 | BF155: -1751.305012 | BG155: 25558.01234 | BH155: 50083.44067
A156: 2019-04-01 | B156: 5622.42991 | C156: 4336.262217 | D156: 2612.644972 | E156: 5210.271456 | F156: 979.899632 | G156: 491.0726431 | H156: 431.143225 | I156: 436.8676947 | J156: 1104.464828 | K156: 392.3693123 | L156: 1290.687621 | M156: 1170.8047 | N156: 17797.579 | O156: 21628.69216 | P156: 33456.39502 | Q156: 11770.634 | R156: 21685.76102 | S156: 15426.56646 | T156: 15295.78403 | U156: 130.782432 | V156: 8746.195453 | W156: 395.5274334 | X156: 8350.668019 | Y156: 1532.896576 | Z156: 842.1432905 | AA156: 690.7532854 | AB156: 1665.085269 | AC156: 408.7398254 | AD156: 1256.345443 | AE156: 3151.96614 | AF156: 1426.447187 | AG156: 1725.518953 | AH156: 63979.10492 | AI156: 30139.27576 | AJ156: 76859.58066 | AK156: 33839.82915 | AL156: 38684.60389 | AM156: 59596.01412 | AN156: -20911.41023 | AO156: 12928.41892 | AP156: 2017.606158 | AQ156: 2385.625497 | AR156: 7495.678145 | AS156: 6837.389183 | AT156: 675.6378613 | AU156: 541.3692463 | AV156: 2969.531702 | AW156: 3086.917414 | AX156: 407.3607512 | AY156: 509.5246284 | AZ156: 1520.318957 | BA156: 1877.992956 | BB156: 3341.684583 | BC156: 2600.298618 | BD156: -13792.43421 | BE156: 12928.41892 | BF156: -864.015291 | BG156: 24862.82606 | BH156: 44401.86214
A157: 2019-05-01 | B157: 8219.20327 | C157: 7908.978638 | D157: 3674.386811 | E157: 4955.573187 | F157: 864.7271358 | G157: 139.1288662 | H157: 615.8986465 | I157: 244.1858572 | J157: 689.5325332 | K157: 190.2475649 | L157: 1911.004785 | M157: 725.7369145 | N157: 22732.89286 | O157: 31779.89362 | P157: 35021.03929 | Q157: 14349.764 | R157: 20671.27529 | S157: 16666.09181 | T157: 14744.81932 | U157: 1921.272486 | V157: 8926.215402 | W157: 315.4364879 | X157: 8610.778915 | Y157: 1630.984631 | Z157: 678.6474795 | AA157: 952.3371512 | AB157: 1666.724205 | AC157: 297.1064178 | AD157: 1369.617788 | AE157: 3777.29523 | AF157: 1325.755503 | AG157: 2451.539727 | AH157: 67688.35056 | AI157: 31711.52921 | AJ157: 81434.43339 | AK157: 35976.82135 | AL157: 44311.21635 | AM157: 71545.9236 | AN157: -27234.70725 | AO157: 8742.114105 | AP157: 3577.113191 | AQ157: 1304.354592 | AR157: 7954.234035 | AS157: 6872.980467 | AT157: 174.3452017 | AU157: 446.3004664 | AV157: 4231.989995 | AW157: 3825.933652 | AX157: 294.0892892 | AY157: 306.20754 | AZ157: 1850.666838 | BA157: 1601.699005 | BB157: 3354.889781 | BC157: 4157.743924 | BD157: -11043.45037 | BE157: 8742.114105 | BF157: -2301.336263 | BG157: 28944.9071 | BH157: 48553.87894
A158: 2019-06-01 | B158: 8137.978562 | C158: 4480.915139 | D158: 1904.086768 | E158: 5760.546843 | F158: 704.0493014 | G158: 430.9849396 | H158: 475.204497 | I158: 604.5084775 | J158: 700.5639403 | K158: 278.1287999 | L158: 872.8088127 | M158: 1102.420244 | N158: 27783.09083 | O158: 27232.26731 | P158: 35299.42725 | Q158: 13585.78296 | R158: 21713.64429 | S158: 16005.56637 | T158: 15617.42563 | U158: 388.1407449 | V158: 8676.629909 | W158: 291.2887757 | X158: 8385.341133 | Y158: 1656.313814 | Z158: 922.4842414 | AA158: 733.8295723 | AB158: 1683.385056 | AC158: 364.2408627 | AD158: 1319.144194 | AE158: 3494.600945 | AF158: 1612.94067 | AG158: 1881.660275 | AH158: 66815.92335 | AI158: 32394.16314 | AJ158: 87613.83408 | AK158: 34421.76021 | AL158: 49363.541 | AM158: 72003.61387 | AN158: -22640.07288 | AO158: 11781.68733 | AP158: 1991.830131 | AQ158: 3310.182378 | AR158: 6889.495167 | AS158: 6820.732804 | AT158: 402.3099871 | AU158: 295.2617048 | AV158: 3646.06588 | AW158: 4098.268206 | AX158: 485.5776198 | AY158: 364.9579093 | AZ158: 1754.043422 | BA158: 1380.19709 | BB158: 2728.910819 | BC158: 3574.087243 | BD158: -13411.55695 | BE158: 11781.68733 | BF158: -1629.869612 | BG158: 32348.22319 | BH158: 50291.48726
A159: 2019-07-01 | B159: 7021.601943 | C159: 6209.603639 | D159: 2703.604197 | E159: 5305.784157 | F159: 951.9256719 | G159: 350.073995 | H159: 797.171 | I159: 519.9716575 | J159: 972.0457099 | K159: 324.3349601 | L159: 1347.529702 | M159: 718.2390874 | N159: 20710.95854 | O159: 23232.43179 | P159: 35480.85805 | Q159: 14274.63414 | R159: 21206.22391 | S159: 16354.63827 | T159: 15430.40261 | U159: 924.2356657 | V159: 8664.702829 | W159: 255.8034575 | X159: 8408.899372 | Y159: 1817.460946 | Z159: 901.8804529 | AA159: 915.5804931 | AB159: 1814.134095 | AC159: 339.9570243 | AD159: 1474.177071 | AE159: 3588.71073 | AF159: 1492.225979 | AG159: 2096.484751 | AH159: 67720.50493 | AI159: 32694.90366 | AJ159: 86707.61953 | AK159: 35025.60126 | AL159: 45128.58627 | AM159: 68852.10872 | AN159: -23723.52245 | AO159: 11302.07881 | AP159: 3678.110609 | AQ159: 2216.057488 | AR159: 6536.386795 | AS159: 6880.56688 | AT159: 254.4184316 | AU159: 347.9198828 | AV159: 2435.480348 | AW159: 2930.295788 | AX159: 331.6216186 | AY159: 536.0890687 | AZ159: 1452.372276 | BA159: 1175.171025 | BB159: 2212.515651 | BC159: 2596.218872 | BD159: -13426.32715 | BE159: 11302.07881 | BF159: -2124.248338 | BG159: 30994.10766 | BH159: 46146.19251
A160: 2019-08-01 | B160: 8270.597746 | C160: 6840.007248 | D160: 3176.962703 | E160: 5126.934982 | F160: 1180.585222 | G160: 451.2286208 | H160: 727.9585905 | I160: 455.1664499 | J160: 1113.642799 | K160: 273.6666694 | L160: 1527.760698 | M160: 772.8757787 | N160: 21022.26876 | O160: 25510.81632 | P160: 37110.80089 | Q160: 16845.52151 | R160: 20265.27938 | S160: 17200.04105 | T160: 15320.2987 | U160: 1879.742351 | V160: 8735.366056 | W160: 253.835055 | X160: 8481.531001 | Y160: 1999.641556 | Z160: 927.0913075 | AA160: 1072.550249 | AB160: 2176.964484 | AC160: 420.3770375 | AD160: 1756.587446 | AE160: 3480.767022 | AF160: 1455.548549 | AG160: 2025.218473 | AH160: 70703.58106 | AI160: 35222.67216 | AJ160: 87325.42718 | AK160: 35480.9089 | AL160: 46778.4744 | AM160: 73919.42837 | AN160: -27140.95397 | AO160: 8339.954931 | AP160: 3949.782815 | AQ160: 2667.888052 | AR160: 6080.382586 | AS160: 5880.211938 | AT160: 380.4258592 | AU160: 504.9010544 | AV160: 3813.648142 | AW160: 4056.197544 | AX160: 462.6336459 | AY160: 273.0978493 | AZ160: 2989.426522 | BA160: 1026.693162 | BB160: 2740.416605 | BC160: 3083.356992 | BD160: -10685.78 | BE160: 8339.954931 | BF160: -2345.825068 | BG160: 28730.61166 | BH160: 51665.3466
A161: 2019-09-01 | B161: 5187.033056 | C161: 4810.260467 | D161: 2991.678492 | E161: 5058.767053 | F161: 586.230884 | G161: 254.5787154 | H161: 553.734429 | I161: 348.3959946 | J161: 580.8740365 | K161: 169.6458576 | L161: 1357.258195 | M161: 1101.633335 | N161: 21487.62963 | O161: 21440.65362 | P161: 35840.32011 | Q161: 15896.78016 | R161: 19943.53995 | S161: 17517.37041 | T161: 14293.44668 | U161: 3189.963766 | V161: 8578.61336 | W161: 219.6439803 | X161: 8358.96938 | Y161: 2106.798031 | Z161: 960.6031279 | AA161: 1146.194903 | AB161: 2131.275194 | AC161: 481.5712412 | AD161: 1649.703952 | AE161: 3394.660148 | AF161: 1566.121695 | AG161: 1828.538453 | AH161: 69552.05727 | AI161: 33435.14687 | AJ161: 85415.81427 | AK161: 36116.9104 | AL161: 45277.63599 | AM161: 70491.63539 | AN161: -25213.9994 | AO161: 10902.911 | AP161: 1638.991438 | AQ161: 1095.980948 | AR161: 5238.609531 | AS161: 7014.837677 | AT161: 146.5897113 | AU161: 199.2115861 | AV161: 3502.201619 | AW161: 3728.808153 | AX161: 325.836721 | AY161: 291.4388145 | AZ161: 1587.711287 | BA161: 1101.770541 | BB161: 2737.579431 | BC161: 3175.524878 | BD161: -12321.22044 | BE161: 10902.911 | BF161: -1418.309444 | BG161: 23727.86993 | BH161: 39107.88531
A162: 2019-10-01 | B162: 7647.531855 | C162: 7317.919647 | D162: 2562.905566 | E162: 5701.422456 | F162: 913.0007817 | G162: 251.3329537 | H162: 688.7639821 | I162: 733.7625884 | J162: 709.4795961 | K162: 234.4301057 | L162: 1750.716449 | M162: 1310.903482 | N162: 25150.11413 | O162: 24580.26186 | P162: 35667.6921 | Q162: 17080.68125 | R162: 18587.01085 | S162: 17035.84257 | T162: 14097.32102 | U162: 2938.521549 | V162: 8626.990734 | W162: 271.149193 | X162: 8355.841541 | Y162: 1991.198687 | Z162: 1223.546633 | AA162: 767.6520544 | AB162: 2104.089736 | AC162: 449.6525049 | AD162: 1654.437231 | AE162: 3365.54749 | AF162: 1805.048664 | AG162: 1560.498827 | AH162: 68791.36132 | AI162: 34927.39927 | AJ162: 85814.06644 | AK162: 33863.96206 | AL162: 48269.96132 | AM162: 70178.64357 | AN162: -21908.68224 | AO162: 11955.27981 | AP162: 4296.43333 | AQ162: 5219.129168 | AR162: 5992.834502 | AS162: 6713.974243 | AT162: 181.3864857 | AU162: 223.9301637 | AV162: 3554.756762 | AW162: 4134.476843 | AX162: 379.2228686 | AY162: 436.0034362 | AZ162: 1861.742755 | BA162: 1228.964977 | BB162: 2924.642172 | BC162: 2324.892055 | BD162: -13690.53464 | BE162: 11955.27981 | BF162: -1735.25483 | BG162: 28417.82256 | BH162: 41805.30654
A163: 2019-11-01 | B163: 12468.8643 | C163: 8046.551216 | D163: 2575.354825 | E163: 5262.459981 | F163: 2301.10186 | G163: 964.8902463 | H163: 548.459393 | I163: 712.784248 | J163: 889.1343935 | K163: 291.5877165 | L163: 3206.752943 | M163: 2566.345675 | N163: 28586.40911 | O163: 26455.50285 | P163: 37020.4776 | Q163: 19877.65381 | R163: 17142.82379 | S163: 17309.3508 | T163: 14719.40712 | U163: 2589.943676 | V163: 9261.32101 | W163: 522.4998008 | X163: 8738.821209 | Y163: 1992.172208 | Z163: 1465.59885 | AA163: 526.5733577 | AB163: 1921.076456 | AC163: 651.2661523 | AD163: 1269.810304 | AE163: 3904.618198 | AF163: 3022.617904 | AG163: 882.0002939 | AH163: 71409.01627 | AI163: 40259.04364 | AJ163: 90172.34073 | AK163: 31149.97263 | AL163: 57645.8895 | AM163: 76455.97849 | AN163: -18810.08899 | AO163: 12339.88364 | AP163: 4104.288744 | AQ163: 5493.112157 | AR163: 6006.442257 | AS163: 6223.307112 | AT163: 825.0798534 | AU163: 714.6063205 | AV163: 3687.606111 | AW163: 5001.73729 | AX163: 519.4238799 | AY163: 786.0896798 | AZ163: 3897.628304 | BA163: 2865.883882 | BB163: 6284.739283 | BC163: 4599.953832 | BD163: -14201.66045 | BE163: 12339.88364 | BF163: -1861.776805 | BG163: 28021.3263 | BH163: 44010.59997
A164: 2019-12-01 | B164: 9497.854034 | C164: 8712.660225 | D164: 1985.684879 | E164: 5547.643981 | F164: 1426.354696 | G164: 1026.18968 | H164: 341.0800652 | I164: 627.612976 | J164: 1017.086374 | K164: 309.3745709 | L164: 6244.326775 | M164: 2274.209182 | N164: 28074.98668 | O164: 30520.9206 | P164: 38222.29274 | Q164: 20856.21523 | R164: 17366.07751 | S164: 15761.21064 | T164: 14870.29553 | U164: 890.9151114 | V164: 8853.223068 | W164: 514.5643651 | X164: 8338.658703 | Y164: 1529.958732 | Z164: 1397.445589 | AA164: 132.5131437 | AB164: 2056.819297 | AC164: 844.9421851 | AD164: 1211.877112 | AE164: 7578.47934 | AF164: 2740.698064 | AG164: 4837.781276 | AH164: 74001.98382 | AI164: 41224.16097 | AJ164: 89256.52614 | AK164: 32777.82286 | AL164: 55105.46737 | AM164: 76617.87232 | AN164: -21512.40495 | AO164: 11265.41791 | AP164: 7386.947072 | AQ164: 4866.646507 | AR164: 6828.007758 | AS164: 8124.761237 | AT164: 640.3497436 | AU164: 130.1541694 | AV164: 2698.21061 | AW164: 4759.005969 | AX164: 454.4478679 | AY164: 809.4646174 | AZ164: 5790.373985 | BA164: 3647.547623 | BB164: 4783.083901 | BC164: 4019.834862 | BD164: -12457.85173 | BE164: 11265.41791 | BF164: -1192.433821 | BG164: 28408.62145 | BH164: 47132.70187
A165: 2020-01-01 | B165: 13533.9381 | C165: 8431.806428 | D165: 1987.668233 | E165: 4723.259865 | F165: 1460.063168 | G165: 618.208096 | H165: 534.1971682 | I165: 465.8355483 | J165: 970.7408582 | K165: 386.471821 | L165: 6657.087223 | M165: 1223.730959 | N165: 22853.97759 | O165: 26715.04997 | P165: 39846.4551 | Q165: 20716.47879 | R165: 19129.97631 | S165: 15344.92146 | T165: 14074.82096 | U165: 1270.1005 | V165: 9230.646574 | W165: 613.867849 | X165: 8616.778725 | Y165: 1418.19033 | Z165: 1124.225913 | AA165: 293.9644174 | AB165: 1842.297263 | AC165: 680.4837584 | AD165: 1161.813504 | AE165: 7795.862981 | AF165: 2474.250769 | AG165: 5321.612212 | AH165: 75478.3737 | AI165: 39684.12804 | AJ165: 87611.21444 | AK165: 35794.24567 | AL165: 54559.14873 | AM165: 78482.74903 | AN165: -23923.6003 | AO165: 11870.64537 | AP165: 3919.221355 | AQ165: 5995.845367 | AR165: 7203.635361 | AS165: 6687.368247 | AT165: 236.0382338 | AU165: 278.2290179 | AV165: 3556.738252 | AW165: 3828.003184 | AX165: 400.3969542 | AY165: 630.135631 | AZ165: 3955.123768 | BA165: 1814.952432 | BB165: 2972.753934 | BC165: 3532.051669 | BD165: -13550.23465 | BE165: 11870.64537 | BF165: -1679.589284 | BG165: 30862.9269 | BH165: 44957.48281
A166: 2020-02-01 | B166: 9746.518976 | C166: 6637.433073 | D166: 1465.184001 | E166: 3639.944585 | F166: 920.6689716 | G166: 451.6881937 | H166: 373.0444662 | I166: 400.0670384 | J166: 900.6304092 | K166: 457.7783812 | L166: 5970.920133 | M166: 1051.030674 | N166: 26151.59731 | O166: 26956.08765 | P166: 37783.19759 | Q166: 16090.94013 | R166: 21692.25746 | S166: 14821.91019 | T166: 13774.09199 | U166: 1047.818195 | V166: 8943.149259 | W166: 491.3197747 | X166: 8451.829484 | Y166: 1341.558916 | Z166: 1088.523365 | AA166: 253.0355511 | AB166: 1896.773311 | AC166: 668.6742431 | AD166: 1228.099068 | AE166: 7818.567056 | AF166: 2207.130967 | AG166: 5611.43609 | AH166: 72605.15632 | AI166: 34320.68047 | AJ166: 86570.17317 | AK166: 38284.47585 | AL166: 59411.74374 | AM166: 84177.04643 | AN166: -24765.30268 | AO166: 13519.17316 | AP166: 1276.36268 | AQ166: 2806.044341 | AR166: 5340.349072 | AS166: 4934.05854 | AT166: 195.2409415 | AU166: 294.4572404 | AV166: 3424.661589 | AW166: 3867.348182 | AX166: 337.7068845 | AY166: 577.3968394 | AZ166: 2056.624 | BA166: 1708.549853 | BB166: 2826.790949 | BC166: 2902.484622 | BD166: -15323.78902 | BE166: 13519.17316 | BF166: -1804.615852 | BG166: 27493.69782 | BH166: 39569.25629
A167: 2020-03-01 | B167: 14958.11424 | C167: 9285.72754 | D167: 1746.842489 | E167: 4864.425807 | F167: 1303.711968 | G167: 644.1950486 | H167: 493.8829253 | I167: 516.0298829 | J167: 788.240509 | K167: 585.7947878 | L167: 6373.62103 | M167: 2229.198667 | N167: 24143.17753 | O167: 22848.19684 | P167: 38491.66069 | Q167: 18051.72078 | R167: 20439.93992 | S167: 14522.95959 | T167: 14189.08546 | U167: 333.8741302 | V167: 8430.54006 | W167: 421.33601 | X167: 8009.20405 | Y167: 1357.636598 | Z167: 1131.496031 | AA167: 226.1405664 | AB167: 1701.929214 | AC167: 801.5919379 | AD167: 900.337276 | AE167: 7616.484007 | AF167: 3000.71985 | AG167: 4615.764157 | AH167: 72121.21016 | AI167: 37595.95007 | AJ167: 83186.8676 | AK167: 34525.26009 | AL167: 58584.90442 | AM167: 79347.83532 | AN167: -20762.9309 | AO167: 13762.32919 | AP167: 9212.20498 | AQ167: 7252.424841 | AR167: 6010.843441 | AS167: 5670.293488 | AT167: 413.8200576 | AU167: 468.2270879 | AV167: 3258.460571 | AW167: 3784.725873 | AX167: 1060.476824 | AY167: 565.8721444 | AZ167: 2749.08504 | BA167: 1576.429561 | BB167: 3289.699514 | BC167: 5214.698225 | BD167: -13993.31274 | BE167: 13762.32919 | BF167: -230.983549 | BG167: 25381.89627 | BH167: 44049.3375
A168: 2020-04-01 | B168: 11128.28334 | C168: 7774.024807 | D168: 1864.022278 | E168: 4248.63471 | F168: 1004.254066 | G168: 358.3925888 | H168: 393.9346663 | I168: 399.7550148 | J168: 918.3427344 | K168: 340.4627826 | L168: 6689.879795 | M168: 2810.678954 | N168: 19457.20301 | O168: 19730.39811 | P168: 40345.11595 | Q168: 17741.18723 | R168: 22603.92872 | S168: 14036.8333 | T168: 13636.38294 | U168: 400.4503573 | V168: 8068.342472 | W168: 333.354355 | X168: 7734.988117 | Y168: 1261.108212 | Z168: 1051.252914 | AA168: 209.855298 | AB168: 1715.006163 | AC168: 714.6601088 | AD168: 1000.346055 | AE168: 7681.724318 | AF168: 3200.014107 | AG168: 4481.710211 | AH168: 73108.13042 | AI168: 36676.85166 | AJ168: 82995.331 | AK168: 36431.27876 | AL168: 56209.38971 | AM168: 76214.29341 | AN168: -20004.90371 | AO168: 16426.37505 | AP168: 2690.339779 | AQ168: 6038.654315 | AR168: 6446.684961 | AS168: 5080.361339 | AT168: 464.2206228 | AU168: 237.3636542 | AV168: 1937.236229 | AW168: 2171.960776 | AX168: 502.1335409 | AY168: 495.5905481 | AZ168: 3150.850142 | BA168: 1912.668868 | BB168: 2509.201625 | BC168: 3631.983818 | BD168: -16125.30801 | BE168: 16426.37505 | BF168: 301.0670418 | BG168: 24262.58321 | BH168: 39833.09581
A169: 2020-05-01 | B169: 7777.910725 | C169: 7826.269779 | D169: 2474.196706 | E169: 4151.344169 | F169: 770.6526296 | G169: 655.4442685 | H169: 420.4488599 | I169: 615.176125 | J169: 831.2990858 | K169: 313.1211503 | L169: 5849.70657 | M169: 1856.615863 | N169: 20059.26834 | O169: 22594.56462 | P169: 38066.2514 | Q169: 15838.13147 | R169: 22228.11993 | S169: 13200.97972 | T169: 13583.15477 | U169: -382.175046 | V169: 8056.884405 | W169: 429.737516 | X169: 7627.146889 | Y169: 1265.590532 | Z169: 1243.281186 | AA169: 22.30934536 | AB169: 1731.927894 | AC169: 695.4118726 | AD169: 1036.516021 | AE169: 7239.344964 | AF169: 2576.732293 | AG169: 4662.612671 | AH169: 69560.97891 | AI169: 34366.4491 | AJ169: 83453.51232 | AK169: 35194.52981 | AL169: 58531.94268 | AM169: 79189.87917 | AN169: -20657.93648 | AO169: 14536.59333 | AP169: 8244.565265 | AQ169: 5629.345312 | AR169: 6114.742384 | AS169: 5155.849991 | AT169: 448.5448374 | AU169: 247.5061409 | AV169: 2497.507187 | AW169: 3176.169262 | AX169: 234.5687784 | AY169: 256.2672703 | AZ169: 2905.588986 | BA169: 2228.038775 | BB169: 3046.019979 | BC169: 3283.182828 | BD169: -12837.12334 | BE169: 14536.59333 | BF169: 1699.469992 | BG169: 22147.58466 | BH169: 36866.25899
A170: 2020-06-01 | B170: 12259.03855 | C170: 9180.092945 | D170: 3092.687514 | E170: 4586.538257 | F170: 1344.711912 | G170: 582.9916542 | H170: 808.5842188 | I170: 897.7214643 | J170: 999.7190613 | K170: 307.2601608 | L170: 5977.663012 | M170: 2413.896156 | N170: 25966.76012 | O170: 24593.16369 | P170: 37673.34157 | Q170: 14254.22849 | R170: 23419.11308 | S170: 13716.59764 | T170: 13629.77781 | U170: 86.81982675 | V170: 8411.898638 | W170: 453.9741034 | X170: 7957.924534 | Y170: 1509.370508 | Z170: 1324.533837 | AA170: 184.8366712 | AB170: 1970.208942 | AC170: 794.2432249 | AD170: 1175.965717 | AE170: 6796.332701 | AF170: 2714.543734 | AG170: 4081.788966 | AH170: 70077.74999 | AI170: 33171.3012 | AJ170: 83446.93626 | AK170: 36906.44879 | AL170: 61406.18035 | AM170: 80380.50632 | AN170: -18974.32598 | AO170: 17932.12281 | AP170: 6545.718694 | AQ170: 9696.584416 | AR170: 5441.791226 | AS170: 5679.831687 | AT170: 395.6285828 | AU170: 524.9822279 | AV170: 3452.36298 | AW170: 3871.608693 | AX170: 466.0921021 | AY170: 358.4597087 | AZ170: 2223.925979 | BA170: 2021.414562 | BB170: 4103.375921 | BC170: 3527.482343 | BD170: -16366.57752 | BE170: 17932.12281 | BF170: 1565.545296 | BG170: 26166.41041 | BH170: 43678.50712
A171: 2020-07-01 | B171: 11589.91312 | C171: 8698.438334 | D171: 1671.934373 | E171: 5613.633217 | F171: 1045.791302 | G171: 596.9274364 | H171: 661.1483142 | I171: 783.4881051 | J171: 1077.083855 | K171: 489.6163305 | L171: 4891.422029 | M171: 2687.809278 | N171: 22634.29124 | O171: 23048.00881 | P171: 37898.04263 | Q171: 13141.03045 | R171: 24757.01219 | S171: 12993.11792 | T171: 14352.69459 | U171: -1359.576668 | V171: 8493.965986 | W171: 542.4689917 | X171: 7951.496994 | Y171: 1577.750388 | Z171: 1490.322373 | AA171: 87.42801498 | AB171: 1825.358598 | AC171: 816.0787219 | AD171: 1009.279876 | AE171: 5199.853325 | AF171: 3268.13444 | AG171: 1931.718885 | AH171: 67988.08885 | AI171: 33610.72956 | AJ171: 81884.20533 | AK171: 34377.35929 | AL171: 59002.68986 | AM171: 75689.81029 | AN171: -16687.12042 | AO171: 17690.23887 | AP171: 4793.231131 | AQ171: 3364.70169 | AR171: 6568.258021 | AS171: 7108.672184 | AT171: 240.3194837 | AU171: 320.8899985 | AV171: 2927.237766 | AW171: 4151.272964 | AX171: 375.4313693 | AY171: 589.368311 | AZ171: 2765.452303 | BA171: 2002.034443 | BB171: 2770.603066 | BC171: 3070.370347 | BD171: -16839.16717 | BE171: 17690.23887 | BF171: 851.071693 | BG171: 25065.67786 | BH171: 44627.3271
A172: 2020-08-01 | B172: 10359.53448 | C172: 10831.52843 | D172: 1842.466558 | E172: 4274.474686 | F172: 808.0203205 | G172: 343.8660165 | H172: 722.1557623 | I172: 527.297592 | J172: 1117.723277 | K172: 367.4879083 | L172: 3550.888902 | M172: 2300.129569 | N172: 17215.97955 | O172: 18860.90024 | P172: 40407.82886 | Q172: 15488.66202 | R172: 24919.16684 | S172: 12859.39708 | T172: 14423.08556 | U172: -1563.688478 | V172: 8374.568275 | W172: 465.4573969 | X172: 7909.110878 | Y172: 1688.886571 | Z172: 1367.000567 | AA172: 321.8860042 | AB172: 1830.271908 | AC172: 771.0554171 | AD172: 1059.216491 | AE172: 4322.940447 | AF172: 3303.736872 | AG172: 1019.203575 | AH172: 69483.89314 | AI172: 35818.99784 | AJ172: 82838.5136 | AK172: 33664.89531 | AL172: 58079.75967 | AM172: 75774.70704 | AN172: -17694.94737 | AO172: 15969.94794 | AP172: 9444.231233 | AQ172: 5187.38579 | AR172: 4944.875561 | AS172: 5649.972937 | AT172: 149.6030991 | AU172: 250.3463415 | AV172: 2840.367074 | AW172: 3463.870516 | AX172: 298.6606342 | AY172: 488.031297 | AZ172: 2209.303556 | BA172: 2119.65936 | BB172: 1923.603558 | BC172: 2055.515188 | BD172: -14604.93247 | BE172: 15969.94794 | BF172: 1365.015474 | BG172: 24181.81546 | BH172: 38120.93781
A173: 2020-09-01 | B173: 9583.588448 | C173: 11098.4141 | D173: 2007.70781 | E173: 4268.670908 | F173: 692.1541815 | G173: 268.5122181 | H173: 686.6666206 | I173: 942.6723883 | J173: 990.4351968 | K173: 408.7149196 | L173: 2008.810096 | M173: 1917.827924 | N173: 19174.86288 | O173: 17932.83927 | P173: 39926.72453 | Q173: 16265.80804 | R173: 23660.91649 | S173: 12629.30389 | T173: 14377.57459 | U173: -1748.270694 | V173: 8251.981109 | W173: 398.5312108 | X173: 7853.449898 | Y173: 1665.190197 | Z173: 1529.970167 | AA173: 135.2200302 | AB173: 1829.772481 | AC173: 756.2799496 | AD173: 1073.492531 | AE173: 2983.726824 | AF173: 3238.716512 | AG173: -254.9896879 | AH173: 67286.69903 | AI173: 36566.88047 | AJ173: 80165.48488 | AK173: 30719.81856 | AL173: 54644.14571 | AM173: 70409.47439 | AN173: -15765.32868 | AO173: 14954.48988 | AP173: 6459.251173 | AQ173: 4751.153985 | AR173: 5259.267422 | AS173: 6427.24258 | AT173: 176.9988707 | AU173: 187.9873606 | AV173: 2614.00529 | AW173: 3523.043091 | AX173: 350.8751377 | AY173: 470.7437579 | AZ173: 4049.099737 | BA173: 2154.846045 | BB173: 2012.765315 | BC173: 2402.345165 | BD173: -13738.12706 | BE173: 14954.48988 | BF173: 1216.362825 | BG173: 20887.11524 | BH173: 32662.50967
A174: 2020-10-01 | B174: 14828.66611 | C174: 13117.04606 | D174: 1788.172748 | E174: 4773.001552 | F174: 748.924598 | G174: 243.6649225 | H174: 457.9897386 | I174: 648.2959372 | J174: 869.7489073 | K174: 658.9240219 | L174: 1788.166687 | M174: 2192.289829 | N174: 17903.74065 | O174: 17383.8842 | P174: 40769.68681 | Q174: 16946.25338 | R174: 23823.43343 | S174: 11954.26744 | T174: 14466.64313 | U174: -2512.375695 | V174: 8204.943341 | W174: 319.6037441 | X174: 7885.339596 | Y174: 1468.447523 | Z174: 1551.787925 | AA174: -83.3404023 | AB174: 1907.643045 | AC174: 955.6715611 | AD174: 951.9714835 | AE174: 2527.691359 | AF174: 3488.973751 | AG174: -961.2823927 | AH174: 66832.67951 | AI174: 37728.9335 | AJ174: 76507.98201 | AK174: 29103.74602 | AL174: 51839.47214 | AM174: 68051.57929 | AN174: -16212.10715 | AO174: 12891.63887 | AP174: 8337.812666 | AQ174: 5835.796484 | AR174: 5554.933639 | AS174: 5908.635163 | AT174: 196.1532982 | AU174: 179.6283214 | AV174: 2838.002737 | AW174: 3454.966983 | AX174: 442.7107997 | AY174: 427.9349261 | AZ174: 3006.527218 | BA174: 2269.648096 | BB174: 1998.112881 | BC174: 1812.358296 | BD174: -11479.47981 | BE174: 12891.63887 | BF174: 1412.159062 | BG174: 21150.54616 | BH174: 36573.78824
A175: 2020-11-01 | B175: 13765.59989 | C175: 11443.56451 | D175: 1887.962273 | E175: 5439.639686 | F175: 716.6987417 | G175: 256.7724825 | H175: 555.9021554 | I175: 571.1779338 | J175: 1081.708575 | K175: 626.1190868 | L175: 1742.831532 | M175: 1835.708602 | N175: 22900.00328 | O175: 19194.75647 | P175: 42839.45329 | Q175: 18139.12226 | R175: 24700.33104 | S175: 11945.48875 | T175: 15421.3229 | U175: -3475.834156 | V175: 8377.963878 | W175: 364.783747 | X175: 8013.180131 | Y175: 1394.529187 | Z175: 1454.139824 | AA175: -59.61063708 | AB175: 2079.161436 | AC175: 1150.966912 | AD175: 928.1945241 | AE175: 2900.927337 | AF175: 3525.328128 | AG175: -624.4007912 | AH175: 69537.52388 | AI175: 40055.66377 | AJ175: 74290.06837 | AK175: 29481.86011 | AL175: 57044.58476 | AM175: 68713.55642 | AN175: -11668.97166 | AO175: 17812.88845 | AP175: 8723.355409 | AQ175: 14026.14007 | AR175: 5652.441689 | AS175: 5948.149838 | AT175: 222.5403513 | AU175: 222.8259162 | AV175: 3047.999125 | AW175: 3945.810057 | AX175: 631.6885103 | AY175: 578.7895117 | AZ175: 3508.360626 | BA175: 2100.775529 | BB175: 3134.389871 | BC175: 2748.325567 | BD175: -16478.61648 | BE175: 17812.88845 | BF175: 1334.271974 | BG175: 21825.39452 | BH175: 36823.9605
A176: 2020-12-01 | B176: 11153.11383 | C176: 10925.13595 | D176: 2144.428571 | E176: 6918.417811 | F176: 832.3395156 | G176: 318.0432559 | H176: 263.4669482 | I176: 581.518329 | J176: 1468.672722 | K176: 450.6263366 | L176: 1521.751698 | M176: 2508.761348 | N176: 25047.16922 | O176: 24032.20479 | P176: 40189.27917 | Q176: 18956.50966 | R176: 21232.76952 | S176: 11489.36861 | T176: 16818.41395 | U176: -5329.045336 | V176: 8318.031353 | W176: 365.8509396 | X176: 7952.180413 | Y176: 901.7135142 | Z176: 1230.347462 | AA176: -328.6339478 | AB176: 2274.296735 | AC176: 1176.516904 | AD176: 1097.779831 | AE176: 2122.339656 | AF176: 3556.91312 | AG176: -1434.573464 | AH176: 65295.02905 | AI176: 42104.55203 | AJ176: 71988.46199 | AK176: 23190.47701 | AL176: 55464.78241 | AM176: 64786.35811 | AN176: -9321.575704 | AO176: 13868.90131 | AP176: 9806.679472 | AQ176: 2067.05028 | AR176: 7047.684978 | AS176: 8341.107853 | AT176: 244.7537629 | AU176: 232.2891875 | AV176: 2572.409073 | AW176: 4028.217406 | AX176: 311.2178952 | AY176: 613.4064085 | AZ176: 4113.25627 | BA176: 3439.743211 | BB176: 2913.388574 | BC176: 3357.762538 | BD176: -12015.32469 | BE176: 13868.90131 | BF176: 1853.576621 | BG176: 25552.37342 | BH176: 40078.34484
A177: 2021-01-01 | B177: 9704.515772 | C177: 9018.989074 | D177: 2188.64685 | E177: 5441.799365 | F177: 1170.116661 | G177: 430.8047965 | H177: 430.7710997 | I177: 477.555702 | J177: 1514.974526 | K177: 945.5688223 | L177: 1904.386044 | M177: 1842.961069 | N177: 25053.11489 | O177: 23776.19787 | P177: 41166.73471 | Q177: 20338.60452 | R177: 20828.13019 | S177: 11216.21602 | T177: 16735.24004 | U177: -5519.024017 | V177: 8319.208657 | W177: 282.3283267 | X177: 8036.88033 | Y177: 952.585592 | Z177: 990.0808264 | AA177: -37.49523443 | AB177: 2147.047986 | AC177: 1160.808551 | AD177: 986.2394351 | AE177: 2642.597717 | AF177: 3291.545365 | AG177: -648.9476487 | AH177: 66444.39068 | AI177: 42798.60763 | AJ177: 71585.14528 | AK177: 23645.78306 | AL177: 60355.82095 | AM177: 65525.2284 | AN177: -5169.407453 | AO177: 18476.3756 | AP177: 6622.265464 | AQ177: 8232.140383 | AR177: 6950.715085 | AS177: 6360.751955 | AT177: 243.955636 | AU177: 214.0850843 | AV177: 2597.404968 | AW177: 3114.565109 | AX177: 575.2331692 | AY177: 618.8142888 | AZ177: 1641.442286 | BA177: 3320.512765 | BB177: 2337.827009 | BC177: 2575.388674 | BD177: -15986.80142 | BE177: 18476.3756 | BF177: 2489.574185 | BG177: 25417.4829 | BH177: 39034.02632
A178: 2021-02-01 | B178: 6528.100028 | C178: 5874.91666 | D178: 1698.846301 | E178: 5850.114482 | F178: 842.9858716 | G178: 388.7017176 | H178: 325.8907793 | I178: 339.2083758 | J178: 1200.26722 | K178: 508.2032689 | L178: 1342.548226 | M178: 1785.512818 | N178: 21503.27565 | O178: 21585.29396 | P178: 40320.83762 | Q178: 18896.40857 | R178: 21424.42906 | S178: 11180.80354 | T178: 17306.06529 | U178: -6125.26175 | V178: 8371.109944 | W178: 393.8460093 | X178: 7977.263934 | Y178: 865.0885483 | Z178: 788.9112536 | AA178: 76.17729462 | AB178: 2349.411138 | AC178: 1164.787651 | AD178: 1184.623488 | AE178: 2458.671313 | AF178: 3215.86636 | AG178: -757.1950471 | AH178: 65545.9221 | AI178: 41765.88513 | AJ178: 68956.97902 | AK178: 23780.03698 | AL178: 58670.62226 | AM178: 64154.96547 | AN178: -5484.343208 | AO178: 18295.69377 | AP178: 3869.404062 | AQ178: 3977.873747 | AR178: 6716.36882 | AS178: 6676.260775 | AT178: 347.6037544 | AU178: 225.8639837 | AV178: 2715.231439 | AW178: 3377.608759 | AX178: 400.3961025 | AY178: 579.0414672 | AZ178: 3031.485825 | BA178: 2402.479593 | BB178: 2796.20674 | BC178: 3194.4362 | BD178: -16820.25501 | BE178: 18295.69377 | BF178: 1475.438754 | BG178: 19512.25258 | BH178: 36514.37539
A179: 2021-03-01 | B179: 10011.70124 | C179: 10660.37247 | D179: 1997.752462 | E179: 5595.92935 | F179: 1444.814727 | G179: 367.6859599 | H179: 414.8491538 | I179: 348.942306 | J179: 1188.049073 | K179: 953.4130531 | L179: 1618.220396 | M179: 2442.998029 | N179: 23194.17604 | O179: 22749.53714 | P179: 40456.84842 | Q179: 20552.8755 | R179: 19903.97292 | S179: 11249.93337 | T179: 17310.86402 | U179: -6060.930649 | V179: 8695.311059 | W179: 463.6421179 | X179: 8231.668941 | Y179: 814.6174583 | Z179: 651.6650591 | AA179: 162.9523992 | AB179: 2448.842871 | AC179: 1475.99024 | AD179: 972.8526312 | AE179: 2646.554516 | AF179: 3885.985441 | AG179: -1239.430925 | AH179: 66312.10769 | AI179: 44341.02237 | AJ179: 70636.08425 | AK179: 21971.08532 | AL179: 58576.75682 | AM179: 62441.51204 | AN179: -3864.755212 | AO179: 18106.33011 | AP179: 5440.434799 | AQ179: 3973.612057 | AR179: 7095.122658 | AS179: 7298.787639 | AT179: 321.4013574 | AU179: 394.8614436 | AV179: 3787.180192 | AW179: 4375.767041 | AX179: 582.970307 | AY179: 617.3633196 | AZ179: 3244.038651 | BA179: 2781.277755 | BB179: 3307.890191 | BC179: 3392.900461 | BD179: -15950.45868 | BE179: 18106.33011 | BF179: 2155.871424 | BG179: 24216.60156 | BH179: 41935.72917
A180: 2021-04-01 | B180: 14393.5162 | C180: 14054.23237 | D180: 1746.1294 | E180: 5890.422284 | F180: 1214.852149 | G180: 380.4733004 | H180: 457.8952773 | I180: 614.1144723 | J180: 1445.101878 | K180: 578.5162954 | L180: 1852.800285 | M180: 2105.609084 | N180: 24257.27079 | O180: 23285.94446 | P180: 40264.58275 | Q180: 21042.9705 | R180: 19221.61225 | S180: 10911.42136 | T180: 17545.81908 | U180: -6634.397717 | V180: 8491.662957 | W180: 274.7947472 | X180: 8216.868209 | Y180: 898.5575262 | Z180: 854.5027419 | AA180: 44.05478434 | AB180: 2244.288571 | AC180: 1164.673302 | AD180: 1079.615268 | AE180: 2405.94313 | AF180: 3276.156403 | AG180: -870.2132727 | AH180: 65216.4563 | AI180: 44158.91678 | AJ180: 71274.5597 | AK180: 21057.53952 | AL180: 59262.76304 | AM180: 63325.46801 | AN180: -4062.70497 | AO180: 16994.83455 | AP180: 9753.365432 | AQ180: 8626.24068 | AR180: 7309.520766 | AS180: 7819.463878 | AT180: 368.210017 | AU180: 402.7796539 | AV180: 3651.230095 | AW180: 4755.913096 | AX180: 443.4968259 | AY180: 852.7570187 | AZ180: 5463.315308 | BA180: 4150.67774 | BB180: 4662.848419 | BC180: 3740.462284 | BD180: -14447.42754 | BE180: 16994.83455 | BF180: 2547.40701 | BG180: 25142.46306 | BH180: 42265.68358
A181: 2021-05-01 | B181: 11822.10138 | C181: 14295.78498 | D181: 2166.521357 | E181: 4514.722722 | F181: 1170.773068 | G181: 538.9677242 | H181: 589.5240786 | I181: 556.1867632 | J181: 974.1404535 | K181: 550.5949586 | L181: 1486.762296 | M181: 2149.185423 | N181: 19164.62322 | O181: 21665.57803 | P181: 41996.76119 | Q181: 25448.73517 | R181: 16548.02602 | S181: 10870.4827 | T181: 16758.24886 | U181: -5887.766169 | V181: 8475.559083 | W181: 289.282692 | X181: 8186.276391 | Y181: 1055.463249 | Z181: 991.9906836 | AA181: 63.47256567 | AB181: 2227.185038 | AC181: 1212.164565 | AD181: 1015.020473 | AE181: 2599.234959 | AF181: 3395.703409 | AG181: -796.4684508 | AH181: 67224.68622 | AI181: 48096.12538 | AJ181: 62521.51148 | AK181: 19128.56083 | AL181: 57283.09755 | AM181: 64340.33279 | AN181: -7057.23524 | AO181: 12071.32559 | AP181: 14714.28275 | AQ181: 8669.951844 | AR181: 6248.353544 | AS181: 7325.281221 | AT181: 372.6504644 | AU181: 333.9522249 | AV181: 2804.627502 | AW181: 4075.15549 | AX181: 388.6967947 | AY181: 557.4171109 | AZ181: 4620.123597 | BA181: 3449.601856 | BB181: 3133.458049 | BC181: 3005.466062 | BD181: -10048.0543 | BE181: 12071.32559 | BF181: 2023.271295 | BG181: 20768.20622 | BH181: 33540.03287
A182: 2021-06-01 | B182: 7513.344394 | C182: 7808.07167 | D182: 2083.287316 | E182: 4907.996193 | F182: 1026.161302 | G182: 453.4247375 | H182: 609.4816742 | I182: 607.7550443 | J182: 1264.688059 | K182: 887.1232106 | L182: 1970.70599 | M182: 2164.028334 | N182: 22148.59697 | O182: 20074.06218 | P182: 37677.33044 | Q182: 20790.19882 | R182: 16887.13162 | S182: 11133.06578 | T182: 16536.6986 | U182: -5403.632821 | V182: 8466.294674 | W182: 304.423655 | X182: 8161.871019 | Y182: 1283.133556 | Z182: 1239.175002 | AA182: 43.95855381 | AB182: 2082.703661 | AC182: 1286.857814 | AD182: 795.8458469 | AE182: 2854.129476 | AF182: 3319.790154 | AG182: -465.660678 | AH182: 63496.65759 | AI182: 43477.14405 | AJ182: 59117.75424 | AK182: 20019.51354 | AL182: 56655.34344 | AM182: 63414.8592 | AN182: -6759.515761 | AO182: 13259.99778 | AP182: 6252.365396 | AQ182: 6294.167427 | AR182: 5725.523762 | AS182: 7679.132163 | AT182: 309.5811023 | AU182: 246.9435688 | AV182: 2925.060123 | AW182: 3929.672116 | AX182: 354.2962396 | AY182: 841.4768874 | AZ182: 5395.240966 | BA182: 3386.218158 | BB182: 4161.885554 | BC182: 2988.875914 | BD182: -10369.8759 | BE182: 13259.99778 | BF182: 2890.121885 | BG182: 21474.7515 | BH182: 33760.67574
A183: 2021-07-01 | B183: 6444.865897 | C183: 6126.303027 | D183: 2081.790033 | E183: 4158.440936 | F183: 1090.799468 | G183: 491.8403978 | H183: 542.0428885 | I183: 494.6525087 | J183: 1239.187152 | K183: 800.1692088 | L183: 1499.380562 | M183: 1553.507569 | N183: 20856.23877 | O183: 22130.20141 | P183: 35064.8607 | Q183: 19298.15024 | R183: 15766.71046 | S183: 11233.06199 | T183: 15797.32344 | U183: -4564.261455 | V183: 8627.490867 | W183: 329.17889 | X183: 8298.311977 | Y183: 1320.467266 | Z183: 1156.459082 | AA183: 164.0081844 | AB183: 2122.404701 | AC183: 1322.395162 | AD183: 800.0095386 | AE183: 2563.25136 | AF183: 2692.064022 | AG183: -128.8126622 | AH183: 60931.53688 | AI183: 40595.57084 | AJ183: 56903.37541 | AK183: 20335.96604 | AL183: 56854.96334 | AM183: 64082.85811 | AN183: -7227.894779 | AO183: 13108.07126 | AP183: 3036.988901 | AQ183: 2781.7503 | AR183: 6014.356798 | AS183: 7509.253909 | AT183: 252.0399395 | AU183: 319.0477038 | AV183: 1934.60116 | AW183: 2592.001694 | AX183: 491.8585 | AY183: 1108.333503 | AZ183: 6871.229025 | BA183: 4135.383246 | BB183: 3008.652002 | BC183: 2664.569546 | BD183: -9905.001344 | BE183: 13108.07126 | BF183: 3203.069918 | BG183: 18553.58636 | BH183: 29841.57853
A184: 2021-08-01 | B184: 8629.062526 | C184: 7193.052053 | D184: 2237.200615 | E184: 4769.190523 | F184: 1108.293816 | G184: 539.9325902 | H184: 531.1232132 | I184: 635.5217867 | J184: 1035.309421 | K184: 476.9034791 | L184: 1432.246775 | M184: 1576.293435 | N184: 22202.5918 | O184: 21630.60473 | P184: 32944.71882 | Q184: 18271.21205 | R184: 14673.50676 | S184: 11840.73267 | T184: 15943.62404 | U184: -4102.891366 | V184: 8565.86251 | W184: 260.8880284 | X184: 8304.974482 | Y184: 1331.597348 | Z184: 1291.492585 | AA184: 40.10476374 | AB184: 2243.255001 | AC184: 1305.954309 | AD184: 937.3006921 | AE184: 2567.358463 | AF184: 2715.263399 | AG184: -147.904936 | AH184: 59493.52481 | AI184: 39788.43441 | AJ184: 56898.66151 | AK184: 19705.0904 | AL184: 60500.22848 | AM184: 66685.73122 | AN184: -6185.502738 | AO184: 13519.58766 | AP184: 3144.397003 | AQ184: 2711.980247 | AR184: 5527.175078 | AS184: 7798.529055 | AT184: 248.0952331 | AU184: 195.4881569 | AV184: 1872.035891 | AW184: 2858.169261 | AX184: 350.8566035 | AY184: 917.610626 | AZ184: 6025.077982 | BA184: 3227.839796 | BB184: 2538.264469 | BC184: 2116.522691 | BD184: -10230.23227 | BE184: 13519.58766 | BF184: 3289.355393 | BG184: 19952.27145 | BH184: 29816.98779
A185: 2021-09-01 | B185: 6760.114372 | C185: 6466.414808 | D185: 2227.588453 | E185: 4891.27417 | F185: 1103.076557 | G185: 525.2788058 | H185: 685.0116994 | I185: 681.7443392 | J185: 1184.810758 | K185: 739.9606245 | L185: 1138.33881 | M185: 1412.536283 | N185: 24643.86812 | O185: 25030.40217 | P185: 31675.45603 | Q185: 17783.25989 | R185: 13892.19614 | S185: 12132.584 | T185: 15892.81474 | U185: -3760.230734 | V185: 8584.904651 | W185: 323.5774047 | X185: 8261.327246 | Y185: 1508.019281 | Z185: 1465.141643 | AA185: 42.87763804 | AB185: 2113.453772 | AC185: 1096.055865 | AD185: 1017.397907 | AE185: 2546.924898 | AF185: 2754.134329 | AG185: -207.2094312 | AH185: 58561.34263 | AI185: 39314.98387 | AJ185: 59779.42543 | AK185: 19246.35876 | AL185: 64251.95151 | AM185: 70273.25512 | AN185: -6021.303609 | AO185: 13225.05515 | AP185: 3054.683584 | AQ185: 2685.078885 | AR185: 6331.698777 | AS185: 7142.574653 | AT185: 230.9364662 | AU185: 390.3071881 | AV185: 2020.202754 | AW185: 2876.981723 | AX185: 438.2553708 | AY185: 771.0334856 | AZ185: 4895.813143 | BA185: 3229.456402 | BB185: 2468.00407 | BC185: 2143.941574 | BD185: -10186.81008 | BE185: 13225.05515 | BF185: 3038.245071 | BG185: 23180.40212 | BH185: 29803.12664
A186: 2021-10-01 | B186: 8426.182647 | C186: 8154.541287 | D186: 2336.187344 | E186: 5533.994165 | F186: 1097.236217 | G186: 559.9775948 | H186: 464.1710467 | I186: 616.9987852 | J186: 1639.726815 | K186: 598.2622533 | L186: 1364.020542 | M186: 1805.235269 | N186: 26527.76544 | O186: 23347.13577 | P186: 29504.40325 | Q186: 16695.37551 | R186: 12809.02774 | S186: 10810.01485 | T186: 16534.06457 | U186: -5724.049718 | V186: 8035.857441 | W186: 335.5749845 | X186: 7700.282457 | Y186: 1118.395039 | Z186: 1133.332768 | AA186: -14.93772955 | AB186: 2565.895255 | AC186: 1004.776479 | AD186: 1561.118776 | AE186: 2415.990703 | AF186: 2604.459545 | AG186: -188.4688419 | AH186: 54450.55654 | AI186: 38307.58385 | AJ186: 64378.26815 | AK186: 16142.97269 | AL186: 66176.81076 | AM186: 70454.09766 | AN186: -4277.286899 | AO186: 11865.68579 | AP186: 3552.455665 | AQ186: 3743.672728 | AR186: 6917.396067 | AS186: 7830.507806 | AT186: 1176.707339 | AU186: 764.5141111 | AV186: 2090.923992 | AW186: 3464.69055 | AX186: 601.0041411 | AY186: 783.9706069 | AZ186: 4409.61079 | BA186: 3101.605278 | BB186: 3423.974358 | BC186: 2533.073581 | BD186: -10483.10767 | BE186: 11865.68579 | BF186: 1382.578121 | BG186: 20952.01554 | BH186: 27640.73561
A187: 2021-11-01 | B187: 7577.95598 | C187: 6145.155207 | D187: 2117.409234 | E187: 5899.670425 | F187: 970.2897574 | G187: 485.9466579 | H187: 633.4160415 | I187: 604.146278 | J187: 1231.401118 | K187: 639.3384104 | L187: 1406.801144 | M187: 1989.474535 | N187: 29153.4791 | O187: 26936.33797 | P187: 29119.57703 | Q187: 16313.80297 | R187: 12805.77407 | S187: 11098.88744 | T187: 16926.7374 | U187: -5827.849963 | V187: 8002.373501 | W187: 295.2397718 | X187: 7707.133729 | Y187: 1177.367225 | Z187: 1157.10007 | AA187: 20.26715582 | AB187: 2582.913357 | AC187: 1093.78048 | AD187: 1489.132877 | AE187: 2712.69296 | AF187: 2988.633684 | AG187: -275.9407247 | AH187: 54693.81151 | AI187: 38775.29437 | AJ187: 64281.2198 | AK187: 15918.51714 | AL187: 73084.93568 | AM187: 75057.88808 | AN187: -1972.952403 | AO187: 13945.56474 | AP187: 1944.339146 | AQ187: 2903.994667 | AR187: 6735.203199 | AS187: 8240.221592 | AT187: 331.3704764 | AU187: 151.1876431 | AV187: 2843.699931 | AW187: 4111.092888 | AX187: 583.6857005 | AY187: 766.8344544 | AZ187: 4088.491606 | BA187: 3105.657917 | BB187: 3179.006573 | BC187: 2454.649117 | BD187: -12386.69459 | BE187: 13945.56474 | BF187: 1558.870143 | BG187: 27429.326 | BH187: 33615.72704
A188: 2021-12-01 | B188: 7377.160756 | C188: 5788.618857 | D188: 1905.371643 | E188: 5570.49256 | F188: 904.8193834 | G188: 519.740421 | H188: 552.4471309 | I188: 610.7215038 | J188: 1107.337855 | K188: 757.454713 | L188: 1543.747896 | M188: 1868.257195 | N188: 21889.83113 | O188: 21563.30967 | P188: 27638.28757 | Q188: 14428.46 | R188: 13209.82757 | S188: 11355.80258 | T188: 17587.79773 | U188: -6231.995146 | V188: 7775.827493 | W188: 305.818214 | X188: 7470.009279 | Y188: 1057.2068 | Z188: 1154.244089 | AA188: -97.03728855 | AB188: 2284.310634 | AC188: 994.8173401 | AD188: 1289.493294 | AE188: 2446.693894 | AF188: 2778.780601 | AG188: -332.0867064 | AH188: 52558.12897 | AI188: 37249.91797 | AJ188: 56767.28536 | AK188: 15308.211 | AL188: 67860.7156 | AM188: 69066.37573 | AN188: -1205.660125 | AO188: 14102.55087 | AP188: 2034.091435 | AQ188: 1648.93184 | AR188: 7120.340542 | AS188: 8284.7303 | AT188: 317.7606064 | AU188: 305.7825034 | AV188: 2491.54336 | AW188: 3472.256567 | AX188: 695.1117993 | AY188: 567.6905404 | AZ188: 4256.508087 | BA188: 3550.11314 | BB188: 2801.461736 | BC188: 3163.276876 | BD188: -13792.58193 | BE188: 14102.55087 | BF188: 309.9689406 | BG188: 19413.58846 | BH188: 28672.17992
A189: 2022-01-01 | B189: 6929.466724 | C189: 6885.726903 | D189: 1622.072753 | E189: 6146.500396 | F189: 1035.221117 | G189: 751.5576 | H189: 552.2457826 | I189: 655.1242668 | J189: 1784.560662 | K189: 1164.540987 | L189: 1010.369766 | M189: 1848.110123 | N189: 27822.03784 | O189: 22555.38798 | P189: 27970.88052 | Q189: 14914.36927 | R189: 13056.51125 | S189: 11167.81778 | T189: 18058.42244 | U189: -6890.604661 | V189: 7830.946812 | W189: 520.6336793 | X189: 7310.313132 | Y189: 1118.274128 | Z189: 1228.400953 | AA189: -110.1268249 | AB189: 2290.32702 | AC189: 1238.735976 | AD189: 1051.591044 | AE189: 2269.167692 | AF189: 3091.323763 | AG189: -822.1560706 | AH189: 52647.41395 | AI189: 39051.88609 | AJ189: 60415.07906 | AK189: 13595.52787 | AL189: 76564.12832 | AM189: 73820.69832 | AN189: 2743.430004 | AO189: 16338.95787 | AP189: 1982.020118 | AQ189: 1685.55475 | AR189: 7545.480725 | AS189: 8434.758223 | AT189: 200.4498762 | AU189: 239.4364805 | AV189: 2619.026638 | AW189: 4179.934647 | AX189: 785.0875041 | AY189: 784.7708594 | AZ189: 2928.975791 | BA189: 2969.793796 | BB189: 3824.433508 | BC189: 3051.215637 | BD189: -15690.06794 | BE189: 16338.95787 | BF189: 648.889928 | BG189: 23072.13918 | BH189: 33865.74176
A190: 2022-02-01 | B190: 6792.736543 | C190: 6144.692817 | D190: 1565.537861 | E190: 6428.532973 | F190: 800.6189068 | G190: 390.4468289 | H190: 562.329998 | I190: 561.2091137 | J190: 937.4775593 | K190: 1042.531635 | L190: 1140.470752 | M190: 1879.527121 | N190: 28765.28975 | O190: 24476.19255 | P190: 26917.11048 | Q190: 13074.43512 | R190: 13842.67536 | S190: 11464.04363 | T190: 19207.7435 | U190: -7743.699877 | V190: 7724.72226 | W190: 443.0838737 | X190: 7281.638386 | Y190: 1241.499106 | Z190: 1315.015816 | AA190: -73.51670993 | AB190: 1984.075792 | AC190: 1182.928873 | AD190: 801.1469187 | AE190: 2078.317546 | AF190: 3205.168771 | AG190: -1126.851225 | AH190: 51409.7688 | AI190: 38428.37595 | AJ190: 56236.35421 | AK190: 12981.39285 | AL190: 77530.84791 | AM190: 72015.51095 | AN190: 5515.336961 | AO190: 18496.72981 | AP190: 1541.804049 | AQ190: 1445.025731 | AR190: 6685.616117 | AS190: 7407.884322 | AT190: 134.2814599 | AU190: 212.9111878 | AV190: 2227.586592 | AW190: 3475.093905 | AX190: 882.3944901 | AY190: 433.7340127 | AZ190: 1573.345696 | BA190: 2115.960333 | BB190: 3127.40777 | BC190: 2699.966735 | BD190: -18124.69663 | BE190: 18496.72981 | BF190: 372.0331787 | BG190: 21549.03884 | BH190: 30484.11144
A191: 2022-03-01 | B191: 7301.297057 | C191: 8545.548099 | D191: 2074.803933 | E191: 7380.127119 | F191: 977.8470914 | G191: 603.8570862 | H191: 557.2780688 | I191: 679.2427508 | J191: 1352.581992 | K191: 1041.756059 | L191: 1473.47749 | M191: 2150.971107 | N191: 34997.70761 | O191: 31574.45737 | P191: 27062.29232 | Q191: 14684.40795 | R191: 12377.88437 | S191: 11380.12258 | T191: 19458.94982 | U191: -8078.827243 | V191: 7823.847567 | W191: 574.2965402 | X191: 7249.551026 | Y191: 1316.376141 | Z191: 1338.197061 | AA191: -21.82091974 | AB191: 1943.353272 | AC191: 1140.476903 | AD191: 802.8763694 | AE191: 3106.72288 | AF191: 3406.916702 | AG191: -300.1938214 | AH191: 52632.71476 | AI191: 40603.24497 | AJ191: 59209.42548 | AK191: 12029.46979 | AL191: 82061.77839 | AM191: 74381.73392 | AN191: 7680.044465 | AO191: 19709.51425 | AP191: 3589.435456 | AQ191: 1462.396211 | AR191: 7838.44483 | AS191: 9038.436715 | AT191: 345.3226841 | AU191: 187.7648762 | AV191: 2810.999173 | AW191: 3969.339928 | AX191: 1182.677395 | AY191: 561.430954 | AZ191: 2037.087605 | BA191: 2464.019645 | BB191: 5990.463544 | BC191: 4157.8298 | BD191: -17029.9513 | BE191: 19709.51425 | BF191: 2679.562949 | BG191: 27248.52611 | BH191: 39502.5892
A192: 2022-04-01 | B192: 6709.032603 | C192: 5596.841293 | D192: 2476.081147 | E192: 5863.001071 | F192: 958.076814 | G192: 343.4895469 | H192: 861.416308 | I192: 664.5111902 | J192: 1085.95307 | K192: 767.0058235 | L192: 1859.573354 | M192: 1987.063612 | N192: 27223.39333 | O192: 28394.50969 | P192: 26722.77038 | Q192: 13606.88908 | R192: 13115.88131 | S192: 12173.87122 | T192: 19961.882 | U192: -7788.010779 | V192: 7934.769514 | W192: 312.7507924 | X192: 7622.018722 | Y192: 1573.526043 | Z192: 1297.860438 | AA192: 275.6656053 | AB192: 1979.231529 | AC192: 1002.646095 | AD192: 976.5854337 | AE192: 3347.970794 | AF192: 3515.030832 | AG192: -167.0600388 | AH192: 53732.13948 | AI192: 39697.05924 | AJ192: 57317.03477 | AK192: 14035.08025 | AL192: 78700.55576 | AM192: 75641.2619 | AN192: 3059.293859 | AO192: 17094.37411 | AP192: 4087.41008 | AQ192: 3213.705621 | AR192: 8490.828077 | AS192: 6957.246085 | AT192: 218.3842865 | AU192: 320.4351741 | AV192: 3383.756591 | AW192: 3037.881192 | AX192: 644.4415827 | AY192: 298.6741594 | AZ192: 2249.396355 | BA192: 1957.458281 | BB192: 3522.128432 | BC192: 4906.505125 | BD192: -15471.10547 | BE192: 17094.37411 | BF192: 1623.268638 | BG192: 20540.18895 | BH192: 37639.35333
A193: 2022-05-01 | B193: 5377.676029 | C193: 4475.380538 | D193: 2390.229586 | E193: 7646.427848 | F193: 997.9948058 | G193: 462.6281966 | H193: 673.0875535 | I193: 774.5906172 | J193: 1426.300933 | K193: 1281.575313 | L193: 1586.867234 | M193: 2225.003761 | N193: 29338.35466 | O193: 26795.47479 | P193: 26034.05711 | Q193: 12200.28689 | R193: 13833.77021 | S193: 11602.35908 | T193: 20392.64879 | U193: -8790.289708 | V193: 8011.841302 | W193: 306.3970701 | X193: 7705.444232 | Y193: 1383.460999 | Z193: 1188.897301 | AA193: 194.5636982 | AB193: 1964.769046 | AC193: 1115.362827 | AD193: 849.4062189 | AE193: 2336.514166 | AF193: 3323.997071 | AG193: -987.4829049 | AH193: 51333.0017 | AI193: 38527.58995 | AJ193: 58119.26635 | AK193: 12805.41175 | AL193: 80824.51707 | AM193: 76905.5243 | AN193: 3918.992776 | AO193: 16724.40453 | AP193: 7617.52001 | AQ193: 7592.17198 | AR193: 8686.373756 | AS193: 9076.309275 | AT193: 532.8718661 | AU193: 622.0861786 | AV193: 3018.232758 | AW193: 3764.839237 | AX193: 668.4469356 | AY193: 361.0043655 | AZ193: 1625.255845 | BA193: 2298.366688 | BB193: 3922.929385 | BC193: 4165.458634 | BD193: -17045.74333 | BE193: 16724.40453 | BF193: -321.3388006 | BG193: 22475.87162 | BH193: 39120.93907
A194: 2022-06-01 | B194: 5492.113179 | C194: 4663.54358 | D194: 2689.006027 | E194: 7409.309241 | F194: 1085.069134 | G194: 306.897048 | H194: 987.9455494 | I194: 989.6619949 | J194: 1012.644977 | K194: 572.9278803 | L194: 2010.547795 | M194: 2040.867728 | N194: 27406.88265 | O194: 30113.67307 | P194: 25300.43254 | Q194: 11394.16402 | R194: 13906.26853 | S194: 11973.01876 | T194: 19658.47782 | U194: -7685.459062 | V194: 8470.420006 | W194: 256.6709104 | X194: 8213.749096 | Y194: 1563.021162 | Z194: 1286.766634 | AA194: 276.2545273 | AB194: 1940.932324 | AC194: 989.7817423 | AD194: 951.1505819 | AE194: 2628.758198 | AF194: 3192.497383 | AG194: -563.7391854 | AH194: 51995.90518 | AI194: 36763.78171 | AJ194: 56195.31534 | AK194: 15232.12347 | AL194: 80161.14747 | AM194: 79179.00164 | AN194: 982.14583 | AO194: 16214.2693 | AP194: 5266.652572 | AQ194: 4837.341097 | AR194: 9159.991857 | AS194: 8112.546614 | AT194: 562.8992385 | AU194: 898.1190221 | AV194: 3670.242321 | AW194: 3726.347435 | AX194: 797.4780891 | AY194: 355.4966611 | AZ194: 2537.381048 | BA194: 2427.505192 | BB194: 4772.717825 | BC194: 5231.442689 | BD194: -16377.77591 | BE194: 16214.2693 | BF194: -163.5066039 | BG194: 20805.78932 | BH194: 40740.881
A195: 2022-07-01 | B195: 8471.435604 | C195: 7791.658766 | D195: 2335.577863 | E195: 7603.347902 | F195: 1068.067089 | G195: 771.119365 | H195: 780.0011589 | I195: 805.8444232 | J195: 1522.713755 | K195: 1050.654907 | L195: 5399.714681 | M195: 2608.938112 | N195: 27034.64045 | O195: 31447.56059 | P195: 26145.85894 | Q195: 12566.1583 | R195: 13579.70064 | S195: 11624.86342 | T195: 18601.36525 | U195: -6976.501828 | V195: 8163.498397 | W195: 422.6874007 | X195: 7740.810997 | Y195: 1522.091204 | Z195: 1226.831451 | AA195: 295.2597525 | AB195: 1797.13488 | AC195: 891.7258457 | AD195: 905.4090341 | AE195: 6272.316245 | AF195: 3655.971461 | AG195: 2616.344784 | AH195: 55525.76309 | AI195: 37364.73971 | AJ195: 58269.23134 | AK195: 18161.02337 | AL195: 75465.83487 | AM195: 80285.53293 | AN195: -4819.698055 | AO195: 13341.32532 | AP195: 6815.912704 | AQ195: 6824.746812 | AR195: 7451.292525 | AS195: 8580.430408 | AT195: 1006.315435 | AU195: 1010.543648 | AV195: 2821.833243 | AW195: 3994.06926 | AX195: 790.5789824 | AY195: 349.8811909 | AZ195: 7379.961567 | BA195: 2426.050108 | BB195: 6357.528117 | BC195: 6608.829014 | BD195: -13691.04433 | BE195: 13341.32532 | BF195: -349.7190111 | BG195: 24389.49987 | BH195: 39324.27176
A196: 2022-08-01 | B196: 5636.34 | C196: 6188.153585 | D196: 1972.591609 | E196: 7116.966362 | F196: 1094.069426 | G196: 924.6978292 | H196: 678.1174884 | I196: 805.9508419 | J196: 1110.433474 | K196: 890.3502648 | L196: 11633.05581 | M196: 1948.036374 | N196: 23310.974 | O196: 29190.71308 | P196: 25953.16166 | Q196: 13075.29918 | R196: 12877.86248 | S196: 11481.32805 | T196: 18129.228 | U196: -6647.899952 | V196: 8242.311843 | W196: 598.6032526 | X196: 7643.70859 | Y196: 1468.004339 | Z196: 1231.266996 | AA196: 236.7373437 | AB196: 1864.104685 | AC196: 920.1442255 | AD196: 943.9604592 | AE196: 11423.36661 | AF196: 3225.351188 | AG196: 8198.015424 | AH196: 60432.27719 | AI196: 37179.89284 | AJ196: 62463.37501 | AK196: 23252.38435 | AL196: 71807.08192 | AM196: 81706.33109 | AN196: -9899.24917 | AO196: 13353.13518 | AP196: 3204.053743 | AQ196: 2751.897047 | AR196: 7696.988856 | AS196: 8524.195297 | AT196: 453.0256114 | AU196: 286.2381149 | AV196: 3419.600348 | AW196: 4437.205012 | AX196: 417.1393984 | AY196: 348.6332713 | AZ196: 5687.594004 | BA196: 2737.510307 | BB196: 4883.605169 | BC196: 5657.457269 | BD196: -13037.71244 | BE196: 13353.13518 | BF196: 315.4227333 | BG196: 25499.05708 | BH196: 42987.47557
A197: 2022-09-01 | B197: 5599.052 | C197: 5334.046993 | D197: 2715.900698 | E197: 6249.621401 | F197: 952.8702062 | G197: 566.141079 | H197: 678.3643261 | I197: 715.2553637 | J197: 578.9384001 | K197: 699.5342522 | L197: 11396.17276 | M197: 1847.534535 | N197: 23966.29049 | O197: 24783.06157 | P197: 25443.30043 | Q197: 12687.555 | R197: 12755.74543 | S197: 12006.33365 | T197: 17490.92398 | U197: -5484.590326 | V197: 8179.602261 | W197: 505.8122471 | X197: 7673.790014 | Y197: 1548.478755 | Z197: 1229.491669 | AA197: 318.9870862 | AB197: 1674.829743 | AC197: 983.3734147 | AD197: 691.456328 | AE197: 11740.5125 | AF197: 3380.148706 | AG197: 8360.363798 | AH197: 60593.05735 | AI197: 36277.30502 | AJ197: 60245.39671 | AK197: 24315.75233 | AL197: 68699.62635 | AM197: 78578.68446 | AN197: -9879.058107 | AO197: 14436.69422 | AP197: 4221.220443 | AQ197: 4088.179899 | AR197: 6706.695594 | AS197: 7915.814402 | AT197: 165.6130607 | AU197: 462.7897928 | AV197: 2956.143525 | AW197: 3507.788199 | AX197: 709.4139292 | AY197: 400.9422722 | AZ197: 3363.745925 | BA197: 2088.683697 | BB197: 4797.939979 | BC197: 4976.918865 | BD197: -13549.39874 | BE197: 14436.69422 | BF197: 887.2954828 | BG197: 24726.62862 | BH197: 36465.31029
A198: 2022-10-01 | B198: 3600.7 | C198: 4366.551399 | D198: 1879.399862 | E198: 6300.882568 | F198: 1317.669987 | G198: 632.4273196 | H198: 486.4709057 | I198: 539.230441 | J198: 967.6508994 | K198: 1332.327789 | L198: 10886.93761 | M198: 1747.74211 | N198: 21360.21799 | O198: 20453.15257 | P198: 23339.83845 | Q198: 11768.8713 | R198: 11570.96715 | S198: 11673.92809 | T198: 17187.53642 | U198: -5513.608331 | V198: 8215.754015 | W198: 346.876417 | X198: 7868.877598 | Y198: 1412.305679 | Z198: 1217.04464 | AA198: 195.2610393 | AB198: 1700.638426 | AC198: 1263.010006 | AD198: 437.6284194 | AE198: 11597.05605 | AF198: 3459.530585 | AG198: 8137.525468 | AH198: 57939.52072 | AI198: 35242.86937 | AJ198: 63007.05593 | AK198: 22696.65134 | AL198: 68484.37642 | AM198: 76187.22494 | AN198: -7702.848519 | AO198: 14993.80283 | AP198: 2900.09304 | AQ198: 2198.85166 | AR198: 7831.311088 | AS198: 8044.904626 | AT198: 267.5681105 | AU198: 438.438227 | AV198: 2876.360472 | AW198: 3061.58112 | AX198: 1165.886979 | AY198: 729.2377572 | AZ198: 1538.25683 | BA198: 1945.761276 | BB198: 4182.772882 | BC198: 5040.030249 | BD198: -14549.68749 | BE198: 14993.80283 | BF198: 444.115336 | BG198: 24681.37054 | BH198: 38531.45658
A199: 2022-11-01 | B199: 5714.4835 | C199: 5766.099376 | D199: 2763.134115 | E199: 7623.979882 | F199: 815.6300093 | G199: 530.7405358 | H199: 558.7573153 | I199: 530.4473722 | J199: 1268.629537 | K199: 1473.576171 | L199: 12442.5911 | M199: 2007.095684 | N199: 27329.55795 | O199: 25406.22613 | P199: 23321.00194 | Q199: 11979.96732 | R199: 11341.03462 | S199: 11687.76588 | T199: 17776.4733 | U199: -6088.707427 | V199: 8073.261488 | W199: 282.0247309 | X199: 7791.236757 | Y199: 1442.225915 | Z199: 1287.962144 | AA199: 154.2637715 | AB199: 1599.620036 | AC199: 1364.883817 | AD199: 234.7362185 | AE199: 12050.68206 | AF199: 3344.997076 | AG199: 8705.684985 | AH199: 58174.55731 | AI199: 36036.30839 | AJ199: 65134.8302 | AK199: 22138.24893 | AL199: 74383.18307 | AM199: 79071.4982 | AN199: -4688.315128 | AO199: 17449.9338 | AP199: 1665.583956 | AQ199: 1633.342063 | AR199: 7815.781792 | AS199: 8971.348169 | AT199: 576.1915763 | AU199: 509.2767437 | AV199: 2950.587303 | AW199: 3554.889049 | AX199: 1156.683708 | AY199: 954.464185 | AZ199: 1673.274977 | BA199: 2334.087333 | BB199: 8156.10784 | BC199: 7632.276727 | BD199: -15982.61648 | BE199: 17449.9338 | BF199: 1467.317319 | BG199: 27707.83269 | BH199: 43300.29001
A200: 2022-12-01 | B200: 5956.997 | C200: 4287.468822 | D200: 2307.873605 | E200: 10070.4885 | F200: 695.8577427 | G200: 447.9752731 | H200: 354.708487 | I200: 469.1712189 | J200: 1119.860078 | K200: 1246.397667 | L200: 12241.99467 | M200: 1955.203063 | N200: 26511.78245 | O200: 21956.90407 | P200: 22060.34969 | Q200: 10925.161 | R200: 11135.18869 | S200: 11342.42683 | T200: 19397.50878 | U200: -8055.081951 | V200: 8089.785773 | W200: 323.7936379 | X200: 7765.992136 | Y200: 1317.889284 | Z200: 1166.310524 | AA200: 151.5787596 | AB200: 1641.450521 | AC200: 1598.907813 | AD200: 42.54270846 | AE200: 11850.27572 | AF200: 3150.60196 | AG200: 8699.673755 | AH200: 56302.17782 | AI200: 36562.28372 | AJ200: 65908.68796 | AK200: 19739.8941 | AL200: 71764.62598 | AM200: 73677.92939 | AN200: -1913.303404 | AO200: 17826.5907 | AP200: 1060.603247 | AQ200: 1024.627725 | AR200: 12140.12977 | AS200: 10094.92302 | AT200: 537.4324896 | AU200: 615.1239261 | AV200: 2408.291601 | AW200: 3285.77983 | AX200: 1033.824097 | AY200: 915.0924132 | AZ200: 3187.301119 | BA200: 3156.740046 | BB200: 7669.262355 | BC200: 8466.227886 | BD200: -16107.08528 | BE200: 17826.5907 | BF200: 1719.505417 | BG200: 29752.9762 | BH200: 44989.48506
... 3 more rows

Sheet FAME Persistence2 (hidden)
A1: 59 | B1: Gráficos
A2: Base original | B2: $B$9 | C2: A1:A204 | D2: 2962.151231 | E2: 2023-04-17T18:44:19 | F2: TRUE | G2: F029.DER.FLU.AFPMLV.M | H2: 2007 | I2: 2023 | J2: 0 | K2: Monthly | L2: FALSE | M2: FALSE | N2: FALSE
A3: Base original | B3: $C$9 | C3: A1:A204 | D3: 1056.030171 | E3: 2023-04-17T18:44:19 | F3: TRUE | G3: F029.DER.FLU.AFPMLC.M | H3: 2007 | I3: 2023 | J3: 0 | K3: Monthly | L3: FALSE | M3: FALSE | N3: FALSE
A4: Base original | B4: $D$9 | C4: A1:A204 | D4: 1378.614178 | E4: 2023-04-17T18:44:19 | F4: TRUE | G4: F029.DER.FLU.ENFMLV.M | H4: 2007 | I4: 2023 | J4: 0 | K4: Monthly | L4: FALSE | M4: FALSE | N4: FALSE
A5: Base original | B5: $E$9 | C5: A1:A204 | D5: 2150.119217 | E5: 2023-04-17T18:44:19 | F5: TRUE | G5: F029.DER.FLU.ENFMLC.M | H5: 2007 | I5: 2023 | J5: 0 | K5: Monthly | L5: FALSE | M5: FALSE | N5: FALSE
A6: Base original | B6: $F$9 | C6: A1:A204 | D6: 324.887796 | E6: 2023-04-17T18:44:19 | F6: TRUE | G6: F029.DER.FLU.CDSMLV.M | H6: 2007 | I6: 2023 | J6: 0 | K6: Monthly | L6: FALSE | M6: FALSE | N6: FALSE
A7: Base original | B7: $G$9 | C7: A1:A204 | D7: 44.296747 | E7: 2023-04-17T18:44:19 | F7: TRUE | G7: F029.DER.FLU.CDSMLC.M | H7: 2007 | I7: 2023 | J7: 0 | K7: Monthly | L7: FALSE | M7: FALSE | N7: FALSE
A8: Base original | B8: $H$9 | C8: A1:A204 | D8: 872.129052 | E8: 2023-04-17T18:44:19 | F8: TRUE | G8: F029.DER.FLU.CBVMLV.M | H8: 2007 | I8: 2023 | J8: 0 | K8: Monthly | L8: FALSE | M8: FALSE | N8: FALSE
A9: Base original | B9: $I$9 | C9: A1:A204 | D9: 1981.579447 | E9: 2023-04-17T18:44:19 | F9: TRUE | G9: F029.DER.FLU.CBVMLC.M | H9: 2007 | I9: 2023 | J9: 0 | K9: Monthly | L9: FALSE | M9: FALSE | N9: FALSE
A10: Base original | B10: $J$9 | C10: A1:A204 | D10: 245.332627 | E10: 2023-04-17T18:44:19 | F10: TRUE | G10: F029.DER.FLU.FMMLV.M | H10: 2007 | I10: 2023 | J10: 0 | K10: Monthly | L10: FALSE | M10: FALSE | N10: FALSE
A11: Base original | B11: $K$9 | C11: A1:A204 | D11: 29.335 | E11: 2023-04-17T18:44:19 | F11: TRUE | G11: F029.DER.FLU.FMMLC.M | H11: 2007 | I11: 2023 | J11: 0 | K11: Monthly | L11: FALSE | M11: FALSE | N11: FALSE
A12: Base original | B12: $L$9 | C12: A1:A204 | D12: 2322.058877 | E12: 2023-04-17T18:44:19 | F12: TRUE | G12: F029.DER.FLU.OMLV.M | H12: 2007 | I12: 2023 | J12: 0 | K12: Monthly | L12: FALSE | M12: FALSE | N12: FALSE
A13: Base original | B13: $M$9 | C13: A1:A204 | D13: 896.8575858 | E13: 2023-04-17T18:44:19 | F13: TRUE | G13: F029.DER.FLU.OMLC.M | H13: 2007 | I13: 2023 | J13: 0 | K13: Monthly | L13: FALSE | M13: FALSE | N13: FALSE
A14: Base original | B14: $N$9 | C14: A1:A204 | D14: 10415.73229 | E14: 2023-04-17T18:44:19 | F14: TRUE | G14: F029.DER.PFL.CCTME.M | H14: 2007 | I14: 2023 | J14: 0 | K14: Monthly | L14: FALSE | M14: FALSE | N14: FALSE
A15: Base original | B15: $O$9 | C15: A1:A204 | D15: 14395.10542 | E15: 2023-04-17T18:44:19 | F15: TRUE | G15: F029.DER.PFL.CVTME.M | H15: 2007 | I15: 2023 | J15: 0 | K15: Monthly | L15: FALSE | M15: FALSE | N15: FALSE
A16: Base original | B16: $P$9 | C16: A1:A204 | D16: 12784.84088 | E16: 2023-04-17T18:44:19 | F16: TRUE | G16: F029.FWD.STO.AFPMLV.M | H16: 2007 | I16: 2023 | J16: 0 | K16: Monthly | L16: FALSE | M16: FALSE | N16: FALSE
A17: Base original | B17: $Q$9 | C17: A1:A204 | D17: 996.9728841 | E17: 2023-04-17T18:44:19 | F17: TRUE | G17: F029.FWD.STO.AFPMLC.M | H17: 2007 | I17: 2023 | J17: 0 | K17: Monthly | L17: FALSE | M17: FALSE | N17: FALSE
A18: Base original | B18: $R$9 | C18: A1:A204 | D18: 11787.868 | E18: 2023-04-17T18:44:19 | F18: TRUE | G18: F029.FWD.STO.MLAFP.M | H18: 2007 | I18: 2023 | J18: 0 | K18: Monthly | L18: FALSE | M18: FALSE | N18: FALSE
A19: Base original | B19: $S$9 | C19: A1:A204 | D19: 1951.406784 | E19: 2023-04-17T18:44:19 | F19: TRUE | G19: F029.FWD.STO.ENFMLV.M | H19: 2007 | I19: 2023 | J19: 0 | K19: Monthly | L19: FALSE | M19: FALSE | N19: FALSE
A20: Base original | B20: $T$9 | C20: A1:A204 | D20: 3808.237097 | E20: 2023-04-17T18:44:19 | F20: TRUE | G20: F029.FWD.STO.ENFMLC.M | H20: 2007 | I20: 2023 | J20: 0 | K20: Monthly | L20: FALSE | M20: FALSE | N20: FALSE
A21: Base original | B21: $U$9 | C21: A1:A204 | D21: -1856.830313 | E21: 2023-04-17T18:44:19 | F21: TRUE | G21: F029.FWD.STO.MLENF.M | H21: 2007 | I21: 2023 | J21: 0 | K21: Monthly | L21: FALSE | M21: FALSE | N21: FALSE
A22: Base original | B22: $V$9 | C22: A1:A204 | D22: 668.99142 | E22: 2023-04-17T18:44:19 | F22: TRUE | G22: F029.FWD.STO.CDSMLV.M | H22: 2007 | I22: 2023 | J22: 0 | K22: Monthly | L22: FALSE | M22: FALSE | N22: FALSE
A23: Base original | B23: $W$9 | C23: A1:A204 | D23: 26.859748 | E23: 2023-04-17T18:44:19 | F23: TRUE | G23: F029.FWD.STO.CDSMLC.M | H23: 2007 | I23: 2023 | J23: 0 | K23: Monthly | L23: FALSE | M23: FALSE | N23: FALSE
A24: Base original | B24: $X$9 | C24: A1:A204 | D24: 642.131672 | E24: 2023-04-17T18:44:19 | F24: TRUE | G24: F029.FWD.STO.MLCDS.M | H24: 2007 | I24: 2023 | J24: 0 | K24: Monthly | L24: FALSE | M24: FALSE | N24: FALSE
A25: Base original | B25: $Y$9 | C25: A1:A204 | D25: 581.997155 | E25: 2023-04-17T18:44:19 | F25: TRUE | G25: F029.FWD.STO.CBVMLV.M | H25: 2007 | I25: 2023 | J25: 0 | K25: Monthly | L25: FALSE | M25: FALSE | N25: FALSE
A26: Base original | B26: $Z$9 | C26: A1:A204 | D26: 1114.077257 | E26: 2023-04-17T18:44:19 | F26: TRUE | G26: F029.FWD.STO.CBVMLC.M | H26: 2007 | I26: 2023 | J26: 0 | K26: Monthly | L26: FALSE | M26: FALSE | N26: FALSE
A27: Base original | B27: $AA$9 | C27: A1:A204 | D27: -532.080102 | E27: 2023-04-17T18:44:19 | F27: TRUE | G27: F029.FWD.STO.MLCBV.M | H27: 2007 | I27: 2023 | J27: 0 | K27: Monthly | L27: FALSE | M27: FALSE | N27: FALSE
A28: Base original | B28: $AB$9 | C28: A1:A204 | D28: 276.252826 | E28: 2023-04-17T18:44:19 | F28: TRUE | G28: F029.FWD.STO.FMMLV.M | H28: 2007 | I28: 2023 | J28: 0 | K28: Monthly | L28: FALSE | M28: FALSE | N28: FALSE
A29: Base original | B29: $AC$9 | C29: A1:A204 | D29: 33.094014 | E29: 2023-04-17T18:44:19 | F29: TRUE | G29: F029.FWD.STO.FMMLC.M | H29: 2007 | I29: 2023 | J29: 0 | K29: Monthly | L29: FALSE | M29: FALSE | N29: FALSE
A30: Base original | B30: $AD$9 | C30: A1:A204 | D30: 243.158812 | E30: 2023-04-17T18:44:19 | F30: TRUE | G30: F029.FWD.STO.MLFM.M | H30: 2007 | I30: 2023 | J30: 0 | K30: Monthly | L30: FALSE | M30: FALSE | N30: FALSE
A31: Base original | B31: $AE$9 | C31: A1:A204 | D31: 3614.754245 | E31: 2023-04-17T18:44:19 | F31: TRUE | G31: F029.FWD.STO.OMLV.M | H31: 2007 | I31: 2023 | J31: 0 | K31: Monthly | L31: FALSE | M31: FALSE | N31: FALSE
A32: Base original | B32: $AF$9 | C32: A1:A204 | D32: 5776.21883 | E32: 2023-04-17T18:44:19 | F32: TRUE | G32: F029.FWD.STO.OMLC.M | H32: 2007 | I32: 2023 | J32: 0 | K32: Monthly | L32: FALSE | M32: FALSE | N32: FALSE
A33: Base original | B33: $AG$9 | C33: A1:A204 | D33: -2161.464585 | E33: 2023-04-17T18:44:19 | F33: TRUE | G33: F029.FWD.STO.MLO.M | H33: 2007 | I33: 2023 | J33: 0 | K33: Monthly | L33: FALSE | M33: FALSE | N33: FALSE
A34: Base original | B34: $AH$9 | C34: A1:A204 | D34: 19878.24331 | E34: 2023-04-17T18:44:19 | F34: TRUE | G34: F029.DER.STO.CCTML.M | H34: 2007 | I34: 2023 | J34: 0 | K34: Monthly | L34: FALSE | M34: FALSE | N34: FALSE
A35: Base original | B35: $AI$9 | C35: A1:A204 | D35: 11755.45983 | E35: 2023-04-17T18:44:19 | F35: TRUE | G35: F029.DER.STO.CVTML.M | H35: 2007 | I35: 2023 | J35: 0 | K35: Monthly | L35: FALSE | M35: FALSE | N35: FALSE
A36: Base original | B36: $AJ$9 | C36: A1:A204 | D36: 20609.02253 | E36: 2023-04-17T18:44:19 | F36: TRUE | G36: F029.DER.STO.CI.M | H36: 2007 | I36: 2023 | J36: 0 | K36: Monthly | L36: FALSE | M36: FALSE | N36: FALSE
A37: Base original | B37: $AK$9 | C37: A1:A204 | D37: 8122.737652 | E37: 2023-04-17T18:44:19 | F37: TRUE | G37: F029.FWD.STO.ML.M | H37: 2007 | I37: 2023 | J37: 0 | K37: Monthly | L37: FALSE | M37: FALSE | N37: FALSE
A38: Base original | B38: $AL$9 | C38: A1:A204 | D38: 10777.17456 | E38: 2023-04-17T18:44:20 | F38: TRUE | G38: F029.DER.STO.CCTME.M | H38: 2007 | I38: 2023 | J38: 0 | K38: Monthly | L38: FALSE | M38: FALSE | N38: FALSE
A39: Base original | B39: $AM$9 | C39: A1:A204 | D39: 19959.35217 | E39: 2023-04-17T18:44:20 | F39: TRUE | G39: F029.DER.STO.CVTME.M | H39: 2007 | I39: 2023 | J39: 0 | K39: Monthly | L39: FALSE | M39: FALSE | N39: FALSE
A40: Base original | B40: $AN$9 | C40: A1:A204 | D40: -9182.177608 | E40: 2023-04-17T18:44:20 | F40: TRUE | G40: F029.FWD.STO.ME.M | H40: 2007 | I40: 2023 | J40: 0 | K40: Monthly | L40: FALSE | M40: FALSE | N40: FALSE
A41: Base original | B41: $AO$9 | C41: A1:A204 | D41: -1059.439956 | E41: 2023-04-17T18:44:20 | F41: TRUE | G41: F029.FWD.STO.Z.M | H41: 2007 | I41: 2023 | J41: 0 | K41: Monthly | L41: FALSE | M41: FALSE | N41: FALSE
A42: Base original | B42: $AP$9 | C42: A1:A204 | D42: 1050.057719 | E42: 2023-04-17T18:44:20 | F42: TRUE | G42: F099.SPT.FLU.Z.MCF.R.42.COM.Z.MMUSD.MLME.Z.Z.0.M | H42: 2007 | I42: 2023 | J42: 0 | K42: Monthly | L42: FALSE | M42: FALSE | N42: FALSE
A43: Base original | B43: $AQ$9 | C43: A1:A204 | D43: 1169.065329 | E43: 2023-04-17T18:44:20 | F43: TRUE | G43: F099.SPT.FLU.Z.MCF.R.42.VTA.Z.MMUSD.MLME.Z.Z.0.M | H43: 2007 | I43: 2023 | J43: 0 | K43: Monthly | L43: FALSE | M43: FALSE | N43: FALSE
A44: Base original | B44: $AR$9 | C44: A1:A204 | D44: 3012.275183 | E44: 2023-04-17T18:44:20 | F44: TRUE | G44: F099.SPT.FLU.Z.MCF.R.55A.COM.Z.MMUSD.MLME.Z.Z.0.M | H44: 2007 | I44: 2023 | J44: 0 | K44: Monthly | L44: FALSE | M44: FALSE | N44: FALSE
A45: Base original | B45: $AS$9 | C45: A1:A204 | D45: 2787.046022 | E45: 2023-04-17T18:44:20 | F45: TRUE | G45: F099.SPT.FLU.Z.MCF.R.55A.VTA.Z.MMUSD.MLME.Z.Z.0.M | H45: 2007 | I45: 2023 | J45: 0 | K45: Monthly | L45: FALSE | M45: FALSE | N45: FALSE
A46: Base original | B46: $AT$9 | C46: A1:A204 | D46: 20.21946071 | E46: 2023-04-17T18:44:20 | F46: TRUE | G46: F099.SPT.FLU.Z.MCF.R.44.COM.Z.MMUSD.MLME.Z.Z.0.M | H46: 2007 | I46: 2023 | J46: 0 | K46: Monthly | L46: FALSE | M46: FALSE | N46: FALSE
A47: Base original | B47: $AU$9 | C47: A1:A204 | D47: 36.6622212 | E47: 2023-04-17T18:44:20 | F47: TRUE | G47: F099.SPT.FLU.Z.MCF.R.44.VTA.Z.MMUSD.MLME.Z.Z.0.M | H47: 2007 | I47: 2023 | J47: 0 | K47: Monthly | L47: FALSE | M47: FALSE | N47: FALSE
A48: Base original | B48: $AV$9 | C48: A1:A204 | D48: 4545.210892 | E48: 2023-04-17T18:44:20 | F48: TRUE | G48: F099.SPT.FLU.Z.MCF.R.39A.COM.Z.MMUSD.MLME.Z.Z.0.M | H48: 2007 | I48: 2023 | J48: 0 | K48: Monthly | L48: FALSE | M48: FALSE | N48: FALSE
A49: Base original | B49: $AW$9 | C49: A1:A204 | D49: 4253.789108 | E49: 2023-04-17T18:44:20 | F49: TRUE | G49: F099.SPT.FLU.Z.MCF.R.39A.VTA.Z.MMUSD.MLME.Z.Z.0.M | H49: 2007 | I49: 2023 | J49: 0 | K49: Monthly | L49: FALSE | M49: FALSE | N49: FALSE
A50: Base original | B50: $AX$9 | C50: A1:A204 | D50: 48.67053684 | E50: 2023-04-17T18:44:20 | F50: TRUE | G50: F099.SPT.FLU.Z.MCF.R.38.COM.Z.MMUSD.MLME.Z.Z.0.M | H50: 2007 | I50: 2023 | J50: 0 | K50: Monthly | L50: FALSE | M50: FALSE | N50: FALSE
A51: Base original | B51: $AY$9 | C51: A1:A204 | D51: 225.6788062 | E51: 2023-04-17T18:44:20 | F51: TRUE | G51: F099.SPT.FLU.Z.MCF.R.38.VTA.Z.MMUSD.MLME.Z.Z.0.M | H51: 2007 | I51: 2023 | J51: 0 | K51: Monthly | L51: FALSE | M51: FALSE | N51: FALSE
A52: Base original | B52: $AZ$9 | C52: A1:A204 | D52: 1349.957317 | E52: 2023-04-17T18:44:20 | F52: TRUE | G52: F099.SPT.FLU.Z.MCF.R.50.COM.Z.MMUSD.MLME.Z.Z.0.M | H52: 2007 | I52: 2023 | J52: 0 | K52: Monthly | L52: FALSE | M52: FALSE | N52: FALSE
A53: Base original | B53: $BA$9 | C53: A1:A204 | D53: 1072.993304 | E53: 2023-04-17T18:44:20 | F53: TRUE | G53: F099.SPT.FLU.Z.MCF.R.50.VTA.Z.MMUSD.MLME.Z.Z.0.M | H53: 2007 | I53: 2023 | J53: 0 | K53: Monthly | L53: FALSE | M53: FALSE | N53: FALSE
A54: Base original | B54: $BB$9 | C54: A1:A204 | D54: 613.8614618 | E54: 2023-04-17T18:44:20 | F54: TRUE | G54: F099.SPT.FLU.Z.MCF.N.NR.COM.Z.MMUSD.MLME.Z.Z.0.M | H54: 2007 | I54: 2023 | J54: 0 | K54: Monthly | L54: FALSE | M54: FALSE | N54: FALSE
A55: Base original | B55: $BC$9 | C55: A1:A204 | D55: 679.3752101 | E55: 2023-04-17T18:44:20 | F55: TRUE | G55: F099.SPT.FLU.Z.MCF.N.NR.VTA.Z.MMUSD.MLME.Z.Z.0.M | H55: 2007 | I55: 2023 | J55: 0 | K55: Monthly | L55: FALSE | M55: FALSE | N55: FALSE
A56: Base original | B56: $BD$9 | C56: A1:A204 | D56: -353.4621339 | E56: 2023-04-17T18:44:20 | F56: TRUE | G56: F029.SPT.STO.82.M | H56: 2007 | I56: 2023 | J56: 0 | K56: Monthly | L56: FALSE | M56: FALSE | N56: FALSE
A57: Base original | B57: $BE$9 | C57: A1:A204 | D57: -1059.439956 | E57: 2023-04-17T18:44:20 | F57: TRUE | G57: F029.FWD.STO.Z.M | H57: 2007 | I57: 2023 | J57: 0 | K57: Monthly | L57: FALSE | M57: FALSE | N57: FALSE
A58: Base original | B58: $BF$9 | C58: A1:A204 | D58: -1412.90209 | E58: 2023-04-17T18:44:20 | F58: TRUE | G58: F029.FS.STO.80.M | H58: 2007 | I58: 2023 | J58: 0 | K58: Monthly | L58: FALSE | M58: FALSE | N58: FALSE
A59: Base original | B59: $BG$9 | C59: A1:A204 | D59: 12289.03164 | E59: 2023-04-17T18:44:20 | F59: TRUE | G59: F029.DER.PFL.CITML.M | H59: 2007 | I59: 2023 | J59: 0 | K59: Monthly | L59: FALSE | M59: FALSE | N59: FALSE
A60: Base original | B60: $BH$9 | C60: A1:A204 | D60: 29655.15 | E60: 2023-04-17T18:44:20 | F60: TRUE | G60: F099.SPT.FLU.Z.MCF.R.MCF.TOT.Z.MMUSD.MLME.Z.Z.0.M | H60: 2007 | I60: 2023 | J60: 0 | K60: Monthly | L60: FALSE | M60: FALSE | N60: FALSE

Sheet Base gráficos 1
B1: DERIVADOS | I1: SPOT
B2: SUSCRIPCIONES | F2: POSICIONES | I2: SUSCRIPCIONES
B4: Corredoras y AGF | D4: TOTAL LOCAL | F4: Corredoras y AGF | I4: Corredoras y AGF
B5: compras | C5: ventas | D5: compras | E5: ventas | F5: compras | G5: ventas | H5: neta | I5: compras | J5: ventas | K5: Total
B7: Suma Corredoras y FFMM | F7: Suma Corredoras y FFMM | G7: Suma Corredoras y FFMM | I7: Suma Corredoras y FFMM | J7: Suma Corredoras y FFMM Negativo | K7: compra más venta
A9: =+'Base original'!A9 -> 2007-01-01 | B9: ='Base original'!H9+'Base original'!J9 ->  | C9: ='Base original'!I9+'Base original'!K9 ->  | D9: =+'Base original'!B9+'Base original'!D9+'Base original'!F9+'Base original'!H9+'Base original'!J9+'Base original'!L9 ->  | E9: =+'Base original'!C9+'Base original'!E9+'Base original'!G9+'Base original'!I9+'Base original'!K9+'Base original'!M9 ->  | F9: =+'Base original'!Y9+'Base original'!AB9 ->  | G9: =+'Base original'!Z9+'Base original'!AC9 ->  | H9: =+'Base original'!AD9+'Base original'!AA9 ->  | I9: =+'Base original'!AV9+'Base original'!AX9 ->  | J9: ='Base original'!AY9+'Base original'!AW9 ->  | K9: =+I9+J9 -> 
A10: =+'Base original'!A10 -> 2007-02-01 | B10: ='Base original'!H10+'Base original'!J10 -> 951.0767435 | C10: ='Base original'!I10+'Base original'!K10 -> 1593.408852 | D10: =+'Base original'!B10+'Base original'!D10+'Base original'!F10+'Base original'!H10+'Base original'!J10+'Base original'!L10 -> 5715.36013 | E10: =+'Base original'!C10+'Base original'!E10+'Base original'!G10+'Base original'!I10+'Base original'!K10+'Base original'!M10 -> 4459.33514 | F10: =+'Base original'!Y10+'Base original'!AB10 -> 984.123589 | G10: =+'Base original'!Z10+'Base original'!AC10 -> 1422.334751 | H10: =+'Base original'!AD10+'Base original'!AA10 -> -438.211162 | I10: =+'Base original'!AV10+'Base original'!AX10 -> 3829.639361 | J10: ='Base original'!AY10+'Base original'!AW10 -> 4037.536439 | K10: =+I10+J10 -> 7867.1758
A11: =+'Base original'!A11 -> 2007-03-01 | B11: ='Base original'!H11+'Base original'!J11 -> 1031.675641 | C11: ='Base original'!I11+'Base original'!K11 -> 1044.514289 | D11: =+'Base original'!B11+'Base original'!D11+'Base original'!F11+'Base original'!H11+'Base original'!J11+'Base original'!L11 -> 7237.9944 | E11: =+'Base original'!C11+'Base original'!E11+'Base original'!G11+'Base original'!I11+'Base original'!K11+'Base original'!M11 -> 4539.508449 | F11: =+'Base original'!Y11+'Base original'!AB11 -> 980.5631778 | G11: =+'Base original'!Z11+'Base original'!AC11 -> 1288.554255 | H11: =+'Base original'!AD11+'Base original'!AA11 -> -307.991077 | I11: =+'Base original'!AV11+'Base original'!AX11 -> 5061.369371 | J11: ='Base original'!AY11+'Base original'!AW11 -> 4773.861453 | K11: 9835.230824
A12: =+'Base original'!A12 -> 2007-04-01 | B12: ='Base original'!H12+'Base original'!J12 -> 668.0821958 | C12: ='Base original'!I12+'Base original'!K12 -> 1204.639197 | D12: =+'Base original'!B12+'Base original'!D12+'Base original'!F12+'Base original'!H12+'Base original'!J12+'Base original'!L12 -> 5961.131157 | E12: =+'Base original'!C12+'Base original'!E12+'Base original'!G12+'Base original'!I12+'Base original'!K12+'Base original'!M12 -> 6067.785296 | F12: =+'Base original'!Y12+'Base original'!AB12 -> 651.4636975 | G12: =+'Base original'!Z12+'Base original'!AC12 -> 1567.993841 | H12: =+'Base original'!AD12+'Base original'!AA12 -> -916.530143 | I12: =+'Base original'!AV12+'Base original'!AX12 -> 3928.37934 | J12: ='Base original'!AY12+'Base original'!AW12 -> 4013.065701 | K12: 7941.445041
A13: =+'Base original'!A13 -> 2007-05-01 | B13: ='Base original'!H13+'Base original'!J13 -> 1222.214815 | C13: ='Base original'!I13+'Base original'!K13 -> 1312.432098 | D13: =+'Base original'!B13+'Base original'!D13+'Base original'!F13+'Base original'!H13+'Base original'!J13+'Base original'!L13 -> 10261.99642 | E13: =+'Base original'!C13+'Base original'!E13+'Base original'!G13+'Base original'!I13+'Base original'!K13+'Base original'!M13 -> 7438.329578 | F13: =+'Base original'!Y13+'Base original'!AB13 -> 938.5197874 | G13: =+'Base original'!Z13+'Base original'!AC13 -> 1501.321131 | H13: =+'Base original'!AD13+'Base original'!AA13 -> -562.801344 | I13: =+'Base original'!AV13+'Base original'!AX13 -> 5678.957334 | J13: ='Base original'!AY13+'Base original'!AW13 -> 5799.427218 | K13: 11478.38455
A14: =+'Base original'!A14 -> 2007-06-01 | B14: ='Base original'!H14+'Base original'!J14 -> 1087.543235 | C14: ='Base original'!I14+'Base original'!K14 -> 1267.894421 | D14: =+'Base original'!B14+'Base original'!D14+'Base original'!F14+'Base original'!H14+'Base original'!J14+'Base original'!L14 -> 10656.32088 | E14: =+'Base original'!C14+'Base original'!E14+'Base original'!G14+'Base original'!I14+'Base original'!K14+'Base original'!M14 -> 5235.281881 | F14: =+'Base original'!Y14+'Base original'!AB14 -> 1070.315245 | G14: =+'Base original'!Z14+'Base original'!AC14 -> 1450.237998 | H14: =+'Base original'!AD14+'Base original'!AA14 -> -379.922753 | I14: =+'Base original'!AV14+'Base original'!AX14 -> 5001.814335 | J14: ='Base original'!AY14+'Base original'!AW14 -> 5128.403497 | K14: 10130.21783
A15: =+'Base original'!A15 -> 2007-07-01 | B15: ='Base original'!H15+'Base original'!J15 -> 1182.491115 | C15: ='Base original'!I15+'Base original'!K15 -> 1717.644255 | D15: =+'Base original'!B15+'Base original'!D15+'Base original'!F15+'Base original'!H15+'Base original'!J15+'Base original'!L15 -> 10271.35963 | E15: =+'Base original'!C15+'Base original'!E15+'Base original'!G15+'Base original'!I15+'Base original'!K15+'Base original'!M15 -> 8216.300005 | F15: =+'Base original'!Y15+'Base original'!AB15 -> 1302.01078 | G15: =+'Base original'!Z15+'Base original'!AC15 -> 1665.880143 | H15: =+'Base original'!AD15+'Base original'!AA15 -> -363.869363 | I15: =+'Base original'!AV15+'Base original'!AX15 -> 5618.289936 | J15: ='Base original'!AY15+'Base original'!AW15 -> 5987.68901 | K15: 11605.97895
A16: =+'Base original'!A16 -> 2007-08-01 | B16: ='Base original'!H16+'Base original'!J16 -> 1195.872847 | C16: ='Base original'!I16+'Base original'!K16 -> 1946.133805 | D16: =+'Base original'!B16+'Base original'!D16+'Base original'!F16+'Base original'!H16+'Base original'!J16+'Base original'!L16 -> 12887.50725 | E16: =+'Base original'!C16+'Base original'!E16+'Base original'!G16+'Base original'!I16+'Base original'!K16+'Base original'!M16 -> 9047.425762 | F16: =+'Base original'!Y16+'Base original'!AB16 -> 1284.319822 | G16: =+'Base original'!Z16+'Base original'!AC16 -> 1609.295862 | H16: =+'Base original'!AD16+'Base original'!AA16 -> -324.97604 | I16: =+'Base original'!AV16+'Base original'!AX16 -> 6729.127894 | J16: ='Base original'!AY16+'Base original'!AW16 -> 6682.644814 | K16: 13411.77271
A17: =+'Base original'!A17 -> 2007-09-01 | B17: ='Base original'!H17+'Base original'!J17 -> 605.9142461 | C17: ='Base original'!I17+'Base original'!K17 -> 1546.416639 | D17: =+'Base original'!B17+'Base original'!D17+'Base original'!F17+'Base original'!H17+'Base original'!J17+'Base original'!L17 -> 7198.026445 | E17: =+'Base original'!C17+'Base original'!E17+'Base original'!G17+'Base original'!I17+'Base original'!K17+'Base original'!M17 -> 9337.696513 | F17: =+'Base original'!Y17+'Base original'!AB17 -> 1027.470298 | G17: =+'Base original'!Z17+'Base original'!AC17 -> 1990.606017 | H17: =+'Base original'!AD17+'Base original'!AA17 -> -963.135719 | I17: =+'Base original'!AV17+'Base original'!AX17 -> 4375.475299 | J17: ='Base original'!AY17+'Base original'!AW17 -> 4292.117438 | K17: 8667.592738
A18: =+'Base original'!A18 -> 2007-10-01 | B18: ='Base original'!H18+'Base original'!J18 -> 1137.077028 | C18: ='Base original'!I18+'Base original'!K18 -> 2017.962676 | D18: =+'Base original'!B18+'Base original'!D18+'Base original'!F18+'Base original'!H18+'Base original'!J18+'Base original'!L18 -> 10434.7194 | E18: =+'Base original'!C18+'Base original'!E18+'Base original'!G18+'Base original'!I18+'Base original'!K18+'Base original'!M18 -> 12363.45724 | F18: =+'Base original'!Y18+'Base original'!AB18 -> 1105.315085 | G18: =+'Base original'!Z18+'Base original'!AC18 -> 2017.863681 | H18: =+'Base original'!AD18+'Base original'!AA18 -> -912.548596 | I18: =+'Base original'!AV18+'Base original'!AX18 -> 5629.611501 | J18: ='Base original'!AY18+'Base original'!AW18 -> 5628.67316 | K18: 11258.28466
A19: =+'Base original'!A19 -> 2007-11-01 | B19: ='Base original'!H19+'Base original'!J19 -> 1238.021517 | C19: ='Base original'!I19+'Base original'!K19 -> 1598.682277 | D19: =+'Base original'!B19+'Base original'!D19+'Base original'!F19+'Base original'!H19+'Base original'!J19+'Base original'!L19 -> 11008.46366 | E19: =+'Base original'!C19+'Base original'!E19+'Base original'!G19+'Base original'!I19+'Base original'!K19+'Base original'!M19 -> 9199.403169 | F19: =+'Base original'!Y19+'Base original'!AB19 -> 1423.401947 | G19: =+'Base original'!Z19+'Base original'!AC19 -> 1742.961632 | H19: =+'Base original'!AD19+'Base original'!AA19 -> -319.559685 | I19: =+'Base original'!AV19+'Base original'!AX19 -> 5651.574377 | J19: ='Base original'!AY19+'Base original'!AW19 -> 5291.46208 | K19: 10943.03646
A20: =+'Base original'!A20 -> 2007-12-01 | B20: ='Base original'!H20+'Base original'!J20 -> 566.5327579 | C20: ='Base original'!I20+'Base original'!K20 -> 1291.180216 | D20: =+'Base original'!B20+'Base original'!D20+'Base original'!F20+'Base original'!H20+'Base original'!J20+'Base original'!L20 -> 7788.471497 | E20: =+'Base original'!C20+'Base original'!E20+'Base original'!G20+'Base original'!I20+'Base original'!K20+'Base original'!M20 -> 9654.77888 | F20: =+'Base original'!Y20+'Base original'!AB20 -> 1143.96123 | G20: =+'Base original'!Z20+'Base original'!AC20 -> 1918.338506 | H20: =+'Base original'!AD20+'Base original'!AA20 -> -774.377276 | I20: =+'Base original'!AV20+'Base original'!AX20 -> 4633.296005 | J20: ='Base original'!AY20+'Base original'!AW20 -> 4599.011432 | K20: 9232.307437
A21: =+'Base original'!A21 -> 2008-01-01 | B21: ='Base original'!H21+'Base original'!J21 -> 945.236581 | C21: ='Base original'!I21+'Base original'!K21 -> 1674.535218 | D21: =+'Base original'!B21+'Base original'!D21+'Base original'!F21+'Base original'!H21+'Base original'!J21+'Base original'!L21 -> 10003.78155 | E21: =+'Base original'!C21+'Base original'!E21+'Base original'!G21+'Base original'!I21+'Base original'!K21+'Base original'!M21 -> 11732.0394 | F21: =+'Base original'!Y21+'Base original'!AB21 -> 1158.595611 | G21: =+'Base original'!Z21+'Base original'!AC21 -> 2101.812353 | H21: =+'Base original'!AD21+'Base original'!AA21 -> -943.216742 | I21: =+'Base original'!AV21+'Base original'!AX21 -> 5779.865445 | J21: ='Base original'!AY21+'Base original'!AW21 -> 5050.970517 | K21: 10830.83596
A22: =+'Base original'!A22 -> 2008-02-01 | B22: ='Base original'!H22+'Base original'!J22 -> 570.1518366 | C22: ='Base original'!I22+'Base original'!K22 -> 1198.037972 | D22: =+'Base original'!B22+'Base original'!D22+'Base original'!F22+'Base original'!H22+'Base original'!J22+'Base original'!L22 -> 9212.286536 | E22: =+'Base original'!C22+'Base original'!E22+'Base original'!G22+'Base original'!I22+'Base original'!K22+'Base original'!M22 -> 10724.9639 | F22: =+'Base original'!Y22+'Base original'!AB22 -> 916.599052 | G22: =+'Base original'!Z22+'Base original'!AC22 -> 1892.559594 | H22: =+'Base original'!AD22+'Base original'!AA22 -> -975.960542 | I22: =+'Base original'!AV22+'Base original'!AX22 -> 3762.129834 | J22: ='Base original'!AY22+'Base original'!AW22 -> 3116.812551 | K22: 6878.942385
A23: =+'Base original'!A23 -> 2008-03-01 | B23: ='Base original'!H23+'Base original'!J23 -> 1102.955275 | C23: ='Base original'!I23+'Base original'!K23 -> 1222.554169 | D23: =+'Base original'!B23+'Base original'!D23+'Base original'!F23+'Base original'!H23+'Base original'!J23+'Base original'!L23 -> 13664.16153 | E23: =+'Base original'!C23+'Base original'!E23+'Base original'!G23+'Base original'!I23+'Base original'!K23+'Base original'!M23 -> 10259.60174 | F23: =+'Base original'!Y23+'Base original'!AB23 -> 1001.872943 | G23: =+'Base original'!Z23+'Base original'!AC23 -> 1593.551464 | H23: =+'Base original'!AD23+'Base original'!AA23 -> -591.678521 | I23: =+'Base original'!AV23+'Base original'!AX23 -> 5161.507542 | J23: ='Base original'!AY23+'Base original'!AW23 -> 4678.859814 | K23: 9840.367355
A24: =+'Base original'!A24 -> 2008-04-01 | B24: ='Base original'!H24+'Base original'!J24 -> 832.5999727 | C24: ='Base original'!I24+'Base original'!K24 -> 1104.932945 | D24: =+'Base original'!B24+'Base original'!D24+'Base original'!F24+'Base original'!H24+'Base original'!J24+'Base original'!L24 -> 11727.79643 | E24: =+'Base original'!C24+'Base original'!E24+'Base original'!G24+'Base original'!I24+'Base original'!K24+'Base original'!M24 -> 12019.78691 | F24: =+'Base original'!Y24+'Base original'!AB24 -> 837.5024071 | G24: =+'Base original'!Z24+'Base original'!AC24 -> 1239.04597 | H24: =+'Base original'!AD24+'Base original'!AA24 -> -401.543563 | I24: =+'Base original'!AV24+'Base original'!AX24 -> 5091.112065 | J24: ='Base original'!AY24+'Base original'!AW24 -> 4137.307746 | K24: 9228.41981
A25: =+'Base original'!A25 -> 2008-05-01 | B25: ='Base original'!H25+'Base original'!J25 -> 759.8680902 | C25: ='Base original'!I25+'Base original'!K25 -> 980.7093607 | D25: =+'Base original'!B25+'Base original'!D25+'Base original'!F25+'Base original'!H25+'Base original'!J25+'Base original'!L25 -> 12277.52204 | E25: =+'Base original'!C25+'Base original'!E25+'Base original'!G25+'Base original'!I25+'Base original'!K25+'Base original'!M25 -> 10185.30932 | F25: =+'Base original'!Y25+'Base original'!AB25 -> 794.0433856 | G25: =+'Base original'!Z25+'Base original'!AC25 -> 1012.024733 | H25: =+'Base original'!AD25+'Base original'!AA25 -> -217.981347 | I25: =+'Base original'!AV25+'Base original'!AX25 -> 4478.352532 | J25: ='Base original'!AY25+'Base original'!AW25 -> 3944.853056 | K25: 8423.205588
A26: =+'Base original'!A26 -> 2008-06-01 | B26: ='Base original'!H26+'Base original'!J26 -> 1112.043203 | C26: ='Base original'!I26+'Base original'!K26 -> 1115.084412 | D26: =+'Base original'!B26+'Base original'!D26+'Base original'!F26+'Base original'!H26+'Base original'!J26+'Base original'!L26 -> 14098.37078 | E26: =+'Base original'!C26+'Base original'!E26+'Base original'!G26+'Base original'!I26+'Base original'!K26+'Base original'!M26 -> 11622.58462 | F26: =+'Base original'!Y26+'Base original'!AB26 -> 1062.376899 | G26: =+'Base original'!Z26+'Base original'!AC26 -> 999.0766702 | H26: =+'Base original'!AD26+'Base original'!AA26 -> 63.300229 | I26: =+'Base original'!AV26+'Base original'!AX26 -> 5015.524692 | J26: ='Base original'!AY26+'Base original'!AW26 -> 4474.573475 | K26: 9490.098167
A27: =+'Base original'!A27 -> 2008-07-01 | B27: ='Base original'!H27+'Base original'!J27 -> 593.7894062 | C27: ='Base original'!I27+'Base original'!K27 -> 1211.700649 | D27: =+'Base original'!B27+'Base original'!D27+'Base original'!F27+'Base original'!H27+'Base original'!J27+'Base original'!L27 -> 12866.51743 | E27: =+'Base original'!C27+'Base original'!E27+'Base original'!G27+'Base original'!I27+'Base original'!K27+'Base original'!M27 -> 13520.8892 | F27: =+'Base original'!Y27+'Base original'!AB27 -> 798.4359371 | G27: =+'Base original'!Z27+'Base original'!AC27 -> 1048.366677 | H27: =+'Base original'!AD27+'Base original'!AA27 -> -249.93074 | I27: =+'Base original'!AV27+'Base original'!AX27 -> 5447.509128 | J27: ='Base original'!AY27+'Base original'!AW27 -> 6507.01815 | K27: 11954.52728
A28: =+'Base original'!A28 -> 2008-08-01 | B28: ='Base original'!H28+'Base original'!J28 -> 822.5522738 | C28: ='Base original'!I28+'Base original'!K28 -> 1065.282655 | D28: =+'Base original'!B28+'Base original'!D28+'Base original'!F28+'Base original'!H28+'Base original'!J28+'Base original'!L28 -> 11840.50463 | E28: =+'Base original'!C28+'Base original'!E28+'Base original'!G28+'Base original'!I28+'Base original'!K28+'Base original'!M28 -> 10523.18962 | F28: =+'Base original'!Y28+'Base original'!AB28 -> 1018.113751 | G28: =+'Base original'!Z28+'Base original'!AC28 -> 1213.770274 | H28: =+'Base original'!AD28+'Base original'!AA28 -> -195.656523 | I28: =+'Base original'!AV28+'Base original'!AX28 -> 4668.228531 | J28: ='Base original'!AY28+'Base original'!AW28 -> 4536.655406 | K28: 9204.883937
A29: =+'Base original'!A29 -> 2008-09-01 | B29: ='Base original'!H29+'Base original'!J29 -> 1166.798281 | C29: ='Base original'!I29+'Base original'!K29 -> 1487.433833 | D29: =+'Base original'!B29+'Base original'!D29+'Base original'!F29+'Base original'!H29+'Base original'!J29+'Base original'!L29 -> 12923.99661 | E29: =+'Base original'!C29+'Base original'!E29+'Base original'!G29+'Base original'!I29+'Base original'!K29+'Base original'!M29 -> 9376.318548 | F29: =+'Base original'!Y29+'Base original'!AB29 -> 1302.451003 | G29: =+'Base original'!Z29+'Base original'!AC29 -> 1419.368944 | H29: =+'Base original'!AD29+'Base original'!AA29 -> -116.917941 | I29: =+'Base original'!AV29+'Base original'!AX29 -> 5165.922703 | J29: ='Base original'!AY29+'Base original'!AW29 -> 4822.707766 | K29: 9988.630468
A30: =+'Base original'!A30 -> 2008-10-01 | B30: ='Base original'!H30+'Base original'!J30 -> 1037.053076 | C30: ='Base original'!I30+'Base original'!K30 -> 942.8604509 | D30: =+'Base original'!B30+'Base original'!D30+'Base original'!F30+'Base original'!H30+'Base original'!J30+'Base original'!L30 -> 9126.250886 | E30: =+'Base original'!C30+'Base original'!E30+'Base original'!G30+'Base original'!I30+'Base original'!K30+'Base original'!M30 -> 8720.629734 | F30: =+'Base original'!Y30+'Base original'!AB30 -> 1333.868372 | G30: =+'Base original'!Z30+'Base original'!AC30 -> 1368.731983 | H30: =+'Base original'!AD30+'Base original'!AA30 -> -34.863611 | I30: =+'Base original'!AV30+'Base original'!AX30 -> 5931.585814 | J30: ='Base original'!AY30+'Base original'!AW30 -> 5225.645631 | K30: 11157.23144
A31: =+'Base original'!A31 -> 2008-11-01 | B31: ='Base original'!H31+'Base original'!J31 -> 537.391766 | C31: ='Base original'!I31+'Base original'!K31 -> 652.148281 | D31: =+'Base original'!B31+'Base original'!D31+'Base original'!F31+'Base original'!H31+'Base original'!J31+'Base original'!L31 -> 6522.190336 | E31: =+'Base original'!C31+'Base original'!E31+'Base original'!G31+'Base original'!I31+'Base original'!K31+'Base original'!M31 -> 6953.528152 | F31: =+'Base original'!Y31+'Base original'!AB31 -> 1114.008648 | G31: =+'Base original'!Z31+'Base original'!AC31 -> 1201.759761 | H31: =+'Base original'!AD31+'Base original'!AA31 -> -87.751113 | I31: =+'Base original'!AV31+'Base original'!AX31 -> 4847.680474 | J31: ='Base original'!AY31+'Base original'!AW31 -> 4813.587736 | K31: 9661.26821
A32: =+'Base original'!A32 -> 2008-12-01 | B32: ='Base original'!H32+'Base original'!J32 -> 499.7864797 | C32: ='Base original'!I32+'Base original'!K32 -> 522.627028 | D32: =+'Base original'!B32+'Base original'!D32+'Base original'!F32+'Base original'!H32+'Base original'!J32+'Base original'!L32 -> 7049.49615 | E32: =+'Base original'!C32+'Base original'!E32+'Base original'!G32+'Base original'!I32+'Base original'!K32+'Base original'!M32 -> 6086.823553 | F32: =+'Base original'!Y32+'Base original'!AB32 -> 847.0610274 | G32: =+'Base original'!Z32+'Base original'!AC32 -> 899.9607834 | H32: =+'Base original'!AD32+'Base original'!AA32 -> -52.899756 | I32: =+'Base original'!AV32+'Base original'!AX32 -> 4738.771223 | J32: ='Base original'!AY32+'Base original'!AW32 -> 4602.228777 | K32: 9341
A33: =+'Base original'!A33 -> 2009-01-01 | B33: ='Base original'!H33+'Base original'!J33 -> 332.7842259 | C33: ='Base original'!I33+'Base original'!K33 -> 825.0259492 | D33: =+'Base original'!B33+'Base original'!D33+'Base original'!F33+'Base original'!H33+'Base original'!J33+'Base original'!L33 -> 8182.862245 | E33: =+'Base original'!C33+'Base original'!E33+'Base original'!G33+'Base original'!I33+'Base original'!K33+'Base original'!M33 -> 7830.504966 | F33: =+'Base original'!Y33+'Base original'!AB33 -> 693.946722 | G33: =+'Base original'!Z33+'Base original'!AC33 -> 931.50153 | H33: =+'Base original'!AD33+'Base original'!AA33 -> -237.554808 | I33: =+'Base original'!AV33+'Base original'!AX33 -> 3923.707841 | J33: ='Base original'!AY33+'Base original'!AW33 -> 3981.292159 | K33: 7905
A34: =+'Base original'!A34 -> 2009-02-01 | B34: ='Base original'!H34+'Base original'!J34 -> 491.5948174 | C34: ='Base original'!I34+'Base original'!K34 -> 708.0081847 | D34: =+'Base original'!B34+'Base original'!D34+'Base original'!F34+'Base original'!H34+'Base original'!J34+'Base original'!L34 -> 7147.795712 | E34: =+'Base original'!C34+'Base original'!E34+'Base original'!G34+'Base original'!I34+'Base original'!K34+'Base original'!M34 -> 7863.668648 | F34: =+'Base original'!Y34+'Base original'!AB34 -> 722.0969142 | G34: =+'Base original'!Z34+'Base original'!AC34 -> 977.3326452 | H34: =+'Base original'!AD34+'Base original'!AA34 -> -255.235731 | I34: =+'Base original'!AV34+'Base original'!AX34 -> 3343.944994 | J34: ='Base original'!AY34+'Base original'!AW34 -> 3243.055006 | K34: 6587
A35: =+'Base original'!A35 -> 2009-03-01 | B35: ='Base original'!H35+'Base original'!J35 -> 427.1548148 | C35: ='Base original'!I35+'Base original'!K35 -> 751.2884569 | D35: =+'Base original'!B35+'Base original'!D35+'Base original'!F35+'Base original'!H35+'Base original'!J35+'Base original'!L35 -> 6854.111924 | E35: =+'Base original'!C35+'Base original'!E35+'Base original'!G35+'Base original'!I35+'Base original'!K35+'Base original'!M35 -> 6357.89651 | F35: =+'Base original'!Y35+'Base original'!AB35 -> 707.0655651 | G35: =+'Base original'!Z35+'Base original'!AC35 -> 1010.715769 | H35: =+'Base original'!AD35+'Base original'!AA35 -> -303.650204 | I35: =+'Base original'!AV35+'Base original'!AX35 -> 5026.523373 | J35: ='Base original'!AY35+'Base original'!AW35 -> 4745.129585 | K35: 9771.652958
A36: =+'Base original'!A36 -> 2009-04-01 | B36: ='Base original'!H36+'Base original'!J36 -> 303.0752315 | C36: ='Base original'!I36+'Base original'!K36 -> 492.507359 | D36: =+'Base original'!B36+'Base original'!D36+'Base original'!F36+'Base original'!H36+'Base original'!J36+'Base original'!L36 -> 7043.922476 | E36: =+'Base original'!C36+'Base original'!E36+'Base original'!G36+'Base original'!I36+'Base original'!K36+'Base original'!M36 -> 5543.884818 | F36: =+'Base original'!Y36+'Base original'!AB36 -> 662.6658217 | G36: =+'Base original'!Z36+'Base original'!AC36 -> 1036.475982 | H36: =+'Base original'!AD36+'Base original'!AA36 -> -373.81016 | I36: =+'Base original'!AV36+'Base original'!AX36 -> 4989.530743 | J36: ='Base original'!AY36+'Base original'!AW36 -> 4601.697006 | K36: 9591.227749
A37: =+'Base original'!A37 -> 2009-05-01 | B37: ='Base original'!H37+'Base original'!J37 -> 313.7232718 | C37: ='Base original'!I37+'Base original'!K37 -> 668.1888745 | D37: =+'Base original'!B37+'Base original'!D37+'Base original'!F37+'Base original'!H37+'Base original'!J37+'Base original'!L37 -> 9061.086526 | E37: =+'Base original'!C37+'Base original'!E37+'Base original'!G37+'Base original'!I37+'Base original'!K37+'Base original'!M37 -> 6658.424747 | F37: =+'Base original'!Y37+'Base original'!AB37 -> 563.1508263 | G37: =+'Base original'!Z37+'Base original'!AC37 -> 896.5120153 | H37: =+'Base original'!AD37+'Base original'!AA37 -> -333.361189 | I37: =+'Base original'!AV37+'Base original'!AX37 -> 4262.392737 | J37: ='Base original'!AY37+'Base original'!AW37 -> 4400.183181 | K37: 8662.575918
A38: =+'Base original'!A38 -> 2009-06-01 | B38: ='Base original'!H38+'Base original'!J38 -> 404.4017965 | C38: ='Base original'!I38+'Base original'!K38 -> 535.3092861 | D38: =+'Base original'!B38+'Base original'!D38+'Base original'!F38+'Base original'!H38+'Base original'!J38+'Base original'!L38 -> 11718.18676 | E38: =+'Base original'!C38+'Base original'!E38+'Base original'!G38+'Base original'!I38+'Base original'!K38+'Base original'!M38 -> 9382.049361 | F38: =+'Base original'!Y38+'Base original'!AB38 -> 596.0234383 | G38: =+'Base original'!Z38+'Base original'!AC38 -> 920.0078833 | H38: =+'Base original'!AD38+'Base original'!AA38 -> -323.984445 | I38: =+'Base original'!AV38+'Base original'!AX38 -> 3955.777197 | J38: ='Base original'!AY38+'Base original'!AW38 -> 4265.136407 | K38: 8220.913605
A39: =+'Base original'!A39 -> 2009-07-01 | B39: ='Base original'!H39+'Base original'!J39 -> 509.7555016 | C39: ='Base original'!I39+'Base original'!K39 -> 695.4704771 | D39: =+'Base original'!B39+'Base original'!D39+'Base original'!F39+'Base original'!H39+'Base original'!J39+'Base original'!L39 -> 11147.5153 | E39: =+'Base original'!C39+'Base original'!E39+'Base original'!G39+'Base original'!I39+'Base original'!K39+'Base original'!M39 -> 6764.937453 | F39: =+'Base original'!Y39+'Base original'!AB39 -> 550.3146259 | G39: =+'Base original'!Z39+'Base original'!AC39 -> 538.5832609 | H39: =+'Base original'!AD39+'Base original'!AA39 -> 11.731365 | I39: =+'Base original'!AV39+'Base original'!AX39 -> 4712.228067 | J39: ='Base original'!AY39+'Base original'!AW39 -> 4647.958605 | K39: 9360.186672
A40: =+'Base original'!A40 -> 2009-08-01 | B40: ='Base original'!H40+'Base original'!J40 -> 534.0437879 | C40: ='Base original'!I40+'Base original'!K40 -> 641.251816 | D40: =+'Base original'!B40+'Base original'!D40+'Base original'!F40+'Base original'!H40+'Base original'!J40+'Base original'!L40 -> 12483.85549 | E40: =+'Base original'!C40+'Base original'!E40+'Base original'!G40+'Base original'!I40+'Base original'!K40+'Base original'!M40 -> 6899.389813 | F40: =+'Base original'!Y40+'Base original'!AB40 -> 571.8791354 | G40: =+'Base original'!Z40+'Base original'!AC40 -> 582.9492624 | H40: =+'Base original'!AD40+'Base original'!AA40 -> -11.070127 | I40: =+'Base original'!AV40+'Base original'!AX40 -> 4754.653732 | J40: ='Base original'!AY40+'Base original'!AW40 -> 4550.702876 | K40: 9305.356608
A41: =+'Base original'!A41 -> 2009-09-01 | B41: ='Base original'!H41+'Base original'!J41 -> 818.2100973 | C41: ='Base original'!I41+'Base original'!K41 -> 932.5609323 | D41: =+'Base original'!B41+'Base original'!D41+'Base original'!F41+'Base original'!H41+'Base original'!J41+'Base original'!L41 -> 14361.30442 | E41: =+'Base original'!C41+'Base original'!E41+'Base original'!G41+'Base original'!I41+'Base original'!K41+'Base original'!M41 -> 10141.44096 | F41: =+'Base original'!Y41+'Base original'!AB41 -> 857.8273883 | G41: =+'Base original'!Z41+'Base original'!AC41 -> 807.6118383 | H41: =+'Base original'!AD41+'Base original'!AA41 -> 50.21555 | I41: =+'Base original'!AV41+'Base original'!AX41 -> 4299.371259 | J41: ='Base original'!AY41+'Base original'!AW41 -> 4673.643317 | K41: 8973.014576
A42: =+'Base original'!A42 -> 2009-10-01 | B42: ='Base original'!H42+'Base original'!J42 -> 882.3164123 | C42: ='Base original'!I42+'Base original'!K42 -> 965.3740991 | D42: =+'Base original'!B42+'Base original'!D42+'Base original'!F42+'Base original'!H42+'Base original'!J42+'Base original'!L42 -> 13314.68903 | E42: =+'Base original'!C42+'Base original'!E42+'Base original'!G42+'Base original'!I42+'Base original'!K42+'Base original'!M42 -> 8891.759064 | F42: =+'Base original'!Y42+'Base original'!AB42 -> 889.8602411 | G42: =+'Base original'!Z42+'Base original'!AC42 -> 944.9592721 | H42: =+'Base original'!AD42+'Base original'!AA42 -> -55.099031 | I42: =+'Base original'!AV42+'Base original'!AX42 -> 4786.682984 | J42: ='Base original'!AY42+'Base original'!AW42 -> 5477.673674 | K42: 10264.35666
A43: =+'Base original'!A43 -> 2009-11-01 | B43: ='Base original'!H43+'Base original'!J43 -> 612.3417401 | C43: ='Base original'!I43+'Base original'!K43 -> 969.6582599 | D43: =+'Base original'!B43+'Base original'!D43+'Base original'!F43+'Base original'!H43+'Base original'!J43+'Base original'!L43 -> 13559.49768 | E43: =+'Base original'!C43+'Base original'!E43+'Base original'!G43+'Base original'!I43+'Base original'!K43+'Base original'!M43 -> 10739.29062 | F43: =+'Base original'!Y43+'Base original'!AB43 -> 830.6772089 | G43: =+'Base original'!Z43+'Base original'!AC43 -> 826.9597604 | H43: =+'Base original'!AD43+'Base original'!AA43 -> 3.7174485 | I43: =+'Base original'!AV43+'Base original'!AX43 -> 4759.529466 | J43: ='Base original'!AY43+'Base original'!AW43 -> 5110.470534 | K43: 9870
A44: =+'Base original'!A44 -> 2009-12-01 | B44: ='Base original'!H44+'Base original'!J44 -> 438.102899 | C44: ='Base original'!I44+'Base original'!K44 -> 682.897101 | D44: =+'Base original'!B44+'Base original'!D44+'Base original'!F44+'Base original'!H44+'Base original'!J44+'Base original'!L44 -> 12243.37567 | E44: =+'Base original'!C44+'Base original'!E44+'Base original'!G44+'Base original'!I44+'Base original'!K44+'Base original'!M44 -> 10929.33975 | F44: =+'Base original'!Y44+'Base original'!AB44 -> 640.8927597 | G44: =+'Base original'!Z44+'Base original'!AC44 -> 758.8927597 | H44: =+'Base original'!AD44+'Base original'!AA44 -> -118 | I44: =+'Base original'!AV44+'Base original'!AX44 -> 4622.825922 | J44: ='Base original'!AY44+'Base original'!AW44 -> 4391.174078 | K44: 9014
A45: =+'Base original'!A45 -> 2010-01-01 | B45: ='Base original'!H45+'Base original'!J45 -> 660.5203071 | C45: ='Base original'!I45+'Base original'!K45 -> 1013.479693 | D45: =+'Base original'!B45+'Base original'!D45+'Base original'!F45+'Base original'!H45+'Base original'!J45+'Base original'!L45 -> 13155.78008 | E45: =+'Base original'!C45+'Base original'!E45+'Base original'!G45+'Base original'!I45+'Base original'!K45+'Base original'!M45 -> 11081.79454 | F45: =+'Base original'!Y45+'Base original'!AB45 -> 900.1120985 | G45: =+'Base original'!Z45+'Base original'!AC45 -> 1067.664162 | H45: =+'Base original'!AD45+'Base original'!AA45 -> -167.5520635 | I45: =+'Base original'!AV45+'Base original'!AX45 -> 4685.676821 | J45: ='Base original'!AY45+'Base original'!AW45 -> 4286.129009 | K45: 8971.805831
A46: =+'Base original'!A46 -> 2010-02-01 | B46: ='Base original'!H46+'Base original'!J46 -> 438.9070729 | C46: ='Base original'!I46+'Base original'!K46 -> 644.5755082 | D46: =+'Base original'!B46+'Base original'!D46+'Base original'!F46+'Base original'!H46+'Base original'!J46+'Base original'!L46 -> 9302.642743 | E46: =+'Base original'!C46+'Base original'!E46+'Base original'!G46+'Base original'!I46+'Base original'!K46+'Base original'!M46 -> 9786.690906 | F46: =+'Base original'!Y46+'Base original'!AB46 -> 940.6354735 | G46: =+'Base original'!Z46+'Base original'!AC46 -> 989.8674294 | H46: =+'Base original'!AD46+'Base original'!AA46 -> -49.23195594 | I46: =+'Base original'!AV46+'Base original'!AX46 -> 3525.133493 | J46: ='Base original'!AY46+'Base original'!AW46 -> 3361.256528 | K46: 6886.390021
A47: =+'Base original'!A47 -> 2010-03-01 | B47: ='Base original'!H47+'Base original'!J47 -> 678.9528979 | C47: ='Base original'!I47+'Base original'!K47 -> 692.0471021 | D47: =+'Base original'!B47+'Base original'!D47+'Base original'!F47+'Base original'!H47+'Base original'!J47+'Base original'!L47 -> 12849.04669 | E47: =+'Base original'!C47+'Base original'!E47+'Base original'!G47+'Base original'!I47+'Base original'!K47+'Base original'!M47 -> 9702.30944 | F47: =+'Base original'!Y47+'Base original'!AB47 -> 1011.733644 | G47: =+'Base original'!Z47+'Base original'!AC47 -> 890.0939236 | H47: =+'Base original'!AD47+'Base original'!AA47 -> 121.6397202 | I47: =+'Base original'!AV47+'Base original'!AX47 -> 5070.375992 | J47: ='Base original'!AY47+'Base original'!AW47 -> 5509.464775 | K47: 10579.84077
A48: =+'Base original'!A48 -> 2010-04-01 | B48: ='Base original'!H48+'Base original'!J48 -> 631.2446147 | C48: ='Base original'!I48+'Base original'!K48 -> 651.7553853 | D48: =+'Base original'!B48+'Base original'!D48+'Base original'!F48+'Base original'!H48+'Base original'!J48+'Base original'!L48 -> 9963.842735 | E48: =+'Base original'!C48+'Base original'!E48+'Base original'!G48+'Base original'!I48+'Base original'!K48+'Base original'!M48 -> 8583.284788 | F48: =+'Base original'!Y48+'Base original'!AB48 -> 954.9899413 | G48: =+'Base original'!Z48+'Base original'!AC48 -> 857.9068143 | H48: =+'Base original'!AD48+'Base original'!AA48 -> 97.083127 | I48: =+'Base original'!AV48+'Base original'!AX48 -> 4956.242813 | J48: ='Base original'!AY48+'Base original'!AW48 -> 4968.757187 | K48: 9925
A49: =+'Base original'!A49 -> 2010-05-01 | B49: ='Base original'!H49+'Base original'!J49 -> 617.0192616 | C49: ='Base original'!I49+'Base original'!K49 -> 832.9807384 | D49: =+'Base original'!B49+'Base original'!D49+'Base original'!F49+'Base original'!H49+'Base original'!J49+'Base original'!L49 -> 11590.70496 | E49: =+'Base original'!C49+'Base original'!E49+'Base original'!G49+'Base original'!I49+'Base original'!K49+'Base original'!M49 -> 11840.88861 | F49: =+'Base original'!Y49+'Base original'!AB49 -> 1053.924368 | G49: =+'Base original'!Z49+'Base original'!AC49 -> 904.1658867 | H49: =+'Base original'!AD49+'Base original'!AA49 -> 149.7584818 | I49: =+'Base original'!AV49+'Base original'!AX49 -> 5825.081016 | J49: ='Base original'!AY49+'Base original'!AW49 -> 5393.918984 | K49: 11219
A50: =+'Base original'!A50 -> 2010-06-01 | B50: ='Base original'!H50+'Base original'!J50 -> 695.8239093 | C50: ='Base original'!I50+'Base original'!K50 -> 617.6651506 | D50: =+'Base original'!B50+'Base original'!D50+'Base original'!F50+'Base original'!H50+'Base original'!J50+'Base original'!L50 -> 12615.12469 | E50: =+'Base original'!C50+'Base original'!E50+'Base original'!G50+'Base original'!I50+'Base original'!K50+'Base original'!M50 -> 8924.280302 | F50: =+'Base original'!Y50+'Base original'!AB50 -> 1102.770749 | G50: =+'Base original'!Z50+'Base original'!AC50 -> 778.1025137 | H50: =+'Base original'!AD50+'Base original'!AA50 -> 324.6682354 | I50: =+'Base original'!AV50+'Base original'!AX50 -> 5225.087301 | J50: ='Base original'!AY50+'Base original'!AW50 -> 5451.225104 | K50: 10676.31241
A51: =+'Base original'!A51 -> 2010-07-01 | B51: ='Base original'!H51+'Base original'!J51 -> 460.6597135 | C51: ='Base original'!I51+'Base original'!K51 -> 1040.340286 | D51: =+'Base original'!B51+'Base original'!D51+'Base original'!F51+'Base original'!H51+'Base original'!J51+'Base original'!L51 -> 13117.18807 | E51: =+'Base original'!C51+'Base original'!E51+'Base original'!G51+'Base original'!I51+'Base original'!K51+'Base original'!M51 -> 11966.96168 | F51: =+'Base original'!Y51+'Base original'!AB51 -> 925.0198283 | G51: =+'Base original'!Z51+'Base original'!AC51 -> 856.7517341 | H51: =+'Base original'!AD51+'Base original'!AA51 -> 68.26809424 | I51: =+'Base original'!AV51+'Base original'!AX51 -> 5112.541658 | J51: ='Base original'!AY51+'Base original'!AW51 -> 5402.080222 | K51: 10514.62188
A52: =+'Base original'!A52 -> 2010-08-01 | B52: ='Base original'!H52+'Base original'!J52 -> 410.3985702 | C52: ='Base original'!I52+'Base original'!K52 -> 978.7508778 | D52: =+'Base original'!B52+'Base original'!D52+'Base original'!F52+'Base original'!H52+'Base original'!J52+'Base original'!L52 -> 13401.39404 | E52: =+'Base original'!C52+'Base original'!E52+'Base original'!G52+'Base original'!I52+'Base original'!K52+'Base original'!M52 -> 15749.49049 | F52: =+'Base original'!Y52+'Base original'!AB52 -> 919.0888891 | G52: =+'Base original'!Z52+'Base original'!AC52 -> 967.639394 | H52: =+'Base original'!AD52+'Base original'!AA52 -> -48.5505049 | I52: =+'Base original'!AV52+'Base original'!AX52 -> 5459.989662 | J52: ='Base original'!AY52+'Base original'!AW52 -> 6102.7251 | K52: 11562.71476
A53: =+'Base original'!A53 -> 2010-09-01 | B53: ='Base original'!H53+'Base original'!J53 -> 345.4342754 | C53: ='Base original'!I53+'Base original'!K53 -> 660.247919 | D53: =+'Base original'!B53+'Base original'!D53+'Base original'!F53+'Base original'!H53+'Base original'!J53+'Base original'!L53 -> 11186.09937 | E53: =+'Base original'!C53+'Base original'!E53+'Base original'!G53+'Base original'!I53+'Base original'!K53+'Base original'!M53 -> 14632.48274 | F53: =+'Base original'!Y53+'Base original'!AB53 -> 749.8833042 | G53: =+'Base original'!Z53+'Base original'!AC53 -> 926.5227485 | H53: =+'Base original'!AD53+'Base original'!AA53 -> -176.6394443 | I53: =+'Base original'!AV53+'Base original'!AX53 -> 4410.486948 | J53: ='Base original'!AY53+'Base original'!AW53 -> 5087.665136 | K53: 9498.152084
A54: =+'Base original'!A54 -> 2010-10-01 | B54: ='Base original'!H54+'Base original'!J54 -> 658.0739292 | C54: ='Base original'!I54+'Base original'!K54 -> 689.706147 | D54: =+'Base original'!B54+'Base original'!D54+'Base original'!F54+'Base original'!H54+'Base original'!J54+'Base original'!L54 -> 13319.99851 | E54: =+'Base original'!C54+'Base original'!E54+'Base original'!G54+'Base original'!I54+'Base original'!K54+'Base original'!M54 -> 13909.43135 | F54: =+'Base original'!Y54+'Base original'!AB54 -> 937.6938472 | G54: =+'Base original'!Z54+'Base original'!AC54 -> 1103.859155 | H54: =+'Base original'!AD54+'Base original'!AA54 -> -166.1653074 | I54: =+'Base original'!AV54+'Base original'!AX54 -> 4748.816573 | J54: ='Base original'!AY54+'Base original'!AW54 -> 5422.639202 | K54: 10171.45578
A55: =+'Base original'!A55 -> 2010-11-01 | B55: ='Base original'!H55+'Base original'!J55 -> 555.9563223 | C55: ='Base original'!I55+'Base original'!K55 -> 614.9172338 | D55: =+'Base original'!B55+'Base original'!D55+'Base original'!F55+'Base original'!H55+'Base original'!J55+'Base original'!L55 -> 10961.81833 | E55: =+'Base original'!C55+'Base original'!E55+'Base original'!G55+'Base original'!I55+'Base original'!K55+'Base original'!M55 -> 12162.00992 | F55: =+'Base original'!Y55+'Base original'!AB55 -> 879.595555 | G55: =+'Base original'!Z55+'Base original'!AC55 -> 1048.451796 | H55: =+'Base original'!AD55+'Base original'!AA55 -> -168.856241 | I55: =+'Base original'!AV55+'Base original'!AX55 -> 5790.079722 | J55: ='Base original'!AY55+'Base original'!AW55 -> 6349.314777 | K55: 12139.3945
A56: =+'Base original'!A56 -> 2010-12-01 | B56: ='Base original'!H56+'Base original'!J56 -> 426.2291064 | C56: ='Base original'!I56+'Base original'!K56 -> 557.1612878 | D56: =+'Base original'!B56+'Base original'!D56+'Base original'!F56+'Base original'!H56+'Base original'!J56+'Base original'!L56 -> 13231.04111 | E56: =+'Base original'!C56+'Base original'!E56+'Base original'!G56+'Base original'!I56+'Base original'!K56+'Base original'!M56 -> 16477.49217 | F56: =+'Base original'!Y56+'Base original'!AB56 -> 842.7810405 | G56: =+'Base original'!Z56+'Base original'!AC56 -> 928.2958485 | H56: =+'Base original'!AD56+'Base original'!AA56 -> -85.514808 | I56: =+'Base original'!AV56+'Base original'!AX56 -> 8235.827919 | J56: ='Base original'!AY56+'Base original'!AW56 -> 7624.967684 | K56: 15860.7956
A57: =+'Base original'!A57 -> 2011-01-01 | B57: ='Base original'!H57+'Base original'!J57 -> 497.8869025 | C57: ='Base original'!I57+'Base original'!K57 -> 468.5926769 | D57: =+'Base original'!B57+'Base original'!D57+'Base original'!F57+'Base original'!H57+'Base original'!J57+'Base original'!L57 -> 15549.12881 | E57: =+'Base original'!C57+'Base original'!E57+'Base original'!G57+'Base original'!I57+'Base original'!K57+'Base original'!M57 -> 15335.20116 | F57: =+'Base original'!Y57+'Base original'!AB57 -> 913.2146432 | G57: =+'Base original'!Z57+'Base original'!AC57 -> 778.7848248 | H57: =+'Base original'!AD57+'Base original'!AA57 -> 134.4298184 | I57: =+'Base original'!AV57+'Base original'!AX57 -> 5771.466408 | J57: ='Base original'!AY57+'Base original'!AW57 -> 5566.730878 | K57: 11338.19729
A58: =+'Base original'!A58 -> 2011-02-01 | B58: ='Base original'!H58+'Base original'!J58 -> 321.7871465 | C58: ='Base original'!I58+'Base original'!K58 -> 336.6868865 | D58: =+'Base original'!B58+'Base original'!D58+'Base original'!F58+'Base original'!H58+'Base original'!J58+'Base original'!L58 -> 11241.64833 | E58: =+'Base original'!C58+'Base original'!E58+'Base original'!G58+'Base original'!I58+'Base original'!K58+'Base original'!M58 -> 12293.40397 | F58: =+'Base original'!Y58+'Base original'!AB58 -> 857.3994212 | G58: =+'Base original'!Z58+'Base original'!AC58 -> 588.7481792 | H58: =+'Base original'!AD58+'Base original'!AA58 -> 268.651242 | I58: =+'Base original'!AV58+'Base original'!AX58 -> 4774.929553 | J58: ='Base original'!AY58+'Base original'!AW58 -> 5002.036906 | K58: 9776.966459
A59: =+'Base original'!A59 -> 2011-03-01 | B59: ='Base original'!H59+'Base original'!J59 -> 629.2557955 | C59: ='Base original'!I59+'Base original'!K59 -> 503.3452754 | D59: =+'Base original'!B59+'Base original'!D59+'Base original'!F59+'Base original'!H59+'Base original'!J59+'Base original'!L59 -> 14403.42228 | E59: =+'Base original'!C59+'Base original'!E59+'Base original'!G59+'Base original'!I59+'Base original'!K59+'Base original'!M59 -> 14598.366 | F59: =+'Base original'!Y59+'Base original'!AB59 -> 963.7746782 | G59: =+'Base original'!Z59+'Base original'!AC59 -> 595.9097225 | H59: =+'Base original'!AD59+'Base original'!AA59 -> 367.8649557 | I59: =+'Base original'!AV59+'Base original'!AX59 -> 7227.221593 | J59: ='Base original'!AY59+'Base original'!AW59 -> 7133.862471 | K59: 14361.08406
A60: =+'Base original'!A60 -> 2011-04-01 | B60: ='Base original'!H60+'Base original'!J60 -> 491.5527368 | C60: ='Base original'!I60+'Base original'!K60 -> 749.0514899 | D60: =+'Base original'!B60+'Base original'!D60+'Base original'!F60+'Base original'!H60+'Base original'!J60+'Base original'!L60 -> 13533.85885 | E60: =+'Base original'!C60+'Base original'!E60+'Base original'!G60+'Base original'!I60+'Base original'!K60+'Base original'!M60 -> 14179.00826 | F60: =+'Base original'!Y60+'Base original'!AB60 -> 1013.063644 | G60: =+'Base original'!Z60+'Base original'!AC60 -> 755.3788844 | H60: =+'Base original'!AD60+'Base original'!AA60 -> 257.6847595 | I60: =+'Base original'!AV60+'Base original'!AX60 -> 6417.789117 | J60: ='Base original'!AY60+'Base original'!AW60 -> 6686.548972 | K60: 13104.33809
A61: =+'Base original'!A61 -> 2011-05-01 | B61: ='Base original'!H61+'Base original'!J61 -> 627.7144469 | C61: ='Base original'!I61+'Base original'!K61 -> 945.6039371 | D61: =+'Base original'!B61+'Base original'!D61+'Base original'!F61+'Base original'!H61+'Base original'!J61+'Base original'!L61 -> 14835.47963 | E61: =+'Base original'!C61+'Base original'!E61+'Base original'!G61+'Base original'!I61+'Base original'!K61+'Base original'!M61 -> 15440.78977 | F61: =+'Base original'!Y61+'Base original'!AB61 -> 1032.81113 | G61: =+'Base original'!Z61+'Base original'!AC61 -> 795.1107846 | H61: =+'Base original'!AD61+'Base original'!AA61 -> 237.7003449 | I61: =+'Base original'!AV61+'Base original'!AX61 -> 9239.461663 | J61: ='Base original'!AY61+'Base original'!AW61 -> 9849.977314 | K61: 19089.43898
A62: =+'Base original'!A62 -> 2011-06-01 | B62: ='Base original'!H62+'Base original'!J62 -> 562.7149783 | C62: ='Base original'!I62+'Base original'!K62 -> 791.1864697 | D62: =+'Base original'!B62+'Base original'!D62+'Base original'!F62+'Base original'!H62+'Base original'!J62+'Base original'!L62 -> 11416.83066 | E62: =+'Base original'!C62+'Base original'!E62+'Base original'!G62+'Base original'!I62+'Base original'!K62+'Base original'!M62 -> 14929.2251 | F62: =+'Base original'!Y62+'Base original'!AB62 -> 928.392491 | G62: =+'Base original'!Z62+'Base original'!AC62 -> 667.6732934 | H62: =+'Base original'!AD62+'Base original'!AA62 -> 260.7191976 | I62: =+'Base original'!AV62+'Base original'!AX62 -> 9257.093577 | J62: ='Base original'!AY62+'Base original'!AW62 -> 10211.44306 | K62: 19468.53663
